Workbook

Sheet Población e IPH por municipio
A1: Municipio | B1: Isla | C1: Población 2005 | D1: Población 2006 | E1: Población 2007 | F1: Población 2008 | G1: Población 2009 | H1: Población 2010 | I1: Población 2011 | J1: Población 2012 | K1: Población 2013 | L1: Población 2014 | M1: Población 2015 | N1: Población 2016 | O1: Población 2017 | P1: Población 2018 | Q1: ¿Se considera turístico? | R1: Nº Turistas 2005 | S1: Nº Turistas 2006 | T1: Nº Turistas 2007 | U1: Nº Turistas 2008 | V1: Nº Turistas 2009 | W1: Nº Turistas 2010 | X1: Nº Turistas 2011 | Y1: Nº Turistas 2012 | Z1: Nº Turistas 2013 | AA1: Nº Turistas 2014 | AB1: Nº Turistas 2015 | AC1: Nº Turistas 2016 | AD1: Nº Turistas 2017 | AE1: Nº Turistas 2018 | AF1: Incremento por población flotante 2005 | AG1: Incremento por población flotante 2006 | AH1: Incremento por población flotante 2007 | AI1: Incremento por población flotante 2008 | AJ1: Incremento por población flotante 2009 | AK1: Incremento por población flotante 2010 | AL1: Incremento por población flotante 2011 | AM1: Incremento por población flotante 2012 | AN1: Incremento por población flotante 2013 | AO1: Incremento por población flotante 2014 | AP1: Incremento por población flotante 2015 | AQ1: Incremento por población flotante 2016 | AR1: Incremento por población flotante 2017 | AS1: Incremento por población flotante 2018 | AT1: IPH municipal 2005 | AU1: IPH municipal 2006 | AV1: IPH municipal 2007 | AW1: IPH municipal 2008 | AX1: IPH municipal 2009 | AY1: IPH municipal 2010 | AZ1: IPH municipal 2011 | BA1: IPH municipal 2012 | BB1: IPH municipal 2013 | BC1: IPH municipal 2014 | BD1: IPH municipal 2015 | BE1: IPH municipal 2016 | BF1: IPH municipal 2017 | BG1: IPH municipal 2018
A2: Alaior | B2: Menorca | C2: 8671 | D2: 8933 | E2: 8972 | F2: 9133 | G2: 9257 | H2: 9399 | I2: 9600 | J2: 9610 | K2: 9769 | L2: 9162 | M2: 8997 | N2: 8959 | O2: 9097 | P2: 9012 | Q2: SI | R2: 62053.91189 | S2: 63804.22929 | T2: 64023 | U2: 64440 | V2: 60744 | W2: 57918 | X2: 73060 | Y2: 68876 | Z2: 79860 | AA2: 84451 | AB2: 75090 | AC2: 76448 | AD2: 82306 | AE2: 92309 | AF2: =+R2*$F$36 -> 3242.408697 | AG2: =S2*$F$37 -> 3471.546879 | AH2: =T2*$F$38 -> 3372.823326 | AI2: =U2*$F$39 -> 3060.394762 | AJ2: =V2*$F$40 -> 2449.364018 | AK2: =W2*$F$41 -> 2539.63564 | AL2: =X2*$F$42 -> 3456.214178 | AM2: =Y2*$F$43 -> 4055.904119 | AN2: =Z2*$F$44 -> 3713.61251 | AO2: =AA2*$F$45 -> 4036.233027 | AP2: =AB2*$F$46 -> 3514.961362 | AQ2: =AC2*$F$47 -> 3822.039136 | AR2: =AD2*$F$48 -> 4443.907941 | AS2: =AE2*$F$49 -> 4782.568696 | AT2: =+C2+AF2 -> 11913.4087 | AU2: =+D2+AG2 -> 12404.54688 | AV2: =+E2+AH2 -> 12344.82333 | AW2: =+F2+AI2 -> 12193.39476 | AX2: =+G2+AJ2 -> 11706.36402 | AY2: =+H2+AK2 -> 11938.63564 | AZ2: =+I2+AL2 -> 13056.21418 | BA2: =+J2+AM2 -> 13665.90412 | BB2: =+K2+AN2 -> 13482.61251 | BC2: =+L2+AO2 -> 13198.23303 | BD2: =+M2+AP2 -> 12511.96136 | BE2: =+N2+AQ2 -> 12781.03914 | BF2: =+O2+AR2 -> 13540.90794 | BG2: =+P2+AS2 -> 13794.5687
A3: Ciutadella | B3: Menorca | C3: 26972 | D3: 27468 | E3: 28017 | F3: 28696 | G3: 29160 | H3: 29247 | I3: 29315 | J3: 29580 | K3: 29629 | L3: 29282 | M3: 29098 | N3: 28641 | O3: 28838 | P3: 29223 | Q3: SI | R3: 330203.0786 | S3: 339516.9184 | T3: 340683.5749 | U3: 342900 | V3: 354415 | W3: 368549 | X3: 367942 | Y3: 365212 | Z3: 367294 | AA3: 355686 | AB3: 406139 | AC3: 461010 | AD3: 483208 | AE3: 439962 | AF3: =+R3*$F$36 -> 17253.59935 | AG3: =S3*$F$37 -> 18472.8961 | AH3: =T3*$F$38 -> 17947.69861 | AI3: =U3*$F$39 -> 16285.06151 | AJ3: =V3*$F$40 -> 14290.98098 | AK3: =W3*$F$41 -> 16160.43675 | AL3: =X3*$F$42 -> 17406.05471 | AM3: =Y3*$F$43 -> 21506.25552 | AN3: =Z3*$F$44 -> 17079.73445 | AO3: =AA3*$F$45 -> 16999.58059 | AP3: =AB3*$F$46 -> 19011.35827 | AQ3: =AC3*$F$47 -> 23048.32386 | AR3: =AD3*$F$48 -> 26089.6152 | AS3: =AE3*$F$49 -> 22794.61904 | AT3: =+C3+AF3 -> 44225.59935 | AU3: =+D3+AG3 -> 45940.8961 | AV3: =+E3+AH3 -> 45964.69861 | AW3: =+F3+AI3 -> 44981.06151 | AX3: =+G3+AJ3 -> 43450.98098 | AY3: =+H3+AK3 -> 45407.43675 | AZ3: =+I3+AL3 -> 46721.05471 | BA3: =+J3+AM3 -> 51086.25552 | BB3: =+K3+AN3 -> 46708.73445 | BC3: =+L3+AO3 -> 46281.58059 | BD3: =+M3+AP3 -> 48109.35827 | BE3: =+N3+AQ3 -> 51689.32386 | BF3: =+O3+AR3 -> 54927.6152 | BG3: =+P3+AS3 -> 52017.61904
A4: Es Castell | B4: Menorca | C4: 7440 | D4: 7475 | E4: 7629 | F4: 7724 | G4: 7892 | H4: 7926 | I4: 7990 | J4: 7962 | K4: 7956 | L4: 7661 | M4: 7635 | N4: 7455 | O4: 7343 | P4: 7348 | Q4: NO | AF4: =+R4*$F$36 -> 0 | AG4: =S4*$F$37 -> 0 | AH4: =T4*$F$38 -> 0 | AI4: =U4*$F$39 -> 0 | AJ4: =V4*$F$40 -> 0 | AK4: =W4*$F$41 -> 0 | AL4: =X4*$F$42 -> 0 | AM4: =Y4*$F$43 -> 0 | AN4: =Z4*$F$44 -> 0 | AO4: =AA4*$F$45 -> 0 | AP4: =AB4*$F$46 -> 0 | AQ4: =AC4*$F$47 -> 0 | AR4: =AD4*$F$48 -> 0 | AS4: =AE4*$F$49 -> 0 | AT4: =+C4+AF4 -> 7440 | AU4: =+D4+AG4 -> 7475 | AV4: =+E4+AH4 -> 7629 | AW4: =+F4+AI4 -> 7724 | AX4: =+G4+AJ4 -> 7892 | AY4: =+H4+AK4 -> 7926 | AZ4: =+I4+AL4 -> 7990 | BA4: =+J4+AM4 -> 7962 | BB4: =+K4+AN4 -> 7956 | BC4: =+L4+AO4 -> 7661 | BD4: =+M4+AP4 -> 7635 | BE4: =+N4+AQ4 -> 7455 | BF4: =+O4+AR4 -> 7343 | BG4: =+P4+AS4 -> 7348
A5: Es Mercadal | B5: Menorca | C5: 4255 | D5: 4504 | E5: 4838 | F5: 5134 | G5: 5292 | H5: 5398 | I5: 5408 | J5: 5396 | K5: 5425 | L5: 5176 | M5: 5091 | N5: 5098 | O5: 4788 | P5: 4788 | Q5: SI | R5: 17512.60772 | S5: 18006.57532 | T5: 18068.44997 | U5: 18186 | V5: 16470 | W5: 15018 | X5: 17708 | Y5: 12308 | Z5: 16006 | AA5: 24317 | AB5: 25746 | AC5: 34303 | AD5: 26954 | AE5: 27738 | AF5: =+R5*$F$36 -> 915.059661 | AG5: =S5*$F$37 -> 979.7261256 | AH5: =T5*$F$38 -> 951.8718196 | AI5: =U5*$F$39 -> 863.6924138 | AJ5: =V5*$F$40 -> 664.115392 | AK5: =W5*$F$41 -> 658.5214967 | AL5: =X5*$F$42 -> 837.7038141 | AM5: =Y5*$F$43 -> 724.7817513 | AN5: =Z5*$F$44 -> 744.3035542 | AO5: =AA5*$F$45 -> 1162.201496 | AP5: =AB5*$F$46 -> 1205.169733 | AQ5: =AC5*$F$47 -> 1714.988077 | AR5: =AD5*$F$48 -> 1455.31425 | AS5: =AE5*$F$49 -> 1437.117621 | AT5: =+C5+AF5 -> 5170.059661 | AU5: =+D5+AG5 -> 5483.726126 | AV5: =+E5+AH5 -> 5789.87182 | AW5: =+F5+AI5 -> 5997.692414 | AX5: =+G5+AJ5 -> 5956.115392 | AY5: =+H5+AK5 -> 6056.521497 | AZ5: =+I5+AL5 -> 6245.703814 | BA5: =+J5+AM5 -> 6120.781751 | BB5: =+K5+AN5 -> 6169.303554 | BC5: =+L5+AO5 -> 6338.201496 | BD5: =+M5+AP5 -> 6296.169733 | BE5: =+N5+AQ5 -> 6812.988077 | BF5: =+O5+AR5 -> 6243.31425 | BG5: =+P5+AS5 -> 6225.117621
A6: Es Migjorn Gran | B6: Menorca | C6: 1409 | D6: 1503 | E6: 1518 | F6: 1522 | G6: 1523 | H6: 1539 | I6: 1526 | J6: 1539 | K6: 1520 | L6: 1470 | M6: 1429 | N6: 1419 | O6: 1356 | P6: 1370 | Q6: SI | R6: 10415.50452 | S6: 10709.28839 | T6: 10746.08792 | U6: 10816 | V6: 18700 | W6: 14405 | X6: 14692 | Y6: 11018 | Z6: 12508 | AA6: 15272 | AB6: 14007 | AC6: 0 | AD6: 0 | AE6: 17580 | AF6: =+R6*$F$36 -> 544.2255193 | AG6: =S6*$F$37 -> 582.6854599 | AH6: =T6*$F$38 -> 566.1193006 | AI6: =U6*$F$39 -> 513.6751978 | AJ6: =V6*$F$40 -> 754.0350839 | AK6: =W6*$F$41 -> 631.6421734 | AL6: =X6*$F$42 -> 695.0273569 | AM6: =Y6*$F$43 -> 648.8174631 | AN6: =Z6*$F$44 -> 581.641188 | AO6: =AA6*$F$45 -> 729.9067008 | AP6: =AB6*$F$46 -> 655.6673831 | AQ6: =AC6*$F$47 -> 0 | AR6: =AD6*$F$48 -> 0 | AS6: =AE6*$F$49 -> 910.8273047 | AT6: =+C6+AF6 -> 1953.225519 | AU6: =+D6+AG6 -> 2085.68546 | AV6: =+E6+AH6 -> 2084.119301 | AW6: =+F6+AI6 -> 2035.675198 | AX6: =+G6+AJ6 -> 2277.035084 | AY6: =+H6+AK6 -> 2170.642173 | AZ6: =+I6+AL6 -> 2221.027357 | BA6: =+J6+AM6 -> 2187.817463 | BB6: =+K6+AN6 -> 2101.641188 | BC6: =+L6+AO6 -> 2199.906701 | BD6: =+M6+AP6 -> 2084.667383 | BE6: =+N6+AQ6 -> 1419 | BF6: =+O6+AR6 -> 1356 | BG6: =+P6+AS6 -> 2280.827305
A7: Ferreries | B7: Menorca | C7: 4416 | D7: 4476 | E7: 4563 | F7: 4617 | G7: 4669 | H7: 4620 | I7: 4717 | J7: 4670 | K7: 4610 | L7: 4630 | M7: 4571 | N7: 4617 | O7: 4633 | P7: 4695 | Q7: SI | R7: 3288.549179 | S7: 3381.307309 | T7: 3392.926242 | U7: 3415 | V7: 3692 | W7: 0 | X7: 0 | Y7: 0 | Z7: 0 | AA7: 0 | AB7: 0 | AC7: 4417 | AD7: 0 | AE7: 0 | AF7: =+R7*$F$36 -> 171.8315596 | AG7: =S7*$F$37 -> 183.9747453 | AH7: =T7*$F$38 -> 178.7442134 | AI7: =U7*$F$39 -> 162.1857249 | AJ7: =V7*$F$40 -> 148.8715256 | AK7: =W7*$F$41 -> 0 | AL7: =X7*$F$42 -> 0 | AM7: =Y7*$F$43 -> 0 | AN7: =Z7*$F$44 -> 0 | AO7: =AA7*$F$45 -> 0 | AP7: =AB7*$F$46 -> 0 | AQ7: =AC7*$F$47 -> 220.8291501 | AR7: =AD7*$F$48 -> 0 | AS7: =AE7*$F$49 -> 0 | AT7: =+C7+AF7 -> 4587.83156 | AU7: =+D7+AG7 -> 4659.974745 | AV7: =+E7+AH7 -> 4741.744213 | AW7: =+F7+AI7 -> 4779.185725 | AX7: =+G7+AJ7 -> 4817.871526 | AY7: =+H7+AK7 -> 4620 | AZ7: =+I7+AL7 -> 4717 | BA7: =+J7+AM7 -> 4670 | BB7: =+K7+AN7 -> 4610 | BC7: =+L7+AO7 -> 4630 | BD7: =+M7+AP7 -> 4571 | BE7: =+N7+AQ7 -> 4837.82915 | BF7: =+O7+AR7 -> 4633 | BG7: =+P7+AS7 -> 4695
A8: Maó | B8: Menorca | C8: 27669 | D8: 27893 | E8: 28284 | F8: 28904 | G8: 29125 | H8: 29050 | I8: 28942 | J8: 28972 | K8: 28765 | L8: 28460 | M8: 28006 | N8: 28099 | O8: 28161 | P8: 28592 | Q8: SI | R8: 55942.89195 | S8: 57520.83948 | T8: 57718.49402 | U8: 58094 | V8: 45400 | W8: 0 | X8: 0 | Y8: 0 | Z8: 60160 | AA8: 52336 | AB8: 78118 | AC8: 60240 | AD8: 61580 | AE8: 86422 | AF8: =+R8*$F$36 -> 2923.098864 | AG8: =S8*$F$37 -> 3129.6717 | AH8: =T8*$F$38 -> 3040.692923 | AI8: =U8*$F$39 -> 2759.009518 | AJ8: =V8*$F$40 -> 1830.652022 | AK8: =W8*$F$41 -> 0 | AL8: =X8*$F$42 -> 0 | AM8: =Y8*$F$43 -> 0 | AN8: =Z8*$F$44 -> 2797.532289 | AO8: =AA8*$F$45 -> 2501.335588 | AP8: =AB8*$F$46 -> 3656.70198 | AQ8: =AC8*$F$47 -> 3011.715644 | AR8: =AD8*$F$48 -> 3324.859075 | AS8: =AE8*$F$49 -> 4477.560713 | AT8: =+C8+AF8 -> 30592.09886 | AU8: =+D8+AG8 -> 31022.6717 | AV8: =+E8+AH8 -> 31324.69292 | AW8: =+F8+AI8 -> 31663.00952 | AX8: =+G8+AJ8 -> 30955.65202 | AY8: =+H8+AK8 -> 29050 | AZ8: =+I8+AL8 -> 28942 | BA8: =+J8+AM8 -> 28972 | BB8: =+K8+AN8 -> 31562.53229 | BC8: =+L8+AO8 -> 30961.33559 | BD8: =+M8+AP8 -> 31662.70198 | BE8: =+N8+AQ8 -> 31110.71564 | BF8: =+O8+AR8 -> 31485.85907 | BG8: =+P8+AS8 -> 33069.56071
A9: Sant Lluís | B9: Menorca | C9: 5865 | D9: 6182 | E9: 6414 | F9: 6704 | G9: 6997 | H9: 7204 | I9: 7377 | J9: 7449 | K9: 7509 | L9: 7472 | M9: 7521 | N9: 7313 | O9: 6954 | P9: 6892 | Q9: SI | R9: 60587.30562 | S9: 62296.25534 | T9: 62510.31928 | U9: 62917 | V9: 69834 | W9: 84938 | X9: 87687 | Y9: 17457 | Z9: 91809 | AA9: 92545 | AB9: 100279 | AC9: 105047 | AD9: 87882 | AE9: 84643 | AF9: =+R9*$F$36 -> 3165.77635 | AG9: =S9*$F$37 -> 3389.498991 | AH9: =T9*$F$38 -> 3293.13314 | AI9: =U9*$F$39 -> 2988.064203 | AJ9: =V9*$F$40 -> 2815.89765 | AK9: =W9*$F$41 -> 3724.430609 | AL9: =X9*$F$42 -> 4148.166611 | AM9: =Y9*$F$43 -> 1027.991147 | AN9: =Z9*$F$44 -> 4269.259341 | AO9: =AA9*$F$45 -> 4423.075931 | AP9: =AB9*$F$46 -> 4694.057936 | AQ9: =AC9*$F$47 -> 5251.854138 | AR9: =AD9*$F$48 -> 4744.970205 | AS9: =AE9*$F$49 -> 4385.389963 | AT9: =+C9+AF9 -> 9030.77635 | AU9: =+D9+AG9 -> 9571.498991 | AV9: =+E9+AH9 -> 9707.13314 | AW9: =+F9+AI9 -> 9692.064203 | AX9: =+G9+AJ9 -> 9812.89765 | AY9: =+H9+AK9 -> 10928.43061 | AZ9: =+I9+AL9 -> 11525.16661 | BA9: =+J9+AM9 -> 8476.991147 | BB9: =+K9+AN9 -> 11778.25934 | BC9: =+L9+AO9 -> 11895.07593 | BD9: =+M9+AP9 -> 12215.05794 | BE9: =+N9+AQ9 -> 12564.85414 | BF9: =+O9+AR9 -> 11698.9702 | BG9: =+P9+AS9 -> 11277.38996
A10: Eivissa | B10: Eivissa | C10: 42797 | D10: 42884 | E10: 44114 | F10: 46835 | G10: 48684 | H10: 49516 | I10: 49388 | J10: 49768 | K10: 50401 | L10: 49693 | M10: 49975 | N10: 49549 | O10: 49689 | P10: 49727 | Q10: SI | R10: 305539.4413 | S10: 314157.6087 | T10: 315237.1249 | U10: 317288 | V10: 293062 | W10: 396014 | X10: 435799 | Y10: 413101 | Z10: 434677 | AA10: 473012 | AB10: 485998 | AC10: 489437 | AD10: 531449 | AE10: 527384 | AF10: =R10*$F$50 -> 11335.89862 | AG10: =S10*$F$51 -> 12543.60168 | AH10: =T10*$F$52 -> 11969.54947 | AI10: =U10*$F$53 -> 10842.3036 | AJ10: =V10*$F$54 -> 10364.14895 | AK10: =W10*$F$55 -> 11797.06113 | AL10: =X10*$F$56 -> 13554.50385 | AM10: =Y10*$F$57 -> 14169.88387 | AN10: =Z10*$F$58 -> 14142.59112 | AO10: =AA10*$F$59 -> 16800.192 | AP10: =AB10*$F$60 -> 16195.53525 | AQ10: =AC10*$F$61 -> 16488.92645 | AR10: =AD10*$F$62 -> 17713.6941 | AS10: =AE10*$F$63 -> 18340.74564 | AT10: =+C10+AF10 -> 54132.89862 | AU10: =+D10+AG10 -> 55427.60168 | AV10: =+E10+AH10 -> 56083.54947 | AW10: =+F10+AI10 -> 57677.3036 | AX10: =+G10+AJ10 -> 59048.14895 | AY10: =+H10+AK10 -> 61313.06113 | AZ10: =+I10+AL10 -> 62942.50385 | BA10: =+J10+AM10 -> 63937.88387 | BB10: =+K10+AN10 -> 64543.59112 | BC10: =+L10+AO10 -> 66493.192 | BD10: =+M10+AP10 -> 66170.53525 | BE10: =+N10+AQ10 -> 66037.92645 | BF10: =+O10+AR10 -> 67402.6941 | BG10: =+P10+AS10 -> 68067.74564
A11: Sant Antoni de Portmany | B11: Eivissa | C11: 18366 | D11: 19673 | E11: 19889 | F11: 21082 | G11: 21852 | H11: 22136 | I11: 22299 | J11: 22446 | K11: 23314 | L11: 23359 | M11: 23631 | N11: 24478 | O11: 25290 | P11: 25779 | Q11: SI | R11: 272777.2099 | S11: 280471.2727 | T11: 281435.0351 | U11: 283266 | V11: 240375 | W11: 278665 | X11: 382726 | Y11: 360573 | Z11: 359534 | AA11: 361403 | AB11: 355941 | AC11: 432832 | AD11: 444283 | AE11: 474328 | AF11: =R11*$F$50 -> 10120.37852 | AG11: =S11*$F$51 -> 11198.58259 | AH11: =T11*$F$38 -> 14826.40069 | AI11: =U11*$F$38 -> 14922.85854 | AJ11: =V11*$F$54 -> 8500.871159 | AK11: =W11*$F$55 -> 8301.292477 | AL11: =X11*$F$56 -> 11903.7929 | AM11: =Y11*$F$57 -> 12368.10741 | AN11: =Z11*$F$58 -> 11697.7488 | AO11: =AA11*$F$59 -> 12836.1221 | AP11: =AB11*$F$60 -> 11861.47888 | AQ11: =AC11*$F$61 -> 14581.92784 | AR11: =AD11*$F$62 -> 14808.36949 | AS11: =AE11*$F$63 -> 16495.62596 | AT11: =+C11+AF11 -> 28486.37852 | AU11: =+D11+AG11 -> 30871.58259 | AV11: =+E11+AH11 -> 34715.40069 | AW11: =+F11+AI11 -> 36004.85854 | AX11: =+G11+AJ11 -> 30352.87116 | AY11: =+H11+AK11 -> 30437.29248 | AZ11: =+I11+AL11 -> 34202.7929 | BA11: =+J11+AM11 -> 34814.10741 | BB11: =+K11+AN11 -> 35011.7488 | BC11: =+L11+AO11 -> 36195.1221 | BD11: =+M11+AP11 -> 35492.47888 | BE11: =+N11+AQ11 -> 39059.92784 | BF11: =+O11+AR11 -> 40098.36949 | BG11: =+P11+AS11 -> 42274.62596
A12: Sant Joan de Labritja | B12: Eivissa | C12: 4838 | D12: 4975 | E12: 5198 | F12: 5468 | G12: 5541 | H12: 5477 | I12: 5351 | J12: 5506 | K12: 5677 | L12: 5668 | M12: 5872 | N12: 6070 | O12: 6139 | P12: 6200 | Q12: SI | R12: 20007.66802 | S12: 20572.01229 | T12: 20642.70235 | U12: 20777 | V12: 21519 | W12: 91636 | X12: 102651 | Y12: 90283 | Z12: 105357 | AA12: 36736 | AB12: 110953 | AC12: 112592 | AD12: 111580 | AE12: 19641 | AF12: =R12*$F$50 -> 742.3097174 | AG12: =S12*$F$51 -> 821.3938507 | AH12: =T12*$F$38 -> 1087.487122 | AI12: =U12*$F$38 -> 1094.562114 | AJ12: =V12*$F$54 -> 761.0202661 | AK12: =W12*$F$55 -> 2729.791102 | AL12: =X12*$F$56 -> 3192.718144 | AM12: =Y12*$F$57 -> 3096.820453 | AN12: =Z12*$F$58 -> 3427.880868 | AO12: =AA12*$F$59 -> 1304.76997 | AP12: =AB12*$F$60 -> 3697.429253 | AQ12: =AC12*$F$61 -> 3793.177073 | AR12: =AD12*$F$62 -> 3719.066153 | AS12: =AE12*$F$63 -> 683.0517899 | AT12: =+C12+AF12 -> 5580.309717 | AU12: =+D12+AG12 -> 5796.393851 | AV12: =+E12+AH12 -> 6285.487122 | AW12: =+F12+AI12 -> 6562.562114 | AX12: =+G12+AJ12 -> 6302.020266 | AY12: =+H12+AK12 -> 8206.791102 | AZ12: =+I12+AL12 -> 8543.718144 | BA12: =+J12+AM12 -> 8602.820453 | BB12: =+K12+AN12 -> 9104.880868 | BC12: =+L12+AO12 -> 6972.76997 | BD12: =+M12+AP12 -> 9569.429253 | BE12: =+N12+AQ12 -> 9863.177073 | BF12: =+O12+AR12 -> 9858.066153 | BG12: =+P12+AS12 -> 6883.05179
A13: Sant Josep de sa Talaia | B13: Eivissa | C13: 18382 | D13: 19224 | E13: 20136 | F13: 21304 | G13: 22171 | H13: 22871 | I13: 23688 | J13: 24691 | K13: 24498 | L13: 25362 | M13: 25674 | N13: 25849 | O13: 26133 | P13: 26496 | Q13: SI | R13: 336110.9115 | S13: 345591.39 | T13: 346778.9197 | U13: 349035 | V13: 323026 | W13: 363571 | X13: 370802 | Y13: 342178 | Z13: 450606 | AA13: 438839 | AB13: 461702 | AC13: 635015 | AD13: 606307 | AE13: 548318 | AF13: =R13*$F$50 -> 12470.13872 | AG13: =S13*$F$51 -> 13798.68136 | AH13: =T13*$F$38 -> 18268.8101 | AI13: =U13*$F$38 -> 18387.66365 | AJ13: =V13*$F$54 -> 11423.82697 | AK13: =W13*$F$55 -> 10830.60021 | AL13: =X13*$F$56 -> 11532.92489 | AM13: =Y13*$F$57 -> 11737.13577 | AN13: =Z13*$F$58 -> 14660.85487 | AO13: =AA13*$F$59 -> 15586.45332 | AP13: =AB13*$F$60 -> 15385.88845 | AQ13: =AC13*$F$61 -> 21393.38798 | AR13: =AD13*$F$62 -> 20208.78152 | AS13: =AE13*$F$63 -> 19068.76388 | AT13: =+C13+AF13 -> 30852.13872 | AU13: =+D13+AG13 -> 33022.68136 | AV13: =+E13+AH13 -> 38404.8101 | AW13: =+F13+AI13 -> 39691.66365 | AX13: =+G13+AJ13 -> 33594.82697 | AY13: =+H13+AK13 -> 33701.60021 | AZ13: =+I13+AL13 -> 35220.92489 | BA13: =+J13+AM13 -> 36428.13577 | BB13: =+K13+AN13 -> 39158.85487 | BC13: =+L13+AO13 -> 40948.45332 | BD13: =+M13+AP13 -> 41059.88845 | BE13: =+N13+AQ13 -> 47242.38798 | BF13: =+O13+AR13 -> 46341.78152 | BG13: =+P13+AS13 -> 45564.76388
A14: Santa Eulària des Riu | B14: Eivissa | C14: 26724 | D14: 27152 | E14: 28361 | F14: 30364 | G14: 31314 | H14: 32637 | I14: 33734 | J14: 34946 | K14: 36464 | L14: 36189 | M14: 35812 | N14: 36119 | O14: 36605 | P14: 36457 | Q14: SI | R14: 278987.4159 | S14: 286856.6463 | T14: 287842.3503 | U14: 289715 | V14: 228741 | W14: 279871 | X14: 364120 | Y14: 343069 | Z14: 355317 | AA14: 334190 | AB14: 371922 | AC14: 411608 | AD14: 465058 | AE14: 483153 | AF14: =R14*$F$50 -> 10350.78499 | AG14: =S14*$F$51 -> 11453.5361 | AH14: =T14*$F$38 -> 15163.94722 | AI14: =U14*$F$38 -> 15262.60109 | AJ14: =V14*$F$54 -> 8089.4343 | AK14: =W14*$F$55 -> 8337.21862 | AL14: =X14*$F$56 -> 11325.09699 | AM14: =Y14*$F$57 -> 11767.69819 | AN14: =Z14*$F$58 -> 11560.54507 | AO14: =AA14*$F$59 -> 11869.58505 | AP14: =AB14*$F$60 -> 12394.03425 | AQ14: =AC14*$F$61 -> 13866.90021 | AR14: =AD14*$F$62 -> 15500.81974 | AS14: =AE14*$F$63 -> 16802.53151 | AT14: =+C14+AF14 -> 37074.78499 | AU14: =+D14+AG14 -> 38605.5361 | AV14: =+E14+AH14 -> 43524.94722 | AW14: =+F14+AI14 -> 45626.60109 | AX14: =+G14+AJ14 -> 39403.4343 | AY14: =+H14+AK14 -> 40974.21862 | AZ14: =+I14+AL14 -> 45059.09699 | BA14: =+J14+AM14 -> 46713.69819 | BB14: =+K14+AN14 -> 48024.54507 | BC14: =+L14+AO14 -> 48058.58505 | BD14: =+M14+AP14 -> 48206.03425 | BE14: =+N14+AQ14 -> 49985.90021 | BF14: =+O14+AR14 -> 52105.81974 | BG14: =+P14+AS14 -> 53259.53151
A15: Sant Francesc | B15: Formentera | C15: 7506 | D15: 7957 | E15: 8442 | F15: 9147 | G15: 9552 | H15: 9962 | I15: 10365 | J15: 10757 | K15: 11374 | L15: 11545 | M15: 11878 | N15: 12124 | O15: 12280 | P15: 12216 | Q15: SI | R15: 112235.3427 | S15: 115401.0976 | T15: 115797.6417 | U15: 116551 | V15: 112737 | W15: 125974 | X15: 134355 | Y15: 140253 | Z15: 171840 | AA15: 176825 | AB15: 171213 | AC15: 191620 | AD15: 193917 | AE15: 203012 | AF15: =R15*$F$50 -> 4164.072767 | AG15: =S15*$F$51 -> 4607.704418 | AH15: =T15*$F$38 -> 6100.385596 | AI15: =U15*$F$38 -> 6140.07359 | AJ15: =V15*$F$54 -> 3986.948359 | AK15: =W15*$F$55 -> 3752.703133 | AL15: =X15*$F$56 -> 4178.796566 | AM15: =Y15*$F$57 -> 4810.854302 | AN15: =Z15*$F$58 -> 5590.962617 | AO15: =AA15*$F$59 -> 6280.377559 | AP15: =AB15*$F$60 -> 5705.550591 | AQ15: =AC15*$F$61 -> 6455.597118 | AR15: =AD15*$F$62 -> 6463.435662 | AS15: =AE15*$F$63 -> 7060.114555 | AT15: =+C15+AF15 -> 11670.07277 | AU15: =+D15+AG15 -> 12564.70442 | AV15: =+E15+AH15 -> 14542.3856 | AW15: =+F15+AI15 -> 15287.07359 | AX15: =+G15+AJ15 -> 13538.94836 | AY15: =+H15+AK15 -> 13714.70313 | AZ15: =+I15+AL15 -> 14543.79657 | BA15: =+J15+AM15 -> 15567.8543 | BB15: =+K15+AN15 -> 16964.96262 | BC15: =+L15+AO15 -> 17825.37756 | BD15: =+M15+AP15 -> 17583.55059 | BE15: =+N15+AQ15 -> 18579.59712 | BF15: =+O15+AR15 -> 18743.43566 | BG15: =+P15+AS15 -> 19276.11455
A16: TOTAL Menorca | C16: =SUM(C2:C9) -> 86697 | D16: =SUM(D2:D9) -> 88434 | E16: =SUM(E2:E9) -> 90235 | F16: =SUM(F2:F9) -> 92434 | G16: =SUM(G2:G9) -> 93915 | H16: =SUM(H2:H9) -> 94383 | I16: =SUM(I2:I9) -> 94875 | J16: =SUM(J2:J9) -> 95178 | K16: =SUM(K2:K9) -> 95183 | L16: =SUM(L2:L9) -> 93313 | M16: =SUM(M2:M9) -> 92348 | N16: =SUM(N2:N9) -> 91601 | O16: =SUM(O2:O9) -> 91170 | P16: =SUM(P2:P9) -> 91920 | Q16: - | R16: =SUM(R2:R9) -> 540003.8495 | S16: =SUM(S2:S9) -> 555235.4136 | T16: =SUM(T2:T9) -> 557142.8523 | U16: =SUM(U2:U9) -> 560768 | V16: =SUM(V2:V9) -> 569255 | W16: =SUM(W2:W9) -> 540828 | X16: =SUM(X2:X9) -> 561089 | Y16: =SUM(Y2:Y9) -> 474871 | Z16: =SUM(Z2:Z9) -> 627637 | AA16: =SUM(AA2:AA9) -> 624607 | AB16: =SUM(AB2:AB9) -> 699379 | AC16: =SUM(AC2:AC9) -> 741465 | AD16: =SUM(AD2:AD9) -> 741930 | AE16: =SUM(AE2:AE9) -> 748654 | AF16: =SUM(AF2:AF9) -> 28216 | AG16: =SUM(AG2:AG9) -> 30210 | AH16: =SUM(AH2:AH9) -> 29351.08333 | AI16: =SUM(AI2:AI9) -> 26632.08333 | AJ16: =SUM(AJ2:AJ9) -> 22953.91667 | AK16: =SUM(AK2:AK9) -> 23714.66667 | AL16: =SUM(AL2:AL9) -> 26543.16667 | AM16: =SUM(AM2:AM9) -> 27963.75 | AN16: =SUM(AN2:AN9) -> 29186.08333 | AO16: =SUM(AO2:AO9) -> 29852.33333 | AP16: =SUM(AP2:AP9) -> 32737.91667 | AQ16: =SUM(AQ2:AQ9) -> 37069.75 | AR16: =SUM(AR2:AR9) -> 40058.66667 | AS16: =SUM(AS2:AS9) -> 38788.08333 | AT16: =SUM(AT2:AT9) -> 114913 | AU16: =SUM(AU2:AU9) -> 118644 | AV16: =SUM(AV2:AV9) -> 119586.0833 | AW16: =SUM(AW2:AW9) -> 119066.0833 | AX16: =SUM(AX2:AX9) -> 116868.9167 | AY16: =SUM(AY2:AY9) -> 118097.6667 | AZ16: =SUM(AZ2:AZ9) -> 121418.1667 | BA16: =SUM(BA2:BA9) -> 123141.75 | BB16: =SUM(BB2:BB9) -> 124369.0833 | BC16: =SUM(BC2:BC9) -> 123165.3333 | BD16: =SUM(BD2:BD9) -> 125085.9167 | BE16: =SUM(BE2:BE9) -> 128670.75 | BF16: =SUM(BF2:BF9) -> 131228.6667 | BG16: =SUM(BG2:BG9) -> 130708.0833
A17: TOTAL Ibiza | C17: =SUM(C10:C14) -> 111107 | D17: =SUM(D10:D14) -> 113908 | E17: =SUM(E10:E14) -> 117698 | F17: =SUM(F10:F14) -> 125053 | G17: =SUM(G10:G14) -> 129562 | H17: =SUM(H10:H14) -> 132637 | I17: =SUM(I10:I14) -> 134460 | J17: =SUM(J10:J14) -> 137357 | K17: =SUM(K10:K14) -> 140354 | L17: =SUM(L10:L14) -> 140271 | M17: =SUM(M10:M14) -> 140964 | N17: =SUM(N10:N14) -> 142065 | O17: =SUM(O10:O14) -> 143856 | P17: =SUM(P10:P14) -> 144659 | Q17: - | R17: =SUM(R10:R14) -> 1213422.647 | S17: =SUM(S10:S14) -> 1247648.93 | T17: =SUM(T10:T14) -> 1251936.132 | U17: =SUM(U10:U14) -> 1260081 | V17: =SUM(V10:V14) -> 1106723 | W17: =SUM(W10:W14) -> 1409757 | X17: =SUM(X10:X14) -> 1656098 | Y17: =SUM(Y10:Y14) -> 1549204 | Z17: =SUM(Z10:Z14) -> 1705491 | AA17: =SUM(AA10:AA14) -> 1644180 | AB17: =SUM(AB10:AB14) -> 1786516 | AC17: =SUM(AC10:AC14) -> 2081484 | AD17: =SUM(AD10:AD14) -> 2158677 | AE17: =SUM(AE10:AE14) -> 2052824 | AF17: =SUM(AF10:AF14) -> 45019.51057 | AG17: =SUM(AG10:AG14) -> 49815.79558 | AH17: =SUM(AH10:AH14) -> 61316.1946 | AI17: =SUM(AI10:AI14) -> 60509.989 | AJ17: =SUM(AJ10:AJ14) -> 39139.30164 | AK17: =SUM(AK10:AK14) -> 41995.96353 | AL17: =SUM(AL10:AL14) -> 51509.03677 | AM17: =SUM(AM10:AM14) -> 53139.6457 | AN17: =SUM(AN10:AN14) -> 55489.62072 | AO17: =SUM(AO10:AO14) -> 58397.12244 | AP17: =SUM(AP10:AP14) -> 59534.36608 | AQ17: =SUM(AQ10:AQ14) -> 70124.31955 | AR17: =SUM(AR10:AR14) -> 71950.731 | AS17: =SUM(AS10:AS14) -> 71390.71878 | AT17: =SUM(AT10:AT14) -> 156126.5106 | AU17: =SUM(AU10:AU14) -> 163723.7956 | AV17: =SUM(AV10:AV14) -> 179014.1946 | AW17: =SUM(AW10:AW14) -> 185562.989 | AX17: =SUM(AX10:AX14) -> 168701.3016 | AY17: =SUM(AY10:AY14) -> 174632.9635 | AZ17: =SUM(AZ10:AZ14) -> 185969.0368 | BA17: =SUM(BA10:BA14) -> 190496.6457 | BB17: =SUM(BB10:BB14) -> 195843.6207 | BC17: =SUM(BC10:BC14) -> 198668.1224 | BD17: =SUM(BD10:BD14) -> 200498.3661 | BE17: =SUM(BE10:BE14) -> 212189.3195 | BF17: =SUM(BF10:BF14) -> 215806.731 | BG17: =SUM(BG10:BG14) -> 216049.7188
A18: TOTAL Formentera | C18: =SUM(C15) -> 7506 | D18: =SUM(D15) -> 7957 | E18: =SUM(E15) -> 8442 | F18: =SUM(F15) -> 9147 | G18: =SUM(G15) -> 9552 | H18: =SUM(H15) -> 9962 | I18: =SUM(I15) -> 10365 | J18: =SUM(J15) -> 10757 | K18: =SUM(K15) -> 11374 | L18: =SUM(L15) -> 11545 | M18: =SUM(M15) -> 11878 | N18: =SUM(N15) -> 12124 | O18: =SUM(O15) -> 12280 | P18: =SUM(P15) -> 12216 | Q18: - | R18: =SUM(R15) -> 112235.3427 | S18: =SUM(S15) -> 115401.0976 | T18: =SUM(T15) -> 115797.6417 | U18: =SUM(U15) -> 116551 | V18: =SUM(V15) -> 112737 | W18: =SUM(W15) -> 125974 | X18: =SUM(X15) -> 134355 | Y18: =SUM(Y15) -> 140253 | Z18: =SUM(Z15) -> 171840 | AA18: =SUM(AA15) -> 176825 | AB18: =SUM(AB15) -> 171213 | AC18: =SUM(AC15) -> 191620 | AD18: =SUM(AD15) -> 193917 | AE18: =SUM(AE15) -> 203012 | AF18: =SUM(AF15) -> 4164.072767 | AG18: =SUM(AG15) -> 4607.704418 | AH18: =SUM(AH15) -> 6100.385596 | AI18: =SUM(AI15) -> 6140.07359 | AJ18: =SUM(AJ15) -> 3986.948359 | AK18: =SUM(AK15) -> 3752.703133 | AL18: =SUM(AL15) -> 4178.796566 | AM18: =SUM(AM15) -> 4810.854302 | AN18: =SUM(AN15) -> 5590.962617 | AO18: =SUM(AO15) -> 6280.377559 | AP18: =SUM(AP15) -> 5705.550591 | AQ18: =SUM(AQ15) -> 6455.597118 | AR18: =SUM(AR15) -> 6463.435662 | AS18: =SUM(AS15) -> 7060.114555 | AT18: =SUM(AT15) -> 11670.07277 | AU18: =SUM(AU15) -> 12564.70442 | AV18: =SUM(AV15) -> 14542.3856 | AW18: =SUM(AW15) -> 15287.07359 | AX18: =SUM(AX15) -> 13538.94836 | AY18: =SUM(AY15) -> 13714.70313 | AZ18: =SUM(AZ15) -> 14543.79657 | BA18: =SUM(BA15) -> 15567.8543 | BB18: =SUM(BB15) -> 16964.96262 | BC18: =SUM(BC15) -> 17825.37756 | BD18: =SUM(BD15) -> 17583.55059 | BE18: =SUM(BE15) -> 18579.59712 | BF18: =SUM(BF15) -> 18743.43566 | BG18: =SUM(BG15) -> 19276.11455
A19: TOTAL | C19: =SUM(C2:C15) -> 205310 | D19: =SUM(D2:D15) -> 210299 | E19: =SUM(E2:E15) -> 216375 | F19: =SUM(F2:F15) -> 226634 | G19: =SUM(G2:G15) -> 233029 | H19: =SUM(H2:H15) -> 236982 | I19: =SUM(I2:I15) -> 239700 | J19: =SUM(J2:J15) -> 243292 | K19: =SUM(K2:K15) -> 246911 | L19: =SUM(L2:L15) -> 245129 | M19: =SUM(M2:M15) -> 245190 | N19: =SUM(N2:N15) -> 245790 | O19: =SUM(O2:O15) -> 247306 | P19: =SUM(P2:P15) -> 248795 | Q19: - | R19: =SUM(R2:R15) -> 1865661.839 | S19: =SUM(S2:S15) -> 1918285.441 | T19: =SUM(T2:T15) -> 1924876.626 | U19: =SUM(U2:U15) -> 1937400 | V19: =SUM(V2:V15) -> 1788715 | W19: =SUM(W2:W15) -> 2076559 | X19: =SUM(X2:X15) -> 2351542 | Y19: =SUM(Y2:Y15) -> 2164328 | Z19: =SUM(Z2:Z15) -> 2504968 | AA19: =SUM(AA2:AA15) -> 2445612 | AB19: =SUM(AB2:AB15) -> 2657108 | AC19: =SUM(AC2:AC15) -> 3014569 | AD19: =SUM(AD2:AD15) -> 3094524 | AE19: =SUM(AE2:AE15) -> 3004490 | AF19: =SUM(AF2:AF15) -> 77399.58333 | AG19: =SUM(AG2:AG15) -> 84633.5 | AH19: =SUM(AH2:AH15) -> 96767.66353 | AI19: =SUM(AI2:AI15) -> 93282.14592 | AJ19: =SUM(AJ2:AJ15) -> 66080.16667 | AK19: =SUM(AK2:AK15) -> 69463.33333 | AL19: =SUM(AL2:AL15) -> 82231 | AM19: =SUM(AM2:AM15) -> 85914.25 | AN19: =SUM(AN2:AN15) -> 90266.66667 | AO19: =SUM(AO2:AO15) -> 94529.83333 | AP19: =SUM(AP2:AP15) -> 97977.83333 | AQ19: =SUM(AQ2:AQ15) -> 113649.6667 | AR19: =SUM(AR2:AR15) -> 118472.8333 | AS19: =SUM(AS2:AS15) -> 117238.9167 | AT19: =SUM(AT2:AT15) -> 282709.5833 | AU19: =SUM(AU2:AU15) -> 294932.5 | AV19: =SUM(AV2:AV15) -> 313142.6635 | AW19: =SUM(AW2:AW15) -> 319916.1459 | AX19: =SUM(AX2:AX15) -> 299109.1667 | AY19: =SUM(AY2:AY15) -> 306445.3333 | AZ19: =SUM(AZ2:AZ15) -> 321931 | BA19: =SUM(BA2:BA15) -> 329206.25 | BB19: =SUM(BB2:BB15) -> 337177.6667 | BC19: =SUM(BC2:BC15) -> 339658.8333 | BD19: =SUM(BD2:BD15) -> 343167.8333 | BE19: =SUM(BE2:BE15) -> 359439.6667 | BF19: =SUM(BF2:BF15) -> 365778.8333 | BG19: =SUM(BG2:BG15) -> 366033.9167
A23: Año | B23: Isla | C23: IPH total isla | D23: POBLACIÓN total isla | E23: Población flotante media | F23: Población Flotante / nº turistas al año | G23: Nº turistas al año
A24: 2005 | B24: Mallorca | C24: 935007.9167 | D24: 777821 | E24: 157186.9167 | F24: 0.02407068691 | G24: =+E24/F24 -> 6530221.479
A25: 2006 | B25: Mallorca | C25: 965549.3333 | D25: 790763 | E25: 174786.3333 | F25: 0.02603150387 | G25: =+E25/F25 -> 6714415.511
A26: 2007 | B26: Mallorca | C26: 985015.0833 | D26: 814275 | E26: 170740.0833 | F26: 0.0253418024 | G26: =+E26/F26 -> 6737487.753
A27: 2008 | B27: Mallorca | C27: 1006601.667 | D27: 846210 | E27: 160391.6667 | F27: 0.02365198104 | G27: =+E27/F27 -> 6781320.617
A28: 2009 | B28: Mallorca | C28: 1005415.417 | D28: 862397 | E28: 143018.4167 | F28: 0.02330234937 | G28: =+E28/F28 -> 6137510.617
A29: 2010 | B29: Mallorca | C29: 1014540.5 | D29: 869067 | E29: 145473.5 | F29: 0.02216940691 | G29: =+E29/F29 -> 6561903.104
A30: 2011 | B30: Mallorca | C30: 1035523.833 | D30: 873414 | E30: 162109.8333 | F30: 0.02281537261 | G30: =+E30/F30 -> 7105289.757
A31: 2012 | B31: Mallorca | C31: 1052518.917 | D31: 876147 | E31: 176371.9167 | F31: 0.02457044307 | G31: =+E31/F31 -> 7178214.743
A32: 2013 | B32: Mallorca | C32: 1062646.417 | D32: 864763 | E32: 197883.4167 | F32: 0.02737204553 | G32: =+E32/F32 -> 7229398.2
A33: 2014 | B33: Mallorca | C33: 1066955.667 | D33: 858313 | E33: 208642.6667 | F33: 0.02916112204 | G33: =+E33/F33 -> 7154823
A34: 2015 | B34: Mallorca | C34: 1080709.167 | D34: 859289 | E34: 221420.1667 | F34: 0.03163234712 | G34: =+E34/F34 -> 6999802
A35: 2016 | B35: Mallorca | C35: 1112863.667 | D35: 861430 | E35: 251433.6667 | F35: 0.03375745131 | G35: =+E35/F35 -> 7448242
A36: 2005 | B36: Menorca | C36: 114913 | D36: 86697 | E36: =+C36-D36 -> 28216 | F36: =+E36/G36 -> 0.05225147936 | G36: =+R16 -> 540003.8495
A37: 2006 | B37: Menorca | C37: 118644 | D37: 88434 | E37: =+C37-D37 -> 30210 | F37: =+E37/G37 -> 0.05440935369 | G37: =+S16 -> 555235.4136
A38: 2007 | B38: Menorca | C38: 119586.0833 | D38: 90235 | E38: =+C38-D38 -> 29351.08333 | F38: =+E38/G38 -> 0.05268143208 | G38: =+T16 -> 557142.8523
A39: 2008 | B39: Menorca | C39: 119066.0833 | D39: 92434 | E39: =+C39-D39 -> 26632.08333 | F39: =+E39/G39 -> 0.04749215956 | G39: =+U16 -> 560768
A40: 2009 | B40: Menorca | C40: 116868.9167 | D40: 93915 | E40: =+C40-D40 -> 22953.91667 | F40: =+E40/G40 -> 0.04032273176 | G40: =+V16 -> 569255
A41: 2010 | B41: Menorca | C41: 118097.6667 | D41: 94383 | E41: =+C41-D41 -> 23714.66667 | F41: =+E41/G41 -> 0.04384881453 | G41: =+W16 -> 540828
A42: 2011 | B42: Menorca | C42: 121418.1667 | D42: 94875 | E42: =+C42-D42 -> 26543.16667 | F42: =+E42/G42 -> 0.04730651762 | G42: =+X16 -> 561089
A43: 2012 | B43: Menorca | C43: 123141.75 | D43: 95178 | E43: =+C43-D43 -> 27963.75 | F43: =+E43/G43 -> 0.05888704511 | G43: =+Y16 -> 474871
A44: 2013 | B44: Menorca | C44: 124369.0833 | D44: 95183 | E44: =+C44-D44 -> 29186.08333 | F44: =+E44/G44 -> 0.04650153406 | G44: =+Z16 -> 627637
A45: 2014 | B45: Menorca | C45: 123165.3333 | D45: 93313 | E45: =+C45-D45 -> 29852.33333 | F45: =+E45/G45 -> 0.04779378607 | G45: =+AA16 -> 624607
A46: 2015 | B46: Menorca | C46: 125085.9167 | D46: 92348 | E46: =+C46-D46 -> 32737.91667 | F46: =+E46/G46 -> 0.04680997952 | G46: =+AB16 -> 699379
A47: 2016 | B47: Menorca | C47: 128670.75 | D47: 91601 | E47: =+C47-D47 -> 37069.75 | F47: =+E47/G47 -> 0.04999527962 | G47: =+AC16 -> 741465
A48: 2017 | B48: Menorca | C48: 131228.6667 | D48: 91170 | E48: =+C48-D48 -> 40058.66667 | F48: =+E48/G48 -> 0.05399251502 | G48: =+AD16 -> 741930
A49: 2018 | B49: Menorca | C49: 130708.0833 | D49: 91920 | E49: =+C49-D49 -> 38788.08333 | F49: =+E49/G49 -> 0.05181042689 | G49: =+AE16 -> 748654
A50: 2005 | B50: Ibiza - Formentera | C50: 167796.5833 | D50: 118613 | E50: =+C50-D50 -> 49183.58333 | F50: =+E50/G50 -> 0.03710126121 | G50: =+R17+R18 -> 1325657.989
A51: 2006 | B51: Ibiza - Formentera | C51: 176288.5 | D51: 121865 | E51: =+C51-D51 -> 54423.5 | F51: =+E51/G51 -> 0.03992773479 | G51: =+S17+S18 -> 1363050.028
A52: 2007 | B52: Ibiza - Formentera | C52: 178072.8333 | D52: 126140 | E52: =+C52-D52 -> 51932.83333 | F52: =+E52/G52 -> 0.03796998679 | G52: =+T17+T18 -> 1367733.774
A53: 2008 | B53: Ibiza - Formentera | C53: 181242 | D53: 134200 | E53: =+C53-D53 -> 47042 | F53: =+E53/G53 -> 0.03417180481 | G53: =+U17+U18 -> 1376632
A54: 2009 | B54: Ibiza - Formentera | C54: 182240.25 | D54: 139114 | E54: =+C54-D54 -> 43126.25 | F54: =+E54/G54 -> 0.03536503862 | G54: =+V17+V18 -> 1219460
A55: 2010 | B55: Ibiza - Formentera | C55: 188347.6667 | D55: 142599 | E55: =+C55-D55 -> 45748.66667 | F55: =+E55/G55 -> 0.02978950524 | G55: =+W17+W18 -> 1535731
A56: 2011 | B56: Ibiza - Formentera | C56: 200512.8333 | D56: 144825 | E56: =+C56-D56 -> 55687.83333 | F56: =+E56/G56 -> 0.03110265019 | G56: =+X17+X18 -> 1790453
A57: 2012 | B57: Ibiza - Formentera | C57: 206064.5 | D57: 148114 | E57: =+C57-D57 -> 57950.5 | F57: =+E57/G57 -> 0.03430125774 | G57: =+Y17+Y18 -> 1689457
A58: 2013 | B58: Ibiza - Formentera | C58: 212808.5833 | D58: 151728 | E58: =+C58-D58 -> 61080.58333 | F58: =+E58/G58 -> 0.03253586253 | G58: =+Z17+Z18 -> 1877331
A59: 2014 | B59: Ibiza - Formentera | C59: 216493.5 | D59: 151816 | E59: =+C59-D59 -> 64677.5 | F59: =+E59/G59 -> 0.03551747524 | G59: =+AA17+AA18 -> 1821005
A60: 2015 | B60: Ibiza - Formentera | C60: 218081.9167 | D60: 152842 | E60: =+C60-D60 -> 65239.91667 | F60: =+E60/G60 -> 0.03332428373 | G60: =+AB17+AB18 -> 1957729
A61: 2016 | B61: Ibiza - Formentera | C61: 230768.9167 | D61: 154189 | E61: =+C61-D61 -> 76579.91667 | F61: =+E61/G61 -> 0.03368957895 | G61: =+AC17+AC18 -> 2273104
A62: 2017 | B62: Ibiza - Formentera | C62: 234550.1667 | D62: 156136 | E62: =+C62-D62 -> 78414.16667 | F62: =+E62/G62 -> 0.03333093881 | G62: =+AD17+AD18 -> 2352594
A63: 2018 | B63: Ibiza - Formentera | C63: 235325.8333 | D63: 156875 | E63: =+C63-D63 -> 78450.83333 | F63: =+E63/G63 -> 0.03477683366 | G63: =+AE17+AE18 -> 2255836

Sheet Portada General
A7: Dades generals Inventaris Emissions Balears
F15: =CONCATENATE("València, ",TEXT(TODAY(),"mmmm")," ",YEAR(TODAY())) -> València, enero 2021
F17: AZIGRENE CONSULTORES
F18: Av. Peris y Valero, 188-pta 2
F19: 46006 Valencia
F20: Tel: 963301641 - Fax: 963312671
F21: E-mail: azigrene@azigrene.es
F22: www.azigrene.es

Sheet Datos generales
A1: MUNICIPI | B1: ILLA | C1: ANY | D1: REF. | E1: Població (n habitants) | F1: Població + Població flotant (n habitants) | G1: Codi nacional d'estadística | H1: N Vivendes principals | I1: N Vivendes no principals | J1: N Vehicles diesel | K1: N Vehicles Gasolina | L1: N Vehicles altres combustibles | M1: N Vehicles Totals | N1: Zona Climàtica (L, PL o I) | O1: Implantació de red de Gas Natural / Aire propanat | P1: Consum aigua municipi m3 | Q1: Consum aigua Ajuntament m3 | R1: Zona Climática | S1: Consum gas natural Doméstic kWh | T1: Consum gas natural Serveis kWh | U1: Por habitantes | W1: Por % Redexis | Y1: % Implantación | Z1: Censada sin gas | AA1: IPH sin gas
A2: Alaior | B2: Menorca | C2: 2005 | D2: =CONCATENATE(A2,C2) -> Alaior2005 | E2: =VLOOKUP(A2,'Población e IPH por municipio'!$A$2:$P$19,3,0) -> 8671 | F2: =VLOOKUP(A2,'Población e IPH por municipio'!$A$2:$BG$15,46,0) -> 11913.4087 | G2: 07002
A3: Alaior | B3: Menorca | C3: 2006 | D3: =CONCATENATE(A3,C3) -> Alaior2006 | E3: =VLOOKUP(A3,'Población e IPH por municipio'!$A$2:$P$19,4,0) -> 8933 | F3: =VLOOKUP(A3,'Población e IPH por municipio'!$A$2:$BG$15,47,0) -> 12404.54688 | G3: 07002
A4: Alaior | B4: Menorca | C4: 2007 | D4: =CONCATENATE(A4,C4) -> Alaior2007 | E4: =VLOOKUP(A4,'Población e IPH por municipio'!$A$2:$P$19,5,0) -> 8972 | F4: =VLOOKUP(A4,'Población e IPH por municipio'!$A$2:$BG$15,48,0) -> 12344.82333 | G4: 07002
A5: Alaior | B5: Menorca | C5: 2008 | D5: =CONCATENATE(A5,C5) -> Alaior2008 | E5: =VLOOKUP(A5,'Población e IPH por municipio'!$A$2:$P$19,6,0) -> 9133 | F5: =VLOOKUP(A5,'Población e IPH por municipio'!$A$2:$BG$15,49,0) -> 12193.39476 | G5: 07002
A6: Alaior | B6: Menorca | C6: 2009 | D6: =CONCATENATE(A6,C6) -> Alaior2009 | E6: =VLOOKUP(A6,'Población e IPH por municipio'!$A$2:$P$19,7,0) -> 9257 | F6: =VLOOKUP(A6,'Población e IPH por municipio'!$A$2:$BG$15,50,0) -> 11706.36402 | G6: 07002
A7: Alaior | B7: Menorca | C7: 2010 | D7: =CONCATENATE(A7,C7) -> Alaior2010 | E7: =VLOOKUP(A7,'Población e IPH por municipio'!$A$2:$P$19,8,0) -> 9399 | F7: =VLOOKUP(A7,'Población e IPH por municipio'!$A$2:$BG$15,51,0) -> 11938.63564 | G7: 07002
A8: Alaior | B8: Menorca | C8: 2011 | D8: =CONCATENATE(A8,C8) -> Alaior2011 | E8: =VLOOKUP(A8,'Población e IPH por municipio'!$A$2:$P$19,9,0) -> 9600 | F8: =VLOOKUP(A8,'Población e IPH por municipio'!$A$2:$BG$15,52,0) -> 13056.21418 | G8: 07002
A9: Alaior | B9: Menorca | C9: 2012 | D9: =CONCATENATE(A9,C9) -> Alaior2012 | E9: =VLOOKUP(A9,'Población e IPH por municipio'!$A$2:$P$19,10,0) -> 9610 | F9: =VLOOKUP(A9,'Población e IPH por municipio'!$A$2:$BG$15,53,0) -> 13665.90412 | G9: 07002
A10: Alaior | B10: Menorca | C10: 2013 | D10: =CONCATENATE(A10,C10) -> Alaior2013 | E10: =VLOOKUP(A10,'Población e IPH por municipio'!$A$2:$P$19,11,0) -> 9769 | F10: =VLOOKUP(A10,'Población e IPH por municipio'!$A$2:$BG$15,54,0) -> 13482.61251 | G10: 07002
A11: Alaior | B11: Menorca | C11: 2014 | D11: =CONCATENATE(A11,C11) -> Alaior2014 | E11: =VLOOKUP(A11,'Población e IPH por municipio'!$A$2:$P$19,12,0) -> 9162 | F11: =VLOOKUP(A11,'Población e IPH por municipio'!$A$2:$BG$15,55,0) -> 13198.23303 | G11: 07002
A12: Alaior | B12: Menorca | C12: 2015 | D12: =CONCATENATE(A12,C12) -> Alaior2015 | E12: =VLOOKUP(A12,'Población e IPH por municipio'!$A$2:$P$19,13,0) -> 8997 | F12: =VLOOKUP(A12,'Población e IPH por municipio'!$A$2:$BG$15,56,0) -> 12511.96136 | G12: 07002
A13: Alaior | B13: Menorca | C13: 2016 | D13: =CONCATENATE(A13,C13) -> Alaior2016 | E13: =VLOOKUP(A13,'Población e IPH por municipio'!$A$2:$P$19,14,0) -> 8959 | F13: =VLOOKUP(A13,'Población e IPH por municipio'!$A$2:$BG$15,57,0) -> 12781.03914 | G13: 07002
A14: Alaior | B14: Menorca | C14: 2017 | D14: =CONCATENATE(A14,C14) -> Alaior2017 | E14: =VLOOKUP(A14,'Población e IPH por municipio'!$A$2:$P$19,15,0) -> 9097 | F14: =VLOOKUP(A14,'Población e IPH por municipio'!$A$2:$BG$15,58,0) -> 13540.90794 | G14: 07002
A15: Alaior | B15: Menorca | C15: 2018 | D15: =CONCATENATE(A15,C15) -> Alaior2018 | E15: =VLOOKUP(A15,'Población e IPH por municipio'!$A$2:$P$19,16,0) -> 9012 | F15: =VLOOKUP(A15,'Población e IPH por municipio'!$A$2:$BG$15,59,0) -> 13794.5687 | G15: 07002
A16: Alaior | B16: Menorca | C16: 2019 | D16: =CONCATENATE(A16,C16) -> Alaior2019 | G16: 07002 | Y16: =IF(O16="NO",0,AVERAGE(Y17:Y28)) ->  | Z16: =(1-Y16)*E16 ->  | AA16: =(1-Y16)*F16 -> 
A17: Alaior | B17: Menorca | C17: 2020 | D17: =CONCATENATE(A17,C17) -> Alaior2020 | G17: 07002 | Y17: =IF(O17="NO",0,AVERAGE(Y18:Y28)) ->  | Z17: =(1-Y17)*E17 ->  | AA17: =(1-Y17)*F17 -> 
A18: Alaior | B18: Menorca | C18: 2021 | D18: =CONCATENATE(A18,C18) -> Alaior2021 | G18: 07002 | Y18: =IF(O18="NO",0,AVERAGE(Y19:Y28)) ->  | Z18: =(1-Y18)*E18 ->  | AA18: =(1-Y18)*F18 -> 
A19: Alaior | B19: Menorca | C19: 2022 | D19: =CONCATENATE(A19,C19) -> Alaior2022 | G19: 07002 | Y19: =IF(O19="NO",0,AVERAGE(Y20:Y28)) ->  | Z19: =(1-Y19)*E19 ->  | AA19: =(1-Y19)*F19 -> 
A20: Alaior | B20: Menorca | C20: 2023 | D20: =CONCATENATE(A20,C20) -> Alaior2023 | G20: 07002 | Y20: =IF(O20="NO",0,AVERAGE(Y21:Y28)) ->  | Z20: =(1-Y20)*E20 ->  | AA20: =(1-Y20)*F20 -> 
A21: Alaior | B21: Menorca | C21: 2024 | D21: =CONCATENATE(A21,C21) -> Alaior2024 | G21: 07002 | Y21: =IF(O21="NO",0,AVERAGE(Y22:Y28)) ->  | Z21: =(1-Y21)*E21 ->  | AA21: =(1-Y21)*F21 -> 
A22: Alaior | B22: Menorca | C22: 2025 | D22: =CONCATENATE(A22,C22) -> Alaior2025 | G22: 07002 | Y22: =IF(O22="NO",0,AVERAGE(Y23:Y28)) ->  | Z22: =(1-Y22)*E22 ->  | AA22: =(1-Y22)*F22 -> 
A23: Alaior | B23: Menorca | C23: 2026 | D23: =CONCATENATE(A23,C23) -> Alaior2026 | G23: 07002 | Y23: =IF(O23="NO",0,AVERAGE(Y24:Y28)) ->  | Z23: =(1-Y23)*E23 ->  | AA23: =(1-Y23)*F23 -> 
A24: Alaior | B24: Menorca | C24: 2027 | D24: =CONCATENATE(A24,C24) -> Alaior2027 | G24: 07002 | Y24: =IF(O24="NO",0,AVERAGE(Y25:Y28)) ->  | Z24: =(1-Y24)*E24 ->  | AA24: =(1-Y24)*F24 -> 
A25: Alaior | B25: Menorca | C25: 2028 | D25: =CONCATENATE(A25,C25) -> Alaior2028 | G25: 07002 | Y25: =IF(O25="NO",0,AVERAGE(Y26:Y28)) ->  | Z25: =(1-Y25)*E25 ->  | AA25: =(1-Y25)*F25 -> 
A26: Alaior | B26: Menorca | C26: 2029 | D26: =CONCATENATE(A26,C26) -> Alaior2029 | G26: 07002 | Y26: =IF(O26="NO",0,VLOOKUP(A26,#REF!,15,0)) ->  | Z26: =(1-Y26)*E26 ->  | AA26: =(1-Y26)*F26 -> 
A27: Alaior | B27: Menorca | C27: 2030 | D27: =CONCATENATE(A27,C27) -> Alaior2030 | G27: 07002 | Y27: =IF(O27="NO",0,VLOOKUP(A27,#REF!,16,0)) ->  | Z27: =(1-Y27)*E27 ->  | AA27: =(1-Y27)*F27 -> 
A28: Ciutadella | B28: Menorca | C28: 2005 | D28: =CONCATENATE(A28,C28) -> Ciutadella2005 | E28: =VLOOKUP(A28,'Población e IPH por municipio'!$A$2:$P$19,3,0) -> 26972 | F28: =VLOOKUP(A28,'Población e IPH por municipio'!$A$2:$BG$15,46,0) -> 44225.59935 | G28: 07015
A29: Ciutadella | B29: Menorca | C29: 2006 | D29: =CONCATENATE(A29,C29) -> Ciutadella2006 | E29: =VLOOKUP(A29,'Población e IPH por municipio'!$A$2:$P$19,4,0) -> 27468 | F29: =VLOOKUP(A29,'Población e IPH por municipio'!$A$2:$BG$15,47,0) -> 45940.8961 | G29: 07015
A30: Ciutadella | B30: Menorca | C30: 2007 | D30: =CONCATENATE(A30,C30) -> Ciutadella2007 | E30: =VLOOKUP(A30,'Población e IPH por municipio'!$A$2:$P$19,5,0) -> 28017 | F30: =VLOOKUP(A30,'Población e IPH por municipio'!$A$2:$BG$15,48,0) -> 45964.69861 | G30: 07015
A31: Ciutadella | B31: Menorca | C31: 2008 | D31: =CONCATENATE(A31,C31) -> Ciutadella2008 | E31: =VLOOKUP(A31,'Población e IPH por municipio'!$A$2:$P$19,6,0) -> 28696 | F31: =VLOOKUP(A31,'Población e IPH por municipio'!$A$2:$BG$15,49,0) -> 44981.06151 | G31: 07015
A32: Ciutadella | B32: Menorca | C32: 2009 | D32: =CONCATENATE(A32,C32) -> Ciutadella2009 | E32: =VLOOKUP(A32,'Población e IPH por municipio'!$A$2:$P$19,7,0) -> 29160 | F32: =VLOOKUP(A32,'Población e IPH por municipio'!$A$2:$BG$15,50,0) -> 43450.98098 | G32: 07015
A33: Ciutadella | B33: Menorca | C33: 2010 | D33: =CONCATENATE(A33,C33) -> Ciutadella2010 | E33: =VLOOKUP(A33,'Población e IPH por municipio'!$A$2:$P$19,8,0) -> 29247 | F33: =VLOOKUP(A33,'Población e IPH por municipio'!$A$2:$BG$15,51,0) -> 45407.43675 | G33: 07015
A34: Ciutadella | B34: Menorca | C34: 2011 | D34: =CONCATENATE(A34,C34) -> Ciutadella2011 | E34: =VLOOKUP(A34,'Población e IPH por municipio'!$A$2:$P$19,9,0) -> 29315 | F34: =VLOOKUP(A34,'Población e IPH por municipio'!$A$2:$BG$15,52,0) -> 46721.05471 | G34: 07015
A35: Ciutadella | B35: Menorca | C35: 2012 | D35: =CONCATENATE(A35,C35) -> Ciutadella2012 | E35: =VLOOKUP(A35,'Población e IPH por municipio'!$A$2:$P$19,10,0) -> 29580 | F35: =VLOOKUP(A35,'Población e IPH por municipio'!$A$2:$BG$15,53,0) -> 51086.25552 | G35: 07015
A36: Ciutadella | B36: Menorca | C36: 2013 | D36: =CONCATENATE(A36,C36) -> Ciutadella2013 | E36: =VLOOKUP(A36,'Población e IPH por municipio'!$A$2:$P$19,11,0) -> 29629 | F36: =VLOOKUP(A36,'Población e IPH por municipio'!$A$2:$BG$15,54,0) -> 46708.73445 | G36: 07015
A37: Ciutadella | B37: Menorca | C37: 2014 | D37: =CONCATENATE(A37,C37) -> Ciutadella2014 | E37: =VLOOKUP(A37,'Población e IPH por municipio'!$A$2:$P$19,12,0) -> 29282 | F37: =VLOOKUP(A37,'Población e IPH por municipio'!$A$2:$BG$15,55,0) -> 46281.58059 | G37: 07015
A38: Ciutadella | B38: Menorca | C38: 2015 | D38: =CONCATENATE(A38,C38) -> Ciutadella2015 | E38: =VLOOKUP(A38,'Población e IPH por municipio'!$A$2:$P$19,13,0) -> 29098 | F38: =VLOOKUP(A38,'Población e IPH por municipio'!$A$2:$BG$15,56,0) -> 48109.35827 | G38: 07015
A39: Ciutadella | B39: Menorca | C39: 2016 | D39: =CONCATENATE(A39,C39) -> Ciutadella2016 | E39: =VLOOKUP(A39,'Población e IPH por municipio'!$A$2:$P$19,14,0) -> 28641 | F39: =VLOOKUP(A39,'Población e IPH por municipio'!$A$2:$BG$15,57,0) -> 51689.32386 | G39: 07015
A40: Ciutadella | B40: Menorca | C40: 2017 | D40: =CONCATENATE(A40,C40) -> Ciutadella2017 | E40: =VLOOKUP(A40,'Población e IPH por municipio'!$A$2:$P$19,15,0) -> 28838 | F40: =VLOOKUP(A40,'Población e IPH por municipio'!$A$2:$BG$15,58,0) -> 54927.6152 | G40: 07015
A41: Ciutadella | B41: Menorca | C41: 2018 | D41: =CONCATENATE(A41,C41) -> Ciutadella2018 | E41: =VLOOKUP(A41,'Población e IPH por municipio'!$A$2:$P$19,16,0) -> 29223 | F41: =VLOOKUP(A41,'Población e IPH por municipio'!$A$2:$BG$15,59,0) -> 52017.61904 | G41: 07015
A42: Ciutadella | B42: Menorca | C42: 2019 | D42: =CONCATENATE(A42,C42) -> Ciutadella2019 | G42: 07015 | Y42: =IF(O42="NO",0,VLOOKUP(A42,#REF!,17,0)) ->  | Z42: =(1-Y42)*E42 ->  | AA42: =(1-Y42)*F42 -> 
A43: Ciutadella | B43: Menorca | C43: 2020 | D43: =CONCATENATE(A43,C43) -> Ciutadella2020 | G43: 07015 | Y43: =IF(O43="NO",0,VLOOKUP(A43,#REF!,17,0)) ->  | Z43: =(1-Y43)*E43 ->  | AA43: =(1-Y43)*F43 -> 
A44: Ciutadella | B44: Menorca | C44: 2021 | D44: =CONCATENATE(A44,C44) -> Ciutadella2021 | G44: 07015 | Y44: =IF(O44="NO",0,AVERAGE(Y45:Y56)) ->  | Z44: =(1-Y44)*E44 ->  | AA44: =(1-Y44)*F44 -> 
A45: Ciutadella | B45: Menorca | C45: 2022 | D45: =CONCATENATE(A45,C45) -> Ciutadella2022 | G45: 07015 | Y45: =IF(O45="NO",0,AVERAGE(Y46:Y56)) ->  | Z45: =(1-Y45)*E45 ->  | AA45: =(1-Y45)*F45 -> 
A46: Ciutadella | B46: Menorca | C46: 2023 | D46: =CONCATENATE(A46,C46) -> Ciutadella2023 | G46: 07015 | Y46: =IF(O46="NO",0,AVERAGE(Y47:Y56)) ->  | Z46: =(1-Y46)*E46 ->  | AA46: =(1-Y46)*F46 -> 
A47: Ciutadella | B47: Menorca | C47: 2024 | D47: =CONCATENATE(A47,C47) -> Ciutadella2024 | G47: 07015 | Y47: =IF(O47="NO",0,AVERAGE(Y48:Y56)) ->  | Z47: =(1-Y47)*E47 ->  | AA47: =(1-Y47)*F47 -> 
A48: Ciutadella | B48: Menorca | C48: 2025 | D48: =CONCATENATE(A48,C48) -> Ciutadella2025 | G48: 07015 | Y48: =IF(O48="NO",0,AVERAGE(Y49:Y56)) ->  | Z48: =(1-Y48)*E48 ->  | AA48: =(1-Y48)*F48 -> 
A49: Ciutadella | B49: Menorca | C49: 2026 | D49: =CONCATENATE(A49,C49) -> Ciutadella2026 | G49: 07015 | Y49: =IF(O49="NO",0,AVERAGE(Y50:Y56)) ->  | Z49: =(1-Y49)*E49 ->  | AA49: =(1-Y49)*F49 -> 
A50: Ciutadella | B50: Menorca | C50: 2027 | D50: =CONCATENATE(A50,C50) -> Ciutadella2027 | G50: 07015 | Y50: =IF(O50="NO",0,AVERAGE(Y51:Y56)) ->  | Z50: =(1-Y50)*E50 ->  | AA50: =(1-Y50)*F50 -> 
A51: Ciutadella | B51: Menorca | C51: 2028 | D51: =CONCATENATE(A51,C51) -> Ciutadella2028 | G51: 07015 | Y51: =IF(O51="NO",0,AVERAGE(Y52:Y56)) ->  | Z51: =(1-Y51)*E51 ->  | AA51: =(1-Y51)*F51 -> 
A52: Ciutadella | B52: Menorca | C52: 2029 | D52: =CONCATENATE(A52,C52) -> Ciutadella2029 | G52: 07015 | Y52: =IF(O52="NO",0,AVERAGE(Y53:Y56)) ->  | Z52: =(1-Y52)*E52 ->  | AA52: =(1-Y52)*F52 -> 
A53: Ciutadella | B53: Menorca | C53: 2030 | D53: =CONCATENATE(A53,C53) -> Ciutadella2030 | G53: 07015 | Y53: =IF(O53="NO",0,AVERAGE(Y54:Y56)) ->  | Z53: =(1-Y53)*E53 ->  | AA53: =(1-Y53)*F53 -> 
A54: Es Castell | B54: Menorca | C54: 2005 | D54: =CONCATENATE(A54,C54) -> Es Castell2005 | E54: =VLOOKUP(A54,'Población e IPH por municipio'!$A$2:$P$19,3,0) -> 7440 | F54: =VLOOKUP(A54,'Población e IPH por municipio'!$A$2:$BG$15,46,0) -> 7440 | G54: 07064
A55: Es Castell | B55: Menorca | C55: 2006 | D55: =CONCATENATE(A55,C55) -> Es Castell2006 | E55: =VLOOKUP(A55,'Población e IPH por municipio'!$A$2:$P$19,4,0) -> 7475 | F55: =VLOOKUP(A55,'Población e IPH por municipio'!$A$2:$BG$15,47,0) -> 7475 | G55: 07064
A56: Es Castell | B56: Menorca | C56: 2007 | D56: =CONCATENATE(A56,C56) -> Es Castell2007 | E56: =VLOOKUP(A56,'Población e IPH por municipio'!$A$2:$P$19,5,0) -> 7629 | F56: =VLOOKUP(A56,'Población e IPH por municipio'!$A$2:$BG$15,48,0) -> 7629 | G56: 07064
A57: Es Castell | B57: Menorca | C57: 2008 | D57: =CONCATENATE(A57,C57) -> Es Castell2008 | E57: =VLOOKUP(A57,'Población e IPH por municipio'!$A$2:$P$19,6,0) -> 7724 | F57: =VLOOKUP(A57,'Población e IPH por municipio'!$A$2:$BG$15,49,0) -> 7724 | G57: 07064
A58: Es Castell | B58: Menorca | C58: 2009 | D58: =CONCATENATE(A58,C58) -> Es Castell2009 | E58: =VLOOKUP(A58,'Población e IPH por municipio'!$A$2:$P$19,7,0) -> 7892 | F58: =VLOOKUP(A58,'Población e IPH por municipio'!$A$2:$BG$15,50,0) -> 7892 | G58: 07064
A59: Es Castell | B59: Menorca | C59: 2010 | D59: =CONCATENATE(A59,C59) -> Es Castell2010 | E59: =VLOOKUP(A59,'Población e IPH por municipio'!$A$2:$P$19,8,0) -> 7926 | F59: =VLOOKUP(A59,'Población e IPH por municipio'!$A$2:$BG$15,51,0) -> 7926 | G59: 07064
A60: Es Castell | B60: Menorca | C60: 2011 | D60: =CONCATENATE(A60,C60) -> Es Castell2011 | E60: =VLOOKUP(A60,'Población e IPH por municipio'!$A$2:$P$19,9,0) -> 7990 | F60: =VLOOKUP(A60,'Población e IPH por municipio'!$A$2:$BG$15,52,0) -> 7990 | G60: 07064
A61: Es Castell | B61: Menorca | C61: 2012 | D61: =CONCATENATE(A61,C61) -> Es Castell2012 | E61: =VLOOKUP(A61,'Población e IPH por municipio'!$A$2:$P$19,10,0) -> 7962 | F61: =VLOOKUP(A61,'Población e IPH por municipio'!$A$2:$BG$15,53,0) -> 7962 | G61: 07064
A62: Es Castell | B62: Menorca | C62: 2013 | D62: =CONCATENATE(A62,C62) -> Es Castell2013 | E62: =VLOOKUP(A62,'Población e IPH por municipio'!$A$2:$P$19,11,0) -> 7956 | F62: =VLOOKUP(A62,'Población e IPH por municipio'!$A$2:$BG$15,54,0) -> 7956 | G62: 07064
A63: Es Castell | B63: Menorca | C63: 2014 | D63: =CONCATENATE(A63,C63) -> Es Castell2014 | E63: =VLOOKUP(A63,'Población e IPH por municipio'!$A$2:$P$19,12,0) -> 7661 | F63: =VLOOKUP(A63,'Población e IPH por municipio'!$A$2:$BG$15,55,0) -> 7661 | G63: 07064
A64: Es Castell | B64: Menorca | C64: 2015 | D64: =CONCATENATE(A64,C64) -> Es Castell2015 | E64: =VLOOKUP(A64,'Población e IPH por municipio'!$A$2:$P$19,13,0) -> 7635 | F64: =VLOOKUP(A64,'Población e IPH por municipio'!$A$2:$BG$15,56,0) -> 7635 | G64: 07064
A65: Es Castell | B65: Menorca | C65: 2016 | D65: =CONCATENATE(A65,C65) -> Es Castell2016 | E65: =VLOOKUP(A65,'Población e IPH por municipio'!$A$2:$P$19,14,0) -> 7455 | F65: =VLOOKUP(A65,'Población e IPH por municipio'!$A$2:$BG$15,57,0) -> 7455 | G65: 07064
A66: Es Castell | B66: Menorca | C66: 2017 | D66: =CONCATENATE(A66,C66) -> Es Castell2017 | E66: =VLOOKUP(A66,'Población e IPH por municipio'!$A$2:$P$19,15,0) -> 7343 | F66: =VLOOKUP(A66,'Población e IPH por municipio'!$A$2:$BG$15,58,0) -> 7343 | G66: 07064
A67: Es Castell | B67: Menorca | C67: 2018 | D67: =CONCATENATE(A67,C67) -> Es Castell2018 | E67: =VLOOKUP(A67,'Población e IPH por municipio'!$A$2:$P$19,16,0) -> 7348 | F67: =VLOOKUP(A67,'Población e IPH por municipio'!$A$2:$BG$15,59,0) -> 7348 | G67: 07064
A68: Es Castell | B68: Menorca | C68: 2019 | D68: =CONCATENATE(A68,C68) -> Es Castell2019 | G68: 07064 | Y68: =IF(O68="NO",0,VLOOKUP(A68,#REF!,15,0)) ->  | Z68: =(1-Y68)*E68 ->  | AA68: =(1-Y68)*F68 -> 
A69: Es Castell | B69: Menorca | C69: 2020 | D69: =CONCATENATE(A69,C69) -> Es Castell2020 | G69: 07064 | Y69: =IF(O69="NO",0,VLOOKUP(A69,#REF!,16,0)) ->  | Z69: =(1-Y69)*E69 ->  | AA69: =(1-Y69)*F69 -> 
A70: Es Castell | B70: Menorca | C70: 2021 | D70: =CONCATENATE(A70,C70) -> Es Castell2021 | G70: 07064 | Y70: =IF(O70="NO",0,VLOOKUP(A70,#REF!,17,0)) ->  | Z70: =(1-Y70)*E70 ->  | AA70: =(1-Y70)*F70 -> 
A71: Es Castell | B71: Menorca | C71: 2022 | D71: =CONCATENATE(A71,C71) -> Es Castell2022 | G71: 07064 | Y71: =IF(O71="NO",0,VLOOKUP(A71,#REF!,17,0)) ->  | Z71: =(1-Y71)*E71 ->  | AA71: =(1-Y71)*F71 -> 
A72: Es Castell | B72: Menorca | C72: 2023 | D72: =CONCATENATE(A72,C72) -> Es Castell2023 | G72: 07064 | Y72: =IF(O72="NO",0,AVERAGE(Y73:Y84)) ->  | Z72: =(1-Y72)*E72 ->  | AA72: =(1-Y72)*F72 -> 
A73: Es Castell | B73: Menorca | C73: 2024 | D73: =CONCATENATE(A73,C73) -> Es Castell2024 | G73: 07064 | Y73: =IF(O73="NO",0,AVERAGE(Y74:Y84)) ->  | Z73: =(1-Y73)*E73 ->  | AA73: =(1-Y73)*F73 -> 
A74: Es Castell | B74: Menorca | C74: 2025 | D74: =CONCATENATE(A74,C74) -> Es Castell2025 | G74: 07064 | Y74: =IF(O74="NO",0,AVERAGE(Y75:Y84)) ->  | Z74: =(1-Y74)*E74 ->  | AA74: =(1-Y74)*F74 -> 
A75: Es Castell | B75: Menorca | C75: 2026 | D75: =CONCATENATE(A75,C75) -> Es Castell2026 | G75: 07064 | Y75: =IF(O75="NO",0,AVERAGE(Y76:Y84)) ->  | Z75: =(1-Y75)*E75 ->  | AA75: =(1-Y75)*F75 -> 
A76: Es Castell | B76: Menorca | C76: 2027 | D76: =CONCATENATE(A76,C76) -> Es Castell2027 | G76: 07064 | Y76: =IF(O76="NO",0,AVERAGE(Y77:Y84)) ->  | Z76: =(1-Y76)*E76 ->  | AA76: =(1-Y76)*F76 -> 
A77: Es Castell | B77: Menorca | C77: 2028 | D77: =CONCATENATE(A77,C77) -> Es Castell2028 | G77: 07064 | Y77: =IF(O77="NO",0,AVERAGE(Y78:Y84)) ->  | Z77: =(1-Y77)*E77 ->  | AA77: =(1-Y77)*F77 -> 
A78: Es Castell | B78: Menorca | C78: 2029 | D78: =CONCATENATE(A78,C78) -> Es Castell2029 | G78: 07064 | Y78: =IF(O78="NO",0,AVERAGE(Y79:Y84)) ->  | Z78: =(1-Y78)*E78 ->  | AA78: =(1-Y78)*F78 -> 
A79: Es Castell | B79: Menorca | C79: 2030 | D79: =CONCATENATE(A79,C79) -> Es Castell2030 | G79: 07064 | Y79: =IF(O79="NO",0,AVERAGE(Y80:Y84)) ->  | Z79: =(1-Y79)*E79 ->  | AA79: =(1-Y79)*F79 -> 
A80: Es Mercadal | B80: Menorca | C80: 2005 | D80: =CONCATENATE(A80,C80) -> Es Mercadal2005 | E80: =VLOOKUP(A80,'Población e IPH por municipio'!$A$2:$P$19,3,0) -> 4255 | F80: =VLOOKUP(A80,'Población e IPH por municipio'!$A$2:$BG$15,46,0) -> 5170.059661 | G80: 07037
A81: Es Mercadal | B81: Menorca | C81: 2006 | D81: =CONCATENATE(A81,C81) -> Es Mercadal2006 | E81: =VLOOKUP(A81,'Población e IPH por municipio'!$A$2:$P$19,4,0) -> 4504 | F81: =VLOOKUP(A81,'Población e IPH por municipio'!$A$2:$BG$15,47,0) -> 5483.726126 | G81: 07037
A82: Es Mercadal | B82: Menorca | C82: 2007 | D82: =CONCATENATE(A82,C82) -> Es Mercadal2007 | E82: =VLOOKUP(A82,'Población e IPH por municipio'!$A$2:$P$19,5,0) -> 4838 | F82: =VLOOKUP(A82,'Población e IPH por municipio'!$A$2:$BG$15,48,0) -> 5789.87182 | G82: 07037
A83: Es Mercadal | B83: Menorca | C83: 2008 | D83: =CONCATENATE(A83,C83) -> Es Mercadal2008 | E83: =VLOOKUP(A83,'Población e IPH por municipio'!$A$2:$P$19,6,0) -> 5134 | F83: =VLOOKUP(A83,'Población e IPH por municipio'!$A$2:$BG$15,49,0) -> 5997.692414 | G83: 07037
A84: Es Mercadal | B84: Menorca | C84: 2009 | D84: =CONCATENATE(A84,C84) -> Es Mercadal2009 | E84: =VLOOKUP(A84,'Población e IPH por municipio'!$A$2:$P$19,7,0) -> 5292 | F84: =VLOOKUP(A84,'Población e IPH por municipio'!$A$2:$BG$15,50,0) -> 5956.115392 | G84: 07037
A85: Es Mercadal | B85: Menorca | C85: 2010 | D85: =CONCATENATE(A85,C85) -> Es Mercadal2010 | E85: =VLOOKUP(A85,'Población e IPH por municipio'!$A$2:$P$19,8,0) -> 5398 | F85: =VLOOKUP(A85,'Población e IPH por municipio'!$A$2:$BG$15,51,0) -> 6056.521497 | G85: 07037
A86: Es Mercadal | B86: Menorca | C86: 2011 | D86: =CONCATENATE(A86,C86) -> Es Mercadal2011 | E86: =VLOOKUP(A86,'Población e IPH por municipio'!$A$2:$P$19,9,0) -> 5408 | F86: =VLOOKUP(A86,'Población e IPH por municipio'!$A$2:$BG$15,52,0) -> 6245.703814 | G86: 07037
A87: Es Mercadal | B87: Menorca | C87: 2012 | D87: =CONCATENATE(A87,C87) -> Es Mercadal2012 | E87: =VLOOKUP(A87,'Población e IPH por municipio'!$A$2:$P$19,10,0) -> 5396 | F87: =VLOOKUP(A87,'Población e IPH por municipio'!$A$2:$BG$15,53,0) -> 6120.781751 | G87: 07037
A88: Es Mercadal | B88: Menorca | C88: 2013 | D88: =CONCATENATE(A88,C88) -> Es Mercadal2013 | E88: =VLOOKUP(A88,'Población e IPH por municipio'!$A$2:$P$19,11,0) -> 5425 | F88: =VLOOKUP(A88,'Población e IPH por municipio'!$A$2:$BG$15,54,0) -> 6169.303554 | G88: 07037
A89: Es Mercadal | B89: Menorca | C89: 2014 | D89: =CONCATENATE(A89,C89) -> Es Mercadal2014 | E89: =VLOOKUP(A89,'Población e IPH por municipio'!$A$2:$P$19,12,0) -> 5176 | F89: =VLOOKUP(A89,'Población e IPH por municipio'!$A$2:$BG$15,55,0) -> 6338.201496 | G89: 07037
A90: Es Mercadal | B90: Menorca | C90: 2015 | D90: =CONCATENATE(A90,C90) -> Es Mercadal2015 | E90: =VLOOKUP(A90,'Población e IPH por municipio'!$A$2:$P$19,13,0) -> 5091 | F90: =VLOOKUP(A90,'Población e IPH por municipio'!$A$2:$BG$15,56,0) -> 6296.169733 | G90: 07037
A91: Es Mercadal | B91: Menorca | C91: 2016 | D91: =CONCATENATE(A91,C91) -> Es Mercadal2016 | E91: =VLOOKUP(A91,'Población e IPH por municipio'!$A$2:$P$19,14,0) -> 5098 | F91: =VLOOKUP(A91,'Población e IPH por municipio'!$A$2:$BG$15,57,0) -> 6812.988077 | G91: 07037
A92: Es Mercadal | B92: Menorca | C92: 2017 | D92: =CONCATENATE(A92,C92) -> Es Mercadal2017 | E92: =VLOOKUP(A92,'Población e IPH por municipio'!$A$2:$P$19,15,0) -> 4788 | F92: =VLOOKUP(A92,'Población e IPH por municipio'!$A$2:$BG$15,58,0) -> 6243.31425 | G92: 07037
A93: Es Mercadal | B93: Menorca | C93: 2018 | D93: =CONCATENATE(A93,C93) -> Es Mercadal2018 | E93: =VLOOKUP(A93,'Población e IPH por municipio'!$A$2:$P$19,16,0) -> 4788 | F93: =VLOOKUP(A93,'Población e IPH por municipio'!$A$2:$BG$15,59,0) -> 6225.117621 | G93: 07037
A94: Es Mercadal | B94: Menorca | C94: 2019 | D94: =CONCATENATE(A94,C94) -> Es Mercadal2019 | G94: 07037 | Y94: =IF(O94="NO",0,AVERAGE(Y95:Y98)) ->  | Z94: =(1-Y94)*E94 ->  | AA94: =(1-Y94)*F94 -> 
A95: Es Mercadal | B95: Menorca | C95: 2020 | D95: =CONCATENATE(A95,C95) -> Es Mercadal2020 | G95: 07037 | Y95: =IF(O95="NO",0,AVERAGE(Y96:Y98)) ->  | Z95: =(1-Y95)*E95 ->  | AA95: =(1-Y95)*F95 -> 
A96: Es Mercadal | B96: Menorca | C96: 2021 | D96: =CONCATENATE(A96,C96) -> Es Mercadal2021 | G96: 07037 | Y96: =IF(O96="NO",0,VLOOKUP(A96,#REF!,15,0)) ->  | Z96: =(1-Y96)*E96 ->  | AA96: =(1-Y96)*F96 -> 
A97: Es Mercadal | B97: Menorca | C97: 2022 | D97: =CONCATENATE(A97,C97) -> Es Mercadal2022 | G97: 07037 | Y97: =IF(O97="NO",0,VLOOKUP(A97,#REF!,16,0)) ->  | Z97: =(1-Y97)*E97 ->  | AA97: =(1-Y97)*F97 -> 
A98: Es Mercadal | B98: Menorca | C98: 2023 | D98: =CONCATENATE(A98,C98) -> Es Mercadal2023 | G98: 07037 | Y98: =IF(O98="NO",0,VLOOKUP(A98,#REF!,17,0)) ->  | Z98: =(1-Y98)*E98 ->  | AA98: =(1-Y98)*F98 -> 
A99: Es Mercadal | B99: Menorca | C99: 2024 | D99: =CONCATENATE(A99,C99) -> Es Mercadal2024 | G99: 07037 | Y99: =IF(O99="NO",0,VLOOKUP(A99,#REF!,17,0)) ->  | Z99: =(1-Y99)*E99 ->  | AA99: =(1-Y99)*F99 -> 
A100: Es Mercadal | B100: Menorca | C100: 2025 | D100: =CONCATENATE(A100,C100) -> Es Mercadal2025 | G100: 07037 | Y100: =IF(O100="NO",0,AVERAGE(Y101:Y112)) ->  | Z100: =(1-Y100)*E100 ->  | AA100: =(1-Y100)*F100 -> 
A101: Es Mercadal | B101: Menorca | C101: 2026 | D101: =CONCATENATE(A101,C101) -> Es Mercadal2026 | G101: 07037 | Y101: =IF(O101="NO",0,AVERAGE(Y102:Y112)) ->  | Z101: =(1-Y101)*E101 ->  | AA101: =(1-Y101)*F101 -> 
A102: Es Mercadal | B102: Menorca | C102: 2027 | D102: =CONCATENATE(A102,C102) -> Es Mercadal2027 | G102: 07037 | Y102: =IF(O102="NO",0,AVERAGE(Y103:Y112)) ->  | Z102: =(1-Y102)*E102 ->  | AA102: =(1-Y102)*F102 -> 
A103: Es Mercadal | B103: Menorca | C103: 2028 | D103: =CONCATENATE(A103,C103) -> Es Mercadal2028 | G103: 07037 | Y103: =IF(O103="NO",0,AVERAGE(Y104:Y112)) ->  | Z103: =(1-Y103)*E103 ->  | AA103: =(1-Y103)*F103 -> 
A104: Es Mercadal | B104: Menorca | C104: 2029 | D104: =CONCATENATE(A104,C104) -> Es Mercadal2029 | G104: 07037 | Y104: =IF(O104="NO",0,AVERAGE(Y105:Y112)) ->  | Z104: =(1-Y104)*E104 ->  | AA104: =(1-Y104)*F104 -> 
A105: Es Mercadal | B105: Menorca | C105: 2030 | D105: =CONCATENATE(A105,C105) -> Es Mercadal2030 | G105: 07037 | Y105: =IF(O105="NO",0,AVERAGE(Y106:Y112)) ->  | Z105: =(1-Y105)*E105 ->  | AA105: =(1-Y105)*F105 -> 
A106: Es Migjorn Gran | B106: Menorca | C106: 2005 | D106: =CONCATENATE(A106,C106) -> Es Migjorn Gran2005 | E106: =VLOOKUP(A106,'Población e IPH por municipio'!$A$2:$P$19,3,0) -> 1409 | F106: =VLOOKUP(A106,'Población e IPH por municipio'!$A$2:$BG$15,46,0) -> 1953.225519 | G106: 07902
A107: Es Migjorn Gran | B107: Menorca | C107: 2006 | D107: =CONCATENATE(A107,C107) -> Es Migjorn Gran2006 | E107: =VLOOKUP(A107,'Población e IPH por municipio'!$A$2:$P$19,4,0) -> 1503 | F107: =VLOOKUP(A107,'Población e IPH por municipio'!$A$2:$BG$15,47,0) -> 2085.68546 | G107: 07902
A108: Es Migjorn Gran | B108: Menorca | C108: 2007 | D108: =CONCATENATE(A108,C108) -> Es Migjorn Gran2007 | E108: =VLOOKUP(A108,'Población e IPH por municipio'!$A$2:$P$19,5,0) -> 1518 | F108: =VLOOKUP(A108,'Población e IPH por municipio'!$A$2:$BG$15,48,0) -> 2084.119301 | G108: 07902
A109: Es Migjorn Gran | B109: Menorca | C109: 2008 | D109: =CONCATENATE(A109,C109) -> Es Migjorn Gran2008 | E109: =VLOOKUP(A109,'Población e IPH por municipio'!$A$2:$P$19,6,0) -> 1522 | F109: =VLOOKUP(A109,'Población e IPH por municipio'!$A$2:$BG$15,49,0) -> 2035.675198 | G109: 07902
A110: Es Migjorn Gran | B110: Menorca | C110: 2009 | D110: =CONCATENATE(A110,C110) -> Es Migjorn Gran2009 | E110: =VLOOKUP(A110,'Población e IPH por municipio'!$A$2:$P$19,7,0) -> 1523 | F110: =VLOOKUP(A110,'Población e IPH por municipio'!$A$2:$BG$15,50,0) -> 2277.035084 | G110: 07902
A111: Es Migjorn Gran | B111: Menorca | C111: 2010 | D111: =CONCATENATE(A111,C111) -> Es Migjorn Gran2010 | E111: =VLOOKUP(A111,'Población e IPH por municipio'!$A$2:$P$19,8,0) -> 1539 | F111: =VLOOKUP(A111,'Población e IPH por municipio'!$A$2:$BG$15,51,0) -> 2170.642173 | G111: 07902
A112: Es Migjorn Gran | B112: Menorca | C112: 2011 | D112: =CONCATENATE(A112,C112) -> Es Migjorn Gran2011 | E112: =VLOOKUP(A112,'Población e IPH por municipio'!$A$2:$P$19,9,0) -> 1526 | F112: =VLOOKUP(A112,'Población e IPH por municipio'!$A$2:$BG$15,52,0) -> 2221.027357 | G112: 07902
A113: Es Migjorn Gran | B113: Menorca | C113: 2012 | D113: =CONCATENATE(A113,C113) -> Es Migjorn Gran2012 | E113: =VLOOKUP(A113,'Población e IPH por municipio'!$A$2:$P$19,10,0) -> 1539 | F113: =VLOOKUP(A113,'Población e IPH por municipio'!$A$2:$BG$15,53,0) -> 2187.817463 | G113: 07902
A114: Es Migjorn Gran | B114: Menorca | C114: 2013 | D114: =CONCATENATE(A114,C114) -> Es Migjorn Gran2013 | E114: =VLOOKUP(A114,'Población e IPH por municipio'!$A$2:$P$19,11,0) -> 1520 | F114: =VLOOKUP(A114,'Población e IPH por municipio'!$A$2:$BG$15,54,0) -> 2101.641188 | G114: 07902
A115: Es Migjorn Gran | B115: Menorca | C115: 2014 | D115: =CONCATENATE(A115,C115) -> Es Migjorn Gran2014 | E115: =VLOOKUP(A115,'Población e IPH por municipio'!$A$2:$P$19,12,0) -> 1470 | F115: =VLOOKUP(A115,'Población e IPH por municipio'!$A$2:$BG$15,55,0) -> 2199.906701 | G115: 07902
A116: Es Migjorn Gran | B116: Menorca | C116: 2015 | D116: =CONCATENATE(A116,C116) -> Es Migjorn Gran2015 | E116: =VLOOKUP(A116,'Población e IPH por municipio'!$A$2:$P$19,13,0) -> 1429 | F116: =VLOOKUP(A116,'Población e IPH por municipio'!$A$2:$BG$15,56,0) -> 2084.667383 | G116: 07902
A117: Es Migjorn Gran | B117: Menorca | C117: 2016 | D117: =CONCATENATE(A117,C117) -> Es Migjorn Gran2016 | E117: =VLOOKUP(A117,'Población e IPH por municipio'!$A$2:$P$19,14,0) -> 1419 | F117: =VLOOKUP(A117,'Población e IPH por municipio'!$A$2:$BG$15,57,0) -> 1419 | G117: 07902
A118: Es Migjorn Gran | B118: Menorca | C118: 2017 | D118: =CONCATENATE(A118,C118) -> Es Migjorn Gran2017 | E118: =VLOOKUP(A118,'Población e IPH por municipio'!$A$2:$P$19,15,0) -> 1356 | F118: =VLOOKUP(A118,'Población e IPH por municipio'!$A$2:$BG$15,58,0) -> 1356 | G118: 07902
A119: Es Migjorn Gran | B119: Menorca | C119: 2018 | D119: =CONCATENATE(A119,C119) -> Es Migjorn Gran2018 | E119: =VLOOKUP(A119,'Población e IPH por municipio'!$A$2:$P$19,16,0) -> 1370 | F119: =VLOOKUP(A119,'Población e IPH por municipio'!$A$2:$BG$15,59,0) -> 2280.827305 | G119: 07902
A120: Es Migjorn Gran | B120: Menorca | C120: 2019 | D120: =CONCATENATE(A120,C120) -> Es Migjorn Gran2019 | G120: 07902 | Y120: =IF(O120="NO",0,AVERAGE(Y121:Y126)) ->  | Z120: =(1-Y120)*E120 ->  | AA120: =(1-Y120)*F120 -> 
A121: Es Migjorn Gran | B121: Menorca | C121: 2020 | D121: =CONCATENATE(A121,C121) -> Es Migjorn Gran2020 | G121: 07902 | Y121: =IF(O121="NO",0,AVERAGE(Y122:Y126)) ->  | Z121: =(1-Y121)*E121 ->  | AA121: =(1-Y121)*F121 -> 
A122: Es Migjorn Gran | B122: Menorca | C122: 2021 | D122: =CONCATENATE(A122,C122) -> Es Migjorn Gran2021 | G122: 07902 | Y122: =IF(O122="NO",0,AVERAGE(Y123:Y126)) ->  | Z122: =(1-Y122)*E122 ->  | AA122: =(1-Y122)*F122 -> 
A123: Es Migjorn Gran | B123: Menorca | C123: 2022 | D123: =CONCATENATE(A123,C123) -> Es Migjorn Gran2022 | G123: 07902 | Y123: =IF(O123="NO",0,AVERAGE(Y124:Y126)) ->  | Z123: =(1-Y123)*E123 ->  | AA123: =(1-Y123)*F123 -> 
A124: Es Migjorn Gran | B124: Menorca | C124: 2023 | D124: =CONCATENATE(A124,C124) -> Es Migjorn Gran2023 | G124: 07902 | Y124: =IF(O124="NO",0,VLOOKUP(A124,#REF!,15,0)) ->  | Z124: =(1-Y124)*E124 ->  | AA124: =(1-Y124)*F124 -> 
A125: Es Migjorn Gran | B125: Menorca | C125: 2024 | D125: =CONCATENATE(A125,C125) -> Es Migjorn Gran2024 | G125: 07902 | Y125: =IF(O125="NO",0,VLOOKUP(A125,#REF!,16,0)) ->  | Z125: =(1-Y125)*E125 ->  | AA125: =(1-Y125)*F125 -> 
A126: Es Migjorn Gran | B126: Menorca | C126: 2025 | D126: =CONCATENATE(A126,C126) -> Es Migjorn Gran2025 | G126: 07902 | Y126: =IF(O126="NO",0,VLOOKUP(A126,#REF!,17,0)) ->  | Z126: =(1-Y126)*E126 ->  | AA126: =(1-Y126)*F126 -> 
A127: Es Migjorn Gran | B127: Menorca | C127: 2026 | D127: =CONCATENATE(A127,C127) -> Es Migjorn Gran2026 | G127: 07902 | Y127: =IF(O127="NO",0,VLOOKUP(A127,#REF!,17,0)) ->  | Z127: =(1-Y127)*E127 ->  | AA127: =(1-Y127)*F127 -> 
A128: Es Migjorn Gran | B128: Menorca | C128: 2027 | D128: =CONCATENATE(A128,C128) -> Es Migjorn Gran2027 | G128: 07902 | Y128: =IF(O128="NO",0,AVERAGE(Y129:Y140)) ->  | Z128: =(1-Y128)*E128 ->  | AA128: =(1-Y128)*F128 -> 
A129: Es Migjorn Gran | B129: Menorca | C129: 2028 | D129: =CONCATENATE(A129,C129) -> Es Migjorn Gran2028 | G129: 07902 | Y129: =IF(O129="NO",0,AVERAGE(Y130:Y140)) ->  | Z129: =(1-Y129)*E129 ->  | AA129: =(1-Y129)*F129 -> 
A130: Es Migjorn Gran | B130: Menorca | C130: 2029 | D130: =CONCATENATE(A130,C130) -> Es Migjorn Gran2029 | G130: 07902 | Y130: =IF(O130="NO",0,AVERAGE(Y131:Y140)) ->  | Z130: =(1-Y130)*E130 ->  | AA130: =(1-Y130)*F130 -> 
A131: Es Migjorn Gran | B131: Menorca | C131: 2030 | D131: =CONCATENATE(A131,C131) -> Es Migjorn Gran2030 | G131: 07902 | Y131: =IF(O131="NO",0,AVERAGE(Y132:Y140)) ->  | Z131: =(1-Y131)*E131 ->  | AA131: =(1-Y131)*F131 -> 
A132: Ferreries | B132: Menorca | C132: 2005 | D132: =CONCATENATE(A132,C132) -> Ferreries2005 | E132: =VLOOKUP(A132,'Población e IPH por municipio'!$A$2:$P$19,3,0) -> 4416 | F132: =VLOOKUP(A132,'Población e IPH por municipio'!$A$2:$BG$15,46,0) -> 4587.83156 | G132: 07023
A133: Ferreries | B133: Menorca | C133: 2006 | D133: =CONCATENATE(A133,C133) -> Ferreries2006 | E133: =VLOOKUP(A133,'Población e IPH por municipio'!$A$2:$P$19,4,0) -> 4476 | F133: =VLOOKUP(A133,'Población e IPH por municipio'!$A$2:$BG$15,47,0) -> 4659.974745 | G133: 07023
A134: Ferreries | B134: Menorca | C134: 2007 | D134: =CONCATENATE(A134,C134) -> Ferreries2007 | E134: =VLOOKUP(A134,'Población e IPH por municipio'!$A$2:$P$19,5,0) -> 4563 | F134: =VLOOKUP(A134,'Población e IPH por municipio'!$A$2:$BG$15,48,0) -> 4741.744213 | G134: 07023
A135: Ferreries | B135: Menorca | C135: 2008 | D135: =CONCATENATE(A135,C135) -> Ferreries2008 | E135: =VLOOKUP(A135,'Población e IPH por municipio'!$A$2:$P$19,6,0) -> 4617 | F135: =VLOOKUP(A135,'Población e IPH por municipio'!$A$2:$BG$15,49,0) -> 4779.185725 | G135: 07023
A136: Ferreries | B136: Menorca | C136: 2009 | D136: =CONCATENATE(A136,C136) -> Ferreries2009 | E136: =VLOOKUP(A136,'Población e IPH por municipio'!$A$2:$P$19,7,0) -> 4669 | F136: =VLOOKUP(A136,'Población e IPH por municipio'!$A$2:$BG$15,50,0) -> 4817.871526 | G136: 07023
A137: Ferreries | B137: Menorca | C137: 2010 | D137: =CONCATENATE(A137,C137) -> Ferreries2010 | E137: =VLOOKUP(A137,'Población e IPH por municipio'!$A$2:$P$19,8,0) -> 4620 | F137: =VLOOKUP(A137,'Población e IPH por municipio'!$A$2:$BG$15,51,0) -> 4620 | G137: 07023
A138: Ferreries | B138: Menorca | C138: 2011 | D138: =CONCATENATE(A138,C138) -> Ferreries2011 | E138: =VLOOKUP(A138,'Población e IPH por municipio'!$A$2:$P$19,9,0) -> 4717 | F138: =VLOOKUP(A138,'Población e IPH por municipio'!$A$2:$BG$15,52,0) -> 4717 | G138: 07023
A139: Ferreries | B139: Menorca | C139: 2012 | D139: =CONCATENATE(A139,C139) -> Ferreries2012 | E139: =VLOOKUP(A139,'Población e IPH por municipio'!$A$2:$P$19,10,0) -> 4670 | F139: =VLOOKUP(A139,'Población e IPH por municipio'!$A$2:$BG$15,53,0) -> 4670 | G139: 07023
A140: Ferreries | B140: Menorca | C140: 2013 | D140: =CONCATENATE(A140,C140) -> Ferreries2013 | E140: =VLOOKUP(A140,'Población e IPH por municipio'!$A$2:$P$19,11,0) -> 4610 | F140: =VLOOKUP(A140,'Población e IPH por municipio'!$A$2:$BG$15,54,0) -> 4610 | G140: 07023
A141: Ferreries | B141: Menorca | C141: 2014 | D141: =CONCATENATE(A141,C141) -> Ferreries2014 | E141: =VLOOKUP(A141,'Población e IPH por municipio'!$A$2:$P$19,12,0) -> 4630 | F141: =VLOOKUP(A141,'Población e IPH por municipio'!$A$2:$BG$15,55,0) -> 4630 | G141: 07023
A142: Ferreries | B142: Menorca | C142: 2015 | D142: =CONCATENATE(A142,C142) -> Ferreries2015 | E142: =VLOOKUP(A142,'Población e IPH por municipio'!$A$2:$P$19,13,0) -> 4571 | F142: =VLOOKUP(A142,'Población e IPH por municipio'!$A$2:$BG$15,56,0) -> 4571 | G142: 07023
A143: Ferreries | B143: Menorca | C143: 2016 | D143: =CONCATENATE(A143,C143) -> Ferreries2016 | E143: =VLOOKUP(A143,'Población e IPH por municipio'!$A$2:$P$19,14,0) -> 4617 | F143: =VLOOKUP(A143,'Población e IPH por municipio'!$A$2:$BG$15,57,0) -> 4837.82915 | G143: 07023
A144: Ferreries | B144: Menorca | C144: 2017 | D144: =CONCATENATE(A144,C144) -> Ferreries2017 | E144: =VLOOKUP(A144,'Población e IPH por municipio'!$A$2:$P$19,15,0) -> 4633 | F144: =VLOOKUP(A144,'Población e IPH por municipio'!$A$2:$BG$15,58,0) -> 4633 | G144: 07023
A145: Ferreries | B145: Menorca | C145: 2018 | D145: =CONCATENATE(A145,C145) -> Ferreries2018 | E145: =VLOOKUP(A145,'Población e IPH por municipio'!$A$2:$P$19,16,0) -> 4695 | F145: =VLOOKUP(A145,'Población e IPH por municipio'!$A$2:$BG$15,59,0) -> 4695 | G145: 07023
A146: Ferreries | B146: Menorca | C146: 2019 | D146: =CONCATENATE(A146,C146) -> Ferreries2019 | G146: 07023 | U146: =(VLOOKUP($C146,#REF!,3,0)*E146/#REF!) ->  | V146: =(VLOOKUP($C146,#REF!,3,0)*F146/#REF!) ->  | W146: =VLOOKUP($C146,#REF!,3,0)*VLOOKUP(A146,#REF!,12,0) ->  | X146: =VLOOKUP($C146,#REF!,3,0)*VLOOKUP(A146,#REF!,12,0) ->  | Y146: =IF(O146="NO",0,AVERAGE(Y147:Y154)) ->  | Z146: =(1-Y146)*E146 ->  | AA146: =(1-Y146)*F146 -> 
A147: Ferreries | B147: Menorca | C147: 2020 | D147: =CONCATENATE(A147,C147) -> Ferreries2020 | G147: 07023 | U147: =(VLOOKUP($C147,#REF!,3,0)*E147/#REF!) ->  | V147: =(VLOOKUP($C147,#REF!,3,0)*F147/#REF!) ->  | W147: =VLOOKUP($C147,#REF!,3,0)*VLOOKUP(A147,#REF!,12,0) ->  | X147: =VLOOKUP($C147,#REF!,3,0)*VLOOKUP(A147,#REF!,12,0) ->  | Y147: =IF(O147="NO",0,AVERAGE(Y148:Y154)) ->  | Z147: =(1-Y147)*E147 ->  | AA147: =(1-Y147)*F147 -> 
A148: Ferreries | B148: Menorca | C148: 2021 | D148: =CONCATENATE(A148,C148) -> Ferreries2021 | G148: 07023 | U148: =(VLOOKUP($C148,#REF!,3,0)*E148/#REF!) ->  | V148: =(VLOOKUP($C148,#REF!,3,0)*F148/#REF!) ->  | W148: =VLOOKUP($C148,#REF!,3,0)*VLOOKUP(A148,#REF!,12,0) ->  | X148: =VLOOKUP($C148,#REF!,3,0)*VLOOKUP(A148,#REF!,12,0) ->  | Y148: =IF(O148="NO",0,AVERAGE(Y149:Y154)) ->  | Z148: =(1-Y148)*E148 ->  | AA148: =(1-Y148)*F148 -> 
A149: Ferreries | B149: Menorca | C149: 2022 | D149: =CONCATENATE(A149,C149) -> Ferreries2022 | G149: 07023 | U149: =(VLOOKUP($C149,#REF!,3,0)*E149/#REF!) ->  | V149: =(VLOOKUP($C149,#REF!,3,0)*F149/#REF!) ->  | W149: =VLOOKUP($C149,#REF!,3,0)*VLOOKUP(A149,#REF!,12,0) ->  | X149: =VLOOKUP($C149,#REF!,3,0)*VLOOKUP(A149,#REF!,12,0) ->  | Y149: =IF(O149="NO",0,AVERAGE(Y150:Y154)) ->  | Z149: =(1-Y149)*E149 ->  | AA149: =(1-Y149)*F149 -> 
A150: Ferreries | B150: Menorca | C150: 2023 | D150: =CONCATENATE(A150,C150) -> Ferreries2023 | G150: 07023 | U150: =(VLOOKUP($C150,#REF!,3,0)*E150/#REF!) ->  | V150: =(VLOOKUP($C150,#REF!,3,0)*F150/#REF!) ->  | W150: =VLOOKUP($C150,#REF!,3,0)*VLOOKUP(A150,#REF!,12,0) ->  | X150: =VLOOKUP($C150,#REF!,3,0)*VLOOKUP(A150,#REF!,12,0) ->  | Y150: =IF(O150="NO",0,AVERAGE(Y151:Y154)) ->  | Z150: =(1-Y150)*E150 ->  | AA150: =(1-Y150)*F150 -> 
A151: Ferreries | B151: Menorca | C151: 2024 | D151: =CONCATENATE(A151,C151) -> Ferreries2024 | G151: 07023 | U151: =(VLOOKUP($C151,#REF!,3,0)*E151/#REF!) ->  | V151: =(VLOOKUP($C151,#REF!,3,0)*F151/#REF!) ->  | W151: =VLOOKUP($C151,#REF!,3,0)*VLOOKUP(A151,#REF!,12,0) ->  | X151: =VLOOKUP($C151,#REF!,3,0)*VLOOKUP(A151,#REF!,12,0) ->  | Y151: =IF(O151="NO",0,AVERAGE(Y152:Y154)) ->  | Z151: =(1-Y151)*E151 ->  | AA151: =(1-Y151)*F151 -> 
A152: Ferreries | B152: Menorca | C152: 2025 | D152: =CONCATENATE(A152,C152) -> Ferreries2025 | G152: 07023 | Y152: =IF(O152="NO",0,VLOOKUP(A152,#REF!,15,0)) ->  | Z152: =(1-Y152)*E152 ->  | AA152: =(1-Y152)*F152 -> 
A153: Ferreries | B153: Menorca | C153: 2026 | D153: =CONCATENATE(A153,C153) -> Ferreries2026 | G153: 07023 | Y153: =IF(O153="NO",0,VLOOKUP(A153,#REF!,16,0)) ->  | Z153: =(1-Y153)*E153 ->  | AA153: =(1-Y153)*F153 -> 
A154: Ferreries | B154: Menorca | C154: 2027 | D154: =CONCATENATE(A154,C154) -> Ferreries2027 | G154: 07023 | Y154: =IF(O154="NO",0,VLOOKUP(A154,#REF!,17,0)) ->  | Z154: =(1-Y154)*E154 ->  | AA154: =(1-Y154)*F154 -> 
A155: Ferreries | B155: Menorca | C155: 2028 | D155: =CONCATENATE(A155,C155) -> Ferreries2028 | G155: 07023 | Y155: =IF(O155="NO",0,VLOOKUP(A155,#REF!,17,0)) ->  | Z155: =(1-Y155)*E155 ->  | AA155: =(1-Y155)*F155 -> 
A156: Ferreries | B156: Menorca | C156: 2029 | D156: =CONCATENATE(A156,C156) -> Ferreries2029 | G156: 07023 | Y156: =IF(O156="NO",0,AVERAGE(Y157:Y168)) ->  | Z156: =(1-Y156)*E156 ->  | AA156: =(1-Y156)*F156 -> 
A157: Ferreries | B157: Menorca | C157: 2030 | D157: =CONCATENATE(A157,C157) -> Ferreries2030 | G157: 07023 | Y157: =IF(O157="NO",0,AVERAGE(Y158:Y168)) ->  | Z157: =(1-Y157)*E157 ->  | AA157: =(1-Y157)*F157 -> 
A158: Maó | B158: Menorca | C158: 2005 | D158: =CONCATENATE(A158,C158) -> Maó2005 | E158: =VLOOKUP(A158,'Población e IPH por municipio'!$A$2:$P$19,3,0) -> 27669 | F158: =VLOOKUP(A158,'Población e IPH por municipio'!$A$2:$BG$15,46,0) -> 30592.09886 | G158: 07032
A159: Maó | B159: Menorca | C159: 2006 | D159: =CONCATENATE(A159,C159) -> Maó2006 | E159: =VLOOKUP(A159,'Población e IPH por municipio'!$A$2:$P$19,4,0) -> 27893 | F159: =VLOOKUP(A159,'Población e IPH por municipio'!$A$2:$BG$15,47,0) -> 31022.6717 | G159: 07032
A160: Maó | B160: Menorca | C160: 2007 | D160: =CONCATENATE(A160,C160) -> Maó2007 | E160: =VLOOKUP(A160,'Población e IPH por municipio'!$A$2:$P$19,5,0) -> 28284 | F160: =VLOOKUP(A160,'Población e IPH por municipio'!$A$2:$BG$15,48,0) -> 31324.69292 | G160: 07032
A161: Maó | B161: Menorca | C161: 2008 | D161: =CONCATENATE(A161,C161) -> Maó2008 | E161: =VLOOKUP(A161,'Población e IPH por municipio'!$A$2:$P$19,6,0) -> 28904 | F161: =VLOOKUP(A161,'Población e IPH por municipio'!$A$2:$BG$15,49,0) -> 31663.00952 | G161: 07032
A162: Maó | B162: Menorca | C162: 2009 | D162: =CONCATENATE(A162,C162) -> Maó2009 | E162: =VLOOKUP(A162,'Población e IPH por municipio'!$A$2:$P$19,7,0) -> 29125 | F162: =VLOOKUP(A162,'Población e IPH por municipio'!$A$2:$BG$15,50,0) -> 30955.65202 | G162: 07032
A163: Maó | B163: Menorca | C163: 2010 | D163: =CONCATENATE(A163,C163) -> Maó2010 | E163: =VLOOKUP(A163,'Población e IPH por municipio'!$A$2:$P$19,8,0) -> 29050 | F163: =VLOOKUP(A163,'Población e IPH por municipio'!$A$2:$BG$15,51,0) -> 29050 | G163: 07032
A164: Maó | B164: Menorca | C164: 2011 | D164: =CONCATENATE(A164,C164) -> Maó2011 | E164: =VLOOKUP(A164,'Población e IPH por municipio'!$A$2:$P$19,9,0) -> 28942 | F164: =VLOOKUP(A164,'Población e IPH por municipio'!$A$2:$BG$15,52,0) -> 28942 | G164: 07032
A165: Maó | B165: Menorca | C165: 2012 | D165: =CONCATENATE(A165,C165) -> Maó2012 | E165: =VLOOKUP(A165,'Población e IPH por municipio'!$A$2:$P$19,10,0) -> 28972 | F165: =VLOOKUP(A165,'Población e IPH por municipio'!$A$2:$BG$15,53,0) -> 28972 | G165: 07032
A166: Maó | B166: Menorca | C166: 2013 | D166: =CONCATENATE(A166,C166) -> Maó2013 | E166: =VLOOKUP(A166,'Población e IPH por municipio'!$A$2:$P$19,11,0) -> 28765 | F166: =VLOOKUP(A166,'Población e IPH por municipio'!$A$2:$BG$15,54,0) -> 31562.53229 | G166: 07032
A167: Maó | B167: Menorca | C167: 2014 | D167: =CONCATENATE(A167,C167) -> Maó2014 | E167: =VLOOKUP(A167,'Población e IPH por municipio'!$A$2:$P$19,12,0) -> 28460 | F167: =VLOOKUP(A167,'Población e IPH por municipio'!$A$2:$BG$15,55,0) -> 30961.33559 | G167: 07032
A168: Maó | B168: Menorca | C168: 2015 | D168: =CONCATENATE(A168,C168) -> Maó2015 | E168: =VLOOKUP(A168,'Población e IPH por municipio'!$A$2:$P$19,13,0) -> 28006 | F168: =VLOOKUP(A168,'Población e IPH por municipio'!$A$2:$BG$15,56,0) -> 31662.70198 | G168: 07032
A169: Maó | B169: Menorca | C169: 2016 | D169: =CONCATENATE(A169,C169) -> Maó2016 | E169: =VLOOKUP(A169,'Población e IPH por municipio'!$A$2:$P$19,14,0) -> 28099 | F169: =VLOOKUP(A169,'Población e IPH por municipio'!$A$2:$BG$15,57,0) -> 31110.71564 | G169: 07032
A170: Maó | B170: Menorca | C170: 2017 | D170: =CONCATENATE(A170,C170) -> Maó2017 | E170: =VLOOKUP(A170,'Población e IPH por municipio'!$A$2:$P$19,15,0) -> 28161 | F170: =VLOOKUP(A170,'Población e IPH por municipio'!$A$2:$BG$15,58,0) -> 31485.85907 | G170: 07032
A171: Maó | B171: Menorca | C171: 2018 | D171: =CONCATENATE(A171,C171) -> Maó2018 | E171: =VLOOKUP(A171,'Población e IPH por municipio'!$A$2:$P$19,16,0) -> 28592 | F171: =VLOOKUP(A171,'Población e IPH por municipio'!$A$2:$BG$15,59,0) -> 33069.56071 | G171: 07032
A172: Maó | B172: Menorca | C172: 2019 | D172: =CONCATENATE(A172,C172) -> Maó2019 | G172: 07032 | Y172: =IF(O172="NO",0,AVERAGE(Y173:Y182)) ->  | Z172: =(1-Y172)*E172 ->  | AA172: =(1-Y172)*F172 -> 
A173: Maó | B173: Menorca | C173: 2020 | D173: =CONCATENATE(A173,C173) -> Maó2020 | G173: 07032 | Y173: =IF(O173="NO",0,AVERAGE(Y174:Y182)) ->  | Z173: =(1-Y173)*E173 ->  | AA173: =(1-Y173)*F173 -> 
A174: Maó | B174: Menorca | C174: 2021 | D174: =CONCATENATE(A174,C174) -> Maó2021 | G174: 07032 | Y174: =IF(O174="NO",0,AVERAGE(Y175:Y182)) ->  | Z174: =(1-Y174)*E174 ->  | AA174: =(1-Y174)*F174 -> 
A175: Maó | B175: Menorca | C175: 2022 | D175: =CONCATENATE(A175,C175) -> Maó2022 | G175: 07032 | Y175: =IF(O175="NO",0,AVERAGE(Y176:Y182)) ->  | Z175: =(1-Y175)*E175 ->  | AA175: =(1-Y175)*F175 -> 
A176: Maó | B176: Menorca | C176: 2023 | D176: =CONCATENATE(A176,C176) -> Maó2023 | G176: 07032 | Y176: =IF(O176="NO",0,AVERAGE(Y177:Y182)) ->  | Z176: =(1-Y176)*E176 ->  | AA176: =(1-Y176)*F176 -> 
A177: Maó | B177: Menorca | C177: 2024 | D177: =CONCATENATE(A177,C177) -> Maó2024 | G177: 07032 | Y177: =IF(O177="NO",0,AVERAGE(Y178:Y182)) ->  | Z177: =(1-Y177)*E177 ->  | AA177: =(1-Y177)*F177 -> 
A178: Maó | B178: Menorca | C178: 2025 | D178: =CONCATENATE(A178,C178) -> Maó2025 | G178: 07032 | Y178: =IF(O178="NO",0,AVERAGE(Y179:Y182)) ->  | Z178: =(1-Y178)*E178 ->  | AA178: =(1-Y178)*F178 -> 
A179: Maó | B179: Menorca | C179: 2026 | D179: =CONCATENATE(A179,C179) -> Maó2026 | G179: 07032 | Y179: =IF(O179="NO",0,AVERAGE(Y180:Y182)) ->  | Z179: =(1-Y179)*E179 ->  | AA179: =(1-Y179)*F179 -> 
A180: Maó | B180: Menorca | C180: 2027 | D180: =CONCATENATE(A180,C180) -> Maó2027 | G180: 07032 | Y180: =IF(O180="NO",0,VLOOKUP(A180,#REF!,15,0)) ->  | Z180: =(1-Y180)*E180 ->  | AA180: =(1-Y180)*F180 -> 
A181: Maó | B181: Menorca | C181: 2028 | D181: =CONCATENATE(A181,C181) -> Maó2028 | G181: 07032 | Y181: =IF(O181="NO",0,VLOOKUP(A181,#REF!,16,0)) ->  | Z181: =(1-Y181)*E181 ->  | AA181: =(1-Y181)*F181 -> 
A182: Maó | B182: Menorca | C182: 2029 | D182: =CONCATENATE(A182,C182) -> Maó2029 | G182: 07032 | Y182: =IF(O182="NO",0,VLOOKUP(A182,#REF!,17,0)) ->  | Z182: =(1-Y182)*E182 ->  | AA182: =(1-Y182)*F182 -> 
A183: Maó | B183: Menorca | C183: 2030 | D183: =CONCATENATE(A183,C183) -> Maó2030 | G183: 07032 | Y183: =IF(O183="NO",0,VLOOKUP(A183,#REF!,17,0)) ->  | Z183: =(1-Y183)*E183 ->  | AA183: =(1-Y183)*F183 -> 
A184: Sant Lluís | B184: Menorca | C184: 2005 | D184: =CONCATENATE(A184,C184) -> Sant Lluís2005 | E184: =VLOOKUP(A184,'Población e IPH por municipio'!$A$2:$P$19,3,0) -> 5865 | F184: =VLOOKUP(A184,'Población e IPH por municipio'!$A$2:$BG$15,46,0) -> 9030.77635 | G184: 07052
A185: Sant Lluís | B185: Menorca | C185: 2006 | D185: =CONCATENATE(A185,C185) -> Sant Lluís2006 | E185: =VLOOKUP(A185,'Población e IPH por municipio'!$A$2:$P$19,4,0) -> 6182 | F185: =VLOOKUP(A185,'Población e IPH por municipio'!$A$2:$BG$15,47,0) -> 9571.498991 | G185: 07052
A186: Sant Lluís | B186: Menorca | C186: 2007 | D186: =CONCATENATE(A186,C186) -> Sant Lluís2007 | E186: =VLOOKUP(A186,'Población e IPH por municipio'!$A$2:$P$19,5,0) -> 6414 | F186: =VLOOKUP(A186,'Población e IPH por municipio'!$A$2:$BG$15,48,0) -> 9707.13314 | G186: 07052
A187: Sant Lluís | B187: Menorca | C187: 2008 | D187: =CONCATENATE(A187,C187) -> Sant Lluís2008 | E187: =VLOOKUP(A187,'Población e IPH por municipio'!$A$2:$P$19,6,0) -> 6704 | F187: =VLOOKUP(A187,'Población e IPH por municipio'!$A$2:$BG$15,49,0) -> 9692.064203 | G187: 07052
A188: Sant Lluís | B188: Menorca | C188: 2009 | D188: =CONCATENATE(A188,C188) -> Sant Lluís2009 | E188: =VLOOKUP(A188,'Población e IPH por municipio'!$A$2:$P$19,7,0) -> 6997 | F188: =VLOOKUP(A188,'Población e IPH por municipio'!$A$2:$BG$15,50,0) -> 9812.89765 | G188: 07052
A189: Sant Lluís | B189: Menorca | C189: 2010 | D189: =CONCATENATE(A189,C189) -> Sant Lluís2010 | E189: =VLOOKUP(A189,'Población e IPH por municipio'!$A$2:$P$19,8,0) -> 7204 | F189: =VLOOKUP(A189,'Población e IPH por municipio'!$A$2:$BG$15,51,0) -> 10928.43061 | G189: 07052
A190: Sant Lluís | B190: Menorca | C190: 2011 | D190: =CONCATENATE(A190,C190) -> Sant Lluís2011 | E190: =VLOOKUP(A190,'Población e IPH por municipio'!$A$2:$P$19,9,0) -> 7377 | F190: =VLOOKUP(A190,'Población e IPH por municipio'!$A$2:$BG$15,52,0) -> 11525.16661 | G190: 07052
A191: Sant Lluís | B191: Menorca | C191: 2012 | D191: =CONCATENATE(A191,C191) -> Sant Lluís2012 | E191: =VLOOKUP(A191,'Población e IPH por municipio'!$A$2:$P$19,10,0) -> 7449 | F191: =VLOOKUP(A191,'Población e IPH por municipio'!$A$2:$BG$15,53,0) -> 8476.991147 | G191: 07052
A192: Sant Lluís | B192: Menorca | C192: 2013 | D192: =CONCATENATE(A192,C192) -> Sant Lluís2013 | E192: =VLOOKUP(A192,'Población e IPH por municipio'!$A$2:$P$19,11,0) -> 7509 | F192: =VLOOKUP(A192,'Población e IPH por municipio'!$A$2:$BG$15,54,0) -> 11778.25934 | G192: 07052
A193: Sant Lluís | B193: Menorca | C193: 2014 | D193: =CONCATENATE(A193,C193) -> Sant Lluís2014 | E193: =VLOOKUP(A193,'Población e IPH por municipio'!$A$2:$P$19,12,0) -> 7472 | F193: =VLOOKUP(A193,'Población e IPH por municipio'!$A$2:$BG$15,55,0) -> 11895.07593 | G193: 07052
A194: Sant Lluís | B194: Menorca | C194: 2015 | D194: =CONCATENATE(A194,C194) -> Sant Lluís2015 | E194: =VLOOKUP(A194,'Población e IPH por municipio'!$A$2:$P$19,13,0) -> 7521 | F194: =VLOOKUP(A194,'Población e IPH por municipio'!$A$2:$BG$15,56,0) -> 12215.05794 | G194: 07052
A195: Sant Lluís | B195: Menorca | C195: 2016 | D195: =CONCATENATE(A195,C195) -> Sant Lluís2016 | E195: =VLOOKUP(A195,'Población e IPH por municipio'!$A$2:$P$19,14,0) -> 7313 | F195: =VLOOKUP(A195,'Población e IPH por municipio'!$A$2:$BG$15,57,0) -> 12564.85414 | G195: 07052
A196: Sant Lluís | B196: Menorca | C196: 2017 | D196: =CONCATENATE(A196,C196) -> Sant Lluís2017 | E196: =VLOOKUP(A196,'Población e IPH por municipio'!$A$2:$P$19,15,0) -> 6954 | F196: =VLOOKUP(A196,'Población e IPH por municipio'!$A$2:$BG$15,58,0) -> 11698.9702 | G196: 07052
A197: Sant Lluís | B197: Menorca | C197: 2018 | D197: =CONCATENATE(A197,C197) -> Sant Lluís2018 | E197: =VLOOKUP(A197,'Población e IPH por municipio'!$A$2:$P$19,16,0) -> 6892 | F197: =VLOOKUP(A197,'Población e IPH por municipio'!$A$2:$BG$15,59,0) -> 11277.38996 | G197: 07052
A198: Sant Lluís | B198: Menorca | C198: 2019 | D198: =CONCATENATE(A198,C198) -> Sant Lluís2019 | G198: 07052 | Y198: =IF(O198="NO",0,AVERAGE(Y199:Y210)) ->  | Z198: =(1-Y198)*E198 ->  | AA198: =(1-Y198)*F198 -> 
A199: Sant Lluís | B199: Menorca | C199: 2020 | D199: =CONCATENATE(A199,C199) -> Sant Lluís2020 | G199: 07052 | Y199: =IF(O199="NO",0,AVERAGE(Y200:Y210)) ->  | Z199: =(1-Y199)*E199 ->  | AA199: =(1-Y199)*F199 -> 
A200: Sant Lluís | B200: Menorca | C200: 2021 | D200: =CONCATENATE(A200,C200) -> Sant Lluís2021 | G200: 07052 | Y200: =IF(O200="NO",0,AVERAGE(Y201:Y210)) ->  | Z200: =(1-Y200)*E200 ->  | AA200: =(1-Y200)*F200 -> 
... 243 more rows

Sheet Listado municipios
A1: ILLA | B1: MUNICIPI | C1: COMARCA | D1: CODI
A2: Menorca | B2: Alaior
A3: Menorca | B3: Ciutadella
A4: Menorca | B4: Es Castell
A5: Menorca | B5: Es Mercadal
A6: Menorca | B6: Es Migjorn Gran
A7: Menorca | B7: Ferreries
A8: Menorca | B8: Maó
A9: Menorca | B9: Sant Lluís
A10: Eivissa | B10: Eivissa
A11: Eivissa | B11: Sant Antoni de Portmany
A12: Eivissa | B12: Sant Joan de Labritja
A13: Eivissa | B13: Sant Josep de sa Talaia
A14: Eivissa | B14: Santa Eulària des Riu
A15: Formentera | B15: Sant Francesc

Sheet Evolución consumo de energía
A1: MUNICIPI | B1: ILLA | C1: ANY | D1: REF. | E1: ÁMBITS QUE DEPENEN DE L'AJUNTAMENT | S1: ÁMBITS QUE NO DEPENEN DE L'AJUNTAMENT
E2: EDIFICIS, EQUIPAMENTS I INSTALACIONS MUNICIPALS | I2: ENLLUMENAT PÚBLIC | J2: TRANSPORT PÚBLIC I MUNICIPAL | P2: PRODUCCIÓ D'ENERGÍA | S2: SECTOR DOMÉSTIC | W2: SECTOR SERVEIS | AA2: SECTOR INDUSTRIA | AE2: TRANSPORT PRIVAT I COMERCIAL | AH2: PRODUCCIÓ D'ENERGÍA | AM2: RESIDUS (NO ENERGÉTIQUES) | AQ2: CICLO DEL AGUA (NO ENERGÉTICAS) | AR2: CONSUMS PORTUARIS
E3: Consum d'electricitat (kWh) | F3: Consum de gas canalitzat (kWh) | G3: Consum de GLP (kg) | H3: Consum de Gasoil C (kWh) | I3: Consum d'electricitat (kWh) | J3: Consum d'electricitat (kWh) | K3: Consum de Gasolina (kWh) | L3: Consum de Gasoil (kWh) | M3: Consum de gas natural (kWh) | N3: Consum de biodiesel (10%) (kWh) | O3: Consum de biodiesel (20%) (kWh) | P3: Energia produïda renovables (kWh) | Q3: Energia produïda convencional (kWh) | R3: Compra d'energia verda certificada (kWh) | S3: Consum d'electricitat (kWh) | T3: Consum de gas canalitzat (kWh) | U3: Consum de GLP (kWh) | V3: Consum de Gasoil C (kWh) | W3: Consum d'electricitat (kWh) | X3: Consum de gas canalitzat (kWh) | Y3: Consum de GLP (kWh) | Z3: Consum de Gasoil C (kWh) | AA3: Consumo de electricitat (kWh) | AB3: Consum de gas canalitzat (kWh) | AC3: Consumo de GLP (kg) | AD3: Consumo de gasóleo C (litros) | AE3: Consum d'electricitat (kWh) | AF3: Consum de Gasolina (kWh) | AG3: Consum de Gasoil (kWh) | AH3: Energia produïda renovables (kWh) | AI3: Energia produïda convencional (kWh) | AJ3: Consum de gas natural (kWh) | AK3: Consum altres combustibles (kWh) | AL3: Compra d'energia verda certificada (kWh) | AM3: Recollida en massa (t) | AN3: Vidre (t) | AO3: Paper i cartó (t) | AP3: Envasos (t) | AQ3: Emissions procés (tCO2) | AR3: Consum combustibles líquids (t)
A4: ='Datos generales'!A2 -> Alaior | B4: ='Datos generales'!B2 -> Menorca | C4: ='Datos generales'!C2 -> 2005 | D4: =CONCATENATE(A4,C4) -> Alaior2005
A5: ='Datos generales'!A3 -> Alaior | B5: ='Datos generales'!B3 -> Menorca | C5: ='Datos generales'!C3 -> 2006 | D5: =CONCATENATE(A5,C5) -> Alaior2006
A6: ='Datos generales'!A4 -> Alaior | B6: ='Datos generales'!B4 -> Menorca | C6: ='Datos generales'!C4 -> 2007 | D6: =CONCATENATE(A6,C6) -> Alaior2007
A7: ='Datos generales'!A5 -> Alaior | B7: ='Datos generales'!B5 -> Menorca | C7: ='Datos generales'!C5 -> 2008 | D7: =CONCATENATE(A7,C7) -> Alaior2008
A8: ='Datos generales'!A6 -> Alaior | B8: ='Datos generales'!B6 -> Menorca | C8: ='Datos generales'!C6 -> 2009 | D8: =CONCATENATE(A8,C8) -> Alaior2009
A9: ='Datos generales'!A7 -> Alaior | B9: ='Datos generales'!B7 -> Menorca | C9: ='Datos generales'!C7 -> 2010 | D9: =CONCATENATE(A9,C9) -> Alaior2010
A10: ='Datos generales'!A8 -> Alaior | B10: ='Datos generales'!B8 -> Menorca | C10: ='Datos generales'!C8 -> 2011 | D10: =CONCATENATE(A10,C10) -> Alaior2011
A11: ='Datos generales'!A9 -> Alaior | B11: ='Datos generales'!B9 -> Menorca | C11: ='Datos generales'!C9 -> 2012 | D11: =CONCATENATE(A11,C11) -> Alaior2012
A12: ='Datos generales'!A10 -> Alaior | B12: ='Datos generales'!B10 -> Menorca | C12: ='Datos generales'!C10 -> 2013 | D12: =CONCATENATE(A12,C12) -> Alaior2013
A13: ='Datos generales'!A11 -> Alaior | B13: ='Datos generales'!B11 -> Menorca | C13: ='Datos generales'!C11 -> 2014 | D13: =CONCATENATE(A13,C13) -> Alaior2014
A14: ='Datos generales'!A12 -> Alaior | B14: ='Datos generales'!B12 -> Menorca | C14: ='Datos generales'!C12 -> 2015 | D14: =CONCATENATE(A14,C14) -> Alaior2015
A15: ='Datos generales'!A13 -> Alaior | B15: ='Datos generales'!B13 -> Menorca | C15: ='Datos generales'!C13 -> 2016 | D15: =CONCATENATE(A15,C15) -> Alaior2016
A16: ='Datos generales'!A14 -> Alaior | B16: ='Datos generales'!B14 -> Menorca | C16: ='Datos generales'!C14 -> 2017 | D16: =CONCATENATE(A16,C16) -> Alaior2017
A17: ='Datos generales'!A15 -> Alaior | B17: ='Datos generales'!B15 -> Menorca | C17: ='Datos generales'!C15 -> 2018 | D17: =CONCATENATE(A17,C17) -> Alaior2018
A18: ='Datos generales'!A16 -> Alaior | B18: ='Datos generales'!B16 -> Menorca | C18: ='Datos generales'!C16 -> 2019 | D18: =CONCATENATE(A18,C18) -> Alaior2019 | E18: =VLOOKUP($D18,#REF!,3,0) ->  | S18: =VLOOKUP($D18,#REF!,9,0) ->  | T18: =VLOOKUP(D18,'Datos generales'!$D$2:$T$365,16,0) -> 0 | U18: =VLOOKUP(C18,#REF!,2,0)*(VLOOKUP(D18,'Datos generales'!$D$2:$AA$365,23,0)/VLOOKUP(CONCATENATE("Illa Mallorca",C18),'Datos generales'!$D$2:$AA$443,23,0))*IF(VLOOKUP(D18,'Datos generales'!$D$2:$R$365,15,0)="B3",1,1.1) ->  | V18: =VLOOKUP(C18,#REF!,6,0)*(VLOOKUP(D18,'Datos generales'!$D$2:$AA$365,23,0)/VLOOKUP(CONCATENATE("Illa Mallorca",C18),'Datos generales'!$D$2:$AA$443,23,0))*IF(VLOOKUP(D18,'Datos generales'!$D$2:$R$365,15,0)="B3",1,1.1) ->  | W18: =VLOOKUP($D18,#REF!,2,0) ->  | X18: =VLOOKUP(D18,'Datos generales'!$D$2:$T$365,17,0) -> 0 | Y18: =VLOOKUP(C18,#REF!,2,0)*(VLOOKUP(D18,'Datos generales'!$D$2:$AA$365,24,0)/VLOOKUP(CONCATENATE("Illa Mallorca",C18),'Datos generales'!$D$2:$AA$443,24,0))*IF(VLOOKUP(D18,'Datos generales'!$D$2:$R$365,15,0)="B3",1,1.1) ->  | Z18: =VLOOKUP(C18,#REF!,6,0)*(VLOOKUP(D18,'Datos generales'!$D$2:$AA$365,24,0)/VLOOKUP(CONCATENATE("Illa Mallorca",C18),'Datos generales'!$D$2:$AA$443,24,0))*IF(VLOOKUP(D18,'Datos generales'!$D$2:$R$365,15,0)="B3",1,1.1) ->  | AF18: =VLOOKUP(D18,'Datos generales'!$D$2:$M$365,8,0)*VLOOKUP(C18,#REF!,7,0) ->  | AG18: =VLOOKUP(D18,'Datos generales'!$D$2:$M$365,7,0)*VLOOKUP(C18,#REF!,6,0) -> 
A19: ='Datos generales'!A17 -> Alaior | B19: ='Datos generales'!B17 -> Menorca | C19: ='Datos generales'!C17 -> 2020 | D19: =CONCATENATE(A19,C19) -> Alaior2020 | E19: =VLOOKUP($D19,#REF!,3,0) ->  | S19: =VLOOKUP($D19,#REF!,9,0) ->  | T19: =VLOOKUP(D19,'Datos generales'!$D$2:$T$365,16,0) -> 0 | U19: =VLOOKUP(C19,#REF!,2,0)*(VLOOKUP(D19,'Datos generales'!$D$2:$AA$365,23,0)/VLOOKUP(CONCATENATE("Illa Mallorca",C19),'Datos generales'!$D$2:$AA$443,23,0))*IF(VLOOKUP(D19,'Datos generales'!$D$2:$R$365,15,0)="B3",1,1.1) ->  | V19: =VLOOKUP(C19,#REF!,6,0)*(VLOOKUP(D19,'Datos generales'!$D$2:$AA$365,23,0)/VLOOKUP(CONCATENATE("Illa Mallorca",C19),'Datos generales'!$D$2:$AA$443,23,0))*IF(VLOOKUP(D19,'Datos generales'!$D$2:$R$365,15,0)="B3",1,1.1) ->  | W19: =VLOOKUP($D19,#REF!,2,0) ->  | X19: =VLOOKUP(D19,'Datos generales'!$D$2:$T$365,17,0) -> 0 | Y19: =VLOOKUP(C19,#REF!,2,0)*(VLOOKUP(D19,'Datos generales'!$D$2:$AA$365,24,0)/VLOOKUP(CONCATENATE("Illa Mallorca",C19),'Datos generales'!$D$2:$AA$443,24,0))*IF(VLOOKUP(D19,'Datos generales'!$D$2:$R$365,15,0)="B3",1,1.1) ->  | Z19: =VLOOKUP(C19,#REF!,6,0)*(VLOOKUP(D19,'Datos generales'!$D$2:$AA$365,24,0)/VLOOKUP(CONCATENATE("Illa Mallorca",C19),'Datos generales'!$D$2:$AA$443,24,0))*IF(VLOOKUP(D19,'Datos generales'!$D$2:$R$365,15,0)="B3",1,1.1) ->  | AF19: =VLOOKUP(D19,'Datos generales'!$D$2:$M$365,8,0)*VLOOKUP(C19,#REF!,7,0) ->  | AG19: =VLOOKUP(D19,'Datos generales'!$D$2:$M$365,7,0)*VLOOKUP(C19,#REF!,6,0) -> 
A20: ='Datos generales'!A18 -> Alaior | B20: ='Datos generales'!B18 -> Menorca | C20: ='Datos generales'!C18 -> 2021 | D20: =CONCATENATE(A20,C20) -> Alaior2021 | E20: =VLOOKUP($D20,#REF!,3,0) ->  | S20: =VLOOKUP($D20,#REF!,9,0) ->  | T20: =VLOOKUP(D20,'Datos generales'!$D$2:$T$365,16,0) -> 0 | U20: =VLOOKUP(C20,#REF!,2,0)*(VLOOKUP(D20,'Datos generales'!$D$2:$AA$365,23,0)/VLOOKUP(CONCATENATE("Illa Mallorca",C20),'Datos generales'!$D$2:$AA$443,23,0))*IF(VLOOKUP(D20,'Datos generales'!$D$2:$R$365,15,0)="B3",1,1.1) ->  | V20: =VLOOKUP(C20,#REF!,6,0)*(VLOOKUP(D20,'Datos generales'!$D$2:$AA$365,23,0)/VLOOKUP(CONCATENATE("Illa Mallorca",C20),'Datos generales'!$D$2:$AA$443,23,0))*IF(VLOOKUP(D20,'Datos generales'!$D$2:$R$365,15,0)="B3",1,1.1) ->  | W20: =VLOOKUP($D20,#REF!,2,0) ->  | X20: =VLOOKUP(D20,'Datos generales'!$D$2:$T$365,17,0) -> 0 | Y20: =VLOOKUP(C20,#REF!,2,0)*(VLOOKUP(D20,'Datos generales'!$D$2:$AA$365,24,0)/VLOOKUP(CONCATENATE("Illa Mallorca",C20),'Datos generales'!$D$2:$AA$443,24,0))*IF(VLOOKUP(D20,'Datos generales'!$D$2:$R$365,15,0)="B3",1,1.1) ->  | Z20: =VLOOKUP(C20,#REF!,6,0)*(VLOOKUP(D20,'Datos generales'!$D$2:$AA$365,24,0)/VLOOKUP(CONCATENATE("Illa Mallorca",C20),'Datos generales'!$D$2:$AA$443,24,0))*IF(VLOOKUP(D20,'Datos generales'!$D$2:$R$365,15,0)="B3",1,1.1) ->  | AF20: =VLOOKUP(D20,'Datos generales'!$D$2:$M$365,8,0)*VLOOKUP(C20,#REF!,7,0) ->  | AG20: =VLOOKUP(D20,'Datos generales'!$D$2:$M$365,7,0)*VLOOKUP(C20,#REF!,6,0) -> 
A21: ='Datos generales'!A19 -> Alaior | B21: ='Datos generales'!B19 -> Menorca | C21: ='Datos generales'!C19 -> 2022 | D21: =CONCATENATE(A21,C21) -> Alaior2022 | E21: =VLOOKUP($D21,#REF!,3,0) ->  | S21: =VLOOKUP($D21,#REF!,9,0) ->  | T21: =VLOOKUP(D21,'Datos generales'!$D$2:$T$365,16,0) -> 0 | U21: =VLOOKUP(C21,#REF!,2,0)*(VLOOKUP(D21,'Datos generales'!$D$2:$AA$365,23,0)/VLOOKUP(CONCATENATE("Illa Mallorca",C21),'Datos generales'!$D$2:$AA$443,23,0))*IF(VLOOKUP(D21,'Datos generales'!$D$2:$R$365,15,0)="B3",1,1.1) ->  | V21: =VLOOKUP(C21,#REF!,6,0)*(VLOOKUP(D21,'Datos generales'!$D$2:$AA$365,23,0)/VLOOKUP(CONCATENATE("Illa Mallorca",C21),'Datos generales'!$D$2:$AA$443,23,0))*IF(VLOOKUP(D21,'Datos generales'!$D$2:$R$365,15,0)="B3",1,1.1) ->  | W21: =VLOOKUP($D21,#REF!,2,0) ->  | X21: =VLOOKUP(D21,'Datos generales'!$D$2:$T$365,17,0) -> 0 | Y21: =VLOOKUP(C21,#REF!,2,0)*(VLOOKUP(D21,'Datos generales'!$D$2:$AA$365,24,0)/VLOOKUP(CONCATENATE("Illa Mallorca",C21),'Datos generales'!$D$2:$AA$443,24,0))*IF(VLOOKUP(D21,'Datos generales'!$D$2:$R$365,15,0)="B3",1,1.1) ->  | Z21: =VLOOKUP(C21,#REF!,6,0)*(VLOOKUP(D21,'Datos generales'!$D$2:$AA$365,24,0)/VLOOKUP(CONCATENATE("Illa Mallorca",C21),'Datos generales'!$D$2:$AA$443,24,0))*IF(VLOOKUP(D21,'Datos generales'!$D$2:$R$365,15,0)="B3",1,1.1) ->  | AF21: =VLOOKUP(D21,'Datos generales'!$D$2:$M$365,8,0)*VLOOKUP(C21,#REF!,7,0) ->  | AG21: =VLOOKUP(D21,'Datos generales'!$D$2:$M$365,7,0)*VLOOKUP(C21,#REF!,6,0) -> 
A22: ='Datos generales'!A20 -> Alaior | B22: ='Datos generales'!B20 -> Menorca | C22: ='Datos generales'!C20 -> 2023 | D22: =CONCATENATE(A22,C22) -> Alaior2023 | E22: =VLOOKUP($D22,#REF!,3,0) ->  | S22: =VLOOKUP($D22,#REF!,9,0) ->  | T22: =VLOOKUP(D22,'Datos generales'!$D$2:$T$365,16,0) -> 0 | U22: =VLOOKUP(C22,#REF!,2,0)*(VLOOKUP(D22,'Datos generales'!$D$2:$AA$365,23,0)/VLOOKUP(CONCATENATE("Illa Mallorca",C22),'Datos generales'!$D$2:$AA$443,23,0))*IF(VLOOKUP(D22,'Datos generales'!$D$2:$R$365,15,0)="B3",1,1.1) ->  | V22: =VLOOKUP(C22,#REF!,6,0)*(VLOOKUP(D22,'Datos generales'!$D$2:$AA$365,23,0)/VLOOKUP(CONCATENATE("Illa Mallorca",C22),'Datos generales'!$D$2:$AA$443,23,0))*IF(VLOOKUP(D22,'Datos generales'!$D$2:$R$365,15,0)="B3",1,1.1) ->  | W22: =VLOOKUP($D22,#REF!,2,0) ->  | X22: =VLOOKUP(D22,'Datos generales'!$D$2:$T$365,17,0) -> 0 | Y22: =VLOOKUP(C22,#REF!,2,0)*(VLOOKUP(D22,'Datos generales'!$D$2:$AA$365,24,0)/VLOOKUP(CONCATENATE("Illa Mallorca",C22),'Datos generales'!$D$2:$AA$443,24,0))*IF(VLOOKUP(D22,'Datos generales'!$D$2:$R$365,15,0)="B3",1,1.1) ->  | Z22: =VLOOKUP(C22,#REF!,6,0)*(VLOOKUP(D22,'Datos generales'!$D$2:$AA$365,24,0)/VLOOKUP(CONCATENATE("Illa Mallorca",C22),'Datos generales'!$D$2:$AA$443,24,0))*IF(VLOOKUP(D22,'Datos generales'!$D$2:$R$365,15,0)="B3",1,1.1) ->  | AF22: =VLOOKUP(D22,'Datos generales'!$D$2:$M$365,8,0)*VLOOKUP(C22,#REF!,7,0) ->  | AG22: =VLOOKUP(D22,'Datos generales'!$D$2:$M$365,7,0)*VLOOKUP(C22,#REF!,6,0) -> 
A23: ='Datos generales'!A21 -> Alaior | B23: ='Datos generales'!B21 -> Menorca | C23: ='Datos generales'!C21 -> 2024 | D23: =CONCATENATE(A23,C23) -> Alaior2024 | E23: =VLOOKUP($D23,#REF!,5,0) ->  | S23: =VLOOKUP($D23,#REF!,7,0) ->  | T23: =VLOOKUP(D23,'Datos generales'!$D$2:$T$365,16,0) -> 0 | U23: =VLOOKUP(C23,#REF!,2,0)*(VLOOKUP(D23,'Datos generales'!$D$2:$AA$365,23,0)/VLOOKUP(CONCATENATE("Illa Mallorca",C23),'Datos generales'!$D$2:$AA$443,23,0))*IF(VLOOKUP(D23,'Datos generales'!$D$2:$R$365,15,0)="B3",1,1.1) ->  | V23: =VLOOKUP(C23,#REF!,6,0)*(VLOOKUP(D23,'Datos generales'!$D$2:$AA$365,23,0)/VLOOKUP(CONCATENATE("Illa Mallorca",C23),'Datos generales'!$D$2:$AA$443,23,0))*IF(VLOOKUP(D23,'Datos generales'!$D$2:$R$365,15,0)="B3",1,1.1) ->  | W23: =VLOOKUP($D23,#REF!,4,0) ->  | X23: =VLOOKUP(D23,'Datos generales'!$D$2:$T$365,17,0) -> 0 | Y23: =VLOOKUP(C23,#REF!,2,0)*(VLOOKUP(D23,'Datos generales'!$D$2:$AA$365,24,0)/VLOOKUP(CONCATENATE("Illa Mallorca",C23),'Datos generales'!$D$2:$AA$443,24,0))*IF(VLOOKUP(D23,'Datos generales'!$D$2:$R$365,15,0)="B3",1,1.1) ->  | Z23: =VLOOKUP(C23,#REF!,6,0)*(VLOOKUP(D23,'Datos generales'!$D$2:$AA$365,24,0)/VLOOKUP(CONCATENATE("Illa Mallorca",C23),'Datos generales'!$D$2:$AA$443,24,0))*IF(VLOOKUP(D23,'Datos generales'!$D$2:$R$365,15,0)="B3",1,1.1) ->  | AF23: =VLOOKUP(D23,'Datos generales'!$D$2:$M$365,8,0)*VLOOKUP(C23,#REF!,7,0) ->  | AG23: =VLOOKUP(D23,'Datos generales'!$D$2:$M$365,7,0)*VLOOKUP(C23,#REF!,6,0) -> 
A24: ='Datos generales'!A22 -> Alaior | B24: ='Datos generales'!B22 -> Menorca | C24: ='Datos generales'!C22 -> 2025 | D24: =CONCATENATE(A24,C24) -> Alaior2025 | E24: =VLOOKUP($D24,#REF!,5,0) ->  | S24: =VLOOKUP($D24,#REF!,7,0) ->  | T24: =VLOOKUP(D24,'Datos generales'!$D$2:$T$365,16,0) -> 0 | U24: =VLOOKUP(C24,#REF!,2,0)*(VLOOKUP(D24,'Datos generales'!$D$2:$AA$365,23,0)/VLOOKUP(CONCATENATE("Illa Mallorca",C24),'Datos generales'!$D$2:$AA$443,23,0))*IF(VLOOKUP(D24,'Datos generales'!$D$2:$R$365,15,0)="B3",1,1.1) ->  | V24: =VLOOKUP(C24,#REF!,6,0)*(VLOOKUP(D24,'Datos generales'!$D$2:$AA$365,23,0)/VLOOKUP(CONCATENATE("Illa Mallorca",C24),'Datos generales'!$D$2:$AA$443,23,0))*IF(VLOOKUP(D24,'Datos generales'!$D$2:$R$365,15,0)="B3",1,1.1) ->  | W24: =VLOOKUP($D24,#REF!,4,0) ->  | X24: =VLOOKUP(D24,'Datos generales'!$D$2:$T$365,17,0) -> 0 | Y24: =VLOOKUP(C24,#REF!,2,0)*(VLOOKUP(D24,'Datos generales'!$D$2:$AA$365,24,0)/VLOOKUP(CONCATENATE("Illa Mallorca",C24),'Datos generales'!$D$2:$AA$443,24,0))*IF(VLOOKUP(D24,'Datos generales'!$D$2:$R$365,15,0)="B3",1,1.1) ->  | Z24: =VLOOKUP(C24,#REF!,6,0)*(VLOOKUP(D24,'Datos generales'!$D$2:$AA$365,24,0)/VLOOKUP(CONCATENATE("Illa Mallorca",C24),'Datos generales'!$D$2:$AA$443,24,0))*IF(VLOOKUP(D24,'Datos generales'!$D$2:$R$365,15,0)="B3",1,1.1) ->  | AF24: =VLOOKUP(D24,'Datos generales'!$D$2:$M$365,8,0)*VLOOKUP(C24,#REF!,7,0) ->  | AG24: =VLOOKUP(D24,'Datos generales'!$D$2:$M$365,7,0)*VLOOKUP(C24,#REF!,6,0) -> 
A25: ='Datos generales'!A23 -> Alaior | B25: ='Datos generales'!B23 -> Menorca | C25: ='Datos generales'!C23 -> 2026 | D25: =CONCATENATE(A25,C25) -> Alaior2026 | E25: =VLOOKUP($D25,#REF!,5,0) ->  | S25: =VLOOKUP($D25,#REF!,7,0) ->  | T25: =VLOOKUP(D25,'Datos generales'!$D$2:$T$365,16,0) -> 0 | U25: =VLOOKUP(C25,#REF!,2,0)*(VLOOKUP(D25,'Datos generales'!$D$2:$AA$365,23,0)/VLOOKUP(CONCATENATE("Illa Mallorca",C25),'Datos generales'!$D$2:$AA$443,23,0))*IF(VLOOKUP(D25,'Datos generales'!$D$2:$R$365,15,0)="B3",1,1.1) ->  | V25: =VLOOKUP(C25,#REF!,6,0)*(VLOOKUP(D25,'Datos generales'!$D$2:$AA$365,23,0)/VLOOKUP(CONCATENATE("Illa Mallorca",C25),'Datos generales'!$D$2:$AA$443,23,0))*IF(VLOOKUP(D25,'Datos generales'!$D$2:$R$365,15,0)="B3",1,1.1) ->  | W25: =VLOOKUP($D25,#REF!,4,0) ->  | X25: =VLOOKUP(D25,'Datos generales'!$D$2:$T$365,17,0) -> 0 | Y25: =VLOOKUP(C25,#REF!,2,0)*(VLOOKUP(D25,'Datos generales'!$D$2:$AA$365,24,0)/VLOOKUP(CONCATENATE("Illa Mallorca",C25),'Datos generales'!$D$2:$AA$443,24,0))*IF(VLOOKUP(D25,'Datos generales'!$D$2:$R$365,15,0)="B3",1,1.1) ->  | Z25: =VLOOKUP(C25,#REF!,6,0)*(VLOOKUP(D25,'Datos generales'!$D$2:$AA$365,24,0)/VLOOKUP(CONCATENATE("Illa Mallorca",C25),'Datos generales'!$D$2:$AA$443,24,0))*IF(VLOOKUP(D25,'Datos generales'!$D$2:$R$365,15,0)="B3",1,1.1) ->  | AF25: =VLOOKUP(D25,'Datos generales'!$D$2:$M$365,8,0)*VLOOKUP(C25,#REF!,7,0) ->  | AG25: =VLOOKUP(D25,'Datos generales'!$D$2:$M$365,7,0)*VLOOKUP(C25,#REF!,6,0) -> 
A26: ='Datos generales'!A24 -> Alaior | B26: ='Datos generales'!B24 -> Menorca | C26: ='Datos generales'!C24 -> 2027 | D26: =CONCATENATE(A26,C26) -> Alaior2027 | E26: =VLOOKUP($D26,#REF!,5,0) ->  | S26: =VLOOKUP($D26,#REF!,7,0) ->  | T26: =VLOOKUP(D26,'Datos generales'!$D$2:$T$365,16,0) -> 0 | U26: =VLOOKUP(C26,#REF!,2,0)*(VLOOKUP(D26,'Datos generales'!$D$2:$AA$365,23,0)/VLOOKUP(CONCATENATE("Illa Mallorca",C26),'Datos generales'!$D$2:$AA$443,23,0))*IF(VLOOKUP(D26,'Datos generales'!$D$2:$R$365,15,0)="B3",1,1.1) ->  | V26: =VLOOKUP(C26,#REF!,6,0)*(VLOOKUP(D26,'Datos generales'!$D$2:$AA$365,23,0)/VLOOKUP(CONCATENATE("Illa Mallorca",C26),'Datos generales'!$D$2:$AA$443,23,0))*IF(VLOOKUP(D26,'Datos generales'!$D$2:$R$365,15,0)="B3",1,1.1) ->  | W26: =VLOOKUP($D26,#REF!,4,0) ->  | X26: =VLOOKUP(D26,'Datos generales'!$D$2:$T$365,17,0) -> 0 | Y26: =VLOOKUP(C26,#REF!,2,0)*(VLOOKUP(D26,'Datos generales'!$D$2:$AA$365,24,0)/VLOOKUP(CONCATENATE("Illa Mallorca",C26),'Datos generales'!$D$2:$AA$443,24,0))*IF(VLOOKUP(D26,'Datos generales'!$D$2:$R$365,15,0)="B3",1,1.1) ->  | Z26: =VLOOKUP(C26,#REF!,6,0)*(VLOOKUP(D26,'Datos generales'!$D$2:$AA$365,24,0)/VLOOKUP(CONCATENATE("Illa Mallorca",C26),'Datos generales'!$D$2:$AA$443,24,0))*IF(VLOOKUP(D26,'Datos generales'!$D$2:$R$365,15,0)="B3",1,1.1) ->  | AF26: =VLOOKUP(D26,'Datos generales'!$D$2:$M$365,8,0)*VLOOKUP(C26,#REF!,7,0) ->  | AG26: =VLOOKUP(D26,'Datos generales'!$D$2:$M$365,7,0)*VLOOKUP(C26,#REF!,6,0) -> 
A27: ='Datos generales'!A25 -> Alaior | B27: ='Datos generales'!B25 -> Menorca | C27: ='Datos generales'!C25 -> 2028 | D27: =CONCATENATE(A27,C27) -> Alaior2028 | E27: =VLOOKUP($D27,#REF!,5,0) ->  | S27: =VLOOKUP($D27,#REF!,7,0) ->  | T27: =VLOOKUP(D27,'Datos generales'!$D$2:$T$365,16,0) -> 0 | U27: =VLOOKUP(C27,#REF!,2,0)*(VLOOKUP(D27,'Datos generales'!$D$2:$AA$365,23,0)/VLOOKUP(CONCATENATE("Illa Mallorca",C27),'Datos generales'!$D$2:$AA$443,23,0))*IF(VLOOKUP(D27,'Datos generales'!$D$2:$R$365,15,0)="B3",1,1.1) ->  | V27: =VLOOKUP(C27,#REF!,6,0)*(VLOOKUP(D27,'Datos generales'!$D$2:$AA$365,23,0)/VLOOKUP(CONCATENATE("Illa Mallorca",C27),'Datos generales'!$D$2:$AA$443,23,0))*IF(VLOOKUP(D27,'Datos generales'!$D$2:$R$365,15,0)="B3",1,1.1) ->  | W27: =VLOOKUP($D27,#REF!,4,0) ->  | X27: =VLOOKUP(D27,'Datos generales'!$D$2:$T$365,17,0) -> 0 | Y27: =VLOOKUP(C27,#REF!,2,0)*(VLOOKUP(D27,'Datos generales'!$D$2:$AA$365,24,0)/VLOOKUP(CONCATENATE("Illa Mallorca",C27),'Datos generales'!$D$2:$AA$443,24,0))*IF(VLOOKUP(D27,'Datos generales'!$D$2:$R$365,15,0)="B3",1,1.1) ->  | Z27: =VLOOKUP(C27,#REF!,6,0)*(VLOOKUP(D27,'Datos generales'!$D$2:$AA$365,24,0)/VLOOKUP(CONCATENATE("Illa Mallorca",C27),'Datos generales'!$D$2:$AA$443,24,0))*IF(VLOOKUP(D27,'Datos generales'!$D$2:$R$365,15,0)="B3",1,1.1) ->  | AF27: =VLOOKUP(D27,'Datos generales'!$D$2:$M$365,8,0)*VLOOKUP(C27,#REF!,7,0) ->  | AG27: =VLOOKUP(D27,'Datos generales'!$D$2:$M$365,7,0)*VLOOKUP(C27,#REF!,6,0) -> 
A28: ='Datos generales'!A26 -> Alaior | B28: ='Datos generales'!B26 -> Menorca | C28: ='Datos generales'!C26 -> 2029 | D28: =CONCATENATE(A28,C28) -> Alaior2029 | E28: =VLOOKUP($D28,#REF!,5,0) ->  | S28: =VLOOKUP($D28,#REF!,7,0) ->  | T28: =VLOOKUP(D28,'Datos generales'!$D$2:$T$365,16,0) -> 0 | U28: =VLOOKUP(C28,#REF!,2,0)*(VLOOKUP(D28,'Datos generales'!$D$2:$AA$365,23,0)/VLOOKUP(CONCATENATE("Illa Mallorca",C28),'Datos generales'!$D$2:$AA$443,23,0))*IF(VLOOKUP(D28,'Datos generales'!$D$2:$R$365,15,0)="B3",1,1.1) ->  | V28: =VLOOKUP(C28,#REF!,6,0)*(VLOOKUP(D28,'Datos generales'!$D$2:$AA$365,23,0)/VLOOKUP(CONCATENATE("Illa Mallorca",C28),'Datos generales'!$D$2:$AA$443,23,0))*IF(VLOOKUP(D28,'Datos generales'!$D$2:$R$365,15,0)="B3",1,1.1) ->  | W28: =VLOOKUP($D28,#REF!,4,0) ->  | X28: =VLOOKUP(D28,'Datos generales'!$D$2:$T$365,17,0) -> 0 | Y28: =VLOOKUP(C28,#REF!,2,0)*(VLOOKUP(D28,'Datos generales'!$D$2:$AA$365,24,0)/VLOOKUP(CONCATENATE("Illa Mallorca",C28),'Datos generales'!$D$2:$AA$443,24,0))*IF(VLOOKUP(D28,'Datos generales'!$D$2:$R$365,15,0)="B3",1,1.1) ->  | Z28: =VLOOKUP(C28,#REF!,6,0)*(VLOOKUP(D28,'Datos generales'!$D$2:$AA$365,24,0)/VLOOKUP(CONCATENATE("Illa Mallorca",C28),'Datos generales'!$D$2:$AA$443,24,0))*IF(VLOOKUP(D28,'Datos generales'!$D$2:$R$365,15,0)="B3",1,1.1) ->  | AF28: =VLOOKUP(D28,'Datos generales'!$D$2:$M$365,8,0)*VLOOKUP(C28,#REF!,7,0) ->  | AG28: =VLOOKUP(D28,'Datos generales'!$D$2:$M$365,7,0)*VLOOKUP(C28,#REF!,6,0) -> 
A29: ='Datos generales'!A27 -> Alaior | B29: ='Datos generales'!B27 -> Menorca | C29: ='Datos generales'!C27 -> 2030 | D29: =CONCATENATE(A29,C29) -> Alaior2030 | E29: =VLOOKUP($D29,#REF!,5,0) ->  | S29: =VLOOKUP($D29,#REF!,7,0) ->  | T29: =VLOOKUP(D29,'Datos generales'!$D$2:$T$365,16,0) -> 0 | U29: =VLOOKUP(C29,#REF!,2,0)*(VLOOKUP(D29,'Datos generales'!$D$2:$AA$365,23,0)/VLOOKUP(CONCATENATE("Illa Mallorca",C29),'Datos generales'!$D$2:$AA$443,23,0))*IF(VLOOKUP(D29,'Datos generales'!$D$2:$R$365,15,0)="B3",1,1.1) ->  | V29: =VLOOKUP(C29,#REF!,6,0)*(VLOOKUP(D29,'Datos generales'!$D$2:$AA$365,23,0)/VLOOKUP(CONCATENATE("Illa Mallorca",C29),'Datos generales'!$D$2:$AA$443,23,0))*IF(VLOOKUP(D29,'Datos generales'!$D$2:$R$365,15,0)="B3",1,1.1) ->  | W29: =VLOOKUP($D29,#REF!,4,0) ->  | X29: =VLOOKUP(D29,'Datos generales'!$D$2:$T$365,17,0) -> 0 | Y29: =VLOOKUP(C29,#REF!,2,0)*(VLOOKUP(D29,'Datos generales'!$D$2:$AA$365,24,0)/VLOOKUP(CONCATENATE("Illa Mallorca",C29),'Datos generales'!$D$2:$AA$443,24,0))*IF(VLOOKUP(D29,'Datos generales'!$D$2:$R$365,15,0)="B3",1,1.1) ->  | Z29: =VLOOKUP(C29,#REF!,6,0)*(VLOOKUP(D29,'Datos generales'!$D$2:$AA$365,24,0)/VLOOKUP(CONCATENATE("Illa Mallorca",C29),'Datos generales'!$D$2:$AA$443,24,0))*IF(VLOOKUP(D29,'Datos generales'!$D$2:$R$365,15,0)="B3",1,1.1) ->  | AF29: =VLOOKUP(D29,'Datos generales'!$D$2:$M$365,8,0)*VLOOKUP(C29,#REF!,7,0) ->  | AG29: =VLOOKUP(D29,'Datos generales'!$D$2:$M$365,7,0)*VLOOKUP(C29,#REF!,6,0) ->  | AH29: =VLOOKUP(A29,#REF!,8,0) -> 
A30: ='Datos generales'!A28 -> Ciutadella | B30: ='Datos generales'!B28 -> Menorca | C30: ='Datos generales'!C28 -> 2005 | D30: =CONCATENATE(A30,C30) -> Ciutadella2005
A31: ='Datos generales'!A29 -> Ciutadella | B31: ='Datos generales'!B29 -> Menorca | C31: ='Datos generales'!C29 -> 2006 | D31: =CONCATENATE(A31,C31) -> Ciutadella2006
A32: ='Datos generales'!A30 -> Ciutadella | B32: ='Datos generales'!B30 -> Menorca | C32: ='Datos generales'!C30 -> 2007 | D32: =CONCATENATE(A32,C32) -> Ciutadella2007
A33: ='Datos generales'!A31 -> Ciutadella | B33: ='Datos generales'!B31 -> Menorca | C33: ='Datos generales'!C31 -> 2008 | D33: =CONCATENATE(A33,C33) -> Ciutadella2008
A34: ='Datos generales'!A32 -> Ciutadella | B34: ='Datos generales'!B32 -> Menorca | C34: ='Datos generales'!C32 -> 2009 | D34: =CONCATENATE(A34,C34) -> Ciutadella2009
A35: ='Datos generales'!A33 -> Ciutadella | B35: ='Datos generales'!B33 -> Menorca | C35: ='Datos generales'!C33 -> 2010 | D35: =CONCATENATE(A35,C35) -> Ciutadella2010
A36: ='Datos generales'!A34 -> Ciutadella | B36: ='Datos generales'!B34 -> Menorca | C36: ='Datos generales'!C34 -> 2011 | D36: =CONCATENATE(A36,C36) -> Ciutadella2011
A37: ='Datos generales'!A35 -> Ciutadella | B37: ='Datos generales'!B35 -> Menorca | C37: ='Datos generales'!C35 -> 2012 | D37: =CONCATENATE(A37,C37) -> Ciutadella2012
A38: ='Datos generales'!A36 -> Ciutadella | B38: ='Datos generales'!B36 -> Menorca | C38: ='Datos generales'!C36 -> 2013 | D38: =CONCATENATE(A38,C38) -> Ciutadella2013
A39: ='Datos generales'!A37 -> Ciutadella | B39: ='Datos generales'!B37 -> Menorca | C39: ='Datos generales'!C37 -> 2014 | D39: =CONCATENATE(A39,C39) -> Ciutadella2014
A40: ='Datos generales'!A38 -> Ciutadella | B40: ='Datos generales'!B38 -> Menorca | C40: ='Datos generales'!C38 -> 2015 | D40: =CONCATENATE(A40,C40) -> Ciutadella2015
A41: ='Datos generales'!A39 -> Ciutadella | B41: ='Datos generales'!B39 -> Menorca | C41: ='Datos generales'!C39 -> 2016 | D41: =CONCATENATE(A41,C41) -> Ciutadella2016
A42: ='Datos generales'!A40 -> Ciutadella | B42: ='Datos generales'!B40 -> Menorca | C42: ='Datos generales'!C40 -> 2017 | D42: =CONCATENATE(A42,C42) -> Ciutadella2017
A43: ='Datos generales'!A41 -> Ciutadella | B43: ='Datos generales'!B41 -> Menorca | C43: ='Datos generales'!C41 -> 2018 | D43: =CONCATENATE(A43,C43) -> Ciutadella2018
A44: ='Datos generales'!A42 -> Ciutadella | B44: ='Datos generales'!B42 -> Menorca | C44: ='Datos generales'!C42 -> 2019 | D44: =CONCATENATE(A44,C44) -> Ciutadella2019
A45: ='Datos generales'!A43 -> Ciutadella | B45: ='Datos generales'!B43 -> Menorca | C45: ='Datos generales'!C43 -> 2020 | D45: =CONCATENATE(A45,C45) -> Ciutadella2020
A46: ='Datos generales'!A44 -> Ciutadella | B46: ='Datos generales'!B44 -> Menorca | C46: ='Datos generales'!C44 -> 2021 | D46: =CONCATENATE(A46,C46) -> Ciutadella2021 | E46: =7010+1547400+5631300 -> 7185710 | F46: 0 | G46: =172500/13.1 -> 13167.93893 | H46: 688700 | I46: 835611 | K46: 214300 | L46: =1849500-H46 -> 1160800 | P46: 0 | S46: =VLOOKUP($D46,#REF!,9,0) ->  | T46: =VLOOKUP(D46,'Datos generales'!$D$2:$T$365,16,0) -> 0 | U46: =VLOOKUP(C46,#REF!,2,0)*(VLOOKUP(D46,'Datos generales'!$D$2:$AA$365,23,0)/VLOOKUP(CONCATENATE("Illa Mallorca",C46),'Datos generales'!$D$2:$AA$443,23,0))*IF(VLOOKUP(D46,'Datos generales'!$D$2:$R$365,15,0)="B3",1,1.1) ->  | V46: =VLOOKUP(C46,#REF!,6,0)*(VLOOKUP(D46,'Datos generales'!$D$2:$AA$365,23,0)/VLOOKUP(CONCATENATE("Illa Mallorca",C46),'Datos generales'!$D$2:$AA$443,23,0))*IF(VLOOKUP(D46,'Datos generales'!$D$2:$R$365,15,0)="B3",1,1.1) ->  | W46: =VLOOKUP($D46,#REF!,2,0) ->  | X46: =VLOOKUP(D46,'Datos generales'!$D$2:$T$365,17,0) -> 0 | Y46: =VLOOKUP(C46,#REF!,2,0)*(VLOOKUP(D46,'Datos generales'!$D$2:$AA$365,24,0)/VLOOKUP(CONCATENATE("Illa Mallorca",C46),'Datos generales'!$D$2:$AA$443,24,0))*IF(VLOOKUP(D46,'Datos generales'!$D$2:$R$365,15,0)="B3",1,1.1) ->  | Z46: =VLOOKUP(C46,#REF!,6,0)*(VLOOKUP(D46,'Datos generales'!$D$2:$AA$365,24,0)/VLOOKUP(CONCATENATE("Illa Mallorca",C46),'Datos generales'!$D$2:$AA$443,24,0))*IF(VLOOKUP(D46,'Datos generales'!$D$2:$R$365,15,0)="B3",1,1.1) ->  | AF46: =VLOOKUP(D46,'Datos generales'!$D$2:$M$365,8,0)*VLOOKUP(C46,#REF!,7,0) ->  | AG46: =VLOOKUP(D46,'Datos generales'!$D$2:$M$365,7,0)*VLOOKUP(C46,#REF!,6,0) ->  | AH46: 11800
A47: ='Datos generales'!A45 -> Ciutadella | B47: ='Datos generales'!B45 -> Menorca | C47: ='Datos generales'!C45 -> 2022 | D47: =CONCATENATE(A47,C47) -> Ciutadella2022 | E47: =7010+1434100+6282400 -> 7723510 | F47: 0 | G47: =172500/13.1 -> 13167.93893 | H47: 688700 | I47: 1043648 | K47: 347000 | L47: =2023200-H47 -> 1334500 | P47: 0 | S47: =VLOOKUP($D47,#REF!,9,0) ->  | T47: =VLOOKUP(D47,'Datos generales'!$D$2:$T$365,16,0) -> 0 | U47: =VLOOKUP(C47,#REF!,2,0)*(VLOOKUP(D47,'Datos generales'!$D$2:$AA$365,23,0)/VLOOKUP(CONCATENATE("Illa Mallorca",C47),'Datos generales'!$D$2:$AA$443,23,0))*IF(VLOOKUP(D47,'Datos generales'!$D$2:$R$365,15,0)="B3",1,1.1) ->  | V47: =VLOOKUP(C47,#REF!,6,0)*(VLOOKUP(D47,'Datos generales'!$D$2:$AA$365,23,0)/VLOOKUP(CONCATENATE("Illa Mallorca",C47),'Datos generales'!$D$2:$AA$443,23,0))*IF(VLOOKUP(D47,'Datos generales'!$D$2:$R$365,15,0)="B3",1,1.1) ->  | W47: =VLOOKUP($D47,#REF!,2,0) ->  | X47: =VLOOKUP(D47,'Datos generales'!$D$2:$T$365,17,0) -> 0 | Y47: =VLOOKUP(C47,#REF!,2,0)*(VLOOKUP(D47,'Datos generales'!$D$2:$AA$365,24,0)/VLOOKUP(CONCATENATE("Illa Mallorca",C47),'Datos generales'!$D$2:$AA$443,24,0))*IF(VLOOKUP(D47,'Datos generales'!$D$2:$R$365,15,0)="B3",1,1.1) ->  | Z47: =VLOOKUP(C47,#REF!,6,0)*(VLOOKUP(D47,'Datos generales'!$D$2:$AA$365,24,0)/VLOOKUP(CONCATENATE("Illa Mallorca",C47),'Datos generales'!$D$2:$AA$443,24,0))*IF(VLOOKUP(D47,'Datos generales'!$D$2:$R$365,15,0)="B3",1,1.1) ->  | AF47: =VLOOKUP(D47,'Datos generales'!$D$2:$M$365,8,0)*VLOOKUP(C47,#REF!,7,0) ->  | AG47: =VLOOKUP(D47,'Datos generales'!$D$2:$M$365,7,0)*VLOOKUP(C47,#REF!,6,0) ->  | AH47: 11800
A48: ='Datos generales'!A46 -> Ciutadella | B48: ='Datos generales'!B46 -> Menorca | C48: ='Datos generales'!C46 -> 2023 | D48: =CONCATENATE(A48,C48) -> Ciutadella2023 | E48: =7010+1483400+6378200 -> 7868610 | F48: 0 | G48: =172500/13.1 -> 13167.93893 | H48: 688700 | I48: 854374 | K48: 347000 | L48: =2023200-H48 -> 1334500 | P48: 0 | S48: =VLOOKUP($D48,#REF!,9,0) ->  | T48: =VLOOKUP(D48,'Datos generales'!$D$2:$T$365,16,0) -> 0 | U48: =VLOOKUP(C48,#REF!,2,0)*(VLOOKUP(D48,'Datos generales'!$D$2:$AA$365,23,0)/VLOOKUP(CONCATENATE("Illa Mallorca",C48),'Datos generales'!$D$2:$AA$443,23,0))*IF(VLOOKUP(D48,'Datos generales'!$D$2:$R$365,15,0)="B3",1,1.1) ->  | V48: =VLOOKUP(C48,#REF!,6,0)*(VLOOKUP(D48,'Datos generales'!$D$2:$AA$365,23,0)/VLOOKUP(CONCATENATE("Illa Mallorca",C48),'Datos generales'!$D$2:$AA$443,23,0))*IF(VLOOKUP(D48,'Datos generales'!$D$2:$R$365,15,0)="B3",1,1.1) ->  | W48: =VLOOKUP($D48,#REF!,2,0) ->  | X48: =VLOOKUP(D48,'Datos generales'!$D$2:$T$365,17,0) -> 0 | Y48: =VLOOKUP(C48,#REF!,2,0)*(VLOOKUP(D48,'Datos generales'!$D$2:$AA$365,24,0)/VLOOKUP(CONCATENATE("Illa Mallorca",C48),'Datos generales'!$D$2:$AA$443,24,0))*IF(VLOOKUP(D48,'Datos generales'!$D$2:$R$365,15,0)="B3",1,1.1) ->  | Z48: =VLOOKUP(C48,#REF!,6,0)*(VLOOKUP(D48,'Datos generales'!$D$2:$AA$365,24,0)/VLOOKUP(CONCATENATE("Illa Mallorca",C48),'Datos generales'!$D$2:$AA$443,24,0))*IF(VLOOKUP(D48,'Datos generales'!$D$2:$R$365,15,0)="B3",1,1.1) ->  | AF48: =VLOOKUP(D48,'Datos generales'!$D$2:$M$365,8,0)*VLOOKUP(C48,#REF!,7,0) ->  | AG48: =VLOOKUP(D48,'Datos generales'!$D$2:$M$365,7,0)*VLOOKUP(C48,#REF!,6,0) ->  | AH48: 11800
A49: ='Datos generales'!A47 -> Ciutadella | B49: ='Datos generales'!B47 -> Menorca | C49: ='Datos generales'!C47 -> 2024 | D49: =CONCATENATE(A49,C49) -> Ciutadella2024 | E49: =7010+1473900+6693800 -> 8174710 | F49: 0 | G49: =172500/13.1 -> 13167.93893 | H49: 688700 | I49: 1037840 | K49: 347000 | L49: =2023200-H49 -> 1334500 | P49: 0 | S49: =VLOOKUP($D49,#REF!,9,0) ->  | T49: =VLOOKUP(D49,'Datos generales'!$D$2:$T$365,16,0) -> 0 | U49: =VLOOKUP(C49,#REF!,2,0)*(VLOOKUP(D49,'Datos generales'!$D$2:$AA$365,23,0)/VLOOKUP(CONCATENATE("Illa Mallorca",C49),'Datos generales'!$D$2:$AA$443,23,0))*IF(VLOOKUP(D49,'Datos generales'!$D$2:$R$365,15,0)="B3",1,1.1) ->  | V49: =VLOOKUP(C49,#REF!,6,0)*(VLOOKUP(D49,'Datos generales'!$D$2:$AA$365,23,0)/VLOOKUP(CONCATENATE("Illa Mallorca",C49),'Datos generales'!$D$2:$AA$443,23,0))*IF(VLOOKUP(D49,'Datos generales'!$D$2:$R$365,15,0)="B3",1,1.1) ->  | W49: =VLOOKUP($D49,#REF!,2,0) ->  | X49: =VLOOKUP(D49,'Datos generales'!$D$2:$T$365,17,0) -> 0 | Y49: =VLOOKUP(C49,#REF!,2,0)*(VLOOKUP(D49,'Datos generales'!$D$2:$AA$365,24,0)/VLOOKUP(CONCATENATE("Illa Mallorca",C49),'Datos generales'!$D$2:$AA$443,24,0))*IF(VLOOKUP(D49,'Datos generales'!$D$2:$R$365,15,0)="B3",1,1.1) ->  | Z49: =VLOOKUP(C49,#REF!,6,0)*(VLOOKUP(D49,'Datos generales'!$D$2:$AA$365,24,0)/VLOOKUP(CONCATENATE("Illa Mallorca",C49),'Datos generales'!$D$2:$AA$443,24,0))*IF(VLOOKUP(D49,'Datos generales'!$D$2:$R$365,15,0)="B3",1,1.1) ->  | AF49: =VLOOKUP(D49,'Datos generales'!$D$2:$M$365,8,0)*VLOOKUP(C49,#REF!,7,0) ->  | AG49: =VLOOKUP(D49,'Datos generales'!$D$2:$M$365,7,0)*VLOOKUP(C49,#REF!,6,0) ->  | AH49: 33900
A50: ='Datos generales'!A48 -> Ciutadella | B50: ='Datos generales'!B48 -> Menorca | C50: ='Datos generales'!C48 -> 2025 | D50: =CONCATENATE(A50,C50) -> Ciutadella2025 | E50: =7010+1419500+6891800 -> 8318310 | F50: 0 | G50: =172500/13.1 -> 13167.93893 | H50: =(65334/#REF!)*'Factores de conversión'!$B$4 ->  | I50: 963455 | K50: 347000 | L50: =2023200-H49 -> 1334500 | P50: 0 | S50: =VLOOKUP($D50,#REF!,9,0) ->  | T50: =VLOOKUP(D50,'Datos generales'!$D$2:$T$365,16,0) -> 0 | U50: =VLOOKUP(C50,#REF!,2,0)*(VLOOKUP(D50,'Datos generales'!$D$2:$AA$365,23,0)/VLOOKUP(CONCATENATE("Illa Mallorca",C50),'Datos generales'!$D$2:$AA$443,23,0))*IF(VLOOKUP(D50,'Datos generales'!$D$2:$R$365,15,0)="B3",1,1.1) ->  | V50: =VLOOKUP(C50,#REF!,6,0)*(VLOOKUP(D50,'Datos generales'!$D$2:$AA$365,23,0)/VLOOKUP(CONCATENATE("Illa Mallorca",C50),'Datos generales'!$D$2:$AA$443,23,0))*IF(VLOOKUP(D50,'Datos generales'!$D$2:$R$365,15,0)="B3",1,1.1) ->  | W50: =VLOOKUP($D50,#REF!,2,0) ->  | X50: =VLOOKUP(D50,'Datos generales'!$D$2:$T$365,17,0) -> 0 | Y50: =VLOOKUP(C50,#REF!,2,0)*(VLOOKUP(D50,'Datos generales'!$D$2:$AA$365,24,0)/VLOOKUP(CONCATENATE("Illa Mallorca",C50),'Datos generales'!$D$2:$AA$443,24,0))*IF(VLOOKUP(D50,'Datos generales'!$D$2:$R$365,15,0)="B3",1,1.1) ->  | Z50: =VLOOKUP(C50,#REF!,6,0)*(VLOOKUP(D50,'Datos generales'!$D$2:$AA$365,24,0)/VLOOKUP(CONCATENATE("Illa Mallorca",C50),'Datos generales'!$D$2:$AA$443,24,0))*IF(VLOOKUP(D50,'Datos generales'!$D$2:$R$365,15,0)="B3",1,1.1) ->  | AF50: =VLOOKUP(D50,'Datos generales'!$D$2:$M$365,8,0)*VLOOKUP(C50,#REF!,7,0) ->  | AG50: =VLOOKUP(D50,'Datos generales'!$D$2:$M$365,7,0)*VLOOKUP(C50,#REF!,6,0) ->  | AH50: 78100
A51: ='Datos generales'!A49 -> Ciutadella | B51: ='Datos generales'!B49 -> Menorca | C51: ='Datos generales'!C49 -> 2026 | D51: =CONCATENATE(A51,C51) -> Ciutadella2026 | E51: =7010+1350900+4016300 -> 5374210 | F51: 0 | G51: =172500/13.1 -> 13167.93893 | H51: =(73953/#REF!)*'Factores de conversión'!$B$4 ->  | I51: 813533 | K51: 347000 | L51: =2060100-H49 -> 1371400 | P51: 0 | S51: =VLOOKUP($D51,#REF!,7,0) ->  | T51: =VLOOKUP(D51,'Datos generales'!$D$2:$T$365,16,0) -> 0 | U51: =VLOOKUP(C51,#REF!,2,0)*(VLOOKUP(D51,'Datos generales'!$D$2:$AA$365,23,0)/VLOOKUP(CONCATENATE("Illa Mallorca",C51),'Datos generales'!$D$2:$AA$443,23,0))*IF(VLOOKUP(D51,'Datos generales'!$D$2:$R$365,15,0)="B3",1,1.1) ->  | V51: =VLOOKUP(C51,#REF!,6,0)*(VLOOKUP(D51,'Datos generales'!$D$2:$AA$365,23,0)/VLOOKUP(CONCATENATE("Illa Mallorca",C51),'Datos generales'!$D$2:$AA$443,23,0))*IF(VLOOKUP(D51,'Datos generales'!$D$2:$R$365,15,0)="B3",1,1.1) ->  | W51: =VLOOKUP($D51,#REF!,4,0) ->  | X51: =VLOOKUP(D51,'Datos generales'!$D$2:$T$365,17,0) -> 0 | Y51: =VLOOKUP(C51,#REF!,2,0)*(VLOOKUP(D51,'Datos generales'!$D$2:$AA$365,24,0)/VLOOKUP(CONCATENATE("Illa Mallorca",C51),'Datos generales'!$D$2:$AA$443,24,0))*IF(VLOOKUP(D51,'Datos generales'!$D$2:$R$365,15,0)="B3",1,1.1) ->  | Z51: =VLOOKUP(C51,#REF!,6,0)*(VLOOKUP(D51,'Datos generales'!$D$2:$AA$365,24,0)/VLOOKUP(CONCATENATE("Illa Mallorca",C51),'Datos generales'!$D$2:$AA$443,24,0))*IF(VLOOKUP(D51,'Datos generales'!$D$2:$R$365,15,0)="B3",1,1.1) ->  | AF51: =VLOOKUP(D51,'Datos generales'!$D$2:$M$365,8,0)*VLOOKUP(C51,#REF!,7,0) ->  | AG51: =VLOOKUP(D51,'Datos generales'!$D$2:$M$365,7,0)*VLOOKUP(C51,#REF!,6,0) ->  | AH51: 78100
A52: ='Datos generales'!A50 -> Ciutadella | B52: ='Datos generales'!B50 -> Menorca | C52: ='Datos generales'!C50 -> 2027 | D52: =CONCATENATE(A52,C52) -> Ciutadella2027 | E52: =VLOOKUP($D52,#REF!,5,0) ->  | F52: 0 | G52: =172500/13.1 -> 13167.93893 | H52: =(80568/#REF!)*'Factores de conversión'!$B$4 ->  | I52: 1140083.019 | K52: 364350 | L52: 1439970 | P52: 0 | S52: =VLOOKUP($D52,#REF!,7,0) ->  | T52: =VLOOKUP(D52,'Datos generales'!$D$2:$T$365,16,0) -> 0 | U52: =VLOOKUP(C52,#REF!,2,0)*(VLOOKUP(D52,'Datos generales'!$D$2:$AA$365,23,0)/VLOOKUP(CONCATENATE("Illa Mallorca",C52),'Datos generales'!$D$2:$AA$443,23,0))*IF(VLOOKUP(D52,'Datos generales'!$D$2:$R$365,15,0)="B3",1,1.1) ->  | V52: =VLOOKUP(C52,#REF!,6,0)*(VLOOKUP(D52,'Datos generales'!$D$2:$AA$365,23,0)/VLOOKUP(CONCATENATE("Illa Mallorca",C52),'Datos generales'!$D$2:$AA$443,23,0))*IF(VLOOKUP(D52,'Datos generales'!$D$2:$R$365,15,0)="B3",1,1.1) ->  | W52: =VLOOKUP($D52,#REF!,4,0) ->  | X52: =VLOOKUP(D52,'Datos generales'!$D$2:$T$365,17,0) -> 0 | Y52: =VLOOKUP(C52,#REF!,2,0)*(VLOOKUP(D52,'Datos generales'!$D$2:$AA$365,24,0)/VLOOKUP(CONCATENATE("Illa Mallorca",C52),'Datos generales'!$D$2:$AA$443,24,0))*IF(VLOOKUP(D52,'Datos generales'!$D$2:$R$365,15,0)="B3",1,1.1) ->  | Z52: =VLOOKUP(C52,#REF!,6,0)*(VLOOKUP(D52,'Datos generales'!$D$2:$AA$365,24,0)/VLOOKUP(CONCATENATE("Illa Mallorca",C52),'Datos generales'!$D$2:$AA$443,24,0))*IF(VLOOKUP(D52,'Datos generales'!$D$2:$R$365,15,0)="B3",1,1.1) ->  | AF52: =VLOOKUP(D52,'Datos generales'!$D$2:$M$365,8,0)*VLOOKUP(C52,#REF!,7,0) ->  | AG52: =VLOOKUP(D52,'Datos generales'!$D$2:$M$365,7,0)*VLOOKUP(C52,#REF!,6,0) ->  | AH52: =AH53 -> 0
A53: ='Datos generales'!A51 -> Ciutadella | B53: ='Datos generales'!B51 -> Menorca | C53: ='Datos generales'!C51 -> 2028 | D53: =CONCATENATE(A53,C53) -> Ciutadella2028 | E53: =VLOOKUP($D53,#REF!,5,0) ->  | F53: 0 | G53: =172500/13.1 -> 13167.93893 | H53: =(86969/#REF!)*'Factores de conversión'!$B$4 ->  | I53: 1093798.94 | K53: 327915 | L53: 1295973 | P53: 0 | S53: =VLOOKUP($D53,#REF!,7,0) ->  | T53: =VLOOKUP(D53,'Datos generales'!$D$2:$T$365,16,0) -> 0 | U53: =VLOOKUP(C53,#REF!,2,0)*(VLOOKUP(D53,'Datos generales'!$D$2:$AA$365,23,0)/VLOOKUP(CONCATENATE("Illa Mallorca",C53),'Datos generales'!$D$2:$AA$443,23,0))*IF(VLOOKUP(D53,'Datos generales'!$D$2:$R$365,15,0)="B3",1,1.1) ->  | V53: =VLOOKUP(C53,#REF!,6,0)*(VLOOKUP(D53,'Datos generales'!$D$2:$AA$365,23,0)/VLOOKUP(CONCATENATE("Illa Mallorca",C53),'Datos generales'!$D$2:$AA$443,23,0))*IF(VLOOKUP(D53,'Datos generales'!$D$2:$R$365,15,0)="B3",1,1.1) ->  | W53: =VLOOKUP($D53,#REF!,4,0) ->  | X53: =VLOOKUP(D53,'Datos generales'!$D$2:$T$365,17,0) -> 0 | Y53: =VLOOKUP(C53,#REF!,2,0)*(VLOOKUP(D53,'Datos generales'!$D$2:$AA$365,24,0)/VLOOKUP(CONCATENATE("Illa Mallorca",C53),'Datos generales'!$D$2:$AA$443,24,0))*IF(VLOOKUP(D53,'Datos generales'!$D$2:$R$365,15,0)="B3",1,1.1) ->  | Z53: =VLOOKUP(C53,#REF!,6,0)*(VLOOKUP(D53,'Datos generales'!$D$2:$AA$365,24,0)/VLOOKUP(CONCATENATE("Illa Mallorca",C53),'Datos generales'!$D$2:$AA$443,24,0))*IF(VLOOKUP(D53,'Datos generales'!$D$2:$R$365,15,0)="B3",1,1.1) ->  | AF53: =VLOOKUP(D53,'Datos generales'!$D$2:$M$365,8,0)*VLOOKUP(C53,#REF!,7,0) ->  | AG53: =VLOOKUP(D53,'Datos generales'!$D$2:$M$365,7,0)*VLOOKUP(C53,#REF!,6,0) ->  | AH53: =AH54 -> 0
A54: ='Datos generales'!A52 -> Ciutadella | B54: ='Datos generales'!B52 -> Menorca | C54: ='Datos generales'!C52 -> 2029 | D54: =CONCATENATE(A54,C54) -> Ciutadella2029 | E54: =VLOOKUP($D54,#REF!,5,0) ->  | F54: 0 | G54: =172500/13.1 -> 13167.93893 | H54: =(90510/#REF!)*'Factores de conversión'!$B$4 ->  | I54: 1372284.787 | K54: 334473.3 | L54: 1321892.46 | P54: 0 | S54: =VLOOKUP($D54,#REF!,7,0) ->  | T54: =VLOOKUP(D54,'Datos generales'!$D$2:$T$365,16,0) -> 0 | U54: =VLOOKUP(C54,#REF!,2,0)*(VLOOKUP(D54,'Datos generales'!$D$2:$AA$365,23,0)/VLOOKUP(CONCATENATE("Illa Mallorca",C54),'Datos generales'!$D$2:$AA$443,23,0))*IF(VLOOKUP(D54,'Datos generales'!$D$2:$R$365,15,0)="B3",1,1.1) ->  | V54: =VLOOKUP(C54,#REF!,6,0)*(VLOOKUP(D54,'Datos generales'!$D$2:$AA$365,23,0)/VLOOKUP(CONCATENATE("Illa Mallorca",C54),'Datos generales'!$D$2:$AA$443,23,0))*IF(VLOOKUP(D54,'Datos generales'!$D$2:$R$365,15,0)="B3",1,1.1) ->  | W54: =VLOOKUP($D54,#REF!,4,0) ->  | X54: =VLOOKUP(D54,'Datos generales'!$D$2:$T$365,17,0) -> 0 | Y54: =VLOOKUP(C54,#REF!,2,0)*(VLOOKUP(D54,'Datos generales'!$D$2:$AA$365,24,0)/VLOOKUP(CONCATENATE("Illa Mallorca",C54),'Datos generales'!$D$2:$AA$443,24,0))*IF(VLOOKUP(D54,'Datos generales'!$D$2:$R$365,15,0)="B3",1,1.1) ->  | Z54: =VLOOKUP(C54,#REF!,6,0)*(VLOOKUP(D54,'Datos generales'!$D$2:$AA$365,24,0)/VLOOKUP(CONCATENATE("Illa Mallorca",C54),'Datos generales'!$D$2:$AA$443,24,0))*IF(VLOOKUP(D54,'Datos generales'!$D$2:$R$365,15,0)="B3",1,1.1) ->  | AF54: =VLOOKUP(D54,'Datos generales'!$D$2:$M$365,8,0)*VLOOKUP(C54,#REF!,7,0) ->  | AG54: =VLOOKUP(D54,'Datos generales'!$D$2:$M$365,7,0)*VLOOKUP(C54,#REF!,6,0) ->  | AH54: =AH55 -> 0
A55: ='Datos generales'!A53 -> Ciutadella | B55: ='Datos generales'!B53 -> Menorca | C55: ='Datos generales'!C53 -> 2030 | D55: =CONCATENATE(A55,C55) -> Ciutadella2030 | E55: =VLOOKUP($D55,#REF!,5,0) ->  | F55: 0 | G55: =172500/13.1 -> 13167.93893 | H55: =(85258/#REF!)*'Factores de conversión'!$B$4 ->  | I55: 1221336.842 | K55: 260889.174 | L55: 1031076.119 | P55: 0 | S55: =VLOOKUP($D55,#REF!,7,0) ->  | T55: =VLOOKUP(D55,'Datos generales'!$D$2:$T$365,16,0) -> 0 | U55: =VLOOKUP(C55,#REF!,2,0)*(VLOOKUP(D55,'Datos generales'!$D$2:$AA$365,23,0)/VLOOKUP(CONCATENATE("Illa Mallorca",C55),'Datos generales'!$D$2:$AA$443,23,0))*IF(VLOOKUP(D55,'Datos generales'!$D$2:$R$365,15,0)="B3",1,1.1) ->  | V55: =VLOOKUP(C55,#REF!,6,0)*(VLOOKUP(D55,'Datos generales'!$D$2:$AA$365,23,0)/VLOOKUP(CONCATENATE("Illa Mallorca",C55),'Datos generales'!$D$2:$AA$443,23,0))*IF(VLOOKUP(D55,'Datos generales'!$D$2:$R$365,15,0)="B3",1,1.1) ->  | W55: =VLOOKUP($D55,#REF!,4,0) ->  | X55: =VLOOKUP(D55,'Datos generales'!$D$2:$T$365,17,0) -> 0 | Y55: =VLOOKUP(C55,#REF!,2,0)*(VLOOKUP(D55,'Datos generales'!$D$2:$AA$365,24,0)/VLOOKUP(CONCATENATE("Illa Mallorca",C55),'Datos generales'!$D$2:$AA$443,24,0))*IF(VLOOKUP(D55,'Datos generales'!$D$2:$R$365,15,0)="B3",1,1.1) ->  | Z55: =VLOOKUP(C55,#REF!,6,0)*(VLOOKUP(D55,'Datos generales'!$D$2:$AA$365,24,0)/VLOOKUP(CONCATENATE("Illa Mallorca",C55),'Datos generales'!$D$2:$AA$443,24,0))*IF(VLOOKUP(D55,'Datos generales'!$D$2:$R$365,15,0)="B3",1,1.1) ->  | AF55: =VLOOKUP(D55,'Datos generales'!$D$2:$M$365,8,0)*VLOOKUP(C55,#REF!,7,0) ->  | AG55: =VLOOKUP(D55,'Datos generales'!$D$2:$M$365,7,0)*VLOOKUP(C55,#REF!,6,0) ->  | AH55: =AH56 -> 0
A56: ='Datos generales'!A54 -> Es Castell | B56: ='Datos generales'!B54 -> Menorca | C56: ='Datos generales'!C54 -> 2005 | D56: =CONCATENATE(A56,C56) -> Es Castell2005
A57: ='Datos generales'!A55 -> Es Castell | B57: ='Datos generales'!B55 -> Menorca | C57: ='Datos generales'!C55 -> 2006 | D57: =CONCATENATE(A57,C57) -> Es Castell2006
A58: ='Datos generales'!A56 -> Es Castell | B58: ='Datos generales'!B56 -> Menorca | C58: ='Datos generales'!C56 -> 2007 | D58: =CONCATENATE(A58,C58) -> Es Castell2007
A59: ='Datos generales'!A57 -> Es Castell | B59: ='Datos generales'!B57 -> Menorca | C59: ='Datos generales'!C57 -> 2008 | D59: =CONCATENATE(A59,C59) -> Es Castell2008
A60: ='Datos generales'!A58 -> Es Castell | B60: ='Datos generales'!B58 -> Menorca | C60: ='Datos generales'!C58 -> 2009 | D60: =CONCATENATE(A60,C60) -> Es Castell2009
A61: ='Datos generales'!A59 -> Es Castell | B61: ='Datos generales'!B59 -> Menorca | C61: ='Datos generales'!C59 -> 2010 | D61: =CONCATENATE(A61,C61) -> Es Castell2010
A62: ='Datos generales'!A60 -> Es Castell | B62: ='Datos generales'!B60 -> Menorca | C62: ='Datos generales'!C60 -> 2011 | D62: =CONCATENATE(A62,C62) -> Es Castell2011
A63: ='Datos generales'!A61 -> Es Castell | B63: ='Datos generales'!B61 -> Menorca | C63: ='Datos generales'!C61 -> 2012 | D63: =CONCATENATE(A63,C63) -> Es Castell2012
A64: ='Datos generales'!A62 -> Es Castell | B64: ='Datos generales'!B62 -> Menorca | C64: ='Datos generales'!C62 -> 2013 | D64: =CONCATENATE(A64,C64) -> Es Castell2013
A65: ='Datos generales'!A63 -> Es Castell | B65: ='Datos generales'!B63 -> Menorca | C65: ='Datos generales'!C63 -> 2014 | D65: =CONCATENATE(A65,C65) -> Es Castell2014
A66: ='Datos generales'!A64 -> Es Castell | B66: ='Datos generales'!B64 -> Menorca | C66: ='Datos generales'!C64 -> 2015 | D66: =CONCATENATE(A66,C66) -> Es Castell2015
A67: ='Datos generales'!A65 -> Es Castell | B67: ='Datos generales'!B65 -> Menorca | C67: ='Datos generales'!C65 -> 2016 | D67: =CONCATENATE(A67,C67) -> Es Castell2016
A68: ='Datos generales'!A66 -> Es Castell | B68: ='Datos generales'!B66 -> Menorca | C68: ='Datos generales'!C66 -> 2017 | D68: =CONCATENATE(A68,C68) -> Es Castell2017
A69: ='Datos generales'!A67 -> Es Castell | B69: ='Datos generales'!B67 -> Menorca | C69: ='Datos generales'!C67 -> 2018 | D69: =CONCATENATE(A69,C69) -> Es Castell2018
A70: ='Datos generales'!A68 -> Es Castell | B70: ='Datos generales'!B68 -> Menorca | C70: ='Datos generales'!C68 -> 2019 | D70: =CONCATENATE(A70,C70) -> Es Castell2019 | E70: =VLOOKUP($D70,#REF!,5,0) ->  | S70: =VLOOKUP($D70,#REF!,7,0) ->  | T70: =VLOOKUP(D70,'Datos generales'!$D$2:$T$365,16,0) -> 0 | U70: =VLOOKUP(C70,#REF!,2,0)*(VLOOKUP(D70,'Datos generales'!$D$2:$AA$365,23,0)/VLOOKUP(CONCATENATE("Illa Mallorca",C70),'Datos generales'!$D$2:$AA$443,23,0))*IF(VLOOKUP(D70,'Datos generales'!$D$2:$R$365,15,0)="B3",1,1.1) ->  | V70: =VLOOKUP(C70,#REF!,6,0)*(VLOOKUP(D70,'Datos generales'!$D$2:$AA$365,23,0)/VLOOKUP(CONCATENATE("Illa Mallorca",C70),'Datos generales'!$D$2:$AA$443,23,0))*IF(VLOOKUP(D70,'Datos generales'!$D$2:$R$365,15,0)="B3",1,1.1) ->  | W70: =VLOOKUP($D70,#REF!,4,0) ->  | X70: =VLOOKUP(D70,'Datos generales'!$D$2:$T$365,17,0) -> 0 | Y70: =VLOOKUP(C70,#REF!,2,0)*(VLOOKUP(D70,'Datos generales'!$D$2:$AA$365,24,0)/VLOOKUP(CONCATENATE("Illa Mallorca",C70),'Datos generales'!$D$2:$AA$443,24,0))*IF(VLOOKUP(D70,'Datos generales'!$D$2:$R$365,15,0)="B3",1,1.1) ->  | Z70: =VLOOKUP(C70,#REF!,6,0)*(VLOOKUP(D70,'Datos generales'!$D$2:$AA$365,24,0)/VLOOKUP(CONCATENATE("Illa Mallorca",C70),'Datos generales'!$D$2:$AA$443,24,0))*IF(VLOOKUP(D70,'Datos generales'!$D$2:$R$365,15,0)="B3",1,1.1) ->  | AF70: =VLOOKUP(D70,'Datos generales'!$D$2:$M$365,8,0)*VLOOKUP(C70,#REF!,7,0) ->  | AG70: =VLOOKUP(D70,'Datos generales'!$D$2:$M$365,7,0)*VLOOKUP(C70,#REF!,6,0) -> 
A71: ='Datos generales'!A69 -> Es Castell | B71: ='Datos generales'!B69 -> Menorca | C71: ='Datos generales'!C69 -> 2020 | D71: =CONCATENATE(A71,C71) -> Es Castell2020 | E71: =VLOOKUP($D71,#REF!,5,0) ->  | S71: =VLOOKUP($D71,#REF!,7,0) ->  | T71: =VLOOKUP(D71,'Datos generales'!$D$2:$T$365,16,0) -> 0 | U71: =VLOOKUP(C71,#REF!,2,0)*(VLOOKUP(D71,'Datos generales'!$D$2:$AA$365,23,0)/VLOOKUP(CONCATENATE("Illa Mallorca",C71),'Datos generales'!$D$2:$AA$443,23,0))*IF(VLOOKUP(D71,'Datos generales'!$D$2:$R$365,15,0)="B3",1,1.1) ->  | V71: =VLOOKUP(C71,#REF!,6,0)*(VLOOKUP(D71,'Datos generales'!$D$2:$AA$365,23,0)/VLOOKUP(CONCATENATE("Illa Mallorca",C71),'Datos generales'!$D$2:$AA$443,23,0))*IF(VLOOKUP(D71,'Datos generales'!$D$2:$R$365,15,0)="B3",1,1.1) ->  | W71: =VLOOKUP($D71,#REF!,4,0) ->  | X71: =VLOOKUP(D71,'Datos generales'!$D$2:$T$365,17,0) -> 0 | Y71: =VLOOKUP(C71,#REF!,2,0)*(VLOOKUP(D71,'Datos generales'!$D$2:$AA$365,24,0)/VLOOKUP(CONCATENATE("Illa Mallorca",C71),'Datos generales'!$D$2:$AA$443,24,0))*IF(VLOOKUP(D71,'Datos generales'!$D$2:$R$365,15,0)="B3",1,1.1) ->  | Z71: =VLOOKUP(C71,#REF!,6,0)*(VLOOKUP(D71,'Datos generales'!$D$2:$AA$365,24,0)/VLOOKUP(CONCATENATE("Illa Mallorca",C71),'Datos generales'!$D$2:$AA$443,24,0))*IF(VLOOKUP(D71,'Datos generales'!$D$2:$R$365,15,0)="B3",1,1.1) ->  | AF71: =VLOOKUP(D71,'Datos generales'!$D$2:$M$365,8,0)*VLOOKUP(C71,#REF!,7,0) ->  | AG71: =VLOOKUP(D71,'Datos generales'!$D$2:$M$365,7,0)*VLOOKUP(C71,#REF!,6,0) ->  | AH71: =VLOOKUP(A71,#REF!,8,0) -> 
A72: ='Datos generales'!A70 -> Es Castell | B72: ='Datos generales'!B70 -> Menorca | C72: ='Datos generales'!C70 -> 2021 | D72: =CONCATENATE(A72,C72) -> Es Castell2021
A73: ='Datos generales'!A71 -> Es Castell | B73: ='Datos generales'!B71 -> Menorca | C73: ='Datos generales'!C71 -> 2022 | D73: =CONCATENATE(A73,C73) -> Es Castell2022
A74: ='Datos generales'!A72 -> Es Castell | B74: ='Datos generales'!B72 -> Menorca | C74: ='Datos generales'!C72 -> 2023 | D74: =CONCATENATE(A74,C74) -> Es Castell2023 | E74: =VLOOKUP($D74,#REF!,3,0) ->  | I74: =VLOOKUP($D74,#REF!,4,0) ->  | S74: =VLOOKUP($D74,#REF!,9,0) ->  | T74: =VLOOKUP(D74,'Datos generales'!$D$2:$T$365,16,0) -> 0 | U74: =VLOOKUP(C74,#REF!,2,0)*(VLOOKUP(D74,'Datos generales'!$D$2:$AA$365,23,0)/VLOOKUP(CONCATENATE("Illa Mallorca",C74),'Datos generales'!$D$2:$AA$443,23,0))*IF(VLOOKUP(D74,'Datos generales'!$D$2:$R$365,15,0)="B3",1,1.1) ->  | V74: =VLOOKUP(C74,#REF!,6,0)*(VLOOKUP(D74,'Datos generales'!$D$2:$AA$365,23,0)/VLOOKUP(CONCATENATE("Illa Mallorca",C74),'Datos generales'!$D$2:$AA$443,23,0))*IF(VLOOKUP(D74,'Datos generales'!$D$2:$R$365,15,0)="B3",1,1.1) ->  | W74: =VLOOKUP($D74,#REF!,2,0) ->  | X74: =VLOOKUP(D74,'Datos generales'!$D$2:$T$365,17,0) -> 0 | Y74: =VLOOKUP(C74,#REF!,2,0)*(VLOOKUP(D74,'Datos generales'!$D$2:$AA$365,24,0)/VLOOKUP(CONCATENATE("Illa Mallorca",C74),'Datos generales'!$D$2:$AA$443,24,0))*IF(VLOOKUP(D74,'Datos generales'!$D$2:$R$365,15,0)="B3",1,1.1) ->  | Z74: =VLOOKUP(C74,#REF!,6,0)*(VLOOKUP(D74,'Datos generales'!$D$2:$AA$365,24,0)/VLOOKUP(CONCATENATE("Illa Mallorca",C74),'Datos generales'!$D$2:$AA$443,24,0))*IF(VLOOKUP(D74,'Datos generales'!$D$2:$R$365,15,0)="B3",1,1.1) ->  | AF74: =VLOOKUP(D74,'Datos generales'!$D$2:$M$365,8,0)*VLOOKUP(C74,#REF!,7,0) ->  | AG74: =VLOOKUP(D74,'Datos generales'!$D$2:$M$365,7,0)*VLOOKUP(C74,#REF!,6,0) -> 
A75: ='Datos generales'!A73 -> Es Castell | B75: ='Datos generales'!B73 -> Menorca | C75: ='Datos generales'!C73 -> 2024 | D75: =CONCATENATE(A75,C75) -> Es Castell2024 | E75: =VLOOKUP($D75,#REF!,3,0) ->  | I75: =VLOOKUP($D75,#REF!,4,0) ->  | S75: =VLOOKUP($D75,#REF!,9,0) ->  | T75: =VLOOKUP(D75,'Datos generales'!$D$2:$T$365,16,0) -> 0 | U75: =VLOOKUP(C75,#REF!,2,0)*(VLOOKUP(D75,'Datos generales'!$D$2:$AA$365,23,0)/VLOOKUP(CONCATENATE("Illa Mallorca",C75),'Datos generales'!$D$2:$AA$443,23,0))*IF(VLOOKUP(D75,'Datos generales'!$D$2:$R$365,15,0)="B3",1,1.1) ->  | V75: =VLOOKUP(C75,#REF!,6,0)*(VLOOKUP(D75,'Datos generales'!$D$2:$AA$365,23,0)/VLOOKUP(CONCATENATE("Illa Mallorca",C75),'Datos generales'!$D$2:$AA$443,23,0))*IF(VLOOKUP(D75,'Datos generales'!$D$2:$R$365,15,0)="B3",1,1.1) ->  | W75: =VLOOKUP($D75,#REF!,2,0) ->  | X75: =VLOOKUP(D75,'Datos generales'!$D$2:$T$365,17,0) -> 0 | Y75: =VLOOKUP(C75,#REF!,2,0)*(VLOOKUP(D75,'Datos generales'!$D$2:$AA$365,24,0)/VLOOKUP(CONCATENATE("Illa Mallorca",C75),'Datos generales'!$D$2:$AA$443,24,0))*IF(VLOOKUP(D75,'Datos generales'!$D$2:$R$365,15,0)="B3",1,1.1) ->  | Z75: =VLOOKUP(C75,#REF!,6,0)*(VLOOKUP(D75,'Datos generales'!$D$2:$AA$365,24,0)/VLOOKUP(CONCATENATE("Illa Mallorca",C75),'Datos generales'!$D$2:$AA$443,24,0))*IF(VLOOKUP(D75,'Datos generales'!$D$2:$R$365,15,0)="B3",1,1.1) ->  | AF75: =VLOOKUP(D75,'Datos generales'!$D$2:$M$365,8,0)*VLOOKUP(C75,#REF!,7,0) ->  | AG75: =VLOOKUP(D75,'Datos generales'!$D$2:$M$365,7,0)*VLOOKUP(C75,#REF!,6,0) -> 
A76: ='Datos generales'!A74 -> Es Castell | B76: ='Datos generales'!B74 -> Menorca | C76: ='Datos generales'!C74 -> 2025 | D76: =CONCATENATE(A76,C76) -> Es Castell2025 | E76: =VLOOKUP($D76,#REF!,3,0) ->  | I76: =VLOOKUP($D76,#REF!,4,0) ->  | S76: =VLOOKUP($D76,#REF!,9,0) ->  | T76: =VLOOKUP(D76,'Datos generales'!$D$2:$T$365,16,0) -> 0 | U76: =VLOOKUP(C76,#REF!,2,0)*(VLOOKUP(D76,'Datos generales'!$D$2:$AA$365,23,0)/VLOOKUP(CONCATENATE("Illa Mallorca",C76),'Datos generales'!$D$2:$AA$443,23,0))*IF(VLOOKUP(D76,'Datos generales'!$D$2:$R$365,15,0)="B3",1,1.1) ->  | V76: =VLOOKUP(C76,#REF!,6,0)*(VLOOKUP(D76,'Datos generales'!$D$2:$AA$365,23,0)/VLOOKUP(CONCATENATE("Illa Mallorca",C76),'Datos generales'!$D$2:$AA$443,23,0))*IF(VLOOKUP(D76,'Datos generales'!$D$2:$R$365,15,0)="B3",1,1.1) ->  | W76: =VLOOKUP($D76,#REF!,2,0) ->  | X76: =VLOOKUP(D76,'Datos generales'!$D$2:$T$365,17,0) -> 0 | Y76: =VLOOKUP(C76,#REF!,2,0)*(VLOOKUP(D76,'Datos generales'!$D$2:$AA$365,24,0)/VLOOKUP(CONCATENATE("Illa Mallorca",C76),'Datos generales'!$D$2:$AA$443,24,0))*IF(VLOOKUP(D76,'Datos generales'!$D$2:$R$365,15,0)="B3",1,1.1) ->  | Z76: =VLOOKUP(C76,#REF!,6,0)*(VLOOKUP(D76,'Datos generales'!$D$2:$AA$365,24,0)/VLOOKUP(CONCATENATE("Illa Mallorca",C76),'Datos generales'!$D$2:$AA$443,24,0))*IF(VLOOKUP(D76,'Datos generales'!$D$2:$R$365,15,0)="B3",1,1.1) ->  | AF76: =VLOOKUP(D76,'Datos generales'!$D$2:$M$365,8,0)*VLOOKUP(C76,#REF!,7,0) ->  | AG76: =VLOOKUP(D76,'Datos generales'!$D$2:$M$365,7,0)*VLOOKUP(C76,#REF!,6,0) -> 
A77: ='Datos generales'!A75 -> Es Castell | B77: ='Datos generales'!B75 -> Menorca | C77: ='Datos generales'!C75 -> 2026 | D77: =CONCATENATE(A77,C77) -> Es Castell2026 | E77: =VLOOKUP($D77,#REF!,3,0) ->  | I77: =VLOOKUP($D77,#REF!,4,0) ->  | S77: =VLOOKUP($D77,#REF!,9,0) ->  | T77: =VLOOKUP(D77,'Datos generales'!$D$2:$T$365,16,0) -> 0 | U77: =VLOOKUP(C77,#REF!,2,0)*(VLOOKUP(D77,'Datos generales'!$D$2:$AA$365,23,0)/VLOOKUP(CONCATENATE("Illa Mallorca",C77),'Datos generales'!$D$2:$AA$443,23,0))*IF(VLOOKUP(D77,'Datos generales'!$D$2:$R$365,15,0)="B3",1,1.1) ->  | V77: =VLOOKUP(C77,#REF!,6,0)*(VLOOKUP(D77,'Datos generales'!$D$2:$AA$365,23,0)/VLOOKUP(CONCATENATE("Illa Mallorca",C77),'Datos generales'!$D$2:$AA$443,23,0))*IF(VLOOKUP(D77,'Datos generales'!$D$2:$R$365,15,0)="B3",1,1.1) ->  | W77: =VLOOKUP($D77,#REF!,2,0) ->  | X77: =VLOOKUP(D77,'Datos generales'!$D$2:$T$365,17,0) -> 0 | Y77: =VLOOKUP(C77,#REF!,2,0)*(VLOOKUP(D77,'Datos generales'!$D$2:$AA$365,24,0)/VLOOKUP(CONCATENATE("Illa Mallorca",C77),'Datos generales'!$D$2:$AA$443,24,0))*IF(VLOOKUP(D77,'Datos generales'!$D$2:$R$365,15,0)="B3",1,1.1) ->  | Z77: =VLOOKUP(C77,#REF!,6,0)*(VLOOKUP(D77,'Datos generales'!$D$2:$AA$365,24,0)/VLOOKUP(CONCATENATE("Illa Mallorca",C77),'Datos generales'!$D$2:$AA$443,24,0))*IF(VLOOKUP(D77,'Datos generales'!$D$2:$R$365,15,0)="B3",1,1.1) ->  | AF77: =VLOOKUP(D77,'Datos generales'!$D$2:$M$365,8,0)*VLOOKUP(C77,#REF!,7,0) ->  | AG77: =VLOOKUP(D77,'Datos generales'!$D$2:$M$365,7,0)*VLOOKUP(C77,#REF!,6,0) -> 
A78: ='Datos generales'!A76 -> Es Castell | B78: ='Datos generales'!B76 -> Menorca | C78: ='Datos generales'!C76 -> 2027 | D78: =CONCATENATE(A78,C78) -> Es Castell2027 | E78: =VLOOKUP($D78,#REF!,3,0) ->  | I78: =VLOOKUP($D78,#REF!,4,0) ->  | S78: =VLOOKUP($D78,#REF!,9,0) ->  | T78: =VLOOKUP(D78,'Datos generales'!$D$2:$T$365,16,0) -> 0 | U78: =VLOOKUP(C78,#REF!,2,0)*(VLOOKUP(D78,'Datos generales'!$D$2:$AA$365,23,0)/VLOOKUP(CONCATENATE("Illa Mallorca",C78),'Datos generales'!$D$2:$AA$443,23,0))*IF(VLOOKUP(D78,'Datos generales'!$D$2:$R$365,15,0)="B3",1,1.1) ->  | V78: =VLOOKUP(C78,#REF!,6,0)*(VLOOKUP(D78,'Datos generales'!$D$2:$AA$365,23,0)/VLOOKUP(CONCATENATE("Illa Mallorca",C78),'Datos generales'!$D$2:$AA$443,23,0))*IF(VLOOKUP(D78,'Datos generales'!$D$2:$R$365,15,0)="B3",1,1.1) ->  | W78: =VLOOKUP($D78,#REF!,2,0) ->  | X78: =VLOOKUP(D78,'Datos generales'!$D$2:$T$365,17,0) -> 0 | Y78: =VLOOKUP(C78,#REF!,2,0)*(VLOOKUP(D78,'Datos generales'!$D$2:$AA$365,24,0)/VLOOKUP(CONCATENATE("Illa Mallorca",C78),'Datos generales'!$D$2:$AA$443,24,0))*IF(VLOOKUP(D78,'Datos generales'!$D$2:$R$365,15,0)="B3",1,1.1) ->  | Z78: =VLOOKUP(C78,#REF!,6,0)*(VLOOKUP(D78,'Datos generales'!$D$2:$AA$365,24,0)/VLOOKUP(CONCATENATE("Illa Mallorca",C78),'Datos generales'!$D$2:$AA$443,24,0))*IF(VLOOKUP(D78,'Datos generales'!$D$2:$R$365,15,0)="B3",1,1.1) ->  | AF78: =VLOOKUP(D78,'Datos generales'!$D$2:$M$365,8,0)*VLOOKUP(C78,#REF!,7,0) ->  | AG78: =VLOOKUP(D78,'Datos generales'!$D$2:$M$365,7,0)*VLOOKUP(C78,#REF!,6,0) -> 
A79: ='Datos generales'!A77 -> Es Castell | B79: ='Datos generales'!B77 -> Menorca | C79: ='Datos generales'!C77 -> 2028 | D79: =CONCATENATE(A79,C79) -> Es Castell2028 | E79: =VLOOKUP($D79,#REF!,5,0) ->  | I79: =VLOOKUP($D79,#REF!,6,0) ->  | S79: =VLOOKUP($D79,#REF!,7,0) ->  | T79: =VLOOKUP(D79,'Datos generales'!$D$2:$T$365,16,0) -> 0 | U79: =VLOOKUP(C79,#REF!,2,0)*(VLOOKUP(D79,'Datos generales'!$D$2:$AA$365,23,0)/VLOOKUP(CONCATENATE("Illa Mallorca",C79),'Datos generales'!$D$2:$AA$443,23,0))*IF(VLOOKUP(D79,'Datos generales'!$D$2:$R$365,15,0)="B3",1,1.1) ->  | V79: =VLOOKUP(C79,#REF!,6,0)*(VLOOKUP(D79,'Datos generales'!$D$2:$AA$365,23,0)/VLOOKUP(CONCATENATE("Illa Mallorca",C79),'Datos generales'!$D$2:$AA$443,23,0))*IF(VLOOKUP(D79,'Datos generales'!$D$2:$R$365,15,0)="B3",1,1.1) ->  | W79: =VLOOKUP($D79,#REF!,4,0) ->  | X79: =VLOOKUP(D79,'Datos generales'!$D$2:$T$365,17,0) -> 0 | Y79: =VLOOKUP(C79,#REF!,2,0)*(VLOOKUP(D79,'Datos generales'!$D$2:$AA$365,24,0)/VLOOKUP(CONCATENATE("Illa Mallorca",C79),'Datos generales'!$D$2:$AA$443,24,0))*IF(VLOOKUP(D79,'Datos generales'!$D$2:$R$365,15,0)="B3",1,1.1) ->  | Z79: =VLOOKUP(C79,#REF!,6,0)*(VLOOKUP(D79,'Datos generales'!$D$2:$AA$365,24,0)/VLOOKUP(CONCATENATE("Illa Mallorca",C79),'Datos generales'!$D$2:$AA$443,24,0))*IF(VLOOKUP(D79,'Datos generales'!$D$2:$R$365,15,0)="B3",1,1.1) ->  | AF79: =VLOOKUP(D79,'Datos generales'!$D$2:$M$365,8,0)*VLOOKUP(C79,#REF!,7,0) ->  | AG79: =VLOOKUP(D79,'Datos generales'!$D$2:$M$365,7,0)*VLOOKUP(C79,#REF!,6,0) -> 
A80: ='Datos generales'!A78 -> Es Castell | B80: ='Datos generales'!B78 -> Menorca | C80: ='Datos generales'!C78 -> 2029 | D80: =CONCATENATE(A80,C80) -> Es Castell2029 | E80: =VLOOKUP($D80,#REF!,5,0) ->  | I80: =VLOOKUP($D80,#REF!,6,0) ->  | S80: =VLOOKUP($D80,#REF!,7,0) ->  | T80: =VLOOKUP(D80,'Datos generales'!$D$2:$T$365,16,0) -> 0 | U80: =VLOOKUP(C80,#REF!,2,0)*(VLOOKUP(D80,'Datos generales'!$D$2:$AA$365,23,0)/VLOOKUP(CONCATENATE("Illa Mallorca",C80),'Datos generales'!$D$2:$AA$443,23,0))*IF(VLOOKUP(D80,'Datos generales'!$D$2:$R$365,15,0)="B3",1,1.1) ->  | V80: =VLOOKUP(C80,#REF!,6,0)*(VLOOKUP(D80,'Datos generales'!$D$2:$AA$365,23,0)/VLOOKUP(CONCATENATE("Illa Mallorca",C80),'Datos generales'!$D$2:$AA$443,23,0))*IF(VLOOKUP(D80,'Datos generales'!$D$2:$R$365,15,0)="B3",1,1.1) ->  | W80: =VLOOKUP($D80,#REF!,4,0) ->  | X80: =VLOOKUP(D80,'Datos generales'!$D$2:$T$365,17,0) -> 0 | Y80: =VLOOKUP(C80,#REF!,2,0)*(VLOOKUP(D80,'Datos generales'!$D$2:$AA$365,24,0)/VLOOKUP(CONCATENATE("Illa Mallorca",C80),'Datos generales'!$D$2:$AA$443,24,0))*IF(VLOOKUP(D80,'Datos generales'!$D$2:$R$365,15,0)="B3",1,1.1) ->  | Z80: =VLOOKUP(C80,#REF!,6,0)*(VLOOKUP(D80,'Datos generales'!$D$2:$AA$365,24,0)/VLOOKUP(CONCATENATE("Illa Mallorca",C80),'Datos generales'!$D$2:$AA$443,24,0))*IF(VLOOKUP(D80,'Datos generales'!$D$2:$R$365,15,0)="B3",1,1.1) ->  | AF80: =VLOOKUP(D80,'Datos generales'!$D$2:$M$365,8,0)*VLOOKUP(C80,#REF!,7,0) ->  | AG80: =VLOOKUP(D80,'Datos generales'!$D$2:$M$365,7,0)*VLOOKUP(C80,#REF!,6,0) -> 
A81: ='Datos generales'!A79 -> Es Castell | B81: ='Datos generales'!B79 -> Menorca | C81: ='Datos generales'!C79 -> 2030 | D81: =CONCATENATE(A81,C81) -> Es Castell2030 | E81: =VLOOKUP($D81,#REF!,5,0) ->  | I81: =VLOOKUP($D81,#REF!,6,0) ->  | S81: =VLOOKUP($D81,#REF!,7,0) ->  | T81: =VLOOKUP(D81,'Datos generales'!$D$2:$T$365,16,0) -> 0 | U81: =VLOOKUP(C81,#REF!,2,0)*(VLOOKUP(D81,'Datos generales'!$D$2:$AA$365,23,0)/VLOOKUP(CONCATENATE("Illa Mallorca",C81),'Datos generales'!$D$2:$AA$443,23,0))*IF(VLOOKUP(D81,'Datos generales'!$D$2:$R$365,15,0)="B3",1,1.1) ->  | V81: =VLOOKUP(C81,#REF!,6,0)*(VLOOKUP(D81,'Datos generales'!$D$2:$AA$365,23,0)/VLOOKUP(CONCATENATE("Illa Mallorca",C81),'Datos generales'!$D$2:$AA$443,23,0))*IF(VLOOKUP(D81,'Datos generales'!$D$2:$R$365,15,0)="B3",1,1.1) ->  | W81: =VLOOKUP($D81,#REF!,4,0) ->  | X81: =VLOOKUP(D81,'Datos generales'!$D$2:$T$365,17,0) -> 0 | Y81: =VLOOKUP(C81,#REF!,2,0)*(VLOOKUP(D81,'Datos generales'!$D$2:$AA$365,24,0)/VLOOKUP(CONCATENATE("Illa Mallorca",C81),'Datos generales'!$D$2:$AA$443,24,0))*IF(VLOOKUP(D81,'Datos generales'!$D$2:$R$365,15,0)="B3",1,1.1) ->  | Z81: =VLOOKUP(C81,#REF!,6,0)*(VLOOKUP(D81,'Datos generales'!$D$2:$AA$365,24,0)/VLOOKUP(CONCATENATE("Illa Mallorca",C81),'Datos generales'!$D$2:$AA$443,24,0))*IF(VLOOKUP(D81,'Datos generales'!$D$2:$R$365,15,0)="B3",1,1.1) ->  | AF81: =VLOOKUP(D81,'Datos generales'!$D$2:$M$365,8,0)*VLOOKUP(C81,#REF!,7,0) ->  | AG81: =VLOOKUP(D81,'Datos generales'!$D$2:$M$365,7,0)*VLOOKUP(C81,#REF!,6,0) -> 
A82: ='Datos generales'!A80 -> Es Mercadal | B82: ='Datos generales'!B80 -> Menorca | C82: ='Datos generales'!C80 -> 2005 | D82: =CONCATENATE(A82,C82) -> Es Mercadal2005
A83: ='Datos generales'!A81 -> Es Mercadal | B83: ='Datos generales'!B81 -> Menorca | C83: ='Datos generales'!C81 -> 2006 | D83: =CONCATENATE(A83,C83) -> Es Mercadal2006
A84: ='Datos generales'!A82 -> Es Mercadal | B84: ='Datos generales'!B82 -> Menorca | C84: ='Datos generales'!C82 -> 2007 | D84: =CONCATENATE(A84,C84) -> Es Mercadal2007
A85: ='Datos generales'!A83 -> Es Mercadal | B85: ='Datos generales'!B83 -> Menorca | C85: ='Datos generales'!C83 -> 2008 | D85: =CONCATENATE(A85,C85) -> Es Mercadal2008
A86: ='Datos generales'!A84 -> Es Mercadal | B86: ='Datos generales'!B84 -> Menorca | C86: ='Datos generales'!C84 -> 2009 | D86: =CONCATENATE(A86,C86) -> Es Mercadal2009
A87: ='Datos generales'!A85 -> Es Mercadal | B87: ='Datos generales'!B85 -> Menorca | C87: ='Datos generales'!C85 -> 2010 | D87: =CONCATENATE(A87,C87) -> Es Mercadal2010
A88: ='Datos generales'!A86 -> Es Mercadal | B88: ='Datos generales'!B86 -> Menorca | C88: ='Datos generales'!C86 -> 2011 | D88: =CONCATENATE(A88,C88) -> Es Mercadal2011
A89: ='Datos generales'!A87 -> Es Mercadal | B89: ='Datos generales'!B87 -> Menorca | C89: ='Datos generales'!C87 -> 2012 | D89: =CONCATENATE(A89,C89) -> Es Mercadal2012
A90: ='Datos generales'!A88 -> Es Mercadal | B90: ='Datos generales'!B88 -> Menorca | C90: ='Datos generales'!C88 -> 2013 | D90: =CONCATENATE(A90,C90) -> Es Mercadal2013
A91: ='Datos generales'!A89 -> Es Mercadal | B91: ='Datos generales'!B89 -> Menorca | C91: ='Datos generales'!C89 -> 2014 | D91: =CONCATENATE(A91,C91) -> Es Mercadal2014
A92: ='Datos generales'!A90 -> Es Mercadal | B92: ='Datos generales'!B90 -> Menorca | C92: ='Datos generales'!C90 -> 2015 | D92: =CONCATENATE(A92,C92) -> Es Mercadal2015
A93: ='Datos generales'!A91 -> Es Mercadal | B93: ='Datos generales'!B91 -> Menorca | C93: ='Datos generales'!C91 -> 2016 | D93: =CONCATENATE(A93,C93) -> Es Mercadal2016
A94: ='Datos generales'!A92 -> Es Mercadal | B94: ='Datos generales'!B92 -> Menorca | C94: ='Datos generales'!C92 -> 2017 | D94: =CONCATENATE(A94,C94) -> Es Mercadal2017
A95: ='Datos generales'!A93 -> Es Mercadal | B95: ='Datos generales'!B93 -> Menorca | C95: ='Datos generales'!C93 -> 2018 | D95: =CONCATENATE(A95,C95) -> Es Mercadal2018
A96: ='Datos generales'!A94 -> Es Mercadal | B96: ='Datos generales'!B94 -> Menorca | C96: ='Datos generales'!C94 -> 2019 | D96: =CONCATENATE(A96,C96) -> Es Mercadal2019 | E96: =VLOOKUP($D96,#REF!,5,0) ->  | S96: =VLOOKUP($D96,#REF!,7,0) ->  | T96: =VLOOKUP(D96,'Datos generales'!$D$2:$T$365,16,0) -> 0 | U96: =VLOOKUP(C96,#REF!,2,0)*(VLOOKUP(D96,'Datos generales'!$D$2:$AA$365,23,0)/VLOOKUP(CONCATENATE("Illa Mallorca",C96),'Datos generales'!$D$2:$AA$443,23,0))*IF(VLOOKUP(D96,'Datos generales'!$D$2:$R$365,15,0)="B3",1,1.1) ->  | V96: =VLOOKUP(C96,#REF!,6,0)*(VLOOKUP(D96,'Datos generales'!$D$2:$AA$365,23,0)/VLOOKUP(CONCATENATE("Illa Mallorca",C96),'Datos generales'!$D$2:$AA$443,23,0))*IF(VLOOKUP(D96,'Datos generales'!$D$2:$R$365,15,0)="B3",1,1.1) ->  | W96: =VLOOKUP($D96,#REF!,4,0) ->  | X96: =VLOOKUP(D96,'Datos generales'!$D$2:$T$365,17,0) -> 0 | Y96: =VLOOKUP(C96,#REF!,2,0)*(VLOOKUP(D96,'Datos generales'!$D$2:$AA$365,24,0)/VLOOKUP(CONCATENATE("Illa Mallorca",C96),'Datos generales'!$D$2:$AA$443,24,0))*IF(VLOOKUP(D96,'Datos generales'!$D$2:$R$365,15,0)="B3",1,1.1) ->  | Z96: =VLOOKUP(C96,#REF!,6,0)*(VLOOKUP(D96,'Datos generales'!$D$2:$AA$365,24,0)/VLOOKUP(CONCATENATE("Illa Mallorca",C96),'Datos generales'!$D$2:$AA$443,24,0))*IF(VLOOKUP(D96,'Datos generales'!$D$2:$R$365,15,0)="B3",1,1.1) ->  | AF96: =VLOOKUP(D96,'Datos generales'!$D$2:$M$365,8,0)*VLOOKUP(C96,#REF!,7,0) ->  | AG96: =VLOOKUP(D96,'Datos generales'!$D$2:$M$365,7,0)*VLOOKUP(C96,#REF!,6,0) -> 
A97: ='Datos generales'!A95 -> Es Mercadal | B97: ='Datos generales'!B95 -> Menorca | C97: ='Datos generales'!C95 -> 2020 | D97: =CONCATENATE(A97,C97) -> Es Mercadal2020 | E97: =VLOOKUP($D97,#REF!,5,0) ->  | S97: =VLOOKUP($D97,#REF!,7,0) ->  | T97: =VLOOKUP(D97,'Datos generales'!$D$2:$T$365,16,0) -> 0 | U97: =VLOOKUP(C97,#REF!,2,0)*(VLOOKUP(D97,'Datos generales'!$D$2:$AA$365,23,0)/VLOOKUP(CONCATENATE("Illa Mallorca",C97),'Datos generales'!$D$2:$AA$443,23,0))*IF(VLOOKUP(D97,'Datos generales'!$D$2:$R$365,15,0)="B3",1,1.1) ->  | V97: =VLOOKUP(C97,#REF!,6,0)*(VLOOKUP(D97,'Datos generales'!$D$2:$AA$365,23,0)/VLOOKUP(CONCATENATE("Illa Mallorca",C97),'Datos generales'!$D$2:$AA$443,23,0))*IF(VLOOKUP(D97,'Datos generales'!$D$2:$R$365,15,0)="B3",1,1.1) ->  | W97: =VLOOKUP($D97,#REF!,4,0) ->  | X97: =VLOOKUP(D97,'Datos generales'!$D$2:$T$365,17,0) -> 0 | Y97: =VLOOKUP(C97,#REF!,2,0)*(VLOOKUP(D97,'Datos generales'!$D$2:$AA$365,24,0)/VLOOKUP(CONCATENATE("Illa Mallorca",C97),'Datos generales'!$D$2:$AA$443,24,0))*IF(VLOOKUP(D97,'Datos generales'!$D$2:$R$365,15,0)="B3",1,1.1) ->  | Z97: =VLOOKUP(C97,#REF!,6,0)*(VLOOKUP(D97,'Datos generales'!$D$2:$AA$365,24,0)/VLOOKUP(CONCATENATE("Illa Mallorca",C97),'Datos generales'!$D$2:$AA$443,24,0))*IF(VLOOKUP(D97,'Datos generales'!$D$2:$R$365,15,0)="B3",1,1.1) ->  | AF97: =VLOOKUP(D97,'Datos generales'!$D$2:$M$365,8,0)*VLOOKUP(C97,#REF!,7,0) ->  | AG97: =VLOOKUP(D97,'Datos generales'!$D$2:$M$365,7,0)*VLOOKUP(C97,#REF!,6,0) -> 
A98: ='Datos generales'!A96 -> Es Mercadal | B98: ='Datos generales'!B96 -> Menorca | C98: ='Datos generales'!C96 -> 2021 | D98: =CONCATENATE(A98,C98) -> Es Mercadal2021 | E98: =VLOOKUP($D98,#REF!,5,0) ->  | S98: =VLOOKUP($D98,#REF!,7,0) ->  | T98: =VLOOKUP(D98,'Datos generales'!$D$2:$T$365,16,0) -> 0 | U98: =VLOOKUP(C98,#REF!,2,0)*(VLOOKUP(D98,'Datos generales'!$D$2:$AA$365,23,0)/VLOOKUP(CONCATENATE("Illa Mallorca",C98),'Datos generales'!$D$2:$AA$443,23,0))*IF(VLOOKUP(D98,'Datos generales'!$D$2:$R$365,15,0)="B3",1,1.1) ->  | V98: =VLOOKUP(C98,#REF!,6,0)*(VLOOKUP(D98,'Datos generales'!$D$2:$AA$365,23,0)/VLOOKUP(CONCATENATE("Illa Mallorca",C98),'Datos generales'!$D$2:$AA$443,23,0))*IF(VLOOKUP(D98,'Datos generales'!$D$2:$R$365,15,0)="B3",1,1.1) ->  | W98: =VLOOKUP($D98,#REF!,4,0) ->  | X98: =VLOOKUP(D98,'Datos generales'!$D$2:$T$365,17,0) -> 0 | Y98: =VLOOKUP(C98,#REF!,2,0)*(VLOOKUP(D98,'Datos generales'!$D$2:$AA$365,24,0)/VLOOKUP(CONCATENATE("Illa Mallorca",C98),'Datos generales'!$D$2:$AA$443,24,0))*IF(VLOOKUP(D98,'Datos generales'!$D$2:$R$365,15,0)="B3",1,1.1) ->  | Z98: =VLOOKUP(C98,#REF!,6,0)*(VLOOKUP(D98,'Datos generales'!$D$2:$AA$365,24,0)/VLOOKUP(CONCATENATE("Illa Mallorca",C98),'Datos generales'!$D$2:$AA$443,24,0))*IF(VLOOKUP(D98,'Datos generales'!$D$2:$R$365,15,0)="B3",1,1.1) ->  | AF98: =VLOOKUP(D98,'Datos generales'!$D$2:$M$365,8,0)*VLOOKUP(C98,#REF!,7,0) ->  | AG98: =VLOOKUP(D98,'Datos generales'!$D$2:$M$365,7,0)*VLOOKUP(C98,#REF!,6,0) -> 
A99: ='Datos generales'!A97 -> Es Mercadal | B99: ='Datos generales'!B97 -> Menorca | C99: ='Datos generales'!C97 -> 2022 | D99: =CONCATENATE(A99,C99) -> Es Mercadal2022 | E99: =VLOOKUP($D99,#REF!,5,0) ->  | S99: =VLOOKUP($D99,#REF!,7,0) ->  | T99: =VLOOKUP(D99,'Datos generales'!$D$2:$T$365,16,0) -> 0 | U99: =VLOOKUP(C99,#REF!,2,0)*(VLOOKUP(D99,'Datos generales'!$D$2:$AA$365,23,0)/VLOOKUP(CONCATENATE("Illa Mallorca",C99),'Datos generales'!$D$2:$AA$443,23,0))*IF(VLOOKUP(D99,'Datos generales'!$D$2:$R$365,15,0)="B3",1,1.1) ->  | V99: =VLOOKUP(C99,#REF!,6,0)*(VLOOKUP(D99,'Datos generales'!$D$2:$AA$365,23,0)/VLOOKUP(CONCATENATE("Illa Mallorca",C99),'Datos generales'!$D$2:$AA$443,23,0))*IF(VLOOKUP(D99,'Datos generales'!$D$2:$R$365,15,0)="B3",1,1.1) ->  | W99: =VLOOKUP($D99,#REF!,4,0) ->  | X99: =VLOOKUP(D99,'Datos generales'!$D$2:$T$365,17,0) -> 0 | Y99: =VLOOKUP(C99,#REF!,2,0)*(VLOOKUP(D99,'Datos generales'!$D$2:$AA$365,24,0)/VLOOKUP(CONCATENATE("Illa Mallorca",C99),'Datos generales'!$D$2:$AA$443,24,0))*IF(VLOOKUP(D99,'Datos generales'!$D$2:$R$365,15,0)="B3",1,1.1) ->  | Z99: =VLOOKUP(C99,#REF!,6,0)*(VLOOKUP(D99,'Datos generales'!$D$2:$AA$365,24,0)/VLOOKUP(CONCATENATE("Illa Mallorca",C99),'Datos generales'!$D$2:$AA$443,24,0))*IF(VLOOKUP(D99,'Datos generales'!$D$2:$R$365,15,0)="B3",1,1.1) ->  | AF99: =VLOOKUP(D99,'Datos generales'!$D$2:$M$365,8,0)*VLOOKUP(C99,#REF!,7,0) ->  | AG99: =VLOOKUP(D99,'Datos generales'!$D$2:$M$365,7,0)*VLOOKUP(C99,#REF!,6,0) ->  | AH99: =VLOOKUP(A99,#REF!,8,0) -> 
A100: ='Datos generales'!A98 -> Es Mercadal | B100: ='Datos generales'!B98 -> Menorca | C100: ='Datos generales'!C98 -> 2023 | D100: =CONCATENATE(A100,C100) -> Es Mercadal2023
A101: ='Datos generales'!A99 -> Es Mercadal | B101: ='Datos generales'!B99 -> Menorca | C101: ='Datos generales'!C99 -> 2024 | D101: =CONCATENATE(A101,C101) -> Es Mercadal2024
A102: ='Datos generales'!A100 -> Es Mercadal | B102: ='Datos generales'!B100 -> Menorca | C102: ='Datos generales'!C100 -> 2025 | D102: =CONCATENATE(A102,C102) -> Es Mercadal2025 | E102: 322942.0924 | F102: 0 | G102: =18046/'Factores de conversión'!$B$6 -> 1450.772666 | H102: 54702 | I102: 428086.0295 | K102: 0 | L102: =117720.18+574702.39 -> 692422.57 | S102: =VLOOKUP($D102,#REF!,9,0) ->  | T102: =VLOOKUP(D102,'Datos generales'!$D$2:$T$365,16,0) -> 0 | U102: =VLOOKUP(C102,#REF!,2,0)*(VLOOKUP(D102,'Datos generales'!$D$2:$AA$365,23,0)/VLOOKUP(CONCATENATE("Illa Mallorca",C102),'Datos generales'!$D$2:$AA$443,23,0))*IF(VLOOKUP(D102,'Datos generales'!$D$2:$R$365,15,0)="B3",1,1.1) ->  | V102: =VLOOKUP(C102,#REF!,6,0)*(VLOOKUP(D102,'Datos generales'!$D$2:$AA$365,23,0)/VLOOKUP(CONCATENATE("Illa Mallorca",C102),'Datos generales'!$D$2:$AA$443,23,0))*IF(VLOOKUP(D102,'Datos generales'!$D$2:$R$365,15,0)="B3",1,1.1) ->  | W102: =VLOOKUP($D102,#REF!,2,0) ->  | X102: =VLOOKUP(D102,'Datos generales'!$D$2:$T$365,17,0) -> 0 | Y102: =VLOOKUP(C102,#REF!,2,0)*(VLOOKUP(D102,'Datos generales'!$D$2:$AA$365,24,0)/VLOOKUP(CONCATENATE("Illa Mallorca",C102),'Datos generales'!$D$2:$AA$443,24,0))*IF(VLOOKUP(D102,'Datos generales'!$D$2:$R$365,15,0)="B3",1,1.1) ->  | Z102: =VLOOKUP(C102,#REF!,6,0)*(VLOOKUP(D102,'Datos generales'!$D$2:$AA$365,24,0)/VLOOKUP(CONCATENATE("Illa Mallorca",C102),'Datos generales'!$D$2:$AA$443,24,0))*IF(VLOOKUP(D102,'Datos generales'!$D$2:$R$365,15,0)="B3",1,1.1) ->  | AF102: =VLOOKUP(D102,'Datos generales'!$D$2:$M$365,8,0)*VLOOKUP(C102,#REF!,7,0) ->  | AG102: =VLOOKUP(D102,'Datos generales'!$D$2:$M$365,7,0)*VLOOKUP(C102,#REF!,6,0) -> 
A103: ='Datos generales'!A101 -> Es Mercadal | B103: ='Datos generales'!B101 -> Menorca | C103: ='Datos generales'!C101 -> 2026 | D103: =CONCATENATE(A103,C103) -> Es Mercadal2026 | E103: 347195.6181 | I103: 460236.0519 | S103: =VLOOKUP($D103,#REF!,9,0) ->  | T103: =VLOOKUP(D103,'Datos generales'!$D$2:$T$365,16,0) -> 0 | U103: =VLOOKUP(C103,#REF!,2,0)*(VLOOKUP(D103,'Datos generales'!$D$2:$AA$365,23,0)/VLOOKUP(CONCATENATE("Illa Mallorca",C103),'Datos generales'!$D$2:$AA$443,23,0))*IF(VLOOKUP(D103,'Datos generales'!$D$2:$R$365,15,0)="B3",1,1.1) ->  | V103: =VLOOKUP(C103,#REF!,6,0)*(VLOOKUP(D103,'Datos generales'!$D$2:$AA$365,23,0)/VLOOKUP(CONCATENATE("Illa Mallorca",C103),'Datos generales'!$D$2:$AA$443,23,0))*IF(VLOOKUP(D103,'Datos generales'!$D$2:$R$365,15,0)="B3",1,1.1) ->  | W103: =VLOOKUP($D103,#REF!,2,0) ->  | X103: =VLOOKUP(D103,'Datos generales'!$D$2:$T$365,17,0) -> 0 | Y103: =VLOOKUP(C103,#REF!,2,0)*(VLOOKUP(D103,'Datos generales'!$D$2:$AA$365,24,0)/VLOOKUP(CONCATENATE("Illa Mallorca",C103),'Datos generales'!$D$2:$AA$443,24,0))*IF(VLOOKUP(D103,'Datos generales'!$D$2:$R$365,15,0)="B3",1,1.1) ->  | Z103: =VLOOKUP(C103,#REF!,6,0)*(VLOOKUP(D103,'Datos generales'!$D$2:$AA$365,24,0)/VLOOKUP(CONCATENATE("Illa Mallorca",C103),'Datos generales'!$D$2:$AA$443,24,0))*IF(VLOOKUP(D103,'Datos generales'!$D$2:$R$365,15,0)="B3",1,1.1) ->  | AF103: =VLOOKUP(D103,'Datos generales'!$D$2:$M$365,8,0)*VLOOKUP(C103,#REF!,7,0) ->  | AG103: =VLOOKUP(D103,'Datos generales'!$D$2:$M$365,7,0)*VLOOKUP(C103,#REF!,6,0) -> 
A104: ='Datos generales'!A102 -> Es Mercadal | B104: ='Datos generales'!B102 -> Menorca | C104: ='Datos generales'!C102 -> 2027 | D104: =CONCATENATE(A104,C104) -> Es Mercadal2027 | E104: 359309.6082 | I104: 476294.1318 | S104: =VLOOKUP($D104,#REF!,9,0) ->  | T104: =VLOOKUP(D104,'Datos generales'!$D$2:$T$365,16,0) -> 0 | U104: =VLOOKUP(C104,#REF!,2,0)*(VLOOKUP(D104,'Datos generales'!$D$2:$AA$365,23,0)/VLOOKUP(CONCATENATE("Illa Mallorca",C104),'Datos generales'!$D$2:$AA$443,23,0))*IF(VLOOKUP(D104,'Datos generales'!$D$2:$R$365,15,0)="B3",1,1.1) ->  | V104: =VLOOKUP(C104,#REF!,6,0)*(VLOOKUP(D104,'Datos generales'!$D$2:$AA$365,23,0)/VLOOKUP(CONCATENATE("Illa Mallorca",C104),'Datos generales'!$D$2:$AA$443,23,0))*IF(VLOOKUP(D104,'Datos generales'!$D$2:$R$365,15,0)="B3",1,1.1) ->  | W104: =VLOOKUP($D104,#REF!,2,0) ->  | X104: =VLOOKUP(D104,'Datos generales'!$D$2:$T$365,17,0) -> 0 | Y104: =VLOOKUP(C104,#REF!,2,0)*(VLOOKUP(D104,'Datos generales'!$D$2:$AA$365,24,0)/VLOOKUP(CONCATENATE("Illa Mallorca",C104),'Datos generales'!$D$2:$AA$443,24,0))*IF(VLOOKUP(D104,'Datos generales'!$D$2:$R$365,15,0)="B3",1,1.1) ->  | Z104: =VLOOKUP(C104,#REF!,6,0)*(VLOOKUP(D104,'Datos generales'!$D$2:$AA$365,24,0)/VLOOKUP(CONCATENATE("Illa Mallorca",C104),'Datos generales'!$D$2:$AA$443,24,0))*IF(VLOOKUP(D104,'Datos generales'!$D$2:$R$365,15,0)="B3",1,1.1) ->  | AF104: =VLOOKUP(D104,'Datos generales'!$D$2:$M$365,8,0)*VLOOKUP(C104,#REF!,7,0) ->  | AG104: =VLOOKUP(D104,'Datos generales'!$D$2:$M$365,7,0)*VLOOKUP(C104,#REF!,6,0) -> 
A105: ='Datos generales'!A103 -> Es Mercadal | B105: ='Datos generales'!B103 -> Menorca | C105: ='Datos generales'!C103 -> 2028 | D105: =CONCATENATE(A105,C105) -> Es Mercadal2028 | E105: 380536.6743 | I105: 504432.3357 | S105: =VLOOKUP($D105,#REF!,9,0) ->  | T105: =VLOOKUP(D105,'Datos generales'!$D$2:$T$365,16,0) -> 0 | U105: =VLOOKUP(C105,#REF!,2,0)*(VLOOKUP(D105,'Datos generales'!$D$2:$AA$365,23,0)/VLOOKUP(CONCATENATE("Illa Mallorca",C105),'Datos generales'!$D$2:$AA$443,23,0))*IF(VLOOKUP(D105,'Datos generales'!$D$2:$R$365,15,0)="B3",1,1.1) ->  | V105: =VLOOKUP(C105,#REF!,6,0)*(VLOOKUP(D105,'Datos generales'!$D$2:$AA$365,23,0)/VLOOKUP(CONCATENATE("Illa Mallorca",C105),'Datos generales'!$D$2:$AA$443,23,0))*IF(VLOOKUP(D105,'Datos generales'!$D$2:$R$365,15,0)="B3",1,1.1) ->  | W105: =VLOOKUP($D105,#REF!,2,0) ->  | X105: =VLOOKUP(D105,'Datos generales'!$D$2:$T$365,17,0) -> 0 | Y105: =VLOOKUP(C105,#REF!,2,0)*(VLOOKUP(D105,'Datos generales'!$D$2:$AA$365,24,0)/VLOOKUP(CONCATENATE("Illa Mallorca",C105),'Datos generales'!$D$2:$AA$443,24,0))*IF(VLOOKUP(D105,'Datos generales'!$D$2:$R$365,15,0)="B3",1,1.1) ->  | Z105: =VLOOKUP(C105,#REF!,6,0)*(VLOOKUP(D105,'Datos generales'!$D$2:$AA$365,24,0)/VLOOKUP(CONCATENATE("Illa Mallorca",C105),'Datos generales'!$D$2:$AA$443,24,0))*IF(VLOOKUP(D105,'Datos generales'!$D$2:$R$365,15,0)="B3",1,1.1) ->  | AF105: =VLOOKUP(D105,'Datos generales'!$D$2:$M$365,8,0)*VLOOKUP(C105,#REF!,7,0) ->  | AG105: =VLOOKUP(D105,'Datos generales'!$D$2:$M$365,7,0)*VLOOKUP(C105,#REF!,6,0) -> 
A106: ='Datos generales'!A104 -> Es Mercadal | B106: ='Datos generales'!B104 -> Menorca | C106: ='Datos generales'!C104 -> 2029 | D106: =CONCATENATE(A106,C106) -> Es Mercadal2029 | E106: 360525.5622 | I106: 477905.9778 | S106: =VLOOKUP($D106,#REF!,9,0) ->  | T106: =VLOOKUP(D106,'Datos generales'!$D$2:$T$365,16,0) -> 0 | U106: =VLOOKUP(C106,#REF!,2,0)*(VLOOKUP(D106,'Datos generales'!$D$2:$AA$365,23,0)/VLOOKUP(CONCATENATE("Illa Mallorca",C106),'Datos generales'!$D$2:$AA$443,23,0))*IF(VLOOKUP(D106,'Datos generales'!$D$2:$R$365,15,0)="B3",1,1.1) ->  | V106: =VLOOKUP(C106,#REF!,6,0)*(VLOOKUP(D106,'Datos generales'!$D$2:$AA$365,23,0)/VLOOKUP(CONCATENATE("Illa Mallorca",C106),'Datos generales'!$D$2:$AA$443,23,0))*IF(VLOOKUP(D106,'Datos generales'!$D$2:$R$365,15,0)="B3",1,1.1) ->  | W106: =VLOOKUP($D106,#REF!,2,0) ->  | X106: =VLOOKUP(D106,'Datos generales'!$D$2:$T$365,17,0) -> 0 | Y106: =VLOOKUP(C106,#REF!,2,0)*(VLOOKUP(D106,'Datos generales'!$D$2:$AA$365,24,0)/VLOOKUP(CONCATENATE("Illa Mallorca",C106),'Datos generales'!$D$2:$AA$443,24,0))*IF(VLOOKUP(D106,'Datos generales'!$D$2:$R$365,15,0)="B3",1,1.1) ->  | Z106: =VLOOKUP(C106,#REF!,6,0)*(VLOOKUP(D106,'Datos generales'!$D$2:$AA$365,24,0)/VLOOKUP(CONCATENATE("Illa Mallorca",C106),'Datos generales'!$D$2:$AA$443,24,0))*IF(VLOOKUP(D106,'Datos generales'!$D$2:$R$365,15,0)="B3",1,1.1) ->  | AF106: =VLOOKUP(D106,'Datos generales'!$D$2:$M$365,8,0)*VLOOKUP(C106,#REF!,7,0) ->  | AG106: =VLOOKUP(D106,'Datos generales'!$D$2:$M$365,7,0)*VLOOKUP(C106,#REF!,6,0) -> 
A107: ='Datos generales'!A105 -> Es Mercadal | B107: ='Datos generales'!B105 -> Menorca | C107: ='Datos generales'!C105 -> 2030 | D107: =CONCATENATE(A107,C107) -> Es Mercadal2030 | E107: 348986.2929 | F107: 0 | G107: =31774/'Factores de conversión'!$B$6 -> 2554.408218 | H107: 100631 | I107: 462609.7371 | K107: 14458.39 | L107: =123656.5+574702.39 -> 698358.89 | S107: 14576783 | T107: =VLOOKUP(D107,'Datos generales'!$D$2:$T$365,16,0) -> 0 | U107: =VLOOKUP(C107,#REF!,2,0)*(VLOOKUP(D107,'Datos generales'!$D$2:$AA$365,23,0)/VLOOKUP(CONCATENATE("Illa Mallorca",C107),'Datos generales'!$D$2:$AA$443,23,0))*IF(VLOOKUP(D107,'Datos generales'!$D$2:$R$365,15,0)="B3",1,1.1) ->  | V107: =VLOOKUP(C107,#REF!,6,0)*(VLOOKUP(D107,'Datos generales'!$D$2:$AA$365,23,0)/VLOOKUP(CONCATENATE("Illa Mallorca",C107),'Datos generales'!$D$2:$AA$443,23,0))*IF(VLOOKUP(D107,'Datos generales'!$D$2:$R$365,15,0)="B3",1,1.1) ->  | W107: =VLOOKUP($D107,#REF!,4,0) ->  | X107: =VLOOKUP(D107,'Datos generales'!$D$2:$T$365,17,0) -> 0 | Y107: =VLOOKUP(C107,#REF!,2,0)*(VLOOKUP(D107,'Datos generales'!$D$2:$AA$365,24,0)/VLOOKUP(CONCATENATE("Illa Mallorca",C107),'Datos generales'!$D$2:$AA$443,24,0))*IF(VLOOKUP(D107,'Datos generales'!$D$2:$R$365,15,0)="B3",1,1.1) ->  | Z107: =VLOOKUP(C107,#REF!,6,0)*(VLOOKUP(D107,'Datos generales'!$D$2:$AA$365,24,0)/VLOOKUP(CONCATENATE("Illa Mallorca",C107),'Datos generales'!$D$2:$AA$443,24,0))*IF(VLOOKUP(D107,'Datos generales'!$D$2:$R$365,15,0)="B3",1,1.1) ->  | AF107: =VLOOKUP(D107,'Datos generales'!$D$2:$M$365,8,0)*VLOOKUP(C107,#REF!,7,0) ->  | AG107: =VLOOKUP(D107,'Datos generales'!$D$2:$M$365,7,0)*VLOOKUP(C107,#REF!,6,0) -> 
A108: ='Datos generales'!A106 -> Es Migjorn Gran | B108: ='Datos generales'!B106 -> Menorca | C108: ='Datos generales'!C106 -> 2005 | D108: =CONCATENATE(A108,C108) -> Es Migjorn Gran2005
A109: ='Datos generales'!A107 -> Es Migjorn Gran | B109: ='Datos generales'!B107 -> Menorca | C109: ='Datos generales'!C107 -> 2006 | D109: =CONCATENATE(A109,C109) -> Es Migjorn Gran2006
A110: ='Datos generales'!A108 -> Es Migjorn Gran | B110: ='Datos generales'!B108 -> Menorca | C110: ='Datos generales'!C108 -> 2007 | D110: =CONCATENATE(A110,C110) -> Es Migjorn Gran2007
A111: ='Datos generales'!A109 -> Es Migjorn Gran | B111: ='Datos generales'!B109 -> Menorca | C111: ='Datos generales'!C109 -> 2008 | D111: =CONCATENATE(A111,C111) -> Es Migjorn Gran2008
A112: ='Datos generales'!A110 -> Es Migjorn Gran | B112: ='Datos generales'!B110 -> Menorca | C112: ='Datos generales'!C110 -> 2009 | D112: =CONCATENATE(A112,C112) -> Es Migjorn Gran2009
A113: ='Datos generales'!A111 -> Es Migjorn Gran | B113: ='Datos generales'!B111 -> Menorca | C113: ='Datos generales'!C111 -> 2010 | D113: =CONCATENATE(A113,C113) -> Es Migjorn Gran2010
A114: ='Datos generales'!A112 -> Es Migjorn Gran | B114: ='Datos generales'!B112 -> Menorca | C114: ='Datos generales'!C112 -> 2011 | D114: =CONCATENATE(A114,C114) -> Es Migjorn Gran2011
A115: ='Datos generales'!A113 -> Es Migjorn Gran | B115: ='Datos generales'!B113 -> Menorca | C115: ='Datos generales'!C113 -> 2012 | D115: =CONCATENATE(A115,C115) -> Es Migjorn Gran2012
A116: ='Datos generales'!A114 -> Es Migjorn Gran | B116: ='Datos generales'!B114 -> Menorca | C116: ='Datos generales'!C114 -> 2013 | D116: =CONCATENATE(A116,C116) -> Es Migjorn Gran2013
A117: ='Datos generales'!A115 -> Es Migjorn Gran | B117: ='Datos generales'!B115 -> Menorca | C117: ='Datos generales'!C115 -> 2014 | D117: =CONCATENATE(A117,C117) -> Es Migjorn Gran2014
A118: ='Datos generales'!A116 -> Es Migjorn Gran | B118: ='Datos generales'!B116 -> Menorca | C118: ='Datos generales'!C116 -> 2015 | D118: =CONCATENATE(A118,C118) -> Es Migjorn Gran2015
A119: ='Datos generales'!A117 -> Es Migjorn Gran | B119: ='Datos generales'!B117 -> Menorca | C119: ='Datos generales'!C117 -> 2016 | D119: =CONCATENATE(A119,C119) -> Es Migjorn Gran2016
A120: ='Datos generales'!A118 -> Es Migjorn Gran | B120: ='Datos generales'!B118 -> Menorca | C120: ='Datos generales'!C118 -> 2017 | D120: =CONCATENATE(A120,C120) -> Es Migjorn Gran2017
A121: ='Datos generales'!A119 -> Es Migjorn Gran | B121: ='Datos generales'!B119 -> Menorca | C121: ='Datos generales'!C119 -> 2018 | D121: =CONCATENATE(A121,C121) -> Es Migjorn Gran2018
A122: ='Datos generales'!A120 -> Es Migjorn Gran | B122: ='Datos generales'!B120 -> Menorca | C122: ='Datos generales'!C120 -> 2019 | D122: =CONCATENATE(A122,C122) -> Es Migjorn Gran2019 | E122: =VLOOKUP($D122,#REF!,5,0) ->  | S122: =VLOOKUP($D122,#REF!,7,0) ->  | T122: =VLOOKUP(D122,'Datos generales'!$D$2:$T$365,16,0) -> 0 | U122: =VLOOKUP(C122,#REF!,2,0)*(VLOOKUP(D122,'Datos generales'!$D$2:$AA$365,23,0)/VLOOKUP(CONCATENATE("Illa Mallorca",C122),'Datos generales'!$D$2:$AA$443,23,0))*IF(VLOOKUP(D122,'Datos generales'!$D$2:$R$365,15,0)="B3",1,1.1) ->  | V122: =VLOOKUP(C122,#REF!,6,0)*(VLOOKUP(D122,'Datos generales'!$D$2:$AA$365,23,0)/VLOOKUP(CONCATENATE("Illa Mallorca",C122),'Datos generales'!$D$2:$AA$443,23,0))*IF(VLOOKUP(D122,'Datos generales'!$D$2:$R$365,15,0)="B3",1,1.1) ->  | W122: =VLOOKUP($D122,#REF!,4,0) ->  | X122: =VLOOKUP(D122,'Datos generales'!$D$2:$T$365,17,0) -> 0 | Y122: =VLOOKUP(C122,#REF!,2,0)*(VLOOKUP(D122,'Datos generales'!$D$2:$AA$365,24,0)/VLOOKUP(CONCATENATE("Illa Mallorca",C122),'Datos generales'!$D$2:$AA$443,24,0))*IF(VLOOKUP(D122,'Datos generales'!$D$2:$R$365,15,0)="B3",1,1.1) ->  | Z122: =VLOOKUP(C122,#REF!,6,0)*(VLOOKUP(D122,'Datos generales'!$D$2:$AA$365,24,0)/VLOOKUP(CONCATENATE("Illa Mallorca",C122),'Datos generales'!$D$2:$AA$443,24,0))*IF(VLOOKUP(D122,'Datos generales'!$D$2:$R$365,15,0)="B3",1,1.1) ->  | AF122: =VLOOKUP(D122,'Datos generales'!$D$2:$M$365,8,0)*VLOOKUP(C122,#REF!,7,0) ->  | AG122: =VLOOKUP(D122,'Datos generales'!$D$2:$M$365,7,0)*VLOOKUP(C122,#REF!,6,0) -> 
A123: ='Datos generales'!A121 -> Es Migjorn Gran | B123: ='Datos generales'!B121 -> Menorca | C123: ='Datos generales'!C121 -> 2020 | D123: =CONCATENATE(A123,C123) -> Es Migjorn Gran2020 | E123: =VLOOKUP($D123,#REF!,5,0) ->  | S123: =VLOOKUP($D123,#REF!,7,0) ->  | T123: =VLOOKUP(D123,'Datos generales'!$D$2:$T$365,16,0) -> 0 | U123: =VLOOKUP(C123,#REF!,2,0)*(VLOOKUP(D123,'Datos generales'!$D$2:$AA$365,23,0)/VLOOKUP(CONCATENATE("Illa Mallorca",C123),'Datos generales'!$D$2:$AA$443,23,0))*IF(VLOOKUP(D123,'Datos generales'!$D$2:$R$365,15,0)="B3",1,1.1) ->  | V123: =VLOOKUP(C123,#REF!,6,0)*(VLOOKUP(D123,'Datos generales'!$D$2:$AA$365,23,0)/VLOOKUP(CONCATENATE("Illa Mallorca",C123),'Datos generales'!$D$2:$AA$443,23,0))*IF(VLOOKUP(D123,'Datos generales'!$D$2:$R$365,15,0)="B3",1,1.1) ->  | W123: =VLOOKUP($D123,#REF!,4,0) ->  | X123: =VLOOKUP(D123,'Datos generales'!$D$2:$T$365,17,0) -> 0 | Y123: =VLOOKUP(C123,#REF!,2,0)*(VLOOKUP(D123,'Datos generales'!$D$2:$AA$365,24,0)/VLOOKUP(CONCATENATE("Illa Mallorca",C123),'Datos generales'!$D$2:$AA$443,24,0))*IF(VLOOKUP(D123,'Datos generales'!$D$2:$R$365,15,0)="B3",1,1.1) ->  | Z123: =VLOOKUP(C123,#REF!,6,0)*(VLOOKUP(D123,'Datos generales'!$D$2:$AA$365,24,0)/VLOOKUP(CONCATENATE("Illa Mallorca",C123),'Datos generales'!$D$2:$AA$443,24,0))*IF(VLOOKUP(D123,'Datos generales'!$D$2:$R$365,15,0)="B3",1,1.1) ->  | AF123: =VLOOKUP(D123,'Datos generales'!$D$2:$M$365,8,0)*VLOOKUP(C123,#REF!,7,0) ->  | AG123: =VLOOKUP(D123,'Datos generales'!$D$2:$M$365,7,0)*VLOOKUP(C123,#REF!,6,0) -> 
A124: ='Datos generales'!A122 -> Es Migjorn Gran | B124: ='Datos generales'!B122 -> Menorca | C124: ='Datos generales'!C122 -> 2021 | D124: =CONCATENATE(A124,C124) -> Es Migjorn Gran2021 | E124: =VLOOKUP($D124,#REF!,5,0) ->  | S124: =VLOOKUP($D124,#REF!,7,0) ->  | T124: =VLOOKUP(D124,'Datos generales'!$D$2:$T$365,16,0) -> 0 | U124: =VLOOKUP(C124,#REF!,2,0)*(VLOOKUP(D124,'Datos generales'!$D$2:$AA$365,23,0)/VLOOKUP(CONCATENATE("Illa Mallorca",C124),'Datos generales'!$D$2:$AA$443,23,0))*IF(VLOOKUP(D124,'Datos generales'!$D$2:$R$365,15,0)="B3",1,1.1) ->  | V124: =VLOOKUP(C124,#REF!,6,0)*(VLOOKUP(D124,'Datos generales'!$D$2:$AA$365,23,0)/VLOOKUP(CONCATENATE("Illa Mallorca",C124),'Datos generales'!$D$2:$AA$443,23,0))*IF(VLOOKUP(D124,'Datos generales'!$D$2:$R$365,15,0)="B3",1,1.1) ->  | W124: =VLOOKUP($D124,#REF!,4,0) ->  | X124: =VLOOKUP(D124,'Datos generales'!$D$2:$T$365,17,0) -> 0 | Y124: =VLOOKUP(C124,#REF!,2,0)*(VLOOKUP(D124,'Datos generales'!$D$2:$AA$365,24,0)/VLOOKUP(CONCATENATE("Illa Mallorca",C124),'Datos generales'!$D$2:$AA$443,24,0))*IF(VLOOKUP(D124,'Datos generales'!$D$2:$R$365,15,0)="B3",1,1.1) ->  | Z124: =VLOOKUP(C124,#REF!,6,0)*(VLOOKUP(D124,'Datos generales'!$D$2:$AA$365,24,0)/VLOOKUP(CONCATENATE("Illa Mallorca",C124),'Datos generales'!$D$2:$AA$443,24,0))*IF(VLOOKUP(D124,'Datos generales'!$D$2:$R$365,15,0)="B3",1,1.1) ->  | AF124: =VLOOKUP(D124,'Datos generales'!$D$2:$M$365,8,0)*VLOOKUP(C124,#REF!,7,0) ->  | AG124: =VLOOKUP(D124,'Datos generales'!$D$2:$M$365,7,0)*VLOOKUP(C124,#REF!,6,0) -> 
A125: ='Datos generales'!A123 -> Es Migjorn Gran | B125: ='Datos generales'!B123 -> Menorca | C125: ='Datos generales'!C123 -> 2022 | D125: =CONCATENATE(A125,C125) -> Es Migjorn Gran2022 | E125: =VLOOKUP($D125,#REF!,5,0) ->  | S125: =VLOOKUP($D125,#REF!,7,0) ->  | T125: =VLOOKUP(D125,'Datos generales'!$D$2:$T$365,16,0) -> 0 | U125: =VLOOKUP(C125,#REF!,2,0)*(VLOOKUP(D125,'Datos generales'!$D$2:$AA$365,23,0)/VLOOKUP(CONCATENATE("Illa Mallorca",C125),'Datos generales'!$D$2:$AA$443,23,0))*IF(VLOOKUP(D125,'Datos generales'!$D$2:$R$365,15,0)="B3",1,1.1) ->  | V125: =VLOOKUP(C125,#REF!,6,0)*(VLOOKUP(D125,'Datos generales'!$D$2:$AA$365,23,0)/VLOOKUP(CONCATENATE("Illa Mallorca",C125),'Datos generales'!$D$2:$AA$443,23,0))*IF(VLOOKUP(D125,'Datos generales'!$D$2:$R$365,15,0)="B3",1,1.1) ->  | W125: =VLOOKUP($D125,#REF!,4,0) ->  | X125: =VLOOKUP(D125,'Datos generales'!$D$2:$T$365,17,0) -> 0 | Y125: =VLOOKUP(C125,#REF!,2,0)*(VLOOKUP(D125,'Datos generales'!$D$2:$AA$365,24,0)/VLOOKUP(CONCATENATE("Illa Mallorca",C125),'Datos generales'!$D$2:$AA$443,24,0))*IF(VLOOKUP(D125,'Datos generales'!$D$2:$R$365,15,0)="B3",1,1.1) ->  | Z125: =VLOOKUP(C125,#REF!,6,0)*(VLOOKUP(D125,'Datos generales'!$D$2:$AA$365,24,0)/VLOOKUP(CONCATENATE("Illa Mallorca",C125),'Datos generales'!$D$2:$AA$443,24,0))*IF(VLOOKUP(D125,'Datos generales'!$D$2:$R$365,15,0)="B3",1,1.1) ->  | AF125: =VLOOKUP(D125,'Datos generales'!$D$2:$M$365,8,0)*VLOOKUP(C125,#REF!,7,0) ->  | AG125: =VLOOKUP(D125,'Datos generales'!$D$2:$M$365,7,0)*VLOOKUP(C125,#REF!,6,0) -> 
A126: ='Datos generales'!A124 -> Es Migjorn Gran | B126: ='Datos generales'!B124 -> Menorca | C126: ='Datos generales'!C124 -> 2023 | D126: =CONCATENATE(A126,C126) -> Es Migjorn Gran2023 | E126: =VLOOKUP($D126,#REF!,5,0) ->  | S126: =VLOOKUP($D126,#REF!,7,0) ->  | T126: =VLOOKUP(D126,'Datos generales'!$D$2:$T$365,16,0) -> 0 | U126: =VLOOKUP(C126,#REF!,2,0)*(VLOOKUP(D126,'Datos generales'!$D$2:$AA$365,23,0)/VLOOKUP(CONCATENATE("Illa Mallorca",C126),'Datos generales'!$D$2:$AA$443,23,0))*IF(VLOOKUP(D126,'Datos generales'!$D$2:$R$365,15,0)="B3",1,1.1) ->  | V126: =VLOOKUP(C126,#REF!,6,0)*(VLOOKUP(D126,'Datos generales'!$D$2:$AA$365,23,0)/VLOOKUP(CONCATENATE("Illa Mallorca",C126),'Datos generales'!$D$2:$AA$443,23,0))*IF(VLOOKUP(D126,'Datos generales'!$D$2:$R$365,15,0)="B3",1,1.1) ->  | W126: =VLOOKUP($D126,#REF!,4,0) ->  | X126: =VLOOKUP(D126,'Datos generales'!$D$2:$T$365,17,0) -> 0 | Y126: =VLOOKUP(C126,#REF!,2,0)*(VLOOKUP(D126,'Datos generales'!$D$2:$AA$365,24,0)/VLOOKUP(CONCATENATE("Illa Mallorca",C126),'Datos generales'!$D$2:$AA$443,24,0))*IF(VLOOKUP(D126,'Datos generales'!$D$2:$R$365,15,0)="B3",1,1.1) ->  | Z126: =VLOOKUP(C126,#REF!,6,0)*(VLOOKUP(D126,'Datos generales'!$D$2:$AA$365,24,0)/VLOOKUP(CONCATENATE("Illa Mallorca",C126),'Datos generales'!$D$2:$AA$443,24,0))*IF(VLOOKUP(D126,'Datos generales'!$D$2:$R$365,15,0)="B3",1,1.1) ->  | AF126: =VLOOKUP(D126,'Datos generales'!$D$2:$M$365,8,0)*VLOOKUP(C126,#REF!,7,0) ->  | AG126: =VLOOKUP(D126,'Datos generales'!$D$2:$M$365,7,0)*VLOOKUP(C126,#REF!,6,0) -> 
A127: ='Datos generales'!A125 -> Es Migjorn Gran | B127: ='Datos generales'!B125 -> Menorca | C127: ='Datos generales'!C125 -> 2024 | D127: =CONCATENATE(A127,C127) -> Es Migjorn Gran2024 | E127: =VLOOKUP($D127,#REF!,5,0) ->  | S127: =VLOOKUP($D127,#REF!,7,0) ->  | T127: =VLOOKUP(D127,'Datos generales'!$D$2:$T$365,16,0) -> 0 | U127: =VLOOKUP(C127,#REF!,2,0)*(VLOOKUP(D127,'Datos generales'!$D$2:$AA$365,23,0)/VLOOKUP(CONCATENATE("Illa Mallorca",C127),'Datos generales'!$D$2:$AA$443,23,0))*IF(VLOOKUP(D127,'Datos generales'!$D$2:$R$365,15,0)="B3",1,1.1) ->  | V127: =VLOOKUP(C127,#REF!,6,0)*(VLOOKUP(D127,'Datos generales'!$D$2:$AA$365,23,0)/VLOOKUP(CONCATENATE("Illa Mallorca",C127),'Datos generales'!$D$2:$AA$443,23,0))*IF(VLOOKUP(D127,'Datos generales'!$D$2:$R$365,15,0)="B3",1,1.1) ->  | W127: =VLOOKUP($D127,#REF!,4,0) ->  | X127: =VLOOKUP(D127,'Datos generales'!$D$2:$T$365,17,0) -> 0 | Y127: =VLOOKUP(C127,#REF!,2,0)*(VLOOKUP(D127,'Datos generales'!$D$2:$AA$365,24,0)/VLOOKUP(CONCATENATE("Illa Mallorca",C127),'Datos generales'!$D$2:$AA$443,24,0))*IF(VLOOKUP(D127,'Datos generales'!$D$2:$R$365,15,0)="B3",1,1.1) ->  | Z127: =VLOOKUP(C127,#REF!,6,0)*(VLOOKUP(D127,'Datos generales'!$D$2:$AA$365,24,0)/VLOOKUP(CONCATENATE("Illa Mallorca",C127),'Datos generales'!$D$2:$AA$443,24,0))*IF(VLOOKUP(D127,'Datos generales'!$D$2:$R$365,15,0)="B3",1,1.1) ->  | AF127: =VLOOKUP(D127,'Datos generales'!$D$2:$M$365,8,0)*VLOOKUP(C127,#REF!,7,0) ->  | AG127: =VLOOKUP(D127,'Datos generales'!$D$2:$M$365,7,0)*VLOOKUP(C127,#REF!,6,0) ->  | AH127: =VLOOKUP(A127,#REF!,8,0) -> 
A128: ='Datos generales'!A126 -> Es Migjorn Gran | B128: ='Datos generales'!B126 -> Menorca | C128: ='Datos generales'!C126 -> 2025 | D128: =CONCATENATE(A128,C128) -> Es Migjorn Gran2025
A129: ='Datos generales'!A127 -> Es Migjorn Gran | B129: ='Datos generales'!B127 -> Menorca | C129: ='Datos generales'!C127 -> 2026 | D129: =CONCATENATE(A129,C129) -> Es Migjorn Gran2026
A130: ='Datos generales'!A128 -> Es Migjorn Gran | B130: ='Datos generales'!B128 -> Menorca | C130: ='Datos generales'!C128 -> 2027 | D130: =CONCATENATE(A130,C130) -> Es Migjorn Gran2027 | E130: =VLOOKUP($D130,#REF!,3,0) ->  | S130: =VLOOKUP($D130,#REF!,9,0) ->  | T130: =VLOOKUP(D130,'Datos generales'!$D$2:$T$365,16,0) -> 0 | U130: =VLOOKUP(C130,#REF!,2,0)*(VLOOKUP(D130,'Datos generales'!$D$2:$AA$365,23,0)/VLOOKUP(CONCATENATE("Illa Mallorca",C130),'Datos generales'!$D$2:$AA$443,23,0))*IF(VLOOKUP(D130,'Datos generales'!$D$2:$R$365,15,0)="B3",1,1.1) ->  | V130: =VLOOKUP(C130,#REF!,6,0)*(VLOOKUP(D130,'Datos generales'!$D$2:$AA$365,23,0)/VLOOKUP(CONCATENATE("Illa Mallorca",C130),'Datos generales'!$D$2:$AA$443,23,0))*IF(VLOOKUP(D130,'Datos generales'!$D$2:$R$365,15,0)="B3",1,1.1) ->  | W130: =VLOOKUP($D130,#REF!,2,0) ->  | X130: =VLOOKUP(D130,'Datos generales'!$D$2:$T$365,17,0) -> 0 | Y130: =VLOOKUP(C130,#REF!,2,0)*(VLOOKUP(D130,'Datos generales'!$D$2:$AA$365,24,0)/VLOOKUP(CONCATENATE("Illa Mallorca",C130),'Datos generales'!$D$2:$AA$443,24,0))*IF(VLOOKUP(D130,'Datos generales'!$D$2:$R$365,15,0)="B3",1,1.1) ->  | Z130: =VLOOKUP(C130,#REF!,6,0)*(VLOOKUP(D130,'Datos generales'!$D$2:$AA$365,24,0)/VLOOKUP(CONCATENATE("Illa Mallorca",C130),'Datos generales'!$D$2:$AA$443,24,0))*IF(VLOOKUP(D130,'Datos generales'!$D$2:$R$365,15,0)="B3",1,1.1) ->  | AF130: =VLOOKUP(D130,'Datos generales'!$D$2:$M$365,8,0)*VLOOKUP(C130,#REF!,7,0) ->  | AG130: =VLOOKUP(D130,'Datos generales'!$D$2:$M$365,7,0)*VLOOKUP(C130,#REF!,6,0) -> 
A131: ='Datos generales'!A129 -> Es Migjorn Gran | B131: ='Datos generales'!B129 -> Menorca | C131: ='Datos generales'!C129 -> 2028 | D131: =CONCATENATE(A131,C131) -> Es Migjorn Gran2028 | E131: =VLOOKUP($D131,#REF!,3,0) ->  | S131: =VLOOKUP($D131,#REF!,9,0) ->  | T131: =VLOOKUP(D131,'Datos generales'!$D$2:$T$365,16,0) -> 0 | U131: =VLOOKUP(C131,#REF!,2,0)*(VLOOKUP(D131,'Datos generales'!$D$2:$AA$365,23,0)/VLOOKUP(CONCATENATE("Illa Mallorca",C131),'Datos generales'!$D$2:$AA$443,23,0))*IF(VLOOKUP(D131,'Datos generales'!$D$2:$R$365,15,0)="B3",1,1.1) ->  | V131: =VLOOKUP(C131,#REF!,6,0)*(VLOOKUP(D131,'Datos generales'!$D$2:$AA$365,23,0)/VLOOKUP(CONCATENATE("Illa Mallorca",C131),'Datos generales'!$D$2:$AA$443,23,0))*IF(VLOOKUP(D131,'Datos generales'!$D$2:$R$365,15,0)="B3",1,1.1) ->  | W131: =VLOOKUP($D131,#REF!,2,0) ->  | X131: =VLOOKUP(D131,'Datos generales'!$D$2:$T$365,17,0) -> 0 | Y131: =VLOOKUP(C131,#REF!,2,0)*(VLOOKUP(D131,'Datos generales'!$D$2:$AA$365,24,0)/VLOOKUP(CONCATENATE("Illa Mallorca",C131),'Datos generales'!$D$2:$AA$443,24,0))*IF(VLOOKUP(D131,'Datos generales'!$D$2:$R$365,15,0)="B3",1,1.1) ->  | Z131: =VLOOKUP(C131,#REF!,6,0)*(VLOOKUP(D131,'Datos generales'!$D$2:$AA$365,24,0)/VLOOKUP(CONCATENATE("Illa Mallorca",C131),'Datos generales'!$D$2:$AA$443,24,0))*IF(VLOOKUP(D131,'Datos generales'!$D$2:$R$365,15,0)="B3",1,1.1) ->  | AF131: =VLOOKUP(D131,'Datos generales'!$D$2:$M$365,8,0)*VLOOKUP(C131,#REF!,7,0) ->  | AG131: =VLOOKUP(D131,'Datos generales'!$D$2:$M$365,7,0)*VLOOKUP(C131,#REF!,6,0) -> 
A132: ='Datos generales'!A130 -> Es Migjorn Gran | B132: ='Datos generales'!B130 -> Menorca | C132: ='Datos generales'!C130 -> 2029 | D132: =CONCATENATE(A132,C132) -> Es Migjorn Gran2029 | E132: =VLOOKUP($D132,#REF!,3,0) ->  | S132: =VLOOKUP($D132,#REF!,9,0) ->  | T132: =VLOOKUP(D132,'Datos generales'!$D$2:$T$365,16,0) -> 0 | U132: =VLOOKUP(C132,#REF!,2,0)*(VLOOKUP(D132,'Datos generales'!$D$2:$AA$365,23,0)/VLOOKUP(CONCATENATE("Illa Mallorca",C132),'Datos generales'!$D$2:$AA$443,23,0))*IF(VLOOKUP(D132,'Datos generales'!$D$2:$R$365,15,0)="B3",1,1.1) ->  | V132: =VLOOKUP(C132,#REF!,6,0)*(VLOOKUP(D132,'Datos generales'!$D$2:$AA$365,23,0)/VLOOKUP(CONCATENATE("Illa Mallorca",C132),'Datos generales'!$D$2:$AA$443,23,0))*IF(VLOOKUP(D132,'Datos generales'!$D$2:$R$365,15,0)="B3",1,1.1) ->  | W132: =VLOOKUP($D132,#REF!,2,0) ->  | X132: =VLOOKUP(D132,'Datos generales'!$D$2:$T$365,17,0) -> 0 | Y132: =VLOOKUP(C132,#REF!,2,0)*(VLOOKUP(D132,'Datos generales'!$D$2:$AA$365,24,0)/VLOOKUP(CONCATENATE("Illa Mallorca",C132),'Datos generales'!$D$2:$AA$443,24,0))*IF(VLOOKUP(D132,'Datos generales'!$D$2:$R$365,15,0)="B3",1,1.1) ->  | Z132: =VLOOKUP(C132,#REF!,6,0)*(VLOOKUP(D132,'Datos generales'!$D$2:$AA$365,24,0)/VLOOKUP(CONCATENATE("Illa Mallorca",C132),'Datos generales'!$D$2:$AA$443,24,0))*IF(VLOOKUP(D132,'Datos generales'!$D$2:$R$365,15,0)="B3",1,1.1) ->  | AF132: =VLOOKUP(D132,'Datos generales'!$D$2:$M$365,8,0)*VLOOKUP(C132,#REF!,7,0) ->  | AG132: =VLOOKUP(D132,'Datos generales'!$D$2:$M$365,7,0)*VLOOKUP(C132,#REF!,6,0) -> 
A133: ='Datos generales'!A131 -> Es Migjorn Gran | B133: ='Datos generales'!B131 -> Menorca | C133: ='Datos generales'!C131 -> 2030 | D133: =CONCATENATE(A133,C133) -> Es Migjorn Gran2030 | E133: =VLOOKUP($D133,#REF!,3,0) ->  | S133: =VLOOKUP($D133,#REF!,9,0) ->  | T133: =VLOOKUP(D133,'Datos generales'!$D$2:$T$365,16,0) -> 0 | U133: =VLOOKUP(C133,#REF!,2,0)*(VLOOKUP(D133,'Datos generales'!$D$2:$AA$365,23,0)/VLOOKUP(CONCATENATE("Illa Mallorca",C133),'Datos generales'!$D$2:$AA$443,23,0))*IF(VLOOKUP(D133,'Datos generales'!$D$2:$R$365,15,0)="B3",1,1.1) ->  | V133: =VLOOKUP(C133,#REF!,6,0)*(VLOOKUP(D133,'Datos generales'!$D$2:$AA$365,23,0)/VLOOKUP(CONCATENATE("Illa Mallorca",C133),'Datos generales'!$D$2:$AA$443,23,0))*IF(VLOOKUP(D133,'Datos generales'!$D$2:$R$365,15,0)="B3",1,1.1) ->  | W133: =VLOOKUP($D133,#REF!,2,0) ->  | X133: =VLOOKUP(D133,'Datos generales'!$D$2:$T$365,17,0) -> 0 | Y133: =VLOOKUP(C133,#REF!,2,0)*(VLOOKUP(D133,'Datos generales'!$D$2:$AA$365,24,0)/VLOOKUP(CONCATENATE("Illa Mallorca",C133),'Datos generales'!$D$2:$AA$443,24,0))*IF(VLOOKUP(D133,'Datos generales'!$D$2:$R$365,15,0)="B3",1,1.1) ->  | Z133: =VLOOKUP(C133,#REF!,6,0)*(VLOOKUP(D133,'Datos generales'!$D$2:$AA$365,24,0)/VLOOKUP(CONCATENATE("Illa Mallorca",C133),'Datos generales'!$D$2:$AA$443,24,0))*IF(VLOOKUP(D133,'Datos generales'!$D$2:$R$365,15,0)="B3",1,1.1) ->  | AF133: =VLOOKUP(D133,'Datos generales'!$D$2:$M$365,8,0)*VLOOKUP(C133,#REF!,7,0) ->  | AG133: =VLOOKUP(D133,'Datos generales'!$D$2:$M$365,7,0)*VLOOKUP(C133,#REF!,6,0) -> 
A134: ='Datos generales'!A132 -> Ferreries | B134: ='Datos generales'!B132 -> Menorca | C134: ='Datos generales'!C132 -> 2005 | D134: =CONCATENATE(A134,C134) -> Ferreries2005
A135: ='Datos generales'!A133 -> Ferreries | B135: ='Datos generales'!B133 -> Menorca | C135: ='Datos generales'!C133 -> 2006 | D135: =CONCATENATE(A135,C135) -> Ferreries2006
A136: ='Datos generales'!A134 -> Ferreries | B136: ='Datos generales'!B134 -> Menorca | C136: ='Datos generales'!C134 -> 2007 | D136: =CONCATENATE(A136,C136) -> Ferreries2007
A137: ='Datos generales'!A135 -> Ferreries | B137: ='Datos generales'!B135 -> Menorca | C137: ='Datos generales'!C135 -> 2008 | D137: =CONCATENATE(A137,C137) -> Ferreries2008
A138: ='Datos generales'!A136 -> Ferreries | B138: ='Datos generales'!B136 -> Menorca | C138: ='Datos generales'!C136 -> 2009 | D138: =CONCATENATE(A138,C138) -> Ferreries2009
A139: ='Datos generales'!A137 -> Ferreries | B139: ='Datos generales'!B137 -> Menorca | C139: ='Datos generales'!C137 -> 2010 | D139: =CONCATENATE(A139,C139) -> Ferreries2010
A140: ='Datos generales'!A138 -> Ferreries | B140: ='Datos generales'!B138 -> Menorca | C140: ='Datos generales'!C138 -> 2011 | D140: =CONCATENATE(A140,C140) -> Ferreries2011
A141: ='Datos generales'!A139 -> Ferreries | B141: ='Datos generales'!B139 -> Menorca | C141: ='Datos generales'!C139 -> 2012 | D141: =CONCATENATE(A141,C141) -> Ferreries2012
A142: ='Datos generales'!A140 -> Ferreries | B142: ='Datos generales'!B140 -> Menorca | C142: ='Datos generales'!C140 -> 2013 | D142: =CONCATENATE(A142,C142) -> Ferreries2013
A143: ='Datos generales'!A141 -> Ferreries | B143: ='Datos generales'!B141 -> Menorca | C143: ='Datos generales'!C141 -> 2014 | D143: =CONCATENATE(A143,C143) -> Ferreries2014
A144: ='Datos generales'!A142 -> Ferreries | B144: ='Datos generales'!B142 -> Menorca | C144: ='Datos generales'!C142 -> 2015 | D144: =CONCATENATE(A144,C144) -> Ferreries2015
A145: ='Datos generales'!A143 -> Ferreries | B145: ='Datos generales'!B143 -> Menorca | C145: ='Datos generales'!C143 -> 2016 | D145: =CONCATENATE(A145,C145) -> Ferreries2016
A146: ='Datos generales'!A144 -> Ferreries | B146: ='Datos generales'!B144 -> Menorca | C146: ='Datos generales'!C144 -> 2017 | D146: =CONCATENATE(A146,C146) -> Ferreries2017
A147: ='Datos generales'!A145 -> Ferreries | B147: ='Datos generales'!B145 -> Menorca | C147: ='Datos generales'!C145 -> 2018 | D147: =CONCATENATE(A147,C147) -> Ferreries2018
A148: ='Datos generales'!A146 -> Ferreries | B148: ='Datos generales'!B146 -> Menorca | C148: ='Datos generales'!C146 -> 2019 | D148: =CONCATENATE(A148,C148) -> Ferreries2019 | E148: =+(4983+9620)*1000 -> 14603000 | F148: =42013*'Factores de conversión'!$B$8 -> 516759.9 | G148: 0 | H148: =(93931+91363)*'Factores de conversión'!$B$4 -> 1852940 | I148: 7894000 | K148: 327803.82 | L148: 6769861.5 | S148: =VLOOKUP($D148,#REF!,9,0) ->  | T148: =VLOOKUP(D148,'Datos generales'!$D$2:$T$365,16,0) -> 0 | U148: =VLOOKUP(C148,#REF!,2,0)*(VLOOKUP(D148,'Datos generales'!$D$2:$AA$365,23,0)/VLOOKUP(CONCATENATE("Illa Mallorca",C148),'Datos generales'!$D$2:$AA$443,23,0))*IF(VLOOKUP(D148,'Datos generales'!$D$2:$R$365,15,0)="B3",1,1.1) ->  | V148: =VLOOKUP(C148,#REF!,6,0)*(VLOOKUP(D148,'Datos generales'!$D$2:$AA$365,23,0)/VLOOKUP(CONCATENATE("Illa Mallorca",C148),'Datos generales'!$D$2:$AA$443,23,0))*IF(VLOOKUP(D148,'Datos generales'!$D$2:$R$365,15,0)="B3",1,1.1) ->  | W148: =VLOOKUP($D148,#REF!,2,0) ->  | X148: =VLOOKUP(D148,'Datos generales'!$D$2:$T$365,17,0) -> 0 | Y148: =VLOOKUP(C148,#REF!,2,0)*(VLOOKUP(D148,'Datos generales'!$D$2:$AA$365,24,0)/VLOOKUP(CONCATENATE("Illa Mallorca",C148),'Datos generales'!$D$2:$AA$443,24,0))*IF(VLOOKUP(D148,'Datos generales'!$D$2:$R$365,15,0)="B3",1,1.1) ->  | Z148: =VLOOKUP(C148,#REF!,6,0)*(VLOOKUP(D148,'Datos generales'!$D$2:$AA$365,24,0)/VLOOKUP(CONCATENATE("Illa Mallorca",C148),'Datos generales'!$D$2:$AA$443,24,0))*IF(VLOOKUP(D148,'Datos generales'!$D$2:$R$365,15,0)="B3",1,1.1) ->  | AF148: =VLOOKUP(D148,'Datos generales'!$D$2:$M$365,8,0)*VLOOKUP(C148,#REF!,7,0) ->  | AG148: =VLOOKUP(D148,'Datos generales'!$D$2:$M$365,7,0)*VLOOKUP(C148,#REF!,6,0) -> 
A149: ='Datos generales'!A147 -> Ferreries | B149: ='Datos generales'!B147 -> Menorca | C149: ='Datos generales'!C147 -> 2020 | D149: =CONCATENATE(A149,C149) -> Ferreries2020 | E149: =+(4788+7438.9)*1000 -> 12226900 | F149: =45153*'Factores de conversión'!$B$8 -> 555381.9 | G149: 0 | H149: =(117927+87878)*'Factores de conversión'!$B$4 -> 2058050 | I149: 7538000 | K149: 329820.92 | L149: 6811519 | S149: =VLOOKUP($D149,#REF!,7,0) ->  | T149: =VLOOKUP(D149,'Datos generales'!$D$2:$T$365,16,0) -> 0 | U149: =VLOOKUP(C149,#REF!,2,0)*(VLOOKUP(D149,'Datos generales'!$D$2:$AA$365,23,0)/VLOOKUP(CONCATENATE("Illa Mallorca",C149),'Datos generales'!$D$2:$AA$443,23,0))*IF(VLOOKUP(D149,'Datos generales'!$D$2:$R$365,15,0)="B3",1,1.1) ->  | V149: =VLOOKUP(C149,#REF!,6,0)*(VLOOKUP(D149,'Datos generales'!$D$2:$AA$365,23,0)/VLOOKUP(CONCATENATE("Illa Mallorca",C149),'Datos generales'!$D$2:$AA$443,23,0))*IF(VLOOKUP(D149,'Datos generales'!$D$2:$R$365,15,0)="B3",1,1.1) ->  | W149: =VLOOKUP($D149,#REF!,4,0) ->  | X149: =VLOOKUP(D149,'Datos generales'!$D$2:$T$365,17,0) -> 0 | Y149: =VLOOKUP(C149,#REF!,2,0)*(VLOOKUP(D149,'Datos generales'!$D$2:$AA$365,24,0)/VLOOKUP(CONCATENATE("Illa Mallorca",C149),'Datos generales'!$D$2:$AA$443,24,0))*IF(VLOOKUP(D149,'Datos generales'!$D$2:$R$365,15,0)="B3",1,1.1) ->  | Z149: =VLOOKUP(C149,#REF!,6,0)*(VLOOKUP(D149,'Datos generales'!$D$2:$AA$365,24,0)/VLOOKUP(CONCATENATE("Illa Mallorca",C149),'Datos generales'!$D$2:$AA$443,24,0))*IF(VLOOKUP(D149,'Datos generales'!$D$2:$R$365,15,0)="B3",1,1.1) ->  | AF149: =VLOOKUP(D149,'Datos generales'!$D$2:$M$365,8,0)*VLOOKUP(C149,#REF!,7,0) ->  | AG149: =VLOOKUP(D149,'Datos generales'!$D$2:$M$365,7,0)*VLOOKUP(C149,#REF!,6,0) -> 
A150: ='Datos generales'!A148 -> Ferreries | B150: ='Datos generales'!B148 -> Menorca | C150: ='Datos generales'!C148 -> 2021 | D150: =CONCATENATE(A150,C150) -> Ferreries2021 | E150: =(VLOOKUP($D150,#REF!,5,0))/2.23 ->  | I150: 6966291.987 | S150: =VLOOKUP($D150,#REF!,7,0) ->  | T150: =VLOOKUP(D150,'Datos generales'!$D$2:$T$365,16,0) -> 0 | U150: =VLOOKUP(C150,#REF!,2,0)*(VLOOKUP(D150,'Datos generales'!$D$2:$AA$365,23,0)/VLOOKUP(CONCATENATE("Illa Mallorca",C150),'Datos generales'!$D$2:$AA$443,23,0))*IF(VLOOKUP(D150,'Datos generales'!$D$2:$R$365,15,0)="B3",1,1.1) ->  | V150: =VLOOKUP(C150,#REF!,6,0)*(VLOOKUP(D150,'Datos generales'!$D$2:$AA$365,23,0)/VLOOKUP(CONCATENATE("Illa Mallorca",C150),'Datos generales'!$D$2:$AA$443,23,0))*IF(VLOOKUP(D150,'Datos generales'!$D$2:$R$365,15,0)="B3",1,1.1) ->  | W150: =VLOOKUP($D150,#REF!,4,0) ->  | X150: =VLOOKUP(D150,'Datos generales'!$D$2:$T$365,17,0) -> 0 | Y150: =VLOOKUP(C150,#REF!,2,0)*(VLOOKUP(D150,'Datos generales'!$D$2:$AA$365,24,0)/VLOOKUP(CONCATENATE("Illa Mallorca",C150),'Datos generales'!$D$2:$AA$443,24,0))*IF(VLOOKUP(D150,'Datos generales'!$D$2:$R$365,15,0)="B3",1,1.1) ->  | Z150: =VLOOKUP(C150,#REF!,6,0)*(VLOOKUP(D150,'Datos generales'!$D$2:$AA$365,24,0)/VLOOKUP(CONCATENATE("Illa Mallorca",C150),'Datos generales'!$D$2:$AA$443,24,0))*IF(VLOOKUP(D150,'Datos generales'!$D$2:$R$365,15,0)="B3",1,1.1) ->  | AF150: =VLOOKUP(D150,'Datos generales'!$D$2:$M$365,8,0)*VLOOKUP(C150,#REF!,7,0) ->  | AG150: =VLOOKUP(D150,'Datos generales'!$D$2:$M$365,7,0)*VLOOKUP(C150,#REF!,6,0) -> 
A151: ='Datos generales'!A149 -> Ferreries | B151: ='Datos generales'!B149 -> Menorca | C151: ='Datos generales'!C149 -> 2022 | D151: =CONCATENATE(A151,C151) -> Ferreries2022 | E151: =(VLOOKUP($D151,#REF!,5,0))/2.23 ->  | I151: 6825416.837 | S151: =VLOOKUP($D151,#REF!,7,0) ->  | T151: =VLOOKUP(D151,'Datos generales'!$D$2:$T$365,16,0) -> 0 | U151: =VLOOKUP(C151,#REF!,2,0)*(VLOOKUP(D151,'Datos generales'!$D$2:$AA$365,23,0)/VLOOKUP(CONCATENATE("Illa Mallorca",C151),'Datos generales'!$D$2:$AA$443,23,0))*IF(VLOOKUP(D151,'Datos generales'!$D$2:$R$365,15,0)="B3",1,1.1) ->  | V151: =VLOOKUP(C151,#REF!,6,0)*(VLOOKUP(D151,'Datos generales'!$D$2:$AA$365,23,0)/VLOOKUP(CONCATENATE("Illa Mallorca",C151),'Datos generales'!$D$2:$AA$443,23,0))*IF(VLOOKUP(D151,'Datos generales'!$D$2:$R$365,15,0)="B3",1,1.1) ->  | W151: =VLOOKUP($D151,#REF!,4,0) ->  | X151: =VLOOKUP(D151,'Datos generales'!$D$2:$T$365,17,0) -> 0 | Y151: =VLOOKUP(C151,#REF!,2,0)*(VLOOKUP(D151,'Datos generales'!$D$2:$AA$365,24,0)/VLOOKUP(CONCATENATE("Illa Mallorca",C151),'Datos generales'!$D$2:$AA$443,24,0))*IF(VLOOKUP(D151,'Datos generales'!$D$2:$R$365,15,0)="B3",1,1.1) ->  | Z151: =VLOOKUP(C151,#REF!,6,0)*(VLOOKUP(D151,'Datos generales'!$D$2:$AA$365,24,0)/VLOOKUP(CONCATENATE("Illa Mallorca",C151),'Datos generales'!$D$2:$AA$443,24,0))*IF(VLOOKUP(D151,'Datos generales'!$D$2:$R$365,15,0)="B3",1,1.1) ->  | AF151: =VLOOKUP(D151,'Datos generales'!$D$2:$M$365,8,0)*VLOOKUP(C151,#REF!,7,0) ->  | AG151: =VLOOKUP(D151,'Datos generales'!$D$2:$M$365,7,0)*VLOOKUP(C151,#REF!,6,0) -> 
A152: ='Datos generales'!A150 -> Ferreries | B152: ='Datos generales'!B150 -> Menorca | C152: ='Datos generales'!C150 -> 2023 | D152: =CONCATENATE(A152,C152) -> Ferreries2023 | E152: =(VLOOKUP($D152,#REF!,5,0))/2.23 ->  | I152: 6745539.905 | S152: =VLOOKUP($D152,#REF!,7,0) ->  | T152: =VLOOKUP(D152,'Datos generales'!$D$2:$T$365,16,0) -> 0 | U152: =VLOOKUP(C152,#REF!,2,0)*(VLOOKUP(D152,'Datos generales'!$D$2:$AA$365,23,0)/VLOOKUP(CONCATENATE("Illa Mallorca",C152),'Datos generales'!$D$2:$AA$443,23,0))*IF(VLOOKUP(D152,'Datos generales'!$D$2:$R$365,15,0)="B3",1,1.1) ->  | V152: =VLOOKUP(C152,#REF!,6,0)*(VLOOKUP(D152,'Datos generales'!$D$2:$AA$365,23,0)/VLOOKUP(CONCATENATE("Illa Mallorca",C152),'Datos generales'!$D$2:$AA$443,23,0))*IF(VLOOKUP(D152,'Datos generales'!$D$2:$R$365,15,0)="B3",1,1.1) ->  | W152: =VLOOKUP($D152,#REF!,4,0) ->  | X152: =VLOOKUP(D152,'Datos generales'!$D$2:$T$365,17,0) -> 0 | Y152: =VLOOKUP(C152,#REF!,2,0)*(VLOOKUP(D152,'Datos generales'!$D$2:$AA$365,24,0)/VLOOKUP(CONCATENATE("Illa Mallorca",C152),'Datos generales'!$D$2:$AA$443,24,0))*IF(VLOOKUP(D152,'Datos generales'!$D$2:$R$365,15,0)="B3",1,1.1) ->  | Z152: =VLOOKUP(C152,#REF!,6,0)*(VLOOKUP(D152,'Datos generales'!$D$2:$AA$365,24,0)/VLOOKUP(CONCATENATE("Illa Mallorca",C152),'Datos generales'!$D$2:$AA$443,24,0))*IF(VLOOKUP(D152,'Datos generales'!$D$2:$R$365,15,0)="B3",1,1.1) ->  | AF152: =VLOOKUP(D152,'Datos generales'!$D$2:$M$365,8,0)*VLOOKUP(C152,#REF!,7,0) ->  | AG152: =VLOOKUP(D152,'Datos generales'!$D$2:$M$365,7,0)*VLOOKUP(C152,#REF!,6,0) -> 
A153: ='Datos generales'!A151 -> Ferreries | B153: ='Datos generales'!B151 -> Menorca | C153: ='Datos generales'!C151 -> 2024 | D153: =CONCATENATE(A153,C153) -> Ferreries2024 | E153: =(VLOOKUP($D153,#REF!,5,0))/2.23 ->  | I153: 6785424.97 | S153: =VLOOKUP($D153,#REF!,7,0) ->  | T153: =VLOOKUP(D153,'Datos generales'!$D$2:$T$365,16,0) -> 0 | U153: =VLOOKUP(C153,#REF!,2,0)*(VLOOKUP(D153,'Datos generales'!$D$2:$AA$365,23,0)/VLOOKUP(CONCATENATE("Illa Mallorca",C153),'Datos generales'!$D$2:$AA$443,23,0))*IF(VLOOKUP(D153,'Datos generales'!$D$2:$R$365,15,0)="B3",1,1.1) ->  | V153: =VLOOKUP(C153,#REF!,6,0)*(VLOOKUP(D153,'Datos generales'!$D$2:$AA$365,23,0)/VLOOKUP(CONCATENATE("Illa Mallorca",C153),'Datos generales'!$D$2:$AA$443,23,0))*IF(VLOOKUP(D153,'Datos generales'!$D$2:$R$365,15,0)="B3",1,1.1) ->  | W153: =VLOOKUP($D153,#REF!,4,0) ->  | X153: =VLOOKUP(D153,'Datos generales'!$D$2:$T$365,17,0) -> 0 | Y153: =VLOOKUP(C153,#REF!,2,0)*(VLOOKUP(D153,'Datos generales'!$D$2:$AA$365,24,0)/VLOOKUP(CONCATENATE("Illa Mallorca",C153),'Datos generales'!$D$2:$AA$443,24,0))*IF(VLOOKUP(D153,'Datos generales'!$D$2:$R$365,15,0)="B3",1,1.1) ->  | Z153: =VLOOKUP(C153,#REF!,6,0)*(VLOOKUP(D153,'Datos generales'!$D$2:$AA$365,24,0)/VLOOKUP(CONCATENATE("Illa Mallorca",C153),'Datos generales'!$D$2:$AA$443,24,0))*IF(VLOOKUP(D153,'Datos generales'!$D$2:$R$365,15,0)="B3",1,1.1) ->  | AF153: =VLOOKUP(D153,'Datos generales'!$D$2:$M$365,8,0)*VLOOKUP(C153,#REF!,7,0) ->  | AG153: =VLOOKUP(D153,'Datos generales'!$D$2:$M$365,7,0)*VLOOKUP(C153,#REF!,6,0) -> 
A154: ='Datos generales'!A152 -> Ferreries | B154: ='Datos generales'!B152 -> Menorca | C154: ='Datos generales'!C152 -> 2025 | D154: =CONCATENATE(A154,C154) -> Ferreries2025 | E154: 13003128 | F154: 1601067 | G154: 33527.56 | H154: 1055435.585 | I154: 7340314 | K154: =68948*'Factores de conversión'!B5 -> 634321.6 | L154: =841329*'Factores de conversión'!B3 -> 8413290 | S154: =VLOOKUP($D154,#REF!,7,0) ->  | T154: =VLOOKUP(D154,'Datos generales'!$D$2:$T$365,16,0) -> 0 | U154: =VLOOKUP(C154,#REF!,2,0)*(VLOOKUP(D154,'Datos generales'!$D$2:$AA$365,23,0)/VLOOKUP(CONCATENATE("Illa Mallorca",C154),'Datos generales'!$D$2:$AA$443,23,0))*IF(VLOOKUP(D154,'Datos generales'!$D$2:$R$365,15,0)="B3",1,1.1) ->  | V154: =VLOOKUP(C154,#REF!,6,0)*(VLOOKUP(D154,'Datos generales'!$D$2:$AA$365,23,0)/VLOOKUP(CONCATENATE("Illa Mallorca",C154),'Datos generales'!$D$2:$AA$443,23,0))*IF(VLOOKUP(D154,'Datos generales'!$D$2:$R$365,15,0)="B3",1,1.1) ->  | W154: =VLOOKUP($D154,#REF!,4,0) ->  | X154: =VLOOKUP(D154,'Datos generales'!$D$2:$T$365,17,0) -> 0 | Y154: =VLOOKUP(C154,#REF!,2,0)*(VLOOKUP(D154,'Datos generales'!$D$2:$AA$365,24,0)/VLOOKUP(CONCATENATE("Illa Mallorca",C154),'Datos generales'!$D$2:$AA$443,24,0))*IF(VLOOKUP(D154,'Datos generales'!$D$2:$R$365,15,0)="B3",1,1.1) ->  | Z154: =VLOOKUP(C154,#REF!,6,0)*(VLOOKUP(D154,'Datos generales'!$D$2:$AA$365,24,0)/VLOOKUP(CONCATENATE("Illa Mallorca",C154),'Datos generales'!$D$2:$AA$443,24,0))*IF(VLOOKUP(D154,'Datos generales'!$D$2:$R$365,15,0)="B3",1,1.1) ->  | AF154: =VLOOKUP(D154,'Datos generales'!$D$2:$M$365,8,0)*VLOOKUP(C154,#REF!,7,0) ->  | AG154: =VLOOKUP(D154,'Datos generales'!$D$2:$M$365,7,0)*VLOOKUP(C154,#REF!,6,0) -> 
A155: ='Datos generales'!A153 -> Ferreries | B155: ='Datos generales'!B153 -> Menorca | C155: ='Datos generales'!C153 -> 2026 | D155: =CONCATENATE(A155,C155) -> Ferreries2026 | E155: 13239468 | F155: 1458524 | G155: 29704.72 | H155: 971321.078 | I155: 6826837 | K155: =45435*'Factores de conversión'!B5 -> 418002 | L155: =848975*'Factores de conversión'!B3 -> 8489750 | S155: =VLOOKUP($D155,#REF!,7,0) ->  | T155: =VLOOKUP(D155,'Datos generales'!$D$2:$T$365,16,0) -> 0 | U155: =VLOOKUP(C155,#REF!,2,0)*(VLOOKUP(D155,'Datos generales'!$D$2:$AA$365,23,0)/VLOOKUP(CONCATENATE("Illa Mallorca",C155),'Datos generales'!$D$2:$AA$443,23,0))*IF(VLOOKUP(D155,'Datos generales'!$D$2:$R$365,15,0)="B3",1,1.1) ->  | V155: =VLOOKUP(C155,#REF!,6,0)*(VLOOKUP(D155,'Datos generales'!$D$2:$AA$365,23,0)/VLOOKUP(CONCATENATE("Illa Mallorca",C155),'Datos generales'!$D$2:$AA$443,23,0))*IF(VLOOKUP(D155,'Datos generales'!$D$2:$R$365,15,0)="B3",1,1.1) ->  | W155: =VLOOKUP($D155,#REF!,4,0) ->  | X155: =VLOOKUP(D155,'Datos generales'!$D$2:$T$365,17,0) -> 0 | Y155: =VLOOKUP(C155,#REF!,2,0)*(VLOOKUP(D155,'Datos generales'!$D$2:$AA$365,24,0)/VLOOKUP(CONCATENATE("Illa Mallorca",C155),'Datos generales'!$D$2:$AA$443,24,0))*IF(VLOOKUP(D155,'Datos generales'!$D$2:$R$365,15,0)="B3",1,1.1) ->  | Z155: =VLOOKUP(C155,#REF!,6,0)*(VLOOKUP(D155,'Datos generales'!$D$2:$AA$365,24,0)/VLOOKUP(CONCATENATE("Illa Mallorca",C155),'Datos generales'!$D$2:$AA$443,24,0))*IF(VLOOKUP(D155,'Datos generales'!$D$2:$R$365,15,0)="B3",1,1.1) ->  | AF155: =VLOOKUP(D155,'Datos generales'!$D$2:$M$365,8,0)*VLOOKUP(C155,#REF!,7,0) ->  | AG155: =VLOOKUP(D155,'Datos generales'!$D$2:$M$365,7,0)*VLOOKUP(C155,#REF!,6,0) ->  | AH155: =VLOOKUP(A155,#REF!,8,0) -> 
A156: ='Datos generales'!A154 -> Ferreries | B156: ='Datos generales'!B154 -> Menorca | C156: ='Datos generales'!C154 -> 2027 | D156: =CONCATENATE(A156,C156) -> Ferreries2027
A157: ='Datos generales'!A155 -> Ferreries | B157: ='Datos generales'!B155 -> Menorca | C157: ='Datos generales'!C155 -> 2028 | D157: =CONCATENATE(A157,C157) -> Ferreries2028
A158: ='Datos generales'!A156 -> Ferreries | B158: ='Datos generales'!B156 -> Menorca | C158: ='Datos generales'!C156 -> 2029 | D158: =CONCATENATE(A158,C158) -> Ferreries2029 | E158: =VLOOKUP($D158,#REF!,3,0) ->  | S158: =VLOOKUP($D158,#REF!,9,0) ->  | T158: =VLOOKUP(D158,'Datos generales'!$D$2:$T$365,16,0) -> 0 | U158: =VLOOKUP(C158,#REF!,2,0)*(VLOOKUP(D158,'Datos generales'!$D$2:$AA$365,23,0)/VLOOKUP(CONCATENATE("Illa Mallorca",C158),'Datos generales'!$D$2:$AA$443,23,0))*IF(VLOOKUP(D158,'Datos generales'!$D$2:$R$365,15,0)="B3",1,1.1) ->  | V158: =VLOOKUP(C158,#REF!,6,0)*(VLOOKUP(D158,'Datos generales'!$D$2:$AA$365,23,0)/VLOOKUP(CONCATENATE("Illa Mallorca",C158),'Datos generales'!$D$2:$AA$443,23,0))*IF(VLOOKUP(D158,'Datos generales'!$D$2:$R$365,15,0)="B3",1,1.1) ->  | W158: =VLOOKUP($D158,#REF!,2,0) ->  | X158: =VLOOKUP(D158,'Datos generales'!$D$2:$T$365,17,0) -> 0 | Y158: =VLOOKUP(C158,#REF!,2,0)*(VLOOKUP(D158,'Datos generales'!$D$2:$AA$365,24,0)/VLOOKUP(CONCATENATE("Illa Mallorca",C158),'Datos generales'!$D$2:$AA$443,24,0))*IF(VLOOKUP(D158,'Datos generales'!$D$2:$R$365,15,0)="B3",1,1.1) ->  | Z158: =VLOOKUP(C158,#REF!,6,0)*(VLOOKUP(D158,'Datos generales'!$D$2:$AA$365,24,0)/VLOOKUP(CONCATENATE("Illa Mallorca",C158),'Datos generales'!$D$2:$AA$443,24,0))*IF(VLOOKUP(D158,'Datos generales'!$D$2:$R$365,15,0)="B3",1,1.1) ->  | AF158: =VLOOKUP(D158,'Datos generales'!$D$2:$M$365,8,0)*VLOOKUP(C158,#REF!,7,0) ->  | AG158: =VLOOKUP(D158,'Datos generales'!$D$2:$M$365,7,0)*VLOOKUP(C158,#REF!,6,0) -> 
A159: ='Datos generales'!A157 -> Ferreries | B159: ='Datos generales'!B157 -> Menorca | C159: ='Datos generales'!C157 -> 2030 | D159: =CONCATENATE(A159,C159) -> Ferreries2030 | E159: =VLOOKUP($D159,#REF!,3,0) ->  | S159: =VLOOKUP($D159,#REF!,9,0) ->  | T159: =VLOOKUP(D159,'Datos generales'!$D$2:$T$365,16,0) -> 0 | U159: =VLOOKUP(C159,#REF!,2,0)*(VLOOKUP(D159,'Datos generales'!$D$2:$AA$365,23,0)/VLOOKUP(CONCATENATE("Illa Mallorca",C159),'Datos generales'!$D$2:$AA$443,23,0))*IF(VLOOKUP(D159,'Datos generales'!$D$2:$R$365,15,0)="B3",1,1.1) ->  | V159: =VLOOKUP(C159,#REF!,6,0)*(VLOOKUP(D159,'Datos generales'!$D$2:$AA$365,23,0)/VLOOKUP(CONCATENATE("Illa Mallorca",C159),'Datos generales'!$D$2:$AA$443,23,0))*IF(VLOOKUP(D159,'Datos generales'!$D$2:$R$365,15,0)="B3",1,1.1) ->  | W159: =VLOOKUP($D159,#REF!,2,0) ->  | X159: =VLOOKUP(D159,'Datos generales'!$D$2:$T$365,17,0) -> 0 | Y159: =VLOOKUP(C159,#REF!,2,0)*(VLOOKUP(D159,'Datos generales'!$D$2:$AA$365,24,0)/VLOOKUP(CONCATENATE("Illa Mallorca",C159),'Datos generales'!$D$2:$AA$443,24,0))*IF(VLOOKUP(D159,'Datos generales'!$D$2:$R$365,15,0)="B3",1,1.1) ->  | Z159: =VLOOKUP(C159,#REF!,6,0)*(VLOOKUP(D159,'Datos generales'!$D$2:$AA$365,24,0)/VLOOKUP(CONCATENATE("Illa Mallorca",C159),'Datos generales'!$D$2:$AA$443,24,0))*IF(VLOOKUP(D159,'Datos generales'!$D$2:$R$365,15,0)="B3",1,1.1) ->  | AF159: =VLOOKUP(D159,'Datos generales'!$D$2:$M$365,8,0)*VLOOKUP(C159,#REF!,7,0) ->  | AG159: =VLOOKUP(D159,'Datos generales'!$D$2:$M$365,7,0)*VLOOKUP(C159,#REF!,6,0) -> 
A160: ='Datos generales'!A158 -> Maó | B160: ='Datos generales'!B158 -> Menorca | C160: ='Datos generales'!C158 -> 2005 | D160: =CONCATENATE(A160,C160) -> Maó2005
A161: ='Datos generales'!A159 -> Maó | B161: ='Datos generales'!B159 -> Menorca | C161: ='Datos generales'!C159 -> 2006 | D161: =CONCATENATE(A161,C161) -> Maó2006
A162: ='Datos generales'!A160 -> Maó | B162: ='Datos generales'!B160 -> Menorca | C162: ='Datos generales'!C160 -> 2007 | D162: =CONCATENATE(A162,C162) -> Maó2007
A163: ='Datos generales'!A161 -> Maó | B163: ='Datos generales'!B161 -> Menorca | C163: ='Datos generales'!C161 -> 2008 | D163: =CONCATENATE(A163,C163) -> Maó2008
A164: ='Datos generales'!A162 -> Maó | B164: ='Datos generales'!B162 -> Menorca | C164: ='Datos generales'!C162 -> 2009 | D164: =CONCATENATE(A164,C164) -> Maó2009
A165: ='Datos generales'!A163 -> Maó | B165: ='Datos generales'!B163 -> Menorca | C165: ='Datos generales'!C163 -> 2010 | D165: =CONCATENATE(A165,C165) -> Maó2010
A166: ='Datos generales'!A164 -> Maó | B166: ='Datos generales'!B164 -> Menorca | C166: ='Datos generales'!C164 -> 2011 | D166: =CONCATENATE(A166,C166) -> Maó2011
A167: ='Datos generales'!A165 -> Maó | B167: ='Datos generales'!B165 -> Menorca | C167: ='Datos generales'!C165 -> 2012 | D167: =CONCATENATE(A167,C167) -> Maó2012
A168: ='Datos generales'!A166 -> Maó | B168: ='Datos generales'!B166 -> Menorca | C168: ='Datos generales'!C166 -> 2013 | D168: =CONCATENATE(A168,C168) -> Maó2013
A169: ='Datos generales'!A167 -> Maó | B169: ='Datos generales'!B167 -> Menorca | C169: ='Datos generales'!C167 -> 2014 | D169: =CONCATENATE(A169,C169) -> Maó2014
A170: ='Datos generales'!A168 -> Maó | B170: ='Datos generales'!B168 -> Menorca | C170: ='Datos generales'!C168 -> 2015 | D170: =CONCATENATE(A170,C170) -> Maó2015
A171: ='Datos generales'!A169 -> Maó | B171: ='Datos generales'!B169 -> Menorca | C171: ='Datos generales'!C169 -> 2016 | D171: =CONCATENATE(A171,C171) -> Maó2016
A172: ='Datos generales'!A170 -> Maó | B172: ='Datos generales'!B170 -> Menorca | C172: ='Datos generales'!C170 -> 2017 | D172: =CONCATENATE(A172,C172) -> Maó2017
A173: ='Datos generales'!A171 -> Maó | B173: ='Datos generales'!B171 -> Menorca | C173: ='Datos generales'!C171 -> 2018 | D173: =CONCATENATE(A173,C173) -> Maó2018
A174: ='Datos generales'!A172 -> Maó | B174: ='Datos generales'!B172 -> Menorca | C174: ='Datos generales'!C172 -> 2019 | D174: =CONCATENATE(A174,C174) -> Maó2019 | E174: =VLOOKUP($D174,#REF!,3,0) ->  | I174: =VLOOKUP($D174,#REF!,4,0) ->  | S174: =VLOOKUP($D174,#REF!,9,0) ->  | T174: =VLOOKUP(D174,'Datos generales'!$D$2:$T$365,16,0) -> 0 | U174: =VLOOKUP(C174,#REF!,2,0)*(VLOOKUP(D174,'Datos generales'!$D$2:$AA$365,23,0)/VLOOKUP(CONCATENATE("Illa Mallorca",C174),'Datos generales'!$D$2:$AA$443,23,0))*IF(VLOOKUP(D174,'Datos generales'!$D$2:$R$365,15,0)="B3",1,1.1) ->  | V174: =VLOOKUP(C174,#REF!,6,0)*(VLOOKUP(D174,'Datos generales'!$D$2:$AA$365,23,0)/VLOOKUP(CONCATENATE("Illa Mallorca",C174),'Datos generales'!$D$2:$AA$443,23,0))*IF(VLOOKUP(D174,'Datos generales'!$D$2:$R$365,15,0)="B3",1,1.1) ->  | W174: =VLOOKUP($D174,#REF!,2,0) ->  | X174: =VLOOKUP(D174,'Datos generales'!$D$2:$T$365,17,0) -> 0 | Y174: =VLOOKUP(C174,#REF!,2,0)*(VLOOKUP(D174,'Datos generales'!$D$2:$AA$365,24,0)/VLOOKUP(CONCATENATE("Illa Mallorca",C174),'Datos generales'!$D$2:$AA$443,24,0))*IF(VLOOKUP(D174,'Datos generales'!$D$2:$R$365,15,0)="B3",1,1.1) ->  | Z174: =VLOOKUP(C174,#REF!,6,0)*(VLOOKUP(D174,'Datos generales'!$D$2:$AA$365,24,0)/VLOOKUP(CONCATENATE("Illa Mallorca",C174),'Datos generales'!$D$2:$AA$443,24,0))*IF(VLOOKUP(D174,'Datos generales'!$D$2:$R$365,15,0)="B3",1,1.1) ->  | AF174: =VLOOKUP(D174,'Datos generales'!$D$2:$M$365,8,0)*VLOOKUP(C174,#REF!,7,0) ->  | AG174: =VLOOKUP(D174,'Datos generales'!$D$2:$M$365,7,0)*VLOOKUP(C174,#REF!,6,0) -> 
A175: ='Datos generales'!A173 -> Maó | B175: ='Datos generales'!B173 -> Menorca | C175: ='Datos generales'!C173 -> 2020 | D175: =CONCATENATE(A175,C175) -> Maó2020 | E175: =VLOOKUP($D175,#REF!,3,0) ->  | I175: =VLOOKUP($D175,#REF!,4,0) ->  | S175: =VLOOKUP($D175,#REF!,9,0) ->  | T175: =VLOOKUP(D175,'Datos generales'!$D$2:$T$365,16,0) -> 0 | U175: =VLOOKUP(C175,#REF!,2,0)*(VLOOKUP(D175,'Datos generales'!$D$2:$AA$365,23,0)/VLOOKUP(CONCATENATE("Illa Mallorca",C175),'Datos generales'!$D$2:$AA$443,23,0))*IF(VLOOKUP(D175,'Datos generales'!$D$2:$R$365,15,0)="B3",1,1.1) ->  | V175: =VLOOKUP(C175,#REF!,6,0)*(VLOOKUP(D175,'Datos generales'!$D$2:$AA$365,23,0)/VLOOKUP(CONCATENATE("Illa Mallorca",C175),'Datos generales'!$D$2:$AA$443,23,0))*IF(VLOOKUP(D175,'Datos generales'!$D$2:$R$365,15,0)="B3",1,1.1) ->  | W175: =VLOOKUP($D175,#REF!,2,0) ->  | X175: =VLOOKUP(D175,'Datos generales'!$D$2:$T$365,17,0) -> 0 | Y175: =VLOOKUP(C175,#REF!,2,0)*(VLOOKUP(D175,'Datos generales'!$D$2:$AA$365,24,0)/VLOOKUP(CONCATENATE("Illa Mallorca",C175),'Datos generales'!$D$2:$AA$443,24,0))*IF(VLOOKUP(D175,'Datos generales'!$D$2:$R$365,15,0)="B3",1,1.1) ->  | Z175: =VLOOKUP(C175,#REF!,6,0)*(VLOOKUP(D175,'Datos generales'!$D$2:$AA$365,24,0)/VLOOKUP(CONCATENATE("Illa Mallorca",C175),'Datos generales'!$D$2:$AA$443,24,0))*IF(VLOOKUP(D175,'Datos generales'!$D$2:$R$365,15,0)="B3",1,1.1) ->  | AF175: =VLOOKUP(D175,'Datos generales'!$D$2:$M$365,8,0)*VLOOKUP(C175,#REF!,7,0) ->  | AG175: =VLOOKUP(D175,'Datos generales'!$D$2:$M$365,7,0)*VLOOKUP(C175,#REF!,6,0) -> 
A176: ='Datos generales'!A174 -> Maó | B176: ='Datos generales'!B174 -> Menorca | C176: ='Datos generales'!C174 -> 2021 | D176: =CONCATENATE(A176,C176) -> Maó2021 | E176: =VLOOKUP($D176,#REF!,3,0) ->  | I176: =VLOOKUP($D176,#REF!,4,0) ->  | S176: =VLOOKUP($D176,#REF!,9,0) ->  | T176: =VLOOKUP(D176,'Datos generales'!$D$2:$T$365,16,0) -> 0 | U176: =VLOOKUP(C176,#REF!,2,0)*(VLOOKUP(D176,'Datos generales'!$D$2:$AA$365,23,0)/VLOOKUP(CONCATENATE("Illa Mallorca",C176),'Datos generales'!$D$2:$AA$443,23,0))*IF(VLOOKUP(D176,'Datos generales'!$D$2:$R$365,15,0)="B3",1,1.1) ->  | V176: =VLOOKUP(C176,#REF!,6,0)*(VLOOKUP(D176,'Datos generales'!$D$2:$AA$365,23,0)/VLOOKUP(CONCATENATE("Illa Mallorca",C176),'Datos generales'!$D$2:$AA$443,23,0))*IF(VLOOKUP(D176,'Datos generales'!$D$2:$R$365,15,0)="B3",1,1.1) ->  | W176: =VLOOKUP($D176,#REF!,2,0) ->  | X176: =VLOOKUP(D176,'Datos generales'!$D$2:$T$365,17,0) -> 0 | Y176: =VLOOKUP(C176,#REF!,2,0)*(VLOOKUP(D176,'Datos generales'!$D$2:$AA$365,24,0)/VLOOKUP(CONCATENATE("Illa Mallorca",C176),'Datos generales'!$D$2:$AA$443,24,0))*IF(VLOOKUP(D176,'Datos generales'!$D$2:$R$365,15,0)="B3",1,1.1) ->  | Z176: =VLOOKUP(C176,#REF!,6,0)*(VLOOKUP(D176,'Datos generales'!$D$2:$AA$365,24,0)/VLOOKUP(CONCATENATE("Illa Mallorca",C176),'Datos generales'!$D$2:$AA$443,24,0))*IF(VLOOKUP(D176,'Datos generales'!$D$2:$R$365,15,0)="B3",1,1.1) ->  | AF176: =VLOOKUP(D176,'Datos generales'!$D$2:$M$365,8,0)*VLOOKUP(C176,#REF!,7,0) ->  | AG176: =VLOOKUP(D176,'Datos generales'!$D$2:$M$365,7,0)*VLOOKUP(C176,#REF!,6,0) -> 
A177: ='Datos generales'!A175 -> Maó | B177: ='Datos generales'!B175 -> Menorca | C177: ='Datos generales'!C175 -> 2022 | D177: =CONCATENATE(A177,C177) -> Maó2022 | E177: =VLOOKUP($D177,#REF!,5,0) ->  | I177: =VLOOKUP($D177,#REF!,6,0) ->  | S177: =VLOOKUP($D177,#REF!,7,0) ->  | T177: =VLOOKUP(D177,'Datos generales'!$D$2:$T$365,16,0) -> 0 | U177: =VLOOKUP(C177,#REF!,2,0)*(VLOOKUP(D177,'Datos generales'!$D$2:$AA$365,23,0)/VLOOKUP(CONCATENATE("Illa Mallorca",C177),'Datos generales'!$D$2:$AA$443,23,0))*IF(VLOOKUP(D177,'Datos generales'!$D$2:$R$365,15,0)="B3",1,1.1) ->  | V177: =VLOOKUP(C177,#REF!,6,0)*(VLOOKUP(D177,'Datos generales'!$D$2:$AA$365,23,0)/VLOOKUP(CONCATENATE("Illa Mallorca",C177),'Datos generales'!$D$2:$AA$443,23,0))*IF(VLOOKUP(D177,'Datos generales'!$D$2:$R$365,15,0)="B3",1,1.1) ->  | W177: =VLOOKUP($D177,#REF!,4,0) ->  | X177: =VLOOKUP(D177,'Datos generales'!$D$2:$T$365,17,0) -> 0 | Y177: =VLOOKUP(C177,#REF!,2,0)*(VLOOKUP(D177,'Datos generales'!$D$2:$AA$365,24,0)/VLOOKUP(CONCATENATE("Illa Mallorca",C177),'Datos generales'!$D$2:$AA$443,24,0))*IF(VLOOKUP(D177,'Datos generales'!$D$2:$R$365,15,0)="B3",1,1.1) ->  | Z177: =VLOOKUP(C177,#REF!,6,0)*(VLOOKUP(D177,'Datos generales'!$D$2:$AA$365,24,0)/VLOOKUP(CONCATENATE("Illa Mallorca",C177),'Datos generales'!$D$2:$AA$443,24,0))*IF(VLOOKUP(D177,'Datos generales'!$D$2:$R$365,15,0)="B3",1,1.1) ->  | AF177: =VLOOKUP(D177,'Datos generales'!$D$2:$M$365,8,0)*VLOOKUP(C177,#REF!,7,0) ->  | AG177: =VLOOKUP(D177,'Datos generales'!$D$2:$M$365,7,0)*VLOOKUP(C177,#REF!,6,0) -> 
A178: ='Datos generales'!A176 -> Maó | B178: ='Datos generales'!B176 -> Menorca | C178: ='Datos generales'!C176 -> 2023 | D178: =CONCATENATE(A178,C178) -> Maó2023 | E178: =VLOOKUP($D178,#REF!,5,0) ->  | I178: =VLOOKUP($D178,#REF!,6,0) ->  | S178: =VLOOKUP($D178,#REF!,7,0) ->  | T178: =VLOOKUP(D178,'Datos generales'!$D$2:$T$365,16,0) -> 0 | U178: =VLOOKUP(C178,#REF!,2,0)*(VLOOKUP(D178,'Datos generales'!$D$2:$AA$365,23,0)/VLOOKUP(CONCATENATE("Illa Mallorca",C178),'Datos generales'!$D$2:$AA$443,23,0))*IF(VLOOKUP(D178,'Datos generales'!$D$2:$R$365,15,0)="B3",1,1.1) ->  | V178: =VLOOKUP(C178,#REF!,6,0)*(VLOOKUP(D178,'Datos generales'!$D$2:$AA$365,23,0)/VLOOKUP(CONCATENATE("Illa Mallorca",C178),'Datos generales'!$D$2:$AA$443,23,0))*IF(VLOOKUP(D178,'Datos generales'!$D$2:$R$365,15,0)="B3",1,1.1) ->  | W178: =VLOOKUP($D178,#REF!,4,0) ->  | X178: =VLOOKUP(D178,'Datos generales'!$D$2:$T$365,17,0) -> 0 | Y178: =VLOOKUP(C178,#REF!,2,0)*(VLOOKUP(D178,'Datos generales'!$D$2:$AA$365,24,0)/VLOOKUP(CONCATENATE("Illa Mallorca",C178),'Datos generales'!$D$2:$AA$443,24,0))*IF(VLOOKUP(D178,'Datos generales'!$D$2:$R$365,15,0)="B3",1,1.1) ->  | Z178: =VLOOKUP(C178,#REF!,6,0)*(VLOOKUP(D178,'Datos generales'!$D$2:$AA$365,24,0)/VLOOKUP(CONCATENATE("Illa Mallorca",C178),'Datos generales'!$D$2:$AA$443,24,0))*IF(VLOOKUP(D178,'Datos generales'!$D$2:$R$365,15,0)="B3",1,1.1) ->  | AF178: =VLOOKUP(D178,'Datos generales'!$D$2:$M$365,8,0)*VLOOKUP(C178,#REF!,7,0) ->  | AG178: =VLOOKUP(D178,'Datos generales'!$D$2:$M$365,7,0)*VLOOKUP(C178,#REF!,6,0) -> 
A179: ='Datos generales'!A177 -> Maó | B179: ='Datos generales'!B177 -> Menorca | C179: ='Datos generales'!C177 -> 2024 | D179: =CONCATENATE(A179,C179) -> Maó2024 | E179: =VLOOKUP($D179,#REF!,5,0) ->  | I179: =VLOOKUP($D179,#REF!,6,0) ->  | S179: =VLOOKUP($D179,#REF!,7,0) ->  | T179: =VLOOKUP(D179,'Datos generales'!$D$2:$T$365,16,0) -> 0 | U179: =VLOOKUP(C179,#REF!,2,0)*(VLOOKUP(D179,'Datos generales'!$D$2:$AA$365,23,0)/VLOOKUP(CONCATENATE("Illa Mallorca",C179),'Datos generales'!$D$2:$AA$443,23,0))*IF(VLOOKUP(D179,'Datos generales'!$D$2:$R$365,15,0)="B3",1,1.1) ->  | V179: =VLOOKUP(C179,#REF!,6,0)*(VLOOKUP(D179,'Datos generales'!$D$2:$AA$365,23,0)/VLOOKUP(CONCATENATE("Illa Mallorca",C179),'Datos generales'!$D$2:$AA$443,23,0))*IF(VLOOKUP(D179,'Datos generales'!$D$2:$R$365,15,0)="B3",1,1.1) ->  | W179: =VLOOKUP($D179,#REF!,4,0) ->  | X179: =VLOOKUP(D179,'Datos generales'!$D$2:$T$365,17,0) -> 0 | Y179: =VLOOKUP(C179,#REF!,2,0)*(VLOOKUP(D179,'Datos generales'!$D$2:$AA$365,24,0)/VLOOKUP(CONCATENATE("Illa Mallorca",C179),'Datos generales'!$D$2:$AA$443,24,0))*IF(VLOOKUP(D179,'Datos generales'!$D$2:$R$365,15,0)="B3",1,1.1) ->  | Z179: =VLOOKUP(C179,#REF!,6,0)*(VLOOKUP(D179,'Datos generales'!$D$2:$AA$365,24,0)/VLOOKUP(CONCATENATE("Illa Mallorca",C179),'Datos generales'!$D$2:$AA$443,24,0))*IF(VLOOKUP(D179,'Datos generales'!$D$2:$R$365,15,0)="B3",1,1.1) ->  | AF179: =VLOOKUP(D179,'Datos generales'!$D$2:$M$365,8,0)*VLOOKUP(C179,#REF!,7,0) ->  | AG179: =VLOOKUP(D179,'Datos generales'!$D$2:$M$365,7,0)*VLOOKUP(C179,#REF!,6,0) -> 
A180: ='Datos generales'!A178 -> Maó | B180: ='Datos generales'!B178 -> Menorca | C180: ='Datos generales'!C178 -> 2025 | D180: =CONCATENATE(A180,C180) -> Maó2025 | E180: =VLOOKUP($D180,#REF!,5,0) ->  | I180: =VLOOKUP($D180,#REF!,6,0) ->  | S180: =VLOOKUP($D180,#REF!,7,0) ->  | T180: =VLOOKUP(D180,'Datos generales'!$D$2:$T$365,16,0) -> 0 | U180: =VLOOKUP(C180,#REF!,2,0)*(VLOOKUP(D180,'Datos generales'!$D$2:$AA$365,23,0)/VLOOKUP(CONCATENATE("Illa Mallorca",C180),'Datos generales'!$D$2:$AA$443,23,0))*IF(VLOOKUP(D180,'Datos generales'!$D$2:$R$365,15,0)="B3",1,1.1) ->  | V180: =VLOOKUP(C180,#REF!,6,0)*(VLOOKUP(D180,'Datos generales'!$D$2:$AA$365,23,0)/VLOOKUP(CONCATENATE("Illa Mallorca",C180),'Datos generales'!$D$2:$AA$443,23,0))*IF(VLOOKUP(D180,'Datos generales'!$D$2:$R$365,15,0)="B3",1,1.1) ->  | W180: =VLOOKUP($D180,#REF!,4,0) ->  | X180: =VLOOKUP(D180,'Datos generales'!$D$2:$T$365,17,0) -> 0 | Y180: =VLOOKUP(C180,#REF!,2,0)*(VLOOKUP(D180,'Datos generales'!$D$2:$AA$365,24,0)/VLOOKUP(CONCATENATE("Illa Mallorca",C180),'Datos generales'!$D$2:$AA$443,24,0))*IF(VLOOKUP(D180,'Datos generales'!$D$2:$R$365,15,0)="B3",1,1.1) ->  | Z180: =VLOOKUP(C180,#REF!,6,0)*(VLOOKUP(D180,'Datos generales'!$D$2:$AA$365,24,0)/VLOOKUP(CONCATENATE("Illa Mallorca",C180),'Datos generales'!$D$2:$AA$443,24,0))*IF(VLOOKUP(D180,'Datos generales'!$D$2:$R$365,15,0)="B3",1,1.1) ->  | AF180: =VLOOKUP(D180,'Datos generales'!$D$2:$M$365,8,0)*VLOOKUP(C180,#REF!,7,0) ->  | AG180: =VLOOKUP(D180,'Datos generales'!$D$2:$M$365,7,0)*VLOOKUP(C180,#REF!,6,0) -> 
A181: ='Datos generales'!A179 -> Maó | B181: ='Datos generales'!B179 -> Menorca | C181: ='Datos generales'!C179 -> 2026 | D181: =CONCATENATE(A181,C181) -> Maó2026 | E181: =VLOOKUP($D181,#REF!,5,0) ->  | I181: =VLOOKUP($D181,#REF!,6,0) ->  | S181: =VLOOKUP($D181,#REF!,7,0) ->  | T181: =VLOOKUP(D181,'Datos generales'!$D$2:$T$365,16,0) -> 0 | U181: =VLOOKUP(C181,#REF!,2,0)*(VLOOKUP(D181,'Datos generales'!$D$2:$AA$365,23,0)/VLOOKUP(CONCATENATE("Illa Mallorca",C181),'Datos generales'!$D$2:$AA$443,23,0))*IF(VLOOKUP(D181,'Datos generales'!$D$2:$R$365,15,0)="B3",1,1.1) ->  | V181: =VLOOKUP(C181,#REF!,6,0)*(VLOOKUP(D181,'Datos generales'!$D$2:$AA$365,23,0)/VLOOKUP(CONCATENATE("Illa Mallorca",C181),'Datos generales'!$D$2:$AA$443,23,0))*IF(VLOOKUP(D181,'Datos generales'!$D$2:$R$365,15,0)="B3",1,1.1) ->  | W181: =VLOOKUP($D181,#REF!,4,0) ->  | X181: =VLOOKUP(D181,'Datos generales'!$D$2:$T$365,17,0) -> 0 | Y181: =VLOOKUP(C181,#REF!,2,0)*(VLOOKUP(D181,'Datos generales'!$D$2:$AA$365,24,0)/VLOOKUP(CONCATENATE("Illa Mallorca",C181),'Datos generales'!$D$2:$AA$443,24,0))*IF(VLOOKUP(D181,'Datos generales'!$D$2:$R$365,15,0)="B3",1,1.1) ->  | Z181: =VLOOKUP(C181,#REF!,6,0)*(VLOOKUP(D181,'Datos generales'!$D$2:$AA$365,24,0)/VLOOKUP(CONCATENATE("Illa Mallorca",C181),'Datos generales'!$D$2:$AA$443,24,0))*IF(VLOOKUP(D181,'Datos generales'!$D$2:$R$365,15,0)="B3",1,1.1) ->  | AF181: =VLOOKUP(D181,'Datos generales'!$D$2:$M$365,8,0)*VLOOKUP(C181,#REF!,7,0) ->  | AG181: =VLOOKUP(D181,'Datos generales'!$D$2:$M$365,7,0)*VLOOKUP(C181,#REF!,6,0) -> 
A182: ='Datos generales'!A180 -> Maó | B182: ='Datos generales'!B180 -> Menorca | C182: ='Datos generales'!C180 -> 2027 | D182: =CONCATENATE(A182,C182) -> Maó2027 | E182: =VLOOKUP($D182,#REF!,5,0) ->  | I182: =VLOOKUP($D182,#REF!,6,0) ->  | S182: =VLOOKUP($D182,#REF!,7,0) ->  | T182: =VLOOKUP(D182,'Datos generales'!$D$2:$T$365,16,0) -> 0 | U182: =VLOOKUP(C182,#REF!,2,0)*(VLOOKUP(D182,'Datos generales'!$D$2:$AA$365,23,0)/VLOOKUP(CONCATENATE("Illa Mallorca",C182),'Datos generales'!$D$2:$AA$443,23,0))*IF(VLOOKUP(D182,'Datos generales'!$D$2:$R$365,15,0)="B3",1,1.1) ->  | V182: =VLOOKUP(C182,#REF!,6,0)*(VLOOKUP(D182,'Datos generales'!$D$2:$AA$365,23,0)/VLOOKUP(CONCATENATE("Illa Mallorca",C182),'Datos generales'!$D$2:$AA$443,23,0))*IF(VLOOKUP(D182,'Datos generales'!$D$2:$R$365,15,0)="B3",1,1.1) ->  | W182: =VLOOKUP($D182,#REF!,4,0) ->  | X182: =VLOOKUP(D182,'Datos generales'!$D$2:$T$365,17,0) -> 0 | Y182: =VLOOKUP(C182,#REF!,2,0)*(VLOOKUP(D182,'Datos generales'!$D$2:$AA$365,24,0)/VLOOKUP(CONCATENATE("Illa Mallorca",C182),'Datos generales'!$D$2:$AA$443,24,0))*IF(VLOOKUP(D182,'Datos generales'!$D$2:$R$365,15,0)="B3",1,1.1) ->  | Z182: =VLOOKUP(C182,#REF!,6,0)*(VLOOKUP(D182,'Datos generales'!$D$2:$AA$365,24,0)/VLOOKUP(CONCATENATE("Illa Mallorca",C182),'Datos generales'!$D$2:$AA$443,24,0))*IF(VLOOKUP(D182,'Datos generales'!$D$2:$R$365,15,0)="B3",1,1.1) ->  | AF182: =VLOOKUP(D182,'Datos generales'!$D$2:$M$365,8,0)*VLOOKUP(C182,#REF!,7,0) ->  | AG182: =VLOOKUP(D182,'Datos generales'!$D$2:$M$365,7,0)*VLOOKUP(C182,#REF!,6,0) -> 
A183: ='Datos generales'!A181 -> Maó | B183: ='Datos generales'!B181 -> Menorca | C183: ='Datos generales'!C181 -> 2028 | D183: =CONCATENATE(A183,C183) -> Maó2028 | E183: =VLOOKUP($D183,#REF!,5,0) ->  | I183: =VLOOKUP($D183,#REF!,6,0) ->  | S183: =VLOOKUP($D183,#REF!,7,0) ->  | T183: =VLOOKUP(D183,'Datos generales'!$D$2:$T$365,16,0) -> 0 | U183: =VLOOKUP(C183,#REF!,2,0)*(VLOOKUP(D183,'Datos generales'!$D$2:$AA$365,23,0)/VLOOKUP(CONCATENATE("Illa Mallorca",C183),'Datos generales'!$D$2:$AA$443,23,0))*IF(VLOOKUP(D183,'Datos generales'!$D$2:$R$365,15,0)="B3",1,1.1) ->  | V183: =VLOOKUP(C183,#REF!,6,0)*(VLOOKUP(D183,'Datos generales'!$D$2:$AA$365,23,0)/VLOOKUP(CONCATENATE("Illa Mallorca",C183),'Datos generales'!$D$2:$AA$443,23,0))*IF(VLOOKUP(D183,'Datos generales'!$D$2:$R$365,15,0)="B3",1,1.1) ->  | W183: =VLOOKUP($D183,#REF!,4,0) ->  | X183: =VLOOKUP(D183,'Datos generales'!$D$2:$T$365,17,0) -> 0 | Y183: =VLOOKUP(C183,#REF!,2,0)*(VLOOKUP(D183,'Datos generales'!$D$2:$AA$365,24,0)/VLOOKUP(CONCATENATE("Illa Mallorca",C183),'Datos generales'!$D$2:$AA$443,24,0))*IF(VLOOKUP(D183,'Datos generales'!$D$2:$R$365,15,0)="B3",1,1.1) ->  | Z183: =VLOOKUP(C183,#REF!,6,0)*(VLOOKUP(D183,'Datos generales'!$D$2:$AA$365,24,0)/VLOOKUP(CONCATENATE("Illa Mallorca",C183),'Datos generales'!$D$2:$AA$443,24,0))*IF(VLOOKUP(D183,'Datos generales'!$D$2:$R$365,15,0)="B3",1,1.1) ->  | AF183: =VLOOKUP(D183,'Datos generales'!$D$2:$M$365,8,0)*VLOOKUP(C183,#REF!,7,0) ->  | AG183: =VLOOKUP(D183,'Datos generales'!$D$2:$M$365,7,0)*VLOOKUP(C183,#REF!,6,0) ->  | AH183: =VLOOKUP(A183,#REF!,8,0) -> 
A184: ='Datos generales'!A182 -> Maó | B184: ='Datos generales'!B182 -> Menorca | C184: ='Datos generales'!C182 -> 2029 | D184: =CONCATENATE(A184,C184) -> Maó2029
A185: ='Datos generales'!A183 -> Maó | B185: ='Datos generales'!B183 -> Menorca | C185: ='Datos generales'!C183 -> 2030 | D185: =CONCATENATE(A185,C185) -> Maó2030
A186: ='Datos generales'!A184 -> Sant Lluís | B186: ='Datos generales'!B184 -> Menorca | C186: ='Datos generales'!C184 -> 2005 | D186: =CONCATENATE(A186,C186) -> Sant Lluís2005
A187: ='Datos generales'!A185 -> Sant Lluís | B187: ='Datos generales'!B185 -> Menorca | C187: ='Datos generales'!C185 -> 2006 | D187: =CONCATENATE(A187,C187) -> Sant Lluís2006
A188: ='Datos generales'!A186 -> Sant Lluís | B188: ='Datos generales'!B186 -> Menorca | C188: ='Datos generales'!C186 -> 2007 | D188: =CONCATENATE(A188,C188) -> Sant Lluís2007
A189: ='Datos generales'!A187 -> Sant Lluís | B189: ='Datos generales'!B187 -> Menorca | C189: ='Datos generales'!C187 -> 2008 | D189: =CONCATENATE(A189,C189) -> Sant Lluís2008
A190: ='Datos generales'!A188 -> Sant Lluís | B190: ='Datos generales'!B188 -> Menorca | C190: ='Datos generales'!C188 -> 2009 | D190: =CONCATENATE(A190,C190) -> Sant Lluís2009
A191: ='Datos generales'!A189 -> Sant Lluís | B191: ='Datos generales'!B189 -> Menorca | C191: ='Datos generales'!C189 -> 2010 | D191: =CONCATENATE(A191,C191) -> Sant Lluís2010
A192: ='Datos generales'!A190 -> Sant Lluís | B192: ='Datos generales'!B190 -> Menorca | C192: ='Datos generales'!C190 -> 2011 | D192: =CONCATENATE(A192,C192) -> Sant Lluís2011
A193: ='Datos generales'!A191 -> Sant Lluís | B193: ='Datos generales'!B191 -> Menorca | C193: ='Datos generales'!C191 -> 2012 | D193: =CONCATENATE(A193,C193) -> Sant Lluís2012
A194: ='Datos generales'!A192 -> Sant Lluís | B194: ='Datos generales'!B192 -> Menorca | C194: ='Datos generales'!C192 -> 2013 | D194: =CONCATENATE(A194,C194) -> Sant Lluís2013
A195: ='Datos generales'!A193 -> Sant Lluís | B195: ='Datos generales'!B193 -> Menorca | C195: ='Datos generales'!C193 -> 2014 | D195: =CONCATENATE(A195,C195) -> Sant Lluís2014
A196: ='Datos generales'!A194 -> Sant Lluís | B196: ='Datos generales'!B194 -> Menorca | C196: ='Datos generales'!C194 -> 2015 | D196: =CONCATENATE(A196,C196) -> Sant Lluís2015
A197: ='Datos generales'!A195 -> Sant Lluís | B197: ='Datos generales'!B195 -> Menorca | C197: ='Datos generales'!C195 -> 2016 | D197: =CONCATENATE(A197,C197) -> Sant Lluís2016
A198: ='Datos generales'!A196 -> Sant Lluís | B198: ='Datos generales'!B196 -> Menorca | C198: ='Datos generales'!C196 -> 2017 | D198: =CONCATENATE(A198,C198) -> Sant Lluís2017
A199: ='Datos generales'!A197 -> Sant Lluís | B199: ='Datos generales'!B197 -> Menorca | C199: ='Datos generales'!C197 -> 2018 | D199: =CONCATENATE(A199,C199) -> Sant Lluís2018
A200: ='Datos generales'!A198 -> Sant Lluís | B200: ='Datos generales'!B198 -> Menorca | C200: ='Datos generales'!C198 -> 2019 | D200: =CONCATENATE(A200,C200) -> Sant Lluís2019 | E200: =VLOOKUP($D200,#REF!,3,0) ->  | S200: =VLOOKUP($D200,#REF!,9,0) ->  | T200: =VLOOKUP(D200,'Datos generales'!$D$2:$T$365,16,0) -> 0 | U200: =VLOOKUP(C200,#REF!,2,0)*(VLOOKUP(D200,'Datos generales'!$D$2:$AA$365,23,0)/VLOOKUP(CONCATENATE("Illa Mallorca",C200),'Datos generales'!$D$2:$AA$443,23,0))*IF(VLOOKUP(D200,'Datos generales'!$D$2:$R$365,15,0)="B3",1,1.1) ->  | V200: =VLOOKUP(C200,#REF!,6,0)*(VLOOKUP(D200,'Datos generales'!$D$2:$AA$365,23,0)/VLOOKUP(CONCATENATE("Illa Mallorca",C200),'Datos generales'!$D$2:$AA$443,23,0))*IF(VLOOKUP(D200,'Datos generales'!$D$2:$R$365,15,0)="B3",1,1.1) ->  | W200: =VLOOKUP($D200,#REF!,2,0) ->  | X200: =VLOOKUP(D200,'Datos generales'!$D$2:$T$365,17,0) -> 0 | Y200: =VLOOKUP(C200,#REF!,2,0)*(VLOOKUP(D200,'Datos generales'!$D$2:$AA$365,24,0)/VLOOKUP(CONCATENATE("Illa Mallorca",C200),'Datos generales'!$D$2:$AA$443,24,0))*IF(VLOOKUP(D200,'Datos generales'!$D$2:$R$365,15,0)="B3",1,1.1) ->  | Z200: =VLOOKUP(C200,#REF!,6,0)*(VLOOKUP(D200,'Datos generales'!$D$2:$AA$365,24,0)/VLOOKUP(CONCATENATE("Illa Mallorca",C200),'Datos generales'!$D$2:$AA$443,24,0))*IF(VLOOKUP(D200,'Datos generales'!$D$2:$R$365,15,0)="B3",1,1.1) ->  | AF200: =VLOOKUP(D200,'Datos generales'!$D$2:$M$365,8,0)*VLOOKUP(C200,#REF!,7,0) ->  | AG200: =VLOOKUP(D200,'Datos generales'!$D$2:$M$365,7,0)*VLOOKUP(C200,#REF!,6,0) -> 
... 246 more rows

Sheet Evolución emisiones
A1: MUNICIPI | B1: ILLA | C1: ANY | D1: REF. | E1: Factor emissió local electricitat (tCO2/MWh) | F1: ÁMBITS QUE DEPENEN DE L'AJUNTAMENT | T1: ÁMBITS QUE NO DEPENEN DE L'AJUNTAMENT
F2: EDIFICIS, EQUIPAMENTS I INSTALACIONS MUNICIPALS | J2: ENLLUMENAT PÚBLIC | K2: TRANSPORT PÚBLIC I MUNICIPAL | Q2: PRODUCCIÓ D'ENERGÍA | T2: SECTOR DOMÉSTIC | X2: SECTOR SERVEIS | AB2: SECTOR INDUSTRIA | AF2: TRANSPORT PRIVAT I COMERCIAL | AI2: PRODUCCIÓ D'ENERGÍA | AN2: RESIDUS (NO ENERGÉTIQUES) | AR2: CICLO DEL AGUA (NO ENERGÉTICAS) | AS2: CONSUMS PORTUARIS
F3: Emissions d'electricitat (tCO2) | G3: Emissions de gas canalitzat (tCO2) | H3: Emissions de GLP (tCO2) | I3: Emissions de Gasoil C (tCO2) | J3: Emissions d'electricitat (tCO2) | K3: Emissions d'electricitat (tCO2) | L3: Emissions de Gasolina (tCO2) | M3: Emissions de Gasoil (tCO2) | N3: Emissions de gas natural (tCO2) | O3: Emissions de biodiesel (10%) (tCO2) | P3: Emissions de biodiesel (20%) (tCO2) | Q3: Energia produïda renovables (kWh) | R3: Energia produïda convencional (kWh) | S3: Compra d'energia verda certificada (kWh) | T3: Emissions d'electricitat (tCO2) | U3: Emissions de gas canalitzat (tCO2) | V3: Emissions de GLP (tCO2) | W3: Emissions de Gasoil C (tCO2) | X3: Emissions d'electricitat (tCO2) | Y3: Emissions de gas canalitzat (tCO2) | Z3: Emissions de GLP (tCO2) | AA3: Emissions de Gasoil C (tCO2) | AB3: Consumo de electricitat (kWh) | AC3: Consum de gas canalitzat (kWh) | AD3: Consumo de GLP (kg) | AE3: Consumo de gasóleo C (litros) | AF3: Emissions d'electricitat (tCO2) | AG3: Emissions de Gasolina (tCO2) | AH3: Emissions de Gasoil (tCO2) | AI3: Energia produïda renovables (kWh) | AJ3: Energia produïda convencional (kWh) | AK3: Emissions de gas natural (kWh) | AL3: Emissions altres combustibles (kWh) | AM3: Compra d'energia verda certificada (kWh) | AN3: Recollida en massa (t) | AO3: Vidre (t) | AP3: Paper i cartó (t) | AQ3: Envasos (t) | AR3: Emissions procés (tCO2) | AS3: Emissions combustibles líquids (t)
A4: ='Datos generales'!A2 -> Alaior | B4: ='Datos generales'!B2 -> Menorca | C4: ='Datos generales'!C2 -> 2005 | D4: =CONCATENATE(A4,C4) -> Alaior2005
A5: ='Datos generales'!A3 -> Alaior | B5: ='Datos generales'!B3 -> Menorca | C5: ='Datos generales'!C3 -> 2006 | D5: =CONCATENATE(A5,C5) -> Alaior2006
A6: ='Datos generales'!A4 -> Alaior | B6: ='Datos generales'!B4 -> Menorca | C6: ='Datos generales'!C4 -> 2007 | D6: =CONCATENATE(A6,C6) -> Alaior2007
A7: ='Datos generales'!A5 -> Alaior | B7: ='Datos generales'!B5 -> Menorca | C7: ='Datos generales'!C5 -> 2008 | D7: =CONCATENATE(A7,C7) -> Alaior2008
A8: ='Datos generales'!A6 -> Alaior | B8: ='Datos generales'!B6 -> Menorca | C8: ='Datos generales'!C6 -> 2009 | D8: =CONCATENATE(A8,C8) -> Alaior2009
A9: ='Datos generales'!A7 -> Alaior | B9: ='Datos generales'!B7 -> Menorca | C9: ='Datos generales'!C7 -> 2010 | D9: =CONCATENATE(A9,C9) -> Alaior2010
A10: ='Datos generales'!A8 -> Alaior | B10: ='Datos generales'!B8 -> Menorca | C10: ='Datos generales'!C8 -> 2011 | D10: =CONCATENATE(A10,C10) -> Alaior2011
A11: ='Datos generales'!A9 -> Alaior | B11: ='Datos generales'!B9 -> Menorca | C11: ='Datos generales'!C9 -> 2012 | D11: =CONCATENATE(A11,C11) -> Alaior2012
A12: ='Datos generales'!A10 -> Alaior | B12: ='Datos generales'!B10 -> Menorca | C12: ='Datos generales'!C10 -> 2013 | D12: =CONCATENATE(A12,C12) -> Alaior2013
A13: ='Datos generales'!A11 -> Alaior | B13: ='Datos generales'!B11 -> Menorca | C13: ='Datos generales'!C11 -> 2014 | D13: =CONCATENATE(A13,C13) -> Alaior2014
A14: ='Datos generales'!A12 -> Alaior | B14: ='Datos generales'!B12 -> Menorca | C14: ='Datos generales'!C12 -> 2015 | D14: =CONCATENATE(A14,C14) -> Alaior2015
A15: ='Datos generales'!A13 -> Alaior | B15: ='Datos generales'!B13 -> Menorca | C15: ='Datos generales'!C13 -> 2016 | D15: =CONCATENATE(A15,C15) -> Alaior2016
A16: ='Datos generales'!A14 -> Alaior | B16: ='Datos generales'!B14 -> Menorca | C16: ='Datos generales'!C14 -> 2017 | D16: =CONCATENATE(A16,C16) -> Alaior2017
A17: ='Datos generales'!A15 -> Alaior | B17: ='Datos generales'!B15 -> Menorca | C17: ='Datos generales'!C15 -> 2018 | D17: =CONCATENATE(A17,C17) -> Alaior2018
A18: ='Datos generales'!A16 -> Alaior | B18: ='Datos generales'!B16 -> Menorca | C18: ='Datos generales'!C16 -> 2019 | D18: =CONCATENATE(A18,C18) -> Alaior2019
A19: ='Datos generales'!A17 -> Alaior | B19: ='Datos generales'!B17 -> Menorca | C19: ='Datos generales'!C17 -> 2020 | D19: =CONCATENATE(A19,C19) -> Alaior2020
A20: ='Datos generales'!A18 -> Alaior | B20: ='Datos generales'!B18 -> Menorca | C20: ='Datos generales'!C18 -> 2021 | D20: =CONCATENATE(A20,C20) -> Alaior2021
A21: ='Datos generales'!A19 -> Alaior | B21: ='Datos generales'!B19 -> Menorca | C21: ='Datos generales'!C19 -> 2022 | D21: =CONCATENATE(A21,C21) -> Alaior2022
A22: ='Datos generales'!A20 -> Alaior | B22: ='Datos generales'!B20 -> Menorca | C22: ='Datos generales'!C20 -> 2023 | D22: =CONCATENATE(A22,C22) -> Alaior2023
A23: ='Datos generales'!A21 -> Alaior | B23: ='Datos generales'!B21 -> Menorca | C23: ='Datos generales'!C21 -> 2024 | D23: =CONCATENATE(A23,C23) -> Alaior2024
A24: ='Datos generales'!A22 -> Alaior | B24: ='Datos generales'!B22 -> Menorca | C24: ='Datos generales'!C22 -> 2025 | D24: =CONCATENATE(A24,C24) -> Alaior2025
A25: ='Datos generales'!A23 -> Alaior | B25: ='Datos generales'!B23 -> Menorca | C25: ='Datos generales'!C23 -> 2026 | D25: =CONCATENATE(A25,C25) -> Alaior2026
A26: ='Datos generales'!A24 -> Alaior | B26: ='Datos generales'!B24 -> Menorca | C26: ='Datos generales'!C24 -> 2027 | D26: =CONCATENATE(A26,C26) -> Alaior2027
A27: ='Datos generales'!A25 -> Alaior | B27: ='Datos generales'!B25 -> Menorca | C27: ='Datos generales'!C25 -> 2028 | D27: =CONCATENATE(A27,C27) -> Alaior2028
A28: ='Datos generales'!A26 -> Alaior | B28: ='Datos generales'!B26 -> Menorca | C28: ='Datos generales'!C26 -> 2029 | D28: =CONCATENATE(A28,C28) -> Alaior2029
A29: ='Datos generales'!A27 -> Alaior | B29: ='Datos generales'!B27 -> Menorca | C29: ='Datos generales'!C27 -> 2030 | D29: =CONCATENATE(A29,C29) -> Alaior2030
A30: ='Datos generales'!A28 -> Ciutadella | B30: ='Datos generales'!B28 -> Menorca | C30: ='Datos generales'!C28 -> 2005 | D30: =CONCATENATE(A30,C30) -> Ciutadella2005
A31: ='Datos generales'!A29 -> Ciutadella | B31: ='Datos generales'!B29 -> Menorca | C31: ='Datos generales'!C29 -> 2006 | D31: =CONCATENATE(A31,C31) -> Ciutadella2006
A32: ='Datos generales'!A30 -> Ciutadella | B32: ='Datos generales'!B30 -> Menorca | C32: ='Datos generales'!C30 -> 2007 | D32: =CONCATENATE(A32,C32) -> Ciutadella2007
A33: ='Datos generales'!A31 -> Ciutadella | B33: ='Datos generales'!B31 -> Menorca | C33: ='Datos generales'!C31 -> 2008 | D33: =CONCATENATE(A33,C33) -> Ciutadella2008
A34: ='Datos generales'!A32 -> Ciutadella | B34: ='Datos generales'!B32 -> Menorca | C34: ='Datos generales'!C32 -> 2009 | D34: =CONCATENATE(A34,C34) -> Ciutadella2009
A35: ='Datos generales'!A33 -> Ciutadella | B35: ='Datos generales'!B33 -> Menorca | C35: ='Datos generales'!C33 -> 2010 | D35: =CONCATENATE(A35,C35) -> Ciutadella2010
A36: ='Datos generales'!A34 -> Ciutadella | B36: ='Datos generales'!B34 -> Menorca | C36: ='Datos generales'!C34 -> 2011 | D36: =CONCATENATE(A36,C36) -> Ciutadella2011
A37: ='Datos generales'!A35 -> Ciutadella | B37: ='Datos generales'!B35 -> Menorca | C37: ='Datos generales'!C35 -> 2012 | D37: =CONCATENATE(A37,C37) -> Ciutadella2012
A38: ='Datos generales'!A36 -> Ciutadella | B38: ='Datos generales'!B36 -> Menorca | C38: ='Datos generales'!C36 -> 2013 | D38: =CONCATENATE(A38,C38) -> Ciutadella2013
A39: ='Datos generales'!A37 -> Ciutadella | B39: ='Datos generales'!B37 -> Menorca | C39: ='Datos generales'!C37 -> 2014 | D39: =CONCATENATE(A39,C39) -> Ciutadella2014
A40: ='Datos generales'!A38 -> Ciutadella | B40: ='Datos generales'!B38 -> Menorca | C40: ='Datos generales'!C38 -> 2015 | D40: =CONCATENATE(A40,C40) -> Ciutadella2015
A41: ='Datos generales'!A39 -> Ciutadella | B41: ='Datos generales'!B39 -> Menorca | C41: ='Datos generales'!C39 -> 2016 | D41: =CONCATENATE(A41,C41) -> Ciutadella2016
A42: ='Datos generales'!A40 -> Ciutadella | B42: ='Datos generales'!B40 -> Menorca | C42: ='Datos generales'!C40 -> 2017 | D42: =CONCATENATE(A42,C42) -> Ciutadella2017
A43: ='Datos generales'!A41 -> Ciutadella | B43: ='Datos generales'!B41 -> Menorca | C43: ='Datos generales'!C41 -> 2018 | D43: =CONCATENATE(A43,C43) -> Ciutadella2018
A44: ='Datos generales'!A42 -> Ciutadella | B44: ='Datos generales'!B42 -> Menorca | C44: ='Datos generales'!C42 -> 2019 | D44: =CONCATENATE(A44,C44) -> Ciutadella2019
A45: ='Datos generales'!A43 -> Ciutadella | B45: ='Datos generales'!B43 -> Menorca | C45: ='Datos generales'!C43 -> 2020 | D45: =CONCATENATE(A45,C45) -> Ciutadella2020
A46: ='Datos generales'!A44 -> Ciutadella | B46: ='Datos generales'!B44 -> Menorca | C46: ='Datos generales'!C44 -> 2021 | D46: =CONCATENATE(A46,C46) -> Ciutadella2021
A47: ='Datos generales'!A45 -> Ciutadella | B47: ='Datos generales'!B45 -> Menorca | C47: ='Datos generales'!C45 -> 2022 | D47: =CONCATENATE(A47,C47) -> Ciutadella2022
A48: ='Datos generales'!A46 -> Ciutadella | B48: ='Datos generales'!B46 -> Menorca | C48: ='Datos generales'!C46 -> 2023 | D48: =CONCATENATE(A48,C48) -> Ciutadella2023
A49: ='Datos generales'!A47 -> Ciutadella | B49: ='Datos generales'!B47 -> Menorca | C49: ='Datos generales'!C47 -> 2024 | D49: =CONCATENATE(A49,C49) -> Ciutadella2024
A50: ='Datos generales'!A48 -> Ciutadella | B50: ='Datos generales'!B48 -> Menorca | C50: ='Datos generales'!C48 -> 2025 | D50: =CONCATENATE(A50,C50) -> Ciutadella2025
A51: ='Datos generales'!A49 -> Ciutadella | B51: ='Datos generales'!B49 -> Menorca | C51: ='Datos generales'!C49 -> 2026 | D51: =CONCATENATE(A51,C51) -> Ciutadella2026
A52: ='Datos generales'!A50 -> Ciutadella | B52: ='Datos generales'!B50 -> Menorca | C52: ='Datos generales'!C50 -> 2027 | D52: =CONCATENATE(A52,C52) -> Ciutadella2027
A53: ='Datos generales'!A51 -> Ciutadella | B53: ='Datos generales'!B51 -> Menorca | C53: ='Datos generales'!C51 -> 2028 | D53: =CONCATENATE(A53,C53) -> Ciutadella2028
A54: ='Datos generales'!A52 -> Ciutadella | B54: ='Datos generales'!B52 -> Menorca | C54: ='Datos generales'!C52 -> 2029 | D54: =CONCATENATE(A54,C54) -> Ciutadella2029
A55: ='Datos generales'!A53 -> Ciutadella | B55: ='Datos generales'!B53 -> Menorca | C55: ='Datos generales'!C53 -> 2030 | D55: =CONCATENATE(A55,C55) -> Ciutadella2030
A56: ='Datos generales'!A54 -> Es Castell | B56: ='Datos generales'!B54 -> Menorca | C56: ='Datos generales'!C54 -> 2005 | D56: =CONCATENATE(A56,C56) -> Es Castell2005
A57: ='Datos generales'!A55 -> Es Castell | B57: ='Datos generales'!B55 -> Menorca | C57: ='Datos generales'!C55 -> 2006 | D57: =CONCATENATE(A57,C57) -> Es Castell2006
A58: ='Datos generales'!A56 -> Es Castell | B58: ='Datos generales'!B56 -> Menorca | C58: ='Datos generales'!C56 -> 2007 | D58: =CONCATENATE(A58,C58) -> Es Castell2007
A59: ='Datos generales'!A57 -> Es Castell | B59: ='Datos generales'!B57 -> Menorca | C59: ='Datos generales'!C57 -> 2008 | D59: =CONCATENATE(A59,C59) -> Es Castell2008
A60: ='Datos generales'!A58 -> Es Castell | B60: ='Datos generales'!B58 -> Menorca | C60: ='Datos generales'!C58 -> 2009 | D60: =CONCATENATE(A60,C60) -> Es Castell2009
A61: ='Datos generales'!A59 -> Es Castell | B61: ='Datos generales'!B59 -> Menorca | C61: ='Datos generales'!C59 -> 2010 | D61: =CONCATENATE(A61,C61) -> Es Castell2010
A62: ='Datos generales'!A60 -> Es Castell | B62: ='Datos generales'!B60 -> Menorca | C62: ='Datos generales'!C60 -> 2011 | D62: =CONCATENATE(A62,C62) -> Es Castell2011
A63: ='Datos generales'!A61 -> Es Castell | B63: ='Datos generales'!B61 -> Menorca | C63: ='Datos generales'!C61 -> 2012 | D63: =CONCATENATE(A63,C63) -> Es Castell2012
A64: ='Datos generales'!A62 -> Es Castell | B64: ='Datos generales'!B62 -> Menorca | C64: ='Datos generales'!C62 -> 2013 | D64: =CONCATENATE(A64,C64) -> Es Castell2013
A65: ='Datos generales'!A63 -> Es Castell | B65: ='Datos generales'!B63 -> Menorca | C65: ='Datos generales'!C63 -> 2014 | D65: =CONCATENATE(A65,C65) -> Es Castell2014
A66: ='Datos generales'!A64 -> Es Castell | B66: ='Datos generales'!B64 -> Menorca | C66: ='Datos generales'!C64 -> 2015 | D66: =CONCATENATE(A66,C66) -> Es Castell2015
A67: ='Datos generales'!A65 -> Es Castell | B67: ='Datos generales'!B65 -> Menorca | C67: ='Datos generales'!C65 -> 2016 | D67: =CONCATENATE(A67,C67) -> Es Castell2016
A68: ='Datos generales'!A66 -> Es Castell | B68: ='Datos generales'!B66 -> Menorca | C68: ='Datos generales'!C66 -> 2017 | D68: =CONCATENATE(A68,C68) -> Es Castell2017
A69: ='Datos generales'!A67 -> Es Castell | B69: ='Datos generales'!B67 -> Menorca | C69: ='Datos generales'!C67 -> 2018 | D69: =CONCATENATE(A69,C69) -> Es Castell2018
A70: ='Datos generales'!A68 -> Es Castell | B70: ='Datos generales'!B68 -> Menorca | C70: ='Datos generales'!C68 -> 2019 | D70: =CONCATENATE(A70,C70) -> Es Castell2019
A71: ='Datos generales'!A69 -> Es Castell | B71: ='Datos generales'!B69 -> Menorca | C71: ='Datos generales'!C69 -> 2020 | D71: =CONCATENATE(A71,C71) -> Es Castell2020
A72: ='Datos generales'!A70 -> Es Castell | B72: ='Datos generales'!B70 -> Menorca | C72: ='Datos generales'!C70 -> 2021 | D72: =CONCATENATE(A72,C72) -> Es Castell2021
A73: ='Datos generales'!A71 -> Es Castell | B73: ='Datos generales'!B71 -> Menorca | C73: ='Datos generales'!C71 -> 2022 | D73: =CONCATENATE(A73,C73) -> Es Castell2022
A74: ='Datos generales'!A72 -> Es Castell | B74: ='Datos generales'!B72 -> Menorca | C74: ='Datos generales'!C72 -> 2023 | D74: =CONCATENATE(A74,C74) -> Es Castell2023
A75: ='Datos generales'!A73 -> Es Castell | B75: ='Datos generales'!B73 -> Menorca | C75: ='Datos generales'!C73 -> 2024 | D75: =CONCATENATE(A75,C75) -> Es Castell2024
A76: ='Datos generales'!A74 -> Es Castell | B76: ='Datos generales'!B74 -> Menorca | C76: ='Datos generales'!C74 -> 2025 | D76: =CONCATENATE(A76,C76) -> Es Castell2025
A77: ='Datos generales'!A75 -> Es Castell | B77: ='Datos generales'!B75 -> Menorca | C77: ='Datos generales'!C75 -> 2026 | D77: =CONCATENATE(A77,C77) -> Es Castell2026
A78: ='Datos generales'!A76 -> Es Castell | B78: ='Datos generales'!B76 -> Menorca | C78: ='Datos generales'!C76 -> 2027 | D78: =CONCATENATE(A78,C78) -> Es Castell2027
A79: ='Datos generales'!A77 -> Es Castell | B79: ='Datos generales'!B77 -> Menorca | C79: ='Datos generales'!C77 -> 2028 | D79: =CONCATENATE(A79,C79) -> Es Castell2028
A80: ='Datos generales'!A78 -> Es Castell | B80: ='Datos generales'!B78 -> Menorca | C80: ='Datos generales'!C78 -> 2029 | D80: =CONCATENATE(A80,C80) -> Es Castell2029
A81: ='Datos generales'!A79 -> Es Castell | B81: ='Datos generales'!B79 -> Menorca | C81: ='Datos generales'!C79 -> 2030 | D81: =CONCATENATE(A81,C81) -> Es Castell2030
A82: ='Datos generales'!A80 -> Es Mercadal | B82: ='Datos generales'!B80 -> Menorca | C82: ='Datos generales'!C80 -> 2005 | D82: =CONCATENATE(A82,C82) -> Es Mercadal2005
A83: ='Datos generales'!A81 -> Es Mercadal | B83: ='Datos generales'!B81 -> Menorca | C83: ='Datos generales'!C81 -> 2006 | D83: =CONCATENATE(A83,C83) -> Es Mercadal2006
A84: ='Datos generales'!A82 -> Es Mercadal | B84: ='Datos generales'!B82 -> Menorca | C84: ='Datos generales'!C82 -> 2007 | D84: =CONCATENATE(A84,C84) -> Es Mercadal2007
A85: ='Datos generales'!A83 -> Es Mercadal | B85: ='Datos generales'!B83 -> Menorca | C85: ='Datos generales'!C83 -> 2008 | D85: =CONCATENATE(A85,C85) -> Es Mercadal2008
A86: ='Datos generales'!A84 -> Es Mercadal | B86: ='Datos generales'!B84 -> Menorca | C86: ='Datos generales'!C84 -> 2009 | D86: =CONCATENATE(A86,C86) -> Es Mercadal2009
A87: ='Datos generales'!A85 -> Es Mercadal | B87: ='Datos generales'!B85 -> Menorca | C87: ='Datos generales'!C85 -> 2010 | D87: =CONCATENATE(A87,C87) -> Es Mercadal2010
A88: ='Datos generales'!A86 -> Es Mercadal | B88: ='Datos generales'!B86 -> Menorca | C88: ='Datos generales'!C86 -> 2011 | D88: =CONCATENATE(A88,C88) -> Es Mercadal2011
A89: ='Datos generales'!A87 -> Es Mercadal | B89: ='Datos generales'!B87 -> Menorca | C89: ='Datos generales'!C87 -> 2012 | D89: =CONCATENATE(A89,C89) -> Es Mercadal2012
A90: ='Datos generales'!A88 -> Es Mercadal | B90: ='Datos generales'!B88 -> Menorca | C90: ='Datos generales'!C88 -> 2013 | D90: =CONCATENATE(A90,C90) -> Es Mercadal2013
A91: ='Datos generales'!A89 -> Es Mercadal | B91: ='Datos generales'!B89 -> Menorca | C91: ='Datos generales'!C89 -> 2014 | D91: =CONCATENATE(A91,C91) -> Es Mercadal2014
A92: ='Datos generales'!A90 -> Es Mercadal | B92: ='Datos generales'!B90 -> Menorca | C92: ='Datos generales'!C90 -> 2015 | D92: =CONCATENATE(A92,C92) -> Es Mercadal2015
A93: ='Datos generales'!A91 -> Es Mercadal | B93: ='Datos generales'!B91 -> Menorca | C93: ='Datos generales'!C91 -> 2016 | D93: =CONCATENATE(A93,C93) -> Es Mercadal2016
A94: ='Datos generales'!A92 -> Es Mercadal | B94: ='Datos generales'!B92 -> Menorca | C94: ='Datos generales'!C92 -> 2017 | D94: =CONCATENATE(A94,C94) -> Es Mercadal2017
A95: ='Datos generales'!A93 -> Es Mercadal | B95: ='Datos generales'!B93 -> Menorca | C95: ='Datos generales'!C93 -> 2018 | D95: =CONCATENATE(A95,C95) -> Es Mercadal2018
A96: ='Datos generales'!A94 -> Es Mercadal | B96: ='Datos generales'!B94 -> Menorca | C96: ='Datos generales'!C94 -> 2019 | D96: =CONCATENATE(A96,C96) -> Es Mercadal2019
A97: ='Datos generales'!A95 -> Es Mercadal | B97: ='Datos generales'!B95 -> Menorca | C97: ='Datos generales'!C95 -> 2020 | D97: =CONCATENATE(A97,C97) -> Es Mercadal2020
A98: ='Datos generales'!A96 -> Es Mercadal | B98: ='Datos generales'!B96 -> Menorca | C98: ='Datos generales'!C96 -> 2021 | D98: =CONCATENATE(A98,C98) -> Es Mercadal2021
A99: ='Datos generales'!A97 -> Es Mercadal | B99: ='Datos generales'!B97 -> Menorca | C99: ='Datos generales'!C97 -> 2022 | D99: =CONCATENATE(A99,C99) -> Es Mercadal2022
A100: ='Datos generales'!A98 -> Es Mercadal | B100: ='Datos generales'!B98 -> Menorca | C100: ='Datos generales'!C98 -> 2023 | D100: =CONCATENATE(A100,C100) -> Es Mercadal2023
A101: ='Datos generales'!A99 -> Es Mercadal | B101: ='Datos generales'!B99 -> Menorca | C101: ='Datos generales'!C99 -> 2024 | D101: =CONCATENATE(A101,C101) -> Es Mercadal2024
A102: ='Datos generales'!A100 -> Es Mercadal | B102: ='Datos generales'!B100 -> Menorca | C102: ='Datos generales'!C100 -> 2025 | D102: =CONCATENATE(A102,C102) -> Es Mercadal2025
A103: ='Datos generales'!A101 -> Es Mercadal | B103: ='Datos generales'!B101 -> Menorca | C103: ='Datos generales'!C101 -> 2026 | D103: =CONCATENATE(A103,C103) -> Es Mercadal2026
A104: ='Datos generales'!A102 -> Es Mercadal | B104: ='Datos generales'!B102 -> Menorca | C104: ='Datos generales'!C102 -> 2027 | D104: =CONCATENATE(A104,C104) -> Es Mercadal2027
A105: ='Datos generales'!A103 -> Es Mercadal | B105: ='Datos generales'!B103 -> Menorca | C105: ='Datos generales'!C103 -> 2028 | D105: =CONCATENATE(A105,C105) -> Es Mercadal2028
A106: ='Datos generales'!A104 -> Es Mercadal | B106: ='Datos generales'!B104 -> Menorca | C106: ='Datos generales'!C104 -> 2029 | D106: =CONCATENATE(A106,C106) -> Es Mercadal2029
A107: ='Datos generales'!A105 -> Es Mercadal | B107: ='Datos generales'!B105 -> Menorca | C107: ='Datos generales'!C105 -> 2030 | D107: =CONCATENATE(A107,C107) -> Es Mercadal2030
A108: ='Datos generales'!A106 -> Es Migjorn Gran | B108: ='Datos generales'!B106 -> Menorca | C108: ='Datos generales'!C106 -> 2005 | D108: =CONCATENATE(A108,C108) -> Es Migjorn Gran2005
A109: ='Datos generales'!A107 -> Es Migjorn Gran | B109: ='Datos generales'!B107 -> Menorca | C109: ='Datos generales'!C107 -> 2006 | D109: =CONCATENATE(A109,C109) -> Es Migjorn Gran2006
A110: ='Datos generales'!A108 -> Es Migjorn Gran | B110: ='Datos generales'!B108 -> Menorca | C110: ='Datos generales'!C108 -> 2007 | D110: =CONCATENATE(A110,C110) -> Es Migjorn Gran2007
A111: ='Datos generales'!A109 -> Es Migjorn Gran | B111: ='Datos generales'!B109 -> Menorca | C111: ='Datos generales'!C109 -> 2008 | D111: =CONCATENATE(A111,C111) -> Es Migjorn Gran2008
A112: ='Datos generales'!A110 -> Es Migjorn Gran | B112: ='Datos generales'!B110 -> Menorca | C112: ='Datos generales'!C110 -> 2009 | D112: =CONCATENATE(A112,C112) -> Es Migjorn Gran2009
A113: ='Datos generales'!A111 -> Es Migjorn Gran | B113: ='Datos generales'!B111 -> Menorca | C113: ='Datos generales'!C111 -> 2010 | D113: =CONCATENATE(A113,C113) -> Es Migjorn Gran2010
A114: ='Datos generales'!A112 -> Es Migjorn Gran | B114: ='Datos generales'!B112 -> Menorca | C114: ='Datos generales'!C112 -> 2011 | D114: =CONCATENATE(A114,C114) -> Es Migjorn Gran2011
A115: ='Datos generales'!A113 -> Es Migjorn Gran | B115: ='Datos generales'!B113 -> Menorca | C115: ='Datos generales'!C113 -> 2012 | D115: =CONCATENATE(A115,C115) -> Es Migjorn Gran2012
A116: ='Datos generales'!A114 -> Es Migjorn Gran | B116: ='Datos generales'!B114 -> Menorca | C116: ='Datos generales'!C114 -> 2013 | D116: =CONCATENATE(A116,C116) -> Es Migjorn Gran2013
A117: ='Datos generales'!A115 -> Es Migjorn Gran | B117: ='Datos generales'!B115 -> Menorca | C117: ='Datos generales'!C115 -> 2014 | D117: =CONCATENATE(A117,C117) -> Es Migjorn Gran2014
A118: ='Datos generales'!A116 -> Es Migjorn Gran | B118: ='Datos generales'!B116 -> Menorca | C118: ='Datos generales'!C116 -> 2015 | D118: =CONCATENATE(A118,C118) -> Es Migjorn Gran2015
A119: ='Datos generales'!A117 -> Es Migjorn Gran | B119: ='Datos generales'!B117 -> Menorca | C119: ='Datos generales'!C117 -> 2016 | D119: =CONCATENATE(A119,C119) -> Es Migjorn Gran2016
A120: ='Datos generales'!A118 -> Es Migjorn Gran | B120: ='Datos generales'!B118 -> Menorca | C120: ='Datos generales'!C118 -> 2017 | D120: =CONCATENATE(A120,C120) -> Es Migjorn Gran2017
A121: ='Datos generales'!A119 -> Es Migjorn Gran | B121: ='Datos generales'!B119 -> Menorca | C121: ='Datos generales'!C119 -> 2018 | D121: =CONCATENATE(A121,C121) -> Es Migjorn Gran2018
A122: ='Datos generales'!A120 -> Es Migjorn Gran | B122: ='Datos generales'!B120 -> Menorca | C122: ='Datos generales'!C120 -> 2019 | D122: =CONCATENATE(A122,C122) -> Es Migjorn Gran2019
A123: ='Datos generales'!A121 -> Es Migjorn Gran | B123: ='Datos generales'!B121 -> Menorca | C123: ='Datos generales'!C121 -> 2020 | D123: =CONCATENATE(A123,C123) -> Es Migjorn Gran2020
A124: ='Datos generales'!A122 -> Es Migjorn Gran | B124: ='Datos generales'!B122 -> Menorca | C124: ='Datos generales'!C122 -> 2021 | D124: =CONCATENATE(A124,C124) -> Es Migjorn Gran2021
A125: ='Datos generales'!A123 -> Es Migjorn Gran | B125: ='Datos generales'!B123 -> Menorca | C125: ='Datos generales'!C123 -> 2022 | D125: =CONCATENATE(A125,C125) -> Es Migjorn Gran2022
A126: ='Datos generales'!A124 -> Es Migjorn Gran | B126: ='Datos generales'!B124 -> Menorca | C126: ='Datos generales'!C124 -> 2023 | D126: =CONCATENATE(A126,C126) -> Es Migjorn Gran2023
A127: ='Datos generales'!A125 -> Es Migjorn Gran | B127: ='Datos generales'!B125 -> Menorca | C127: ='Datos generales'!C125 -> 2024 | D127: =CONCATENATE(A127,C127) -> Es Migjorn Gran2024
A128: ='Datos generales'!A126 -> Es Migjorn Gran | B128: ='Datos generales'!B126 -> Menorca | C128: ='Datos generales'!C126 -> 2025 | D128: =CONCATENATE(A128,C128) -> Es Migjorn Gran2025
A129: ='Datos generales'!A127 -> Es Migjorn Gran | B129: ='Datos generales'!B127 -> Menorca | C129: ='Datos generales'!C127 -> 2026 | D129: =CONCATENATE(A129,C129) -> Es Migjorn Gran2026
A130: ='Datos generales'!A128 -> Es Migjorn Gran | B130: ='Datos generales'!B128 -> Menorca | C130: ='Datos generales'!C128 -> 2027 | D130: =CONCATENATE(A130,C130) -> Es Migjorn Gran2027
A131: ='Datos generales'!A129 -> Es Migjorn Gran | B131: ='Datos generales'!B129 -> Menorca | C131: ='Datos generales'!C129 -> 2028 | D131: =CONCATENATE(A131,C131) -> Es Migjorn Gran2028
A132: ='Datos generales'!A130 -> Es Migjorn Gran | B132: ='Datos generales'!B130 -> Menorca | C132: ='Datos generales'!C130 -> 2029 | D132: =CONCATENATE(A132,C132) -> Es Migjorn Gran2029
A133: ='Datos generales'!A131 -> Es Migjorn Gran | B133: ='Datos generales'!B131 -> Menorca | C133: ='Datos generales'!C131 -> 2030 | D133: =CONCATENATE(A133,C133) -> Es Migjorn Gran2030
A134: ='Datos generales'!A132 -> Ferreries | B134: ='Datos generales'!B132 -> Menorca | C134: ='Datos generales'!C132 -> 2005 | D134: =CONCATENATE(A134,C134) -> Ferreries2005
A135: ='Datos generales'!A133 -> Ferreries | B135: ='Datos generales'!B133 -> Menorca | C135: ='Datos generales'!C133 -> 2006 | D135: =CONCATENATE(A135,C135) -> Ferreries2006
A136: ='Datos generales'!A134 -> Ferreries | B136: ='Datos generales'!B134 -> Menorca | C136: ='Datos generales'!C134 -> 2007 | D136: =CONCATENATE(A136,C136) -> Ferreries2007
A137: ='Datos generales'!A135 -> Ferreries | B137: ='Datos generales'!B135 -> Menorca | C137: ='Datos generales'!C135 -> 2008 | D137: =CONCATENATE(A137,C137) -> Ferreries2008
A138: ='Datos generales'!A136 -> Ferreries | B138: ='Datos generales'!B136 -> Menorca | C138: ='Datos generales'!C136 -> 2009 | D138: =CONCATENATE(A138,C138) -> Ferreries2009
A139: ='Datos generales'!A137 -> Ferreries | B139: ='Datos generales'!B137 -> Menorca | C139: ='Datos generales'!C137 -> 2010 | D139: =CONCATENATE(A139,C139) -> Ferreries2010
A140: ='Datos generales'!A138 -> Ferreries | B140: ='Datos generales'!B138 -> Menorca | C140: ='Datos generales'!C138 -> 2011 | D140: =CONCATENATE(A140,C140) -> Ferreries2011
A141: ='Datos generales'!A139 -> Ferreries | B141: ='Datos generales'!B139 -> Menorca | C141: ='Datos generales'!C139 -> 2012 | D141: =CONCATENATE(A141,C141) -> Ferreries2012
A142: ='Datos generales'!A140 -> Ferreries | B142: ='Datos generales'!B140 -> Menorca | C142: ='Datos generales'!C140 -> 2013 | D142: =CONCATENATE(A142,C142) -> Ferreries2013
A143: ='Datos generales'!A141 -> Ferreries | B143: ='Datos generales'!B141 -> Menorca | C143: ='Datos generales'!C141 -> 2014 | D143: =CONCATENATE(A143,C143) -> Ferreries2014
A144: ='Datos generales'!A142 -> Ferreries | B144: ='Datos generales'!B142 -> Menorca | C144: ='Datos generales'!C142 -> 2015 | D144: =CONCATENATE(A144,C144) -> Ferreries2015
A145: ='Datos generales'!A143 -> Ferreries | B145: ='Datos generales'!B143 -> Menorca | C145: ='Datos generales'!C143 -> 2016 | D145: =CONCATENATE(A145,C145) -> Ferreries2016
A146: ='Datos generales'!A144 -> Ferreries | B146: ='Datos generales'!B144 -> Menorca | C146: ='Datos generales'!C144 -> 2017 | D146: =CONCATENATE(A146,C146) -> Ferreries2017
A147: ='Datos generales'!A145 -> Ferreries | B147: ='Datos generales'!B145 -> Menorca | C147: ='Datos generales'!C145 -> 2018 | D147: =CONCATENATE(A147,C147) -> Ferreries2018
A148: ='Datos generales'!A146 -> Ferreries | B148: ='Datos generales'!B146 -> Menorca | C148: ='Datos generales'!C146 -> 2019 | D148: =CONCATENATE(A148,C148) -> Ferreries2019
A149: ='Datos generales'!A147 -> Ferreries | B149: ='Datos generales'!B147 -> Menorca | C149: ='Datos generales'!C147 -> 2020 | D149: =CONCATENATE(A149,C149) -> Ferreries2020
A150: ='Datos generales'!A148 -> Ferreries | B150: ='Datos generales'!B148 -> Menorca | C150: ='Datos generales'!C148 -> 2021 | D150: =CONCATENATE(A150,C150) -> Ferreries2021
A151: ='Datos generales'!A149 -> Ferreries | B151: ='Datos generales'!B149 -> Menorca | C151: ='Datos generales'!C149 -> 2022 | D151: =CONCATENATE(A151,C151) -> Ferreries2022
A152: ='Datos generales'!A150 -> Ferreries | B152: ='Datos generales'!B150 -> Menorca | C152: ='Datos generales'!C150 -> 2023 | D152: =CONCATENATE(A152,C152) -> Ferreries2023
A153: ='Datos generales'!A151 -> Ferreries | B153: ='Datos generales'!B151 -> Menorca | C153: ='Datos generales'!C151 -> 2024 | D153: =CONCATENATE(A153,C153) -> Ferreries2024
A154: ='Datos generales'!A152 -> Ferreries | B154: ='Datos generales'!B152 -> Menorca | C154: ='Datos generales'!C152 -> 2025 | D154: =CONCATENATE(A154,C154) -> Ferreries2025
A155: ='Datos generales'!A153 -> Ferreries | B155: ='Datos generales'!B153 -> Menorca | C155: ='Datos generales'!C153 -> 2026 | D155: =CONCATENATE(A155,C155) -> Ferreries2026
A156: ='Datos generales'!A154 -> Ferreries | B156: ='Datos generales'!B154 -> Menorca | C156: ='Datos generales'!C154 -> 2027 | D156: =CONCATENATE(A156,C156) -> Ferreries2027
A157: ='Datos generales'!A155 -> Ferreries | B157: ='Datos generales'!B155 -> Menorca | C157: ='Datos generales'!C155 -> 2028 | D157: =CONCATENATE(A157,C157) -> Ferreries2028
A158: ='Datos generales'!A156 -> Ferreries | B158: ='Datos generales'!B156 -> Menorca | C158: ='Datos generales'!C156 -> 2029 | D158: =CONCATENATE(A158,C158) -> Ferreries2029
A159: ='Datos generales'!A157 -> Ferreries | B159: ='Datos generales'!B157 -> Menorca | C159: ='Datos generales'!C157 -> 2030 | D159: =CONCATENATE(A159,C159) -> Ferreries2030
A160: ='Datos generales'!A158 -> Maó | B160: ='Datos generales'!B158 -> Menorca | C160: ='Datos generales'!C158 -> 2005 | D160: =CONCATENATE(A160,C160) -> Maó2005
A161: ='Datos generales'!A159 -> Maó | B161: ='Datos generales'!B159 -> Menorca | C161: ='Datos generales'!C159 -> 2006 | D161: =CONCATENATE(A161,C161) -> Maó2006
A162: ='Datos generales'!A160 -> Maó | B162: ='Datos generales'!B160 -> Menorca | C162: ='Datos generales'!C160 -> 2007 | D162: =CONCATENATE(A162,C162) -> Maó2007
A163: ='Datos generales'!A161 -> Maó | B163: ='Datos generales'!B161 -> Menorca | C163: ='Datos generales'!C161 -> 2008 | D163: =CONCATENATE(A163,C163) -> Maó2008
A164: ='Datos generales'!A162 -> Maó | B164: ='Datos generales'!B162 -> Menorca | C164: ='Datos generales'!C162 -> 2009 | D164: =CONCATENATE(A164,C164) -> Maó2009
A165: ='Datos generales'!A163 -> Maó | B165: ='Datos generales'!B163 -> Menorca | C165: ='Datos generales'!C163 -> 2010 | D165: =CONCATENATE(A165,C165) -> Maó2010
A166: ='Datos generales'!A164 -> Maó | B166: ='Datos generales'!B164 -> Menorca | C166: ='Datos generales'!C164 -> 2011 | D166: =CONCATENATE(A166,C166) -> Maó2011
A167: ='Datos generales'!A165 -> Maó | B167: ='Datos generales'!B165 -> Menorca | C167: ='Datos generales'!C165 -> 2012 | D167: =CONCATENATE(A167,C167) -> Maó2012
A168: ='Datos generales'!A166 -> Maó | B168: ='Datos generales'!B166 -> Menorca | C168: ='Datos generales'!C166 -> 2013 | D168: =CONCATENATE(A168,C168) -> Maó2013
A169: ='Datos generales'!A167 -> Maó | B169: ='Datos generales'!B167 -> Menorca | C169: ='Datos generales'!C167 -> 2014 | D169: =CONCATENATE(A169,C169) -> Maó2014
A170: ='Datos generales'!A168 -> Maó | B170: ='Datos generales'!B168 -> Menorca | C170: ='Datos generales'!C168 -> 2015 | D170: =CONCATENATE(A170,C170) -> Maó2015
A171: ='Datos generales'!A169 -> Maó | B171: ='Datos generales'!B169 -> Menorca | C171: ='Datos generales'!C169 -> 2016 | D171: =CONCATENATE(A171,C171) -> Maó2016
A172: ='Datos generales'!A170 -> Maó | B172: ='Datos generales'!B170 -> Menorca | C172: ='Datos generales'!C170 -> 2017 | D172: =CONCATENATE(A172,C172) -> Maó2017
A173: ='Datos generales'!A171 -> Maó | B173: ='Datos generales'!B171 -> Menorca | C173: ='Datos generales'!C171 -> 2018 | D173: =CONCATENATE(A173,C173) -> Maó2018
A174: ='Datos generales'!A172 -> Maó | B174: ='Datos generales'!B172 -> Menorca | C174: ='Datos generales'!C172 -> 2019 | D174: =CONCATENATE(A174,C174) -> Maó2019
A175: ='Datos generales'!A173 -> Maó | B175: ='Datos generales'!B173 -> Menorca | C175: ='Datos generales'!C173 -> 2020 | D175: =CONCATENATE(A175,C175) -> Maó2020
A176: ='Datos generales'!A174 -> Maó | B176: ='Datos generales'!B174 -> Menorca | C176: ='Datos generales'!C174 -> 2021 | D176: =CONCATENATE(A176,C176) -> Maó2021
A177: ='Datos generales'!A175 -> Maó | B177: ='Datos generales'!B175 -> Menorca | C177: ='Datos generales'!C175 -> 2022 | D177: =CONCATENATE(A177,C177) -> Maó2022
A178: ='Datos generales'!A176 -> Maó | B178: ='Datos generales'!B176 -> Menorca | C178: ='Datos generales'!C176 -> 2023 | D178: =CONCATENATE(A178,C178) -> Maó2023
A179: ='Datos generales'!A177 -> Maó | B179: ='Datos generales'!B177 -> Menorca | C179: ='Datos generales'!C177 -> 2024 | D179: =CONCATENATE(A179,C179) -> Maó2024
A180: ='Datos generales'!A178 -> Maó | B180: ='Datos generales'!B178 -> Menorca | C180: ='Datos generales'!C178 -> 2025 | D180: =CONCATENATE(A180,C180) -> Maó2025
A181: ='Datos generales'!A179 -> Maó | B181: ='Datos generales'!B179 -> Menorca | C181: ='Datos generales'!C179 -> 2026 | D181: =CONCATENATE(A181,C181) -> Maó2026
A182: ='Datos generales'!A180 -> Maó | B182: ='Datos generales'!B180 -> Menorca | C182: ='Datos generales'!C180 -> 2027 | D182: =CONCATENATE(A182,C182) -> Maó2027
A183: ='Datos generales'!A181 -> Maó | B183: ='Datos generales'!B181 -> Menorca | C183: ='Datos generales'!C181 -> 2028 | D183: =CONCATENATE(A183,C183) -> Maó2028
A184: ='Datos generales'!A182 -> Maó | B184: ='Datos generales'!B182 -> Menorca | C184: ='Datos generales'!C182 -> 2029 | D184: =CONCATENATE(A184,C184) -> Maó2029
A185: ='Datos generales'!A183 -> Maó | B185: ='Datos generales'!B183 -> Menorca | C185: ='Datos generales'!C183 -> 2030 | D185: =CONCATENATE(A185,C185) -> Maó2030
A186: ='Datos generales'!A184 -> Sant Lluís | B186: ='Datos generales'!B184 -> Menorca | C186: ='Datos generales'!C184 -> 2005 | D186: =CONCATENATE(A186,C186) -> Sant Lluís2005
A187: ='Datos generales'!A185 -> Sant Lluís | B187: ='Datos generales'!B185 -> Menorca | C187: ='Datos generales'!C185 -> 2006 | D187: =CONCATENATE(A187,C187) -> Sant Lluís2006
A188: ='Datos generales'!A186 -> Sant Lluís | B188: ='Datos generales'!B186 -> Menorca | C188: ='Datos generales'!C186 -> 2007 | D188: =CONCATENATE(A188,C188) -> Sant Lluís2007
A189: ='Datos generales'!A187 -> Sant Lluís | B189: ='Datos generales'!B187 -> Menorca | C189: ='Datos generales'!C187 -> 2008 | D189: =CONCATENATE(A189,C189) -> Sant Lluís2008
A190: ='Datos generales'!A188 -> Sant Lluís | B190: ='Datos generales'!B188 -> Menorca | C190: ='Datos generales'!C188 -> 2009 | D190: =CONCATENATE(A190,C190) -> Sant Lluís2009
A191: ='Datos generales'!A189 -> Sant Lluís | B191: ='Datos generales'!B189 -> Menorca | C191: ='Datos generales'!C189 -> 2010 | D191: =CONCATENATE(A191,C191) -> Sant Lluís2010
A192: ='Datos generales'!A190 -> Sant Lluís | B192: ='Datos generales'!B190 -> Menorca | C192: ='Datos generales'!C190 -> 2011 | D192: =CONCATENATE(A192,C192) -> Sant Lluís2011
A193: ='Datos generales'!A191 -> Sant Lluís | B193: ='Datos generales'!B191 -> Menorca | C193: ='Datos generales'!C191 -> 2012 | D193: =CONCATENATE(A193,C193) -> Sant Lluís2012
A194: ='Datos generales'!A192 -> Sant Lluís | B194: ='Datos generales'!B192 -> Menorca | C194: ='Datos generales'!C192 -> 2013 | D194: =CONCATENATE(A194,C194) -> Sant Lluís2013
A195: ='Datos generales'!A193 -> Sant Lluís | B195: ='Datos generales'!B193 -> Menorca | C195: ='Datos generales'!C193 -> 2014 | D195: =CONCATENATE(A195,C195) -> Sant Lluís2014
A196: ='Datos generales'!A194 -> Sant Lluís | B196: ='Datos generales'!B194 -> Menorca | C196: ='Datos generales'!C194 -> 2015 | D196: =CONCATENATE(A196,C196) -> Sant Lluís2015
A197: ='Datos generales'!A195 -> Sant Lluís | B197: ='Datos generales'!B195 -> Menorca | C197: ='Datos generales'!C195 -> 2016 | D197: =CONCATENATE(A197,C197) -> Sant Lluís2016
A198: ='Datos generales'!A196 -> Sant Lluís | B198: ='Datos generales'!B196 -> Menorca | C198: ='Datos generales'!C196 -> 2017 | D198: =CONCATENATE(A198,C198) -> Sant Lluís2017
A199: ='Datos generales'!A197 -> Sant Lluís | B199: ='Datos generales'!B197 -> Menorca | C199: ='Datos generales'!C197 -> 2018 | D199: =CONCATENATE(A199,C199) -> Sant Lluís2018
A200: ='Datos generales'!A198 -> Sant Lluís | B200: ='Datos generales'!B198 -> Menorca | C200: ='Datos generales'!C198 -> 2019 | D200: =CONCATENATE(A200,C200) -> Sant Lluís2019
... 246 more rows

Sheet Fuentes de información
A1: MUNICIPI | B1: ILLA | C1: ANY | D1: REF. | E1: ÁMBITS QUE DEPENEN DE L'AJUNTAMENT | S1: ÁMBITS QUE NO DEPENEN DE L'AJUNTAMENT
E2: EDIFICIS, EQUIPAMENTS I INSTALACIONS MUNICIPALS | I2: ENLLUMENAT PÚBLIC | J2: TRANSPORT PÚBLIC I MUNICIPAL | P2: PRODUCCIÓ D'ENERGÍA | S2: SECTOR DOMÉSTIC | W2: SECTOR SERVEIS | AA2: SECTOR INDUSTRIA | AE2: TRANSPORT PRIVAT I COMERCIAL | AH2: PRODUCCIÓ D'ENERGÍA | AM2: RESIDUS (NO ENERGÉTIQUES) | AQ2: CICLO DEL AGUA (NO ENERGÉTICAS) | AR2: CONSUMS PORTUARIS
E3: Consum d'electricitat (kWh) | F3: Consum de gas canalitzat (kWh) | G3: Consum de GLP (kg) | H3: Consum de Gasoil C (kWh) | I3: Consum d'electricitat (kWh) | J3: Consum d'electricitat (kWh) | K3: Consum de Gasolina (kWh) | L3: Consum de Gasoil (kWh) | M3: Consum de gas natural (kWh) | N3: Consum de biodiesel (10%) (kWh) | O3: Consum de biodiesel (20%) (kWh) | P3: Energia produïda renovables (kWh) | Q3: Energia produïda convencional (kWh) | R3: Compra d'energia verda certificada (kWh) | S3: Consum d'electricitat (kWh) | T3: Consum de gas canalitzat (kWh) | U3: Consum de GLP (t) | V3: Consum de Gasoil C (litres) | W3: Consum d'electricitat (kWh) | X3: Consum de gas canalitzat (kWh) | Y3: Consum de GLP (t) | Z3: Consum de Gasoil C (litres) | AA3: Consumo de electricitat (kWh) | AB3: Consum de gas canalitzat (kWh) | AC3: Consumo de GLP (kg) | AD3: Consumo de gasóleo C (litros) | AE3: Consum d'electricitat (kWh) | AF3: Consum de Gasolina (kWh) | AG3: Consum de Gasoil (kWh) | AH3: Energia produïda renovables (kWh) | AI3: Energia produïda convencional (kWh) | AJ3: Consum de gas natural (kWh) | AK3: Consum altres combustibles (kWh) | AL3: Compra d'energia verda certificada (kWh) | AM3: Recollida en massa (t) | AN3: Vidre (t) | AO3: Paper i cartó (t) | AP3: Envasos (t) | AQ3: Emissions procés (tCO2) | AR3: Consum combustibles líquids (t)
A4: ='Datos generales'!A2 -> Alaior | B4: ='Datos generales'!B2 -> Menorca | C4: ='Datos generales'!C2 -> 2005 | D4: =CONCATENATE(A4,C4) -> Alaior2005
A5: ='Datos generales'!A3 -> Alaior | B5: ='Datos generales'!B3 -> Menorca | C5: ='Datos generales'!C3 -> 2006 | D5: =CONCATENATE(A5,C5) -> Alaior2006
A6: ='Datos generales'!A4 -> Alaior | B6: ='Datos generales'!B4 -> Menorca | C6: ='Datos generales'!C4 -> 2007 | D6: =CONCATENATE(A6,C6) -> Alaior2007
A7: ='Datos generales'!A5 -> Alaior | B7: ='Datos generales'!B5 -> Menorca | C7: ='Datos generales'!C5 -> 2008 | D7: =CONCATENATE(A7,C7) -> Alaior2008
A8: ='Datos generales'!A6 -> Alaior | B8: ='Datos generales'!B6 -> Menorca | C8: ='Datos generales'!C6 -> 2009 | D8: =CONCATENATE(A8,C8) -> Alaior2009
A9: ='Datos generales'!A7 -> Alaior | B9: ='Datos generales'!B7 -> Menorca | C9: ='Datos generales'!C7 -> 2010 | D9: =CONCATENATE(A9,C9) -> Alaior2010
A10: ='Datos generales'!A8 -> Alaior | B10: ='Datos generales'!B8 -> Menorca | C10: ='Datos generales'!C8 -> 2011 | D10: =CONCATENATE(A10,C10) -> Alaior2011
A11: ='Datos generales'!A9 -> Alaior | B11: ='Datos generales'!B9 -> Menorca | C11: ='Datos generales'!C9 -> 2012 | D11: =CONCATENATE(A11,C11) -> Alaior2012
A12: ='Datos generales'!A10 -> Alaior | B12: ='Datos generales'!B10 -> Menorca | C12: ='Datos generales'!C10 -> 2013 | D12: =CONCATENATE(A12,C12) -> Alaior2013
A13: ='Datos generales'!A11 -> Alaior | B13: ='Datos generales'!B11 -> Menorca | C13: ='Datos generales'!C11 -> 2014 | D13: =CONCATENATE(A13,C13) -> Alaior2014
A14: ='Datos generales'!A12 -> Alaior | B14: ='Datos generales'!B12 -> Menorca | C14: ='Datos generales'!C12 -> 2015 | D14: =CONCATENATE(A14,C14) -> Alaior2015
A15: ='Datos generales'!A13 -> Alaior | B15: ='Datos generales'!B13 -> Menorca | C15: ='Datos generales'!C13 -> 2016 | D15: =CONCATENATE(A15,C15) -> Alaior2016
A16: ='Datos generales'!A14 -> Alaior | B16: ='Datos generales'!B14 -> Menorca | C16: ='Datos generales'!C14 -> 2017 | D16: =CONCATENATE(A16,C16) -> Alaior2017
A17: ='Datos generales'!A15 -> Alaior | B17: ='Datos generales'!B15 -> Menorca | C17: ='Datos generales'!C15 -> 2018 | D17: =CONCATENATE(A17,C17) -> Alaior2018
A18: ='Datos generales'!A16 -> Alaior | B18: ='Datos generales'!B16 -> Menorca | C18: ='Datos generales'!C16 -> 2019 | D18: =CONCATENATE(A18,C18) -> Alaior2019
A19: ='Datos generales'!A17 -> Alaior | B19: ='Datos generales'!B17 -> Menorca | C19: ='Datos generales'!C17 -> 2020 | D19: =CONCATENATE(A19,C19) -> Alaior2020
A20: ='Datos generales'!A18 -> Alaior | B20: ='Datos generales'!B18 -> Menorca | C20: ='Datos generales'!C18 -> 2021 | D20: =CONCATENATE(A20,C20) -> Alaior2021
A21: ='Datos generales'!A19 -> Alaior | B21: ='Datos generales'!B19 -> Menorca | C21: ='Datos generales'!C19 -> 2022 | D21: =CONCATENATE(A21,C21) -> Alaior2022
A22: ='Datos generales'!A20 -> Alaior | B22: ='Datos generales'!B20 -> Menorca | C22: ='Datos generales'!C20 -> 2023 | D22: =CONCATENATE(A22,C22) -> Alaior2023
A23: ='Datos generales'!A21 -> Alaior | B23: ='Datos generales'!B21 -> Menorca | C23: ='Datos generales'!C21 -> 2024 | D23: =CONCATENATE(A23,C23) -> Alaior2024
A24: ='Datos generales'!A22 -> Alaior | B24: ='Datos generales'!B22 -> Menorca | C24: ='Datos generales'!C22 -> 2025 | D24: =CONCATENATE(A24,C24) -> Alaior2025
A25: ='Datos generales'!A23 -> Alaior | B25: ='Datos generales'!B23 -> Menorca | C25: ='Datos generales'!C23 -> 2026 | D25: =CONCATENATE(A25,C25) -> Alaior2026
A26: ='Datos generales'!A24 -> Alaior | B26: ='Datos generales'!B24 -> Menorca | C26: ='Datos generales'!C24 -> 2027 | D26: =CONCATENATE(A26,C26) -> Alaior2027
A27: ='Datos generales'!A25 -> Alaior | B27: ='Datos generales'!B25 -> Menorca | C27: ='Datos generales'!C25 -> 2028 | D27: =CONCATENATE(A27,C27) -> Alaior2028
A28: ='Datos generales'!A26 -> Alaior | B28: ='Datos generales'!B26 -> Menorca | C28: ='Datos generales'!C26 -> 2029 | D28: =CONCATENATE(A28,C28) -> Alaior2029
A29: ='Datos generales'!A27 -> Alaior | B29: ='Datos generales'!B27 -> Menorca | C29: ='Datos generales'!C27 -> 2030 | D29: =CONCATENATE(A29,C29) -> Alaior2030
A30: ='Datos generales'!A28 -> Ciutadella | B30: ='Datos generales'!B28 -> Menorca | C30: ='Datos generales'!C28 -> 2005 | D30: =CONCATENATE(A30,C30) -> Ciutadella2005
A31: ='Datos generales'!A29 -> Ciutadella | B31: ='Datos generales'!B29 -> Menorca | C31: ='Datos generales'!C29 -> 2006 | D31: =CONCATENATE(A31,C31) -> Ciutadella2006
A32: ='Datos generales'!A30 -> Ciutadella | B32: ='Datos generales'!B30 -> Menorca | C32: ='Datos generales'!C30 -> 2007 | D32: =CONCATENATE(A32,C32) -> Ciutadella2007
A33: ='Datos generales'!A31 -> Ciutadella | B33: ='Datos generales'!B31 -> Menorca | C33: ='Datos generales'!C31 -> 2008 | D33: =CONCATENATE(A33,C33) -> Ciutadella2008
A34: ='Datos generales'!A32 -> Ciutadella | B34: ='Datos generales'!B32 -> Menorca | C34: ='Datos generales'!C32 -> 2009 | D34: =CONCATENATE(A34,C34) -> Ciutadella2009
A35: ='Datos generales'!A33 -> Ciutadella | B35: ='Datos generales'!B33 -> Menorca | C35: ='Datos generales'!C33 -> 2010 | D35: =CONCATENATE(A35,C35) -> Ciutadella2010
A36: ='Datos generales'!A34 -> Ciutadella | B36: ='Datos generales'!B34 -> Menorca | C36: ='Datos generales'!C34 -> 2011 | D36: =CONCATENATE(A36,C36) -> Ciutadella2011
A37: ='Datos generales'!A35 -> Ciutadella | B37: ='Datos generales'!B35 -> Menorca | C37: ='Datos generales'!C35 -> 2012 | D37: =CONCATENATE(A37,C37) -> Ciutadella2012
A38: ='Datos generales'!A36 -> Ciutadella | B38: ='Datos generales'!B36 -> Menorca | C38: ='Datos generales'!C36 -> 2013 | D38: =CONCATENATE(A38,C38) -> Ciutadella2013
A39: ='Datos generales'!A37 -> Ciutadella | B39: ='Datos generales'!B37 -> Menorca | C39: ='Datos generales'!C37 -> 2014 | D39: =CONCATENATE(A39,C39) -> Ciutadella2014
A40: ='Datos generales'!A38 -> Ciutadella | B40: ='Datos generales'!B38 -> Menorca | C40: ='Datos generales'!C38 -> 2015 | D40: =CONCATENATE(A40,C40) -> Ciutadella2015
A41: ='Datos generales'!A39 -> Ciutadella | B41: ='Datos generales'!B39 -> Menorca | C41: ='Datos generales'!C39 -> 2016 | D41: =CONCATENATE(A41,C41) -> Ciutadella2016
A42: ='Datos generales'!A40 -> Ciutadella | B42: ='Datos generales'!B40 -> Menorca | C42: ='Datos generales'!C40 -> 2017 | D42: =CONCATENATE(A42,C42) -> Ciutadella2017
A43: ='Datos generales'!A41 -> Ciutadella | B43: ='Datos generales'!B41 -> Menorca | C43: ='Datos generales'!C41 -> 2018 | D43: =CONCATENATE(A43,C43) -> Ciutadella2018
A44: ='Datos generales'!A42 -> Ciutadella | B44: ='Datos generales'!B42 -> Menorca | C44: ='Datos generales'!C42 -> 2019 | D44: =CONCATENATE(A44,C44) -> Ciutadella2019
A45: ='Datos generales'!A43 -> Ciutadella | B45: ='Datos generales'!B43 -> Menorca | C45: ='Datos generales'!C43 -> 2020 | D45: =CONCATENATE(A45,C45) -> Ciutadella2020
A46: ='Datos generales'!A44 -> Ciutadella | B46: ='Datos generales'!B44 -> Menorca | C46: ='Datos generales'!C44 -> 2021 | D46: =CONCATENATE(A46,C46) -> Ciutadella2021
A47: ='Datos generales'!A45 -> Ciutadella | B47: ='Datos generales'!B45 -> Menorca | C47: ='Datos generales'!C45 -> 2022 | D47: =CONCATENATE(A47,C47) -> Ciutadella2022
A48: ='Datos generales'!A46 -> Ciutadella | B48: ='Datos generales'!B46 -> Menorca | C48: ='Datos generales'!C46 -> 2023 | D48: =CONCATENATE(A48,C48) -> Ciutadella2023
A49: ='Datos generales'!A47 -> Ciutadella | B49: ='Datos generales'!B47 -> Menorca | C49: ='Datos generales'!C47 -> 2024 | D49: =CONCATENATE(A49,C49) -> Ciutadella2024
A50: ='Datos generales'!A48 -> Ciutadella | B50: ='Datos generales'!B48 -> Menorca | C50: ='Datos generales'!C48 -> 2025 | D50: =CONCATENATE(A50,C50) -> Ciutadella2025
A51: ='Datos generales'!A49 -> Ciutadella | B51: ='Datos generales'!B49 -> Menorca | C51: ='Datos generales'!C49 -> 2026 | D51: =CONCATENATE(A51,C51) -> Ciutadella2026
A52: ='Datos generales'!A50 -> Ciutadella | B52: ='Datos generales'!B50 -> Menorca | C52: ='Datos generales'!C50 -> 2027 | D52: =CONCATENATE(A52,C52) -> Ciutadella2027
A53: ='Datos generales'!A51 -> Ciutadella | B53: ='Datos generales'!B51 -> Menorca | C53: ='Datos generales'!C51 -> 2028 | D53: =CONCATENATE(A53,C53) -> Ciutadella2028
A54: ='Datos generales'!A52 -> Ciutadella | B54: ='Datos generales'!B52 -> Menorca | C54: ='Datos generales'!C52 -> 2029 | D54: =CONCATENATE(A54,C54) -> Ciutadella2029
A55: ='Datos generales'!A53 -> Ciutadella | B55: ='Datos generales'!B53 -> Menorca | C55: ='Datos generales'!C53 -> 2030 | D55: =CONCATENATE(A55,C55) -> Ciutadella2030
A56: ='Datos generales'!A54 -> Es Castell | B56: ='Datos generales'!B54 -> Menorca | C56: ='Datos generales'!C54 -> 2005 | D56: =CONCATENATE(A56,C56) -> Es Castell2005
A57: ='Datos generales'!A55 -> Es Castell | B57: ='Datos generales'!B55 -> Menorca | C57: ='Datos generales'!C55 -> 2006 | D57: =CONCATENATE(A57,C57) -> Es Castell2006
A58: ='Datos generales'!A56 -> Es Castell | B58: ='Datos generales'!B56 -> Menorca | C58: ='Datos generales'!C56 -> 2007 | D58: =CONCATENATE(A58,C58) -> Es Castell2007
A59: ='Datos generales'!A57 -> Es Castell | B59: ='Datos generales'!B57 -> Menorca | C59: ='Datos generales'!C57 -> 2008 | D59: =CONCATENATE(A59,C59) -> Es Castell2008
A60: ='Datos generales'!A58 -> Es Castell | B60: ='Datos generales'!B58 -> Menorca | C60: ='Datos generales'!C58 -> 2009 | D60: =CONCATENATE(A60,C60) -> Es Castell2009
A61: ='Datos generales'!A59 -> Es Castell | B61: ='Datos generales'!B59 -> Menorca | C61: ='Datos generales'!C59 -> 2010 | D61: =CONCATENATE(A61,C61) -> Es Castell2010
A62: ='Datos generales'!A60 -> Es Castell | B62: ='Datos generales'!B60 -> Menorca | C62: ='Datos generales'!C60 -> 2011 | D62: =CONCATENATE(A62,C62) -> Es Castell2011
A63: ='Datos generales'!A61 -> Es Castell | B63: ='Datos generales'!B61 -> Menorca | C63: ='Datos generales'!C61 -> 2012 | D63: =CONCATENATE(A63,C63) -> Es Castell2012
A64: ='Datos generales'!A62 -> Es Castell | B64: ='Datos generales'!B62 -> Menorca | C64: ='Datos generales'!C62 -> 2013 | D64: =CONCATENATE(A64,C64) -> Es Castell2013
A65: ='Datos generales'!A63 -> Es Castell | B65: ='Datos generales'!B63 -> Menorca | C65: ='Datos generales'!C63 -> 2014 | D65: =CONCATENATE(A65,C65) -> Es Castell2014
A66: ='Datos generales'!A64 -> Es Castell | B66: ='Datos generales'!B64 -> Menorca | C66: ='Datos generales'!C64 -> 2015 | D66: =CONCATENATE(A66,C66) -> Es Castell2015
A67: ='Datos generales'!A65 -> Es Castell | B67: ='Datos generales'!B65 -> Menorca | C67: ='Datos generales'!C65 -> 2016 | D67: =CONCATENATE(A67,C67) -> Es Castell2016
A68: ='Datos generales'!A66 -> Es Castell | B68: ='Datos generales'!B66 -> Menorca | C68: ='Datos generales'!C66 -> 2017 | D68: =CONCATENATE(A68,C68) -> Es Castell2017
A69: ='Datos generales'!A67 -> Es Castell | B69: ='Datos generales'!B67 -> Menorca | C69: ='Datos generales'!C67 -> 2018 | D69: =CONCATENATE(A69,C69) -> Es Castell2018
A70: ='Datos generales'!A68 -> Es Castell | B70: ='Datos generales'!B68 -> Menorca | C70: ='Datos generales'!C68 -> 2019 | D70: =CONCATENATE(A70,C70) -> Es Castell2019
A71: ='Datos generales'!A69 -> Es Castell | B71: ='Datos generales'!B69 -> Menorca | C71: ='Datos generales'!C69 -> 2020 | D71: =CONCATENATE(A71,C71) -> Es Castell2020
A72: ='Datos generales'!A70 -> Es Castell | B72: ='Datos generales'!B70 -> Menorca | C72: ='Datos generales'!C70 -> 2021 | D72: =CONCATENATE(A72,C72) -> Es Castell2021
A73: ='Datos generales'!A71 -> Es Castell | B73: ='Datos generales'!B71 -> Menorca | C73: ='Datos generales'!C71 -> 2022 | D73: =CONCATENATE(A73,C73) -> Es Castell2022
A74: ='Datos generales'!A72 -> Es Castell | B74: ='Datos generales'!B72 -> Menorca | C74: ='Datos generales'!C72 -> 2023 | D74: =CONCATENATE(A74,C74) -> Es Castell2023
A75: ='Datos generales'!A73 -> Es Castell | B75: ='Datos generales'!B73 -> Menorca | C75: ='Datos generales'!C73 -> 2024 | D75: =CONCATENATE(A75,C75) -> Es Castell2024
A76: ='Datos generales'!A74 -> Es Castell | B76: ='Datos generales'!B74 -> Menorca | C76: ='Datos generales'!C74 -> 2025 | D76: =CONCATENATE(A76,C76) -> Es Castell2025
A77: ='Datos generales'!A75 -> Es Castell | B77: ='Datos generales'!B75 -> Menorca | C77: ='Datos generales'!C75 -> 2026 | D77: =CONCATENATE(A77,C77) -> Es Castell2026
A78: ='Datos generales'!A76 -> Es Castell | B78: ='Datos generales'!B76 -> Menorca | C78: ='Datos generales'!C76 -> 2027 | D78: =CONCATENATE(A78,C78) -> Es Castell2027
A79: ='Datos generales'!A77 -> Es Castell | B79: ='Datos generales'!B77 -> Menorca | C79: ='Datos generales'!C77 -> 2028 | D79: =CONCATENATE(A79,C79) -> Es Castell2028
A80: ='Datos generales'!A78 -> Es Castell | B80: ='Datos generales'!B78 -> Menorca | C80: ='Datos generales'!C78 -> 2029 | D80: =CONCATENATE(A80,C80) -> Es Castell2029
A81: ='Datos generales'!A79 -> Es Castell | B81: ='Datos generales'!B79 -> Menorca | C81: ='Datos generales'!C79 -> 2030 | D81: =CONCATENATE(A81,C81) -> Es Castell2030
A82: ='Datos generales'!A80 -> Es Mercadal | B82: ='Datos generales'!B80 -> Menorca | C82: ='Datos generales'!C80 -> 2005 | D82: =CONCATENATE(A82,C82) -> Es Mercadal2005
A83: ='Datos generales'!A81 -> Es Mercadal | B83: ='Datos generales'!B81 -> Menorca | C83: ='Datos generales'!C81 -> 2006 | D83: =CONCATENATE(A83,C83) -> Es Mercadal2006
A84: ='Datos generales'!A82 -> Es Mercadal | B84: ='Datos generales'!B82 -> Menorca | C84: ='Datos generales'!C82 -> 2007 | D84: =CONCATENATE(A84,C84) -> Es Mercadal2007
A85: ='Datos generales'!A83 -> Es Mercadal | B85: ='Datos generales'!B83 -> Menorca | C85: ='Datos generales'!C83 -> 2008 | D85: =CONCATENATE(A85,C85) -> Es Mercadal2008
A86: ='Datos generales'!A84 -> Es Mercadal | B86: ='Datos generales'!B84 -> Menorca | C86: ='Datos generales'!C84 -> 2009 | D86: =CONCATENATE(A86,C86) -> Es Mercadal2009
A87: ='Datos generales'!A85 -> Es Mercadal | B87: ='Datos generales'!B85 -> Menorca | C87: ='Datos generales'!C85 -> 2010 | D87: =CONCATENATE(A87,C87) -> Es Mercadal2010
A88: ='Datos generales'!A86 -> Es Mercadal | B88: ='Datos generales'!B86 -> Menorca | C88: ='Datos generales'!C86 -> 2011 | D88: =CONCATENATE(A88,C88) -> Es Mercadal2011
A89: ='Datos generales'!A87 -> Es Mercadal | B89: ='Datos generales'!B87 -> Menorca | C89: ='Datos generales'!C87 -> 2012 | D89: =CONCATENATE(A89,C89) -> Es Mercadal2012
A90: ='Datos generales'!A88 -> Es Mercadal | B90: ='Datos generales'!B88 -> Menorca | C90: ='Datos generales'!C88 -> 2013 | D90: =CONCATENATE(A90,C90) -> Es Mercadal2013
A91: ='Datos generales'!A89 -> Es Mercadal | B91: ='Datos generales'!B89 -> Menorca | C91: ='Datos generales'!C89 -> 2014 | D91: =CONCATENATE(A91,C91) -> Es Mercadal2014
A92: ='Datos generales'!A90 -> Es Mercadal | B92: ='Datos generales'!B90 -> Menorca | C92: ='Datos generales'!C90 -> 2015 | D92: =CONCATENATE(A92,C92) -> Es Mercadal2015
A93: ='Datos generales'!A91 -> Es Mercadal | B93: ='Datos generales'!B91 -> Menorca | C93: ='Datos generales'!C91 -> 2016 | D93: =CONCATENATE(A93,C93) -> Es Mercadal2016
A94: ='Datos generales'!A92 -> Es Mercadal | B94: ='Datos generales'!B92 -> Menorca | C94: ='Datos generales'!C92 -> 2017 | D94: =CONCATENATE(A94,C94) -> Es Mercadal2017
A95: ='Datos generales'!A93 -> Es Mercadal | B95: ='Datos generales'!B93 -> Menorca | C95: ='Datos generales'!C93 -> 2018 | D95: =CONCATENATE(A95,C95) -> Es Mercadal2018
A96: ='Datos generales'!A94 -> Es Mercadal | B96: ='Datos generales'!B94 -> Menorca | C96: ='Datos generales'!C94 -> 2019 | D96: =CONCATENATE(A96,C96) -> Es Mercadal2019
A97: ='Datos generales'!A95 -> Es Mercadal | B97: ='Datos generales'!B95 -> Menorca | C97: ='Datos generales'!C95 -> 2020 | D97: =CONCATENATE(A97,C97) -> Es Mercadal2020
A98: ='Datos generales'!A96 -> Es Mercadal | B98: ='Datos generales'!B96 -> Menorca | C98: ='Datos generales'!C96 -> 2021 | D98: =CONCATENATE(A98,C98) -> Es Mercadal2021
A99: ='Datos generales'!A97 -> Es Mercadal | B99: ='Datos generales'!B97 -> Menorca | C99: ='Datos generales'!C97 -> 2022 | D99: =CONCATENATE(A99,C99) -> Es Mercadal2022
A100: ='Datos generales'!A98 -> Es Mercadal | B100: ='Datos generales'!B98 -> Menorca | C100: ='Datos generales'!C98 -> 2023 | D100: =CONCATENATE(A100,C100) -> Es Mercadal2023
A101: ='Datos generales'!A99 -> Es Mercadal | B101: ='Datos generales'!B99 -> Menorca | C101: ='Datos generales'!C99 -> 2024 | D101: =CONCATENATE(A101,C101) -> Es Mercadal2024
A102: ='Datos generales'!A100 -> Es Mercadal | B102: ='Datos generales'!B100 -> Menorca | C102: ='Datos generales'!C100 -> 2025 | D102: =CONCATENATE(A102,C102) -> Es Mercadal2025
A103: ='Datos generales'!A101 -> Es Mercadal | B103: ='Datos generales'!B101 -> Menorca | C103: ='Datos generales'!C101 -> 2026 | D103: =CONCATENATE(A103,C103) -> Es Mercadal2026
A104: ='Datos generales'!A102 -> Es Mercadal | B104: ='Datos generales'!B102 -> Menorca | C104: ='Datos generales'!C102 -> 2027 | D104: =CONCATENATE(A104,C104) -> Es Mercadal2027
A105: ='Datos generales'!A103 -> Es Mercadal | B105: ='Datos generales'!B103 -> Menorca | C105: ='Datos generales'!C103 -> 2028 | D105: =CONCATENATE(A105,C105) -> Es Mercadal2028
A106: ='Datos generales'!A104 -> Es Mercadal | B106: ='Datos generales'!B104 -> Menorca | C106: ='Datos generales'!C104 -> 2029 | D106: =CONCATENATE(A106,C106) -> Es Mercadal2029
A107: ='Datos generales'!A105 -> Es Mercadal | B107: ='Datos generales'!B105 -> Menorca | C107: ='Datos generales'!C105 -> 2030 | D107: =CONCATENATE(A107,C107) -> Es Mercadal2030
A108: ='Datos generales'!A106 -> Es Migjorn Gran | B108: ='Datos generales'!B106 -> Menorca | C108: ='Datos generales'!C106 -> 2005 | D108: =CONCATENATE(A108,C108) -> Es Migjorn Gran2005
A109: ='Datos generales'!A107 -> Es Migjorn Gran | B109: ='Datos generales'!B107 -> Menorca | C109: ='Datos generales'!C107 -> 2006 | D109: =CONCATENATE(A109,C109) -> Es Migjorn Gran2006
A110: ='Datos generales'!A108 -> Es Migjorn Gran | B110: ='Datos generales'!B108 -> Menorca | C110: ='Datos generales'!C108 -> 2007 | D110: =CONCATENATE(A110,C110) -> Es Migjorn Gran2007
A111: ='Datos generales'!A109 -> Es Migjorn Gran | B111: ='Datos generales'!B109 -> Menorca | C111: ='Datos generales'!C109 -> 2008 | D111: =CONCATENATE(A111,C111) -> Es Migjorn Gran2008
A112: ='Datos generales'!A110 -> Es Migjorn Gran | B112: ='Datos generales'!B110 -> Menorca | C112: ='Datos generales'!C110 -> 2009 | D112: =CONCATENATE(A112,C112) -> Es Migjorn Gran2009
A113: ='Datos generales'!A111 -> Es Migjorn Gran | B113: ='Datos generales'!B111 -> Menorca | C113: ='Datos generales'!C111 -> 2010 | D113: =CONCATENATE(A113,C113) -> Es Migjorn Gran2010
A114: ='Datos generales'!A112 -> Es Migjorn Gran | B114: ='Datos generales'!B112 -> Menorca | C114: ='Datos generales'!C112 -> 2011 | D114: =CONCATENATE(A114,C114) -> Es Migjorn Gran2011
A115: ='Datos generales'!A113 -> Es Migjorn Gran | B115: ='Datos generales'!B113 -> Menorca | C115: ='Datos generales'!C113 -> 2012 | D115: =CONCATENATE(A115,C115) -> Es Migjorn Gran2012
A116: ='Datos generales'!A114 -> Es Migjorn Gran | B116: ='Datos generales'!B114 -> Menorca | C116: ='Datos generales'!C114 -> 2013 | D116: =CONCATENATE(A116,C116) -> Es Migjorn Gran2013
A117: ='Datos generales'!A115 -> Es Migjorn Gran | B117: ='Datos generales'!B115 -> Menorca | C117: ='Datos generales'!C115 -> 2014 | D117: =CONCATENATE(A117,C117) -> Es Migjorn Gran2014
A118: ='Datos generales'!A116 -> Es Migjorn Gran | B118: ='Datos generales'!B116 -> Menorca | C118: ='Datos generales'!C116 -> 2015 | D118: =CONCATENATE(A118,C118) -> Es Migjorn Gran2015
A119: ='Datos generales'!A117 -> Es Migjorn Gran | B119: ='Datos generales'!B117 -> Menorca | C119: ='Datos generales'!C117 -> 2016 | D119: =CONCATENATE(A119,C119) -> Es Migjorn Gran2016
A120: ='Datos generales'!A118 -> Es Migjorn Gran | B120: ='Datos generales'!B118 -> Menorca | C120: ='Datos generales'!C118 -> 2017 | D120: =CONCATENATE(A120,C120) -> Es Migjorn Gran2017
A121: ='Datos generales'!A119 -> Es Migjorn Gran | B121: ='Datos generales'!B119 -> Menorca | C121: ='Datos generales'!C119 -> 2018 | D121: =CONCATENATE(A121,C121) -> Es Migjorn Gran2018
A122: ='Datos generales'!A120 -> Es Migjorn Gran | B122: ='Datos generales'!B120 -> Menorca | C122: ='Datos generales'!C120 -> 2019 | D122: =CONCATENATE(A122,C122) -> Es Migjorn Gran2019
A123: ='Datos generales'!A121 -> Es Migjorn Gran | B123: ='Datos generales'!B121 -> Menorca | C123: ='Datos generales'!C121 -> 2020 | D123: =CONCATENATE(A123,C123) -> Es Migjorn Gran2020
A124: ='Datos generales'!A122 -> Es Migjorn Gran | B124: ='Datos generales'!B122 -> Menorca | C124: ='Datos generales'!C122 -> 2021 | D124: =CONCATENATE(A124,C124) -> Es Migjorn Gran2021
A125: ='Datos generales'!A123 -> Es Migjorn Gran | B125: ='Datos generales'!B123 -> Menorca | C125: ='Datos generales'!C123 -> 2022 | D125: =CONCATENATE(A125,C125) -> Es Migjorn Gran2022
A126: ='Datos generales'!A124 -> Es Migjorn Gran | B126: ='Datos generales'!B124 -> Menorca | C126: ='Datos generales'!C124 -> 2023 | D126: =CONCATENATE(A126,C126) -> Es Migjorn Gran2023
A127: ='Datos generales'!A125 -> Es Migjorn Gran | B127: ='Datos generales'!B125 -> Menorca | C127: ='Datos generales'!C125 -> 2024 | D127: =CONCATENATE(A127,C127) -> Es Migjorn Gran2024
A128: ='Datos generales'!A126 -> Es Migjorn Gran | B128: ='Datos generales'!B126 -> Menorca | C128: ='Datos generales'!C126 -> 2025 | D128: =CONCATENATE(A128,C128) -> Es Migjorn Gran2025
A129: ='Datos generales'!A127 -> Es Migjorn Gran | B129: ='Datos generales'!B127 -> Menorca | C129: ='Datos generales'!C127 -> 2026 | D129: =CONCATENATE(A129,C129) -> Es Migjorn Gran2026
A130: ='Datos generales'!A128 -> Es Migjorn Gran | B130: ='Datos generales'!B128 -> Menorca | C130: ='Datos generales'!C128 -> 2027 | D130: =CONCATENATE(A130,C130) -> Es Migjorn Gran2027
A131: ='Datos generales'!A129 -> Es Migjorn Gran | B131: ='Datos generales'!B129 -> Menorca | C131: ='Datos generales'!C129 -> 2028 | D131: =CONCATENATE(A131,C131) -> Es Migjorn Gran2028
A132: ='Datos generales'!A130 -> Es Migjorn Gran | B132: ='Datos generales'!B130 -> Menorca | C132: ='Datos generales'!C130 -> 2029 | D132: =CONCATENATE(A132,C132) -> Es Migjorn Gran2029
A133: ='Datos generales'!A131 -> Es Migjorn Gran | B133: ='Datos generales'!B131 -> Menorca | C133: ='Datos generales'!C131 -> 2030 | D133: =CONCATENATE(A133,C133) -> Es Migjorn Gran2030
A134: ='Datos generales'!A132 -> Ferreries | B134: ='Datos generales'!B132 -> Menorca | C134: ='Datos generales'!C132 -> 2005 | D134: =CONCATENATE(A134,C134) -> Ferreries2005
A135: ='Datos generales'!A133 -> Ferreries | B135: ='Datos generales'!B133 -> Menorca | C135: ='Datos generales'!C133 -> 2006 | D135: =CONCATENATE(A135,C135) -> Ferreries2006
A136: ='Datos generales'!A134 -> Ferreries | B136: ='Datos generales'!B134 -> Menorca | C136: ='Datos generales'!C134 -> 2007 | D136: =CONCATENATE(A136,C136) -> Ferreries2007
A137: ='Datos generales'!A135 -> Ferreries | B137: ='Datos generales'!B135 -> Menorca | C137: ='Datos generales'!C135 -> 2008 | D137: =CONCATENATE(A137,C137) -> Ferreries2008
A138: ='Datos generales'!A136 -> Ferreries | B138: ='Datos generales'!B136 -> Menorca | C138: ='Datos generales'!C136 -> 2009 | D138: =CONCATENATE(A138,C138) -> Ferreries2009
A139: ='Datos generales'!A137 -> Ferreries | B139: ='Datos generales'!B137 -> Menorca | C139: ='Datos generales'!C137 -> 2010 | D139: =CONCATENATE(A139,C139) -> Ferreries2010
A140: ='Datos generales'!A138 -> Ferreries | B140: ='Datos generales'!B138 -> Menorca | C140: ='Datos generales'!C138 -> 2011 | D140: =CONCATENATE(A140,C140) -> Ferreries2011
A141: ='Datos generales'!A139 -> Ferreries | B141: ='Datos generales'!B139 -> Menorca | C141: ='Datos generales'!C139 -> 2012 | D141: =CONCATENATE(A141,C141) -> Ferreries2012
A142: ='Datos generales'!A140 -> Ferreries | B142: ='Datos generales'!B140 -> Menorca | C142: ='Datos generales'!C140 -> 2013 | D142: =CONCATENATE(A142,C142) -> Ferreries2013
A143: ='Datos generales'!A141 -> Ferreries | B143: ='Datos generales'!B141 -> Menorca | C143: ='Datos generales'!C141 -> 2014 | D143: =CONCATENATE(A143,C143) -> Ferreries2014
A144: ='Datos generales'!A142 -> Ferreries | B144: ='Datos generales'!B142 -> Menorca | C144: ='Datos generales'!C142 -> 2015 | D144: =CONCATENATE(A144,C144) -> Ferreries2015
A145: ='Datos generales'!A143 -> Ferreries | B145: ='Datos generales'!B143 -> Menorca | C145: ='Datos generales'!C143 -> 2016 | D145: =CONCATENATE(A145,C145) -> Ferreries2016
A146: ='Datos generales'!A144 -> Ferreries | B146: ='Datos generales'!B144 -> Menorca | C146: ='Datos generales'!C144 -> 2017 | D146: =CONCATENATE(A146,C146) -> Ferreries2017
A147: ='Datos generales'!A145 -> Ferreries | B147: ='Datos generales'!B145 -> Menorca | C147: ='Datos generales'!C145 -> 2018 | D147: =CONCATENATE(A147,C147) -> Ferreries2018
A148: ='Datos generales'!A146 -> Ferreries | B148: ='Datos generales'!B146 -> Menorca | C148: ='Datos generales'!C146 -> 2019 | D148: =CONCATENATE(A148,C148) -> Ferreries2019
A149: ='Datos generales'!A147 -> Ferreries | B149: ='Datos generales'!B147 -> Menorca | C149: ='Datos generales'!C147 -> 2020 | D149: =CONCATENATE(A149,C149) -> Ferreries2020
A150: ='Datos generales'!A148 -> Ferreries | B150: ='Datos generales'!B148 -> Menorca | C150: ='Datos generales'!C148 -> 2021 | D150: =CONCATENATE(A150,C150) -> Ferreries2021
A151: ='Datos generales'!A149 -> Ferreries | B151: ='Datos generales'!B149 -> Menorca | C151: ='Datos generales'!C149 -> 2022 | D151: =CONCATENATE(A151,C151) -> Ferreries2022
A152: ='Datos generales'!A150 -> Ferreries | B152: ='Datos generales'!B150 -> Menorca | C152: ='Datos generales'!C150 -> 2023 | D152: =CONCATENATE(A152,C152) -> Ferreries2023
A153: ='Datos generales'!A151 -> Ferreries | B153: ='Datos generales'!B151 -> Menorca | C153: ='Datos generales'!C151 -> 2024 | D153: =CONCATENATE(A153,C153) -> Ferreries2024
A154: ='Datos generales'!A152 -> Ferreries | B154: ='Datos generales'!B152 -> Menorca | C154: ='Datos generales'!C152 -> 2025 | D154: =CONCATENATE(A154,C154) -> Ferreries2025
A155: ='Datos generales'!A153 -> Ferreries | B155: ='Datos generales'!B153 -> Menorca | C155: ='Datos generales'!C153 -> 2026 | D155: =CONCATENATE(A155,C155) -> Ferreries2026
A156: ='Datos generales'!A154 -> Ferreries | B156: ='Datos generales'!B154 -> Menorca | C156: ='Datos generales'!C154 -> 2027 | D156: =CONCATENATE(A156,C156) -> Ferreries2027
A157: ='Datos generales'!A155 -> Ferreries | B157: ='Datos generales'!B155 -> Menorca | C157: ='Datos generales'!C155 -> 2028 | D157: =CONCATENATE(A157,C157) -> Ferreries2028
A158: ='Datos generales'!A156 -> Ferreries | B158: ='Datos generales'!B156 -> Menorca | C158: ='Datos generales'!C156 -> 2029 | D158: =CONCATENATE(A158,C158) -> Ferreries2029
A159: ='Datos generales'!A157 -> Ferreries | B159: ='Datos generales'!B157 -> Menorca | C159: ='Datos generales'!C157 -> 2030 | D159: =CONCATENATE(A159,C159) -> Ferreries2030
A160: ='Datos generales'!A158 -> Maó | B160: ='Datos generales'!B158 -> Menorca | C160: ='Datos generales'!C158 -> 2005 | D160: =CONCATENATE(A160,C160) -> Maó2005
A161: ='Datos generales'!A159 -> Maó | B161: ='Datos generales'!B159 -> Menorca | C161: ='Datos generales'!C159 -> 2006 | D161: =CONCATENATE(A161,C161) -> Maó2006
A162: ='Datos generales'!A160 -> Maó | B162: ='Datos generales'!B160 -> Menorca | C162: ='Datos generales'!C160 -> 2007 | D162: =CONCATENATE(A162,C162) -> Maó2007
A163: ='Datos generales'!A161 -> Maó | B163: ='Datos generales'!B161 -> Menorca | C163: ='Datos generales'!C161 -> 2008 | D163: =CONCATENATE(A163,C163) -> Maó2008
A164: ='Datos generales'!A162 -> Maó | B164: ='Datos generales'!B162 -> Menorca | C164: ='Datos generales'!C162 -> 2009 | D164: =CONCATENATE(A164,C164) -> Maó2009
A165: ='Datos generales'!A163 -> Maó | B165: ='Datos generales'!B163 -> Menorca | C165: ='Datos generales'!C163 -> 2010 | D165: =CONCATENATE(A165,C165) -> Maó2010
A166: ='Datos generales'!A164 -> Maó | B166: ='Datos generales'!B164 -> Menorca | C166: ='Datos generales'!C164 -> 2011 | D166: =CONCATENATE(A166,C166) -> Maó2011
A167: ='Datos generales'!A165 -> Maó | B167: ='Datos generales'!B165 -> Menorca | C167: ='Datos generales'!C165 -> 2012 | D167: =CONCATENATE(A167,C167) -> Maó2012
A168: ='Datos generales'!A166 -> Maó | B168: ='Datos generales'!B166 -> Menorca | C168: ='Datos generales'!C166 -> 2013 | D168: =CONCATENATE(A168,C168) -> Maó2013
A169: ='Datos generales'!A167 -> Maó | B169: ='Datos generales'!B167 -> Menorca | C169: ='Datos generales'!C167 -> 2014 | D169: =CONCATENATE(A169,C169) -> Maó2014
A170: ='Datos generales'!A168 -> Maó | B170: ='Datos generales'!B168 -> Menorca | C170: ='Datos generales'!C168 -> 2015 | D170: =CONCATENATE(A170,C170) -> Maó2015
A171: ='Datos generales'!A169 -> Maó | B171: ='Datos generales'!B169 -> Menorca | C171: ='Datos generales'!C169 -> 2016 | D171: =CONCATENATE(A171,C171) -> Maó2016
A172: ='Datos generales'!A170 -> Maó | B172: ='Datos generales'!B170 -> Menorca | C172: ='Datos generales'!C170 -> 2017 | D172: =CONCATENATE(A172,C172) -> Maó2017
A173: ='Datos generales'!A171 -> Maó | B173: ='Datos generales'!B171 -> Menorca | C173: ='Datos generales'!C171 -> 2018 | D173: =CONCATENATE(A173,C173) -> Maó2018
A174: ='Datos generales'!A172 -> Maó | B174: ='Datos generales'!B172 -> Menorca | C174: ='Datos generales'!C172 -> 2019 | D174: =CONCATENATE(A174,C174) -> Maó2019
A175: ='Datos generales'!A173 -> Maó | B175: ='Datos generales'!B173 -> Menorca | C175: ='Datos generales'!C173 -> 2020 | D175: =CONCATENATE(A175,C175) -> Maó2020
A176: ='Datos generales'!A174 -> Maó | B176: ='Datos generales'!B174 -> Menorca | C176: ='Datos generales'!C174 -> 2021 | D176: =CONCATENATE(A176,C176) -> Maó2021
A177: ='Datos generales'!A175 -> Maó | B177: ='Datos generales'!B175 -> Menorca | C177: ='Datos generales'!C175 -> 2022 | D177: =CONCATENATE(A177,C177) -> Maó2022
A178: ='Datos generales'!A176 -> Maó | B178: ='Datos generales'!B176 -> Menorca | C178: ='Datos generales'!C176 -> 2023 | D178: =CONCATENATE(A178,C178) -> Maó2023
A179: ='Datos generales'!A177 -> Maó | B179: ='Datos generales'!B177 -> Menorca | C179: ='Datos generales'!C177 -> 2024 | D179: =CONCATENATE(A179,C179) -> Maó2024
A180: ='Datos generales'!A178 -> Maó | B180: ='Datos generales'!B178 -> Menorca | C180: ='Datos generales'!C178 -> 2025 | D180: =CONCATENATE(A180,C180) -> Maó2025
A181: ='Datos generales'!A179 -> Maó | B181: ='Datos generales'!B179 -> Menorca | C181: ='Datos generales'!C179 -> 2026 | D181: =CONCATENATE(A181,C181) -> Maó2026
A182: ='Datos generales'!A180 -> Maó | B182: ='Datos generales'!B180 -> Menorca | C182: ='Datos generales'!C180 -> 2027 | D182: =CONCATENATE(A182,C182) -> Maó2027
A183: ='Datos generales'!A181 -> Maó | B183: ='Datos generales'!B181 -> Menorca | C183: ='Datos generales'!C181 -> 2028 | D183: =CONCATENATE(A183,C183) -> Maó2028
A184: ='Datos generales'!A182 -> Maó | B184: ='Datos generales'!B182 -> Menorca | C184: ='Datos generales'!C182 -> 2029 | D184: =CONCATENATE(A184,C184) -> Maó2029
A185: ='Datos generales'!A183 -> Maó | B185: ='Datos generales'!B183 -> Menorca | C185: ='Datos generales'!C183 -> 2030 | D185: =CONCATENATE(A185,C185) -> Maó2030
A186: ='Datos generales'!A184 -> Sant Lluís | B186: ='Datos generales'!B184 -> Menorca | C186: ='Datos generales'!C184 -> 2005 | D186: =CONCATENATE(A186,C186) -> Sant Lluís2005
A187: ='Datos generales'!A185 -> Sant Lluís | B187: ='Datos generales'!B185 -> Menorca | C187: ='Datos generales'!C185 -> 2006 | D187: =CONCATENATE(A187,C187) -> Sant Lluís2006
A188: ='Datos generales'!A186 -> Sant Lluís | B188: ='Datos generales'!B186 -> Menorca | C188: ='Datos generales'!C186 -> 2007 | D188: =CONCATENATE(A188,C188) -> Sant Lluís2007
A189: ='Datos generales'!A187 -> Sant Lluís | B189: ='Datos generales'!B187 -> Menorca | C189: ='Datos generales'!C187 -> 2008 | D189: =CONCATENATE(A189,C189) -> Sant Lluís2008
A190: ='Datos generales'!A188 -> Sant Lluís | B190: ='Datos generales'!B188 -> Menorca | C190: ='Datos generales'!C188 -> 2009 | D190: =CONCATENATE(A190,C190) -> Sant Lluís2009
A191: ='Datos generales'!A189 -> Sant Lluís | B191: ='Datos generales'!B189 -> Menorca | C191: ='Datos generales'!C189 -> 2010 | D191: =CONCATENATE(A191,C191) -> Sant Lluís2010
A192: ='Datos generales'!A190 -> Sant Lluís | B192: ='Datos generales'!B190 -> Menorca | C192: ='Datos generales'!C190 -> 2011 | D192: =CONCATENATE(A192,C192) -> Sant Lluís2011
A193: ='Datos generales'!A191 -> Sant Lluís | B193: ='Datos generales'!B191 -> Menorca | C193: ='Datos generales'!C191 -> 2012 | D193: =CONCATENATE(A193,C193) -> Sant Lluís2012
A194: ='Datos generales'!A192 -> Sant Lluís | B194: ='Datos generales'!B192 -> Menorca | C194: ='Datos generales'!C192 -> 2013 | D194: =CONCATENATE(A194,C194) -> Sant Lluís2013
A195: ='Datos generales'!A193 -> Sant Lluís | B195: ='Datos generales'!B193 -> Menorca | C195: ='Datos generales'!C193 -> 2014 | D195: =CONCATENATE(A195,C195) -> Sant Lluís2014
A196: ='Datos generales'!A194 -> Sant Lluís | B196: ='Datos generales'!B194 -> Menorca | C196: ='Datos generales'!C194 -> 2015 | D196: =CONCATENATE(A196,C196) -> Sant Lluís2015
A197: ='Datos generales'!A195 -> Sant Lluís | B197: ='Datos generales'!B195 -> Menorca | C197: ='Datos generales'!C195 -> 2016 | D197: =CONCATENATE(A197,C197) -> Sant Lluís2016
A198: ='Datos generales'!A196 -> Sant Lluís | B198: ='Datos generales'!B196 -> Menorca | C198: ='Datos generales'!C196 -> 2017 | D198: =CONCATENATE(A198,C198) -> Sant Lluís2017
A199: ='Datos generales'!A197 -> Sant Lluís | B199: ='Datos generales'!B197 -> Menorca | C199: ='Datos generales'!C197 -> 2018 | D199: =CONCATENATE(A199,C199) -> Sant Lluís2018
A200: ='Datos generales'!A198 -> Sant Lluís | B200: ='Datos generales'!B198 -> Menorca | C200: ='Datos generales'!C198 -> 2019 | D200: =CONCATENATE(A200,C200) -> Sant Lluís2019
... 168 more rows

Sheet Portada Inventario
A7: =CONCATENATE("Inventari Emissions ",'Inventario CO2'!C2) -> Inventari Emissions Alaior
F15: =CONCATENATE("València, ",TEXT(TODAY(),"mmmm")," ",YEAR(TODAY())) -> València, enero 2021
F17: AZIGRENE CONSULTORES
F18: Av. Peris y Valero, 188-pta 2
F19: 46006 Valencia
F20: Tel: 963301641 - Fax: 963312671
F21: E-mail: azigrene@azigrene.es
F22: www.azigrene.es

Sheet Inventario CO2
A1: INVENTARI DE REFERENCIA D'EMISSIONS DE CO2 | H1: 2005 | I1: Consum d'aire propanat | J1: Aire propanat
A2: MUNICIPI / ZONA: | C2: Alaior | E2: POBLACIÓ: | F2: =VLOOKUP(CONCATENATE($C$2,$C$3),'Datos generales'!D:E,2,0) -> 9769 | H2: 2006 | I2: Consum d'aire propanat | J2: Aire propanat
A3: ANY: | C3: 2013 | E3: IPH: | F3: =VLOOKUP(CONCATENATE($C$2,$C$3),'Datos generales'!D:F,3,0) -> 13482.61251 | H3: 2007 | I3: Consum d'aire propanat | J3: Aire propanat
H4: 2008 | I4: Consum d'aire propanat | J4: Aire propanat
A5: Àmbits que depenen de l'Ajuntament | E5: Consums (MWh) | F5: Emissions (t CO2) | G5: Font d'informació | H5: 2009 | I5: Consum d'aire propanat | J5: Aire propanat
A6: Edificis, equipaments i instal·lacions municipals | E6: =SUM(E7:E10) -> 0 | F6: =SUM(F7:F10) -> 0 | G6: - | H6: 2010 | I6: Consum de Gas Natural | J6: Gas Natural
A7: Consum d'electricitat | E7: =HLOOKUP(CONCATENATE($C$3,"C"),'Evolución Ámbitos 1'!$E$4:$AF$51,5,0) -> 0 | F7: =HLOOKUP(CONCATENATE($C$3,"E"),'Evolución Ámbitos 1'!$E$4:$AF$51,5,0) -> 0 | G7: =IFERROR(VLOOKUP(CONCATENATE($C$2,$C$3),'Fuentes de información'!$D$4:$AP$367,2,0),"-") -> 0 | H7: 2011 | I7: Consum de Gas Natural | J7: Gas Natural
A8: =VLOOKUP($C$3,$H$1:$I$14,2,0) -> Consum de Gas Natural | E8: =HLOOKUP(CONCATENATE($C$3,"C"),'Evolución Ámbitos 1'!$E$4:$AF$51,6,0) -> 0 | F8: =HLOOKUP(CONCATENATE($C$3,"E"),'Evolución Ámbitos 1'!$E$4:$AF$51,6,0) -> 0 | G8: =IFERROR(VLOOKUP(CONCATENATE($C$2,$C$3),'Fuentes de información'!$D$4:$AP$367,3,0),"-") -> 0 | H8: 2012 | I8: Consum de Gas Natural | J8: Gas Natural
A9: Consum de GLP | E9: =HLOOKUP(CONCATENATE($C$3,"C"),'Evolución Ámbitos 1'!$E$4:$AF$51,7,0) -> 0 | F9: =HLOOKUP(CONCATENATE($C$3,"E"),'Evolución Ámbitos 1'!$E$4:$AF$51,7,0) -> 0 | G9: =IFERROR(VLOOKUP(CONCATENATE($C$2,$C$3),'Fuentes de información'!$D$4:$AP$367,4,0),"-") -> 0 | H9: 2013 | I9: Consum de Gas Natural | J9: Gas Natural
A10: Consum de Gasoil C | E10: =HLOOKUP(CONCATENATE($C$3,"C"),'Evolución Ámbitos 1'!$E$4:$AF$51,8,0) -> 0 | F10: =HLOOKUP(CONCATENATE($C$3,"E"),'Evolución Ámbitos 1'!$E$4:$AF$51,8,0) -> 0 | G10: =IFERROR(VLOOKUP(CONCATENATE($C$2,$C$3),'Fuentes de información'!$D$4:$AP$367,5,0),"-") -> 0 | H10: 2014 | I10: Consum de Gas Natural | J10: Gas Natural
H11: 2015 | I11: Consum de Gas Natural | J11: Gas Natural
A12: Enllumenat públic | E12: =HLOOKUP(CONCATENATE($C$3,"C"),'Evolución Ámbitos 1'!$E$4:$AF$51,9,0) -> 0 | F12: =HLOOKUP(CONCATENATE($C$3,"E"),'Evolución Ámbitos 1'!$E$4:$AF$51,9,0) -> 0 | G12: =IFERROR(VLOOKUP(CONCATENATE($C$2,$C$3),'Fuentes de información'!$D$4:$AP$367,6,0),"-") -> 0 | H12: 2016 | I12: Consum de Gas Natural | J12: Gas Natural
H13: 2017 | I13: Consum de Gas Natural | J13: Gas Natural
A14: Transport municipal | E14: =SUM(E15:E20) -> 0 | F14: =SUM(F15:F20) -> 0 | G14: - | H14: 2018 | I14: Consum de Gas Natural | J14: Gas Natural
A15: Consum d'electricitat | E15: =HLOOKUP(CONCATENATE($C$3,"C"),'Evolución Ámbitos 1'!$E$4:$AF$51,11,0) -> 0 | F15: =HLOOKUP(CONCATENATE($C$3,"E"),'Evolución Ámbitos 1'!$E$4:$AF$51,11,0) -> 0 | G15: =VLOOKUP(CONCATENATE($C$2,$C$3),'Fuentes de información'!$D$4:$AP$367,7,0) -> 0
A16: Consum de Gasolina | E16: =HLOOKUP(CONCATENATE($C$3,"C"),'Evolución Ámbitos 1'!$E$4:$AF$51,12,0) -> 0 | F16: =HLOOKUP(CONCATENATE($C$3,"E"),'Evolución Ámbitos 1'!$E$4:$AF$51,12,0) -> 0 | G16: =IFERROR(VLOOKUP(CONCATENATE($C$2,$C$3),'Fuentes de información'!$D$4:$AP$367,8,0),"-") -> 0
A17: Consum de Gasoil | E17: =HLOOKUP(CONCATENATE($C$3,"C"),'Evolución Ámbitos 1'!$E$4:$AF$51,13,0) -> 0 | F17: =HLOOKUP(CONCATENATE($C$3,"E"),'Evolución Ámbitos 1'!$E$4:$AF$51,13,0) -> 0 | G17: =IFERROR(VLOOKUP(CONCATENATE($C$2,$C$3),'Fuentes de información'!$D$4:$AP$367,9,0),"-") -> 0
A18: Consum de gas natural | E18: =HLOOKUP(CONCATENATE($C$3,"C"),'Evolución Ámbitos 1'!$E$4:$AF$51,14,0) -> 0 | F18: =HLOOKUP(CONCATENATE($C$3,"E"),'Evolución Ámbitos 1'!$E$4:$AF$51,14,0) -> 0 | G18: =VLOOKUP(CONCATENATE($C$2,$C$3),'Fuentes de información'!$D$4:$AP$367,10,0) -> 0
A19: Consum de biodiesel (10%) | E19: =HLOOKUP(CONCATENATE($C$3,"C"),'Evolución Ámbitos 1'!$E$4:$AF$51,15,0) -> 0 | F19: =HLOOKUP(CONCATENATE($C$3,"E"),'Evolución Ámbitos 1'!$E$4:$AF$51,15,0) -> 0 | G19: =VLOOKUP(CONCATENATE($C$2,$C$3),'Fuentes de información'!$D$4:$AP$367,11,0) -> 0
A20: Consum de biodiesel (20%) | E20: =HLOOKUP(CONCATENATE($C$3,"C"),'Evolución Ámbitos 1'!$E$4:$AF$51,16,0) -> 0 | F20: =HLOOKUP(CONCATENATE($C$3,"E"),'Evolución Ámbitos 1'!$E$4:$AF$51,16,0) -> 0 | G20: =VLOOKUP(CONCATENATE($C$2,$C$3),'Fuentes de información'!$D$4:$AP$367,12,0) -> 0
A22: Total Àmbits que depenen de l'Ajuntament | E22: =E6+E12+E14 -> 0 | F22: =F6+F12+F14 -> 0 | G22: -
A25: Àmbits que no depenen de l'Ajuntament | E25: Consums (MWh) | F25: Emissions (t CO2) | G25: Font d'informació
A26: Sector residencial | E26: =SUM(E27:E30) -> 0 | F26: =SUM(F27:F30) -> 0 | G26: -
A27: Consum d'electricitat | E27: =HLOOKUP(CONCATENATE($C$3,"C"),'Evolución Ámbitos 1'!$E$4:$AF$51,19,0) -> 0 | F27: =HLOOKUP(CONCATENATE($C$3,"E"),'Evolución Ámbitos 1'!$E$4:$AF$51,19,0) -> 0 | G27: =IFERROR(VLOOKUP(CONCATENATE($C$2,$C$3),'Fuentes de información'!$D$4:$AP$367,16,0),"-") -> 0
A28: =VLOOKUP($C$3,$H$1:$I$14,2,0) -> Consum de Gas Natural | E28: =HLOOKUP(CONCATENATE($C$3,"C"),'Evolución Ámbitos 1'!$E$4:$AF$51,20,0) -> 0 | F28: =HLOOKUP(CONCATENATE($C$3,"E"),'Evolución Ámbitos 1'!$E$4:$AF$51,20,0) -> 0 | G28: =IFERROR(IF(E28=0,"-",VLOOKUP(CONCATENATE($C$2,$C$3),'Fuentes de información'!$D$4:$AP$367,17,0)),"-") -> -
A29: Consum de GLP | E29: =HLOOKUP(CONCATENATE($C$3,"C"),'Evolución Ámbitos 1'!$E$4:$AF$51,21,0) -> 0 | F29: =HLOOKUP(CONCATENATE($C$3,"E"),'Evolución Ámbitos 1'!$E$4:$AF$51,21,0) -> 0 | G29: =IFERROR(VLOOKUP(CONCATENATE($C$2,$C$3),'Fuentes de información'!$D$4:$AP$367,18,0),"-") -> 0
A30: Consum de Gasoil C | E30: =HLOOKUP(CONCATENATE($C$3,"C"),'Evolución Ámbitos 1'!$E$4:$AF$51,22,0) -> 0 | F30: =HLOOKUP(CONCATENATE($C$3,"E"),'Evolución Ámbitos 1'!$E$4:$AF$51,22,0) -> 0 | G30: =IFERROR(VLOOKUP(CONCATENATE($C$2,$C$3),'Fuentes de información'!$D$4:$AP$367,19,0),"-") -> 0
A32: Sector serveis | E32: =SUM(E33:E36) -> 0 | F32: =SUM(F33:F36) -> 0 | G32: -
A33: Consum d'electricitat | E33: =HLOOKUP(CONCATENATE($C$3,"C"),'Evolución Ámbitos 1'!$E$4:$AF$51,24,0) -> 0 | F33: =HLOOKUP(CONCATENATE($C$3,"E"),'Evolución Ámbitos 1'!$E$4:$AF$51,24,0) -> 0 | G33: =IFERROR(VLOOKUP(CONCATENATE($C$2,$C$3),'Fuentes de información'!$D$4:$AP$367,20,0),"-") -> 0
A34: =VLOOKUP($C$3,$H$1:$I$14,2,0) -> Consum de Gas Natural | E34: =HLOOKUP(CONCATENATE($C$3,"C"),'Evolución Ámbitos 1'!$E$4:$AF$51,25,0) -> 0 | F34: =HLOOKUP(CONCATENATE($C$3,"E"),'Evolución Ámbitos 1'!$E$4:$AF$51,25,0) -> 0 | G34: =IFERROR(IF(E28=0,"-",VLOOKUP(CONCATENATE($C$2,$C$3),'Fuentes de información'!$D$4:$AP$367,21,0)),"-") -> -
A35: Consum de GLP | E35: =HLOOKUP(CONCATENATE($C$3,"C"),'Evolución Ámbitos 1'!$E$4:$AF$51,26,0) -> 0 | F35: =HLOOKUP(CONCATENATE($C$3,"E"),'Evolución Ámbitos 1'!$E$4:$AF$51,26,0) -> 0 | G35: =IFERROR(VLOOKUP(CONCATENATE($C$2,$C$3),'Fuentes de información'!$D$4:$AP$367,22,0),"-") -> 0
A36: Consum de Gasoil C | E36: =HLOOKUP(CONCATENATE($C$3,"C"),'Evolución Ámbitos 1'!$E$4:$AF$51,27,0) -> 0 | F36: =HLOOKUP(CONCATENATE($C$3,"E"),'Evolución Ámbitos 1'!$E$4:$AF$51,27,0) -> 0 | G36: =IFERROR(VLOOKUP(CONCATENATE($C$2,$C$3),'Fuentes de información'!$D$4:$AP$367,23,0),"-") -> 0
A38: Sector industria | E38: =SUM(E39:E42) -> 0 | F38: =SUM(F39:F42) -> 0
A39: Consum de electricitat | E39: =HLOOKUP(CONCATENATE($C$3,"C"),'Evolución Ámbitos 1'!$E$4:$AF$51,29,0) -> 0 | F39: =HLOOKUP(CONCATENATE($C$3,"E"),'Evolución Ámbitos 1'!$E$4:$AF$51,29,0) -> 0
A40: =VLOOKUP($C$3,$H$1:$I$14,2,0) -> Consum de Gas Natural | E40: =HLOOKUP(CONCATENATE($C$3,"C"),'Evolución Ámbitos 1'!$E$4:$AF$51,30,0) -> 0 | F40: =HLOOKUP(CONCATENATE($C$3,"E"),'Evolución Ámbitos 1'!$E$4:$AF$51,30,0) -> 0
A41: Consum de GLP | E41: =HLOOKUP(CONCATENATE($C$3,"C"),'Evolución Ámbitos 1'!$E$4:$AF$51,31,0) -> 0 | F41: =HLOOKUP(CONCATENATE($C$3,"E"),'Evolución Ámbitos 1'!$E$4:$AF$51,31,0) -> 0
A42: Consum de Gasoil C | E42: =HLOOKUP(CONCATENATE($C$3,"C"),'Evolución Ámbitos 1'!$E$4:$AF$51,32,0) -> 0 | F42: =HLOOKUP(CONCATENATE($C$3,"E"),'Evolución Ámbitos 1'!$E$4:$AF$51,32,0) -> 0
A44: Transporte privat i comercial | E44: =SUM(E45:E47) -> 0 | F44: =SUM(F45:F47) -> 0 | G44: -
A45: Consum d'electricitat | E45: =HLOOKUP(CONCATENATE($C$3,"C"),'Evolución Ámbitos 1'!$E$4:$AF$51,34,0) -> 0 | F45: =HLOOKUP(CONCATENATE($C$3,"E"),'Evolución Ámbitos 1'!$E$4:$AF$51,34,0) -> 0 | G45: =VLOOKUP(CONCATENATE($C$2,$C$3),'Fuentes de información'!$D$4:$AP$367,28,0) -> 0
A46: Consum de Gasolina | E46: =HLOOKUP(CONCATENATE($C$3,"C"),'Evolución Ámbitos 1'!$E$4:$AF$51,35,0) -> 0 | F46: =HLOOKUP(CONCATENATE($C$3,"E"),'Evolución Ámbitos 1'!$E$4:$AF$51,35,0) -> 0 | G46: =IFERROR(VLOOKUP(CONCATENATE($C$2,$C$3),'Fuentes de información'!$D$4:$AP$367,29,0),"-") -> 0
